Workbook

Sheet Design Converter
A1: =CONCATENATE(Device, " DC/DC Controller Design Tool") -> LM51772 DC/DC Controller Design Tool
A3: About | C3: xx | F3: = Input Box | J3: =HYPERLINK(CONCATENATE("http://www.ti.com/product/",LOWER(Device))) -> http://www.ti.com/product/lm51772 | N3: TERMS OF USE
J4: =CONCATENATE("Version: ",Licenses!$B$5) -> Version: 1.2.0
A5: Step 1: Operating Specifications
D6: Device
D7: Input Voltage - Min, VIN(min) | E7: 9 | F7: V
D8: Input Voltage - Nom, VIN(nom) | E8: 16 | F8: V
D9: Input Voltage - Max, VIN(max) | E9: 48 | F9: V
D10: Output Voltage, VOUT | E10: 20 | F10: V
D11: Full Load Output Current, IOUT(max) | E11: 5 | F11: A
D12: Switching Frequency | E12: 600 | F12: kHz
D13: Frequency Set Resistor, RT | E13: =IF('Standard Value Calculator'!R4/1000>288, "N/A",'Standard Value Calculator'!R4/1000) -> 52.3 | F13: kΩ
A15: Step 2: Filter Inductor
D16: Recommended Filter Inductance | E16: =Lopt_Limit*1000000 -> 3.348214286 | F16: µH
D17: Inductance, LF | E17: 3.3 | F17: µH
D18: Inductance at max Current, LF,eff | E18: 3 | F18: µH
D19: Inductor DCR | E19: 5.7 | F19: mΩ
D20: Pk-to-Pk Ripple Current at VIN(min), DIL1 | E20: ='Variable Management'!B84 -> 2.770717423 | F20: Apk-pk
D21: Pk-to-Pk Ripple Current at VIN(nom), DIL2 | E21: ='Variable Management'!B85 -> 1.795921353 | F21: Apk-pk
D22: Pk-to-Pk Ripple Current at VIN(max), DIL3 | E22: ='Variable Management'!B86 -> 6.493077613 | F22: Apk-pk
D23: DIL as a % at VIN(min) | E23: ='Variable Management'!B96*100 -> 23.68963397 | F23: %
D24: DIL as a % at VIN(nom) | E24: ='Variable Management'!B97*100 -> 27.29800457 | F24: %
D25: DIL as a % at VIN(max) | E25: ='Variable Management'!B98*100 -> 129.8615523 | F25: %
D26: Recommended RDIFF for Current Sense Filter | E26: =R_CS -> 10 | F26: Ω
D27: Recommended CDIFF for Current Sense Filter | E27: =C_CS_ideal*1000000000000 -> 180 | F27: pF
A29: Step 3: OCP, Sense Resistors, Slope Comp
D30: Peak Current Limit Margin | E30: 20 | F30: %
D31: Recommended Sense Resistance | E31: =Rs_ideal*1000 -> 3.185216889 | F31: mΩ
D32: Sense Resistance, RS | E32: 2.5 | F32: mΩ
D33: Peak Inductor Over-Current Limit, ILPK,Limit | E33: ='Variable Management'!B143 -> 22 | F33: A
D34: Max Peak Inductor Current, ILPk,Max | E34: =Ipeak_inductor_max -> 13.08126514 | F34: A
D35: =IF('Variable Management'!B91>'Variable Management'!B89, "Power Loss in Rs at Full Load (Max VIN)", "Power Loss in Rs at Full Load (Min VIN)") -> Power Loss in Rs at Full Load (Min VIN) | E35: ='Variable Management'!B92 -> 0.1903953433 | F35: W
D36: Recommended SLOPE Factor | E36: ='Variable Management'!B148 -> 0.875
D37: Recommended Inductor De-Rating | E37: =(E17-E18)/E17*100 -> 9.090909091 | F37: %
D38: VIN(min) | E38: ='Variable Management'!B135 -> 8.2994591 | F38: A
C39: IOUT(typ) at OCP Inception: | D39: VIN(nom) | E39: ='Variable Management'!B136 -> 15.24264129 | F39: A
D40: VIN(max) | E40: ='Variable Management'!B137 -> 16.75346119 | F40: A
A42: Step 4: Output Capacitor
D43: Output Voltage Ripple Spec | E43: 150 | F43: mVpk-pk
D44: Minimum Output Capacitance | E44: ='Variable Management'!B176 -> 30.78574915 | F44: µF
D45: Output Capacitance, COUT | E45: 100 | F45: µF | H45: =Device -> LM51772
D46: Maximum Permitted ESR | E46: ='Variable Management'!B180 -> 20.76427526 | F46: mΩ | N46: ='CFG Setting'!H56 -> R_CFG1 | O46: ='CFG Setting'!H57 -> 5.1 | P46: kΩ | Q46: =IF(useI2C=1,"Set Slope Comp. via I2C","") -> 
D47: Output Capacitor ESR | E47: 5 | F47: mΩ | N47: ='CFG Setting'!H85 -> R_CFG2 | O47: ='CFG Setting'!H86 -> 8.3 | P47: kΩ
D48: Resulting Output Voltage Ripple (max) | E48: =Vripple2*1000 -> 71.17862372 | F48: mVpk-pk | N48: =IF(useI2C=1,"",'CFG Setting'!H115) -> R_CFG3 | O48: =IF(useI2C=1,"",'CFG Setting'!H116) -> 1.15 | P48: =IF(useI2C=1,"","kΩ") -> kΩ | Q48: =IF(useI2C=1,"Set Config via I2C","") -> 
D49: Output Capacitor RMS Current (max) | E49: ='Variable Management'!B171 -> 5.527707984 | F49: A (rms) | N49: =IF(useI2C=1,"",'CFG Setting'!H145) -> R_CFG4 | O49: =IF(useI2C=1,"",'CFG Setting'!H146) -> 8.3 | P49: =IF(useI2C=1,"","kΩ") -> kΩ | Q49: =IF(useI2C=1,"Set Config via I2C","") -> 
A51: Step 5: Input Capacitor
D52: Input Voltage Ripple Spec | E52: 180 | F52: mVpk-pk | J52: Current Monitor via CDC | N52: =_xlfn.SWITCH(IMONLIM_select+1,1,"",2,"Current Limiter via ISET", 3,"Current Limiter via I2C",4,"Current Limiter via I2C") -> Current Limiter via I2C
D53: Minimum Input Capacitance | E53: ='Variable Management'!B196 -> 11.57407407 | F53: µF | J53: Maximum Output Current | K53: 3 | L53: A | N53: =CHOOSE(IMONLIM_select+1,"","Average Current Limit","Average Current Limit","Average Current Limit") -> Average Current Limit | O53: 5 | P53: A
D54: Input Capacitance, CIN | E54: 100 | F54: µF | J54: Maximum Voltage at VCDC | K54: 1 | L54: V | N54: =_xlfn.SWITCH(IMONLIM_select+1,1,"",2,"", 3,"DAC ILIM_THRESHOLD",4,"DAC ILIM_THRESHOLD") -> DAC ILIM_THRESHOLD | O54: 100 | P54: =_xlfn.SWITCH(IMONLIM_select+1,1,"",2,"",3,"", 4,"") -> 
D55: Maximum Permitted ESR | E55: ='Variable Management'!B201 -> 19.30102682 | F55: mΩ | J55: Recommended Current Sense, RISNS(out/in) | K55: =CDC_Threshold/K53*1000 -> 16.66666667 | L55: mΩ | N55: Recommended Current Sense, RISNS(out/in) | O55: =_xlfn.SWITCH(IMONLIM_select+1,1,0,2,ILIM_Threshold/O53, 3,0.05/O53, 4,0.05/O53)*1000 -> 10 | P55: mΩ
D56: Input Capacitor ESR | E56: 2 | F56: mΩ | J56: Used Current Sense, RISNS(out/in) | K56: 10 | L56: mΩ | N56: Used Current Sense, RISNS(out/in) | O56: 10 | P56: mΩ
D57: Resulting Input Voltage Ripple (max) | E57: =Vinripple2*1000 -> 37.32641095 | F57: mVpk-pk | J57: CDC Resistance, RCDC | K57: =(K54)/(K56/1000*K53*gm_CDC)/1000 -> 66.66666667 | L57: kΩ | N57: =_xlfn.SWITCH(IMONLIM_select+1,1,"",2,"ILIMCOMP Resistance, RILIM", 3,"Effective average Current Limit",4,"Effective average Current Limit") -> Effective average Current Limit | O57: =_xlfn.SWITCH(IMONLIM_select+1,1,"",2,V_Ilimit/(O56/1000*O53*gm_IL)/1000,3,O54*0.0005/(O56*0.001),4,O54*0.0005/(O56*0.001)) -> 5 | P57: =_xlfn.SWITCH(IMONLIM_select+1,1,"",2,"kΩ", 3,"A",4,"A") -> A
D58: Input Capacitor RMS Current (max) | E58: ='Variable Management'!B189 -> 2.465660379 | F58: A (rms) | N58: =_xlfn.SWITCH(IMONLIM_select+1,1,"",2,"ILIMCOMP Capacitor, CILIM,HF", 3,"ILIMCOMP Capacitor, CILIM", 4,"ILIMCOMP Capacitor, CILIM") -> ILIMCOMP Capacitor, CILIM | O58: =_xlfn.SWITCH(IMONLIM_select+1,1,"",2,C_ILimit_HF_STD*1000000000000,3,C_limitcomp_STD*1000000000,4,C_limitcomp_STD*1000000000) -> 0.22 | P58: =_xlfn.SWITCH(IMONLIM_select+1,1,"",2,"pF", 3,"nF",4,"nF") -> nF
N59: COUT2 Output Capacitance | O59: =Co2_u*1000000 -> 12 | P59: µF
A60: Step 6: Soft-start, UVLO, CFG
D61: recommended Soft-Start Time, tSS for ISCP(MIN) | E61: =E45*0.000001*E10/(E30/100*E11)*1000 -> 2 | F61: ms | M61: VIN(nom) | N61: =VIN_nom&"V" -> 16V
D62: Soft-Start Time, tSS | E62: 1.8 | F62: ms
D63: Soft-Start Capacitance, CSS | E63: =Css_u*1000000000 -> 18 | F63: nF
D65: Required Input Voltage UVLO On | E65: 8.8 | F65: V
D66: Input Voltage UVLO Off | E66: 8 | F66: V
D67: Upper UVLO Resistor, RUV1 | E67: ='Variable Management'!G220 -> 31.6 | F67: kΩ
D68: Lower UVLO Resistor, RUV2 | E68: ='Variable Management'!G221 -> 5.49 | F68: kΩ
A70: Step 7: Compensation Design
D71: Load Pole Frequency | E71: =Fp_dominant -> 795.7747155 | F71: Hz
D72: COUT ESR Zero Frequency | E72: =Fesr/1000 -> 318.3098862 | F72: kHz
D73: Boost RHP Zero Frequency @ VIN(MIN) | E73: =IF(E7<E10,Frhp_Vinmin/1000,"---") -> 42.18413062 | F73: kHz
D74: Boost RHP Zero Frequency @ VIN(NOM) | E74: =IF(E8<E10,Frhp/1000,"---") -> 135.1200687 | F74: kHz
D75: Suggested Crossover Frequency | E75: =MIN(Fsw/1000*0.05,E73/4,IF(E74<>"---",E74/4,E73/4)) -> 10.54603266 | F75: kHz
D76: Desired Crossover Frequency | E76: 13 | F76: =" kHz " -> kHz
D77: Error Amp Pole Frequency | E77: =Fp1_u -> 0.1575791516 | F77: Hz
D78: Upper Feedback Resistor, RFBT | E78: 82 | F78: kΩ
D79: Lower Feedback Resistor, RFBB | E79: =Rfb2_u/1000 -> 4.32 | F79: kΩ
A88: Step 7.1: Compensation Components | J88: Step 7.2: Current Limiter Compensation Design
B89: Calculated / | C89: Std Values | E89: =" Selected" -> Selected | G89: Actual P/Z Frequencies | K89: Calculated / | L89: Std Values | N89: =" Selected" -> Selected
A90: RCOMP | B90: =Rcea1/1000 -> 8.491036381 | C90: ='Standard Value Calculator'!R27 -> 8.45 | E90: 100 | F90: kΩ | G90: =Fp1_u -> 0.1575791516 | H90: Hz (FPEA) | J90: RIL,COMP | K90: ='Variable Management'!E275/1000 -> 54.00704825 | L90: ='Variable Management'!F275/1000 -> 53.6 | N90: 34 | O90: kΩ
A91: CCOMP | B91: =Cc1ea*1000000000 -> 15.70283383 | C91: ='Standard Value Calculator'!R28 -> 15 | E91: 100 | F91: nF | G91: =Fz1_u/1000 -> 0.01591549431 | H91: kHz (FZCOMP) | J91: CIL,COMP | K91: ='Variable Management'!E276/0.000000001 -> 37.03220348 | L91: ='Variable Management'!F276/0.000000001 -> 39 | N91: 47 | O91: nF
A92: CHF | B92: =IF(Cc2ea*1000000000000<0, 0, Cc2ea*1000000000000) -> 136.8380579 | C92: ='Standard Value Calculator'!R29 -> 150 | E92: 1000 | F92: pF | G92: =Fp2_u/1000 -> 1.579943776 | H92: kHz (FPCOMP) | J92: CIL,HF | K92: ='Variable Management'!E277/0.000000000001 -> 185161.0174 | L92: ='Variable Management'!F277/0.000000000001 -> 180000 | N92: 2200 | O92: pF
A94: Efficiency / Power Loss Analyzer
A96: Step 8: Efficiency | M96: VIN(nom) | N96: =VIN_nom&"V" -> 16V
D97: Buck-Leg Power MOSFETs (Q1, Q2) | E97: ISZ034N06LM5ATMA1
E98: Hi-side | F98: Low-side
D99: On-State Resistance, RDS(on) | E99: 4.2 | F99: 4.2 | G99: mΩ
D100: Total Gate Charge, QG | E100: 27 | F100: 27 | G100: nC
D101: Gate-Drain Charge, QGD | E101: 6.2 | F101: 6.2 | G101: nC
D102: Gate-Source Charge, QGS | E102: 6.2 | F102: 6.2 | G102: nC
D103: Gate Resistance, RG | E103: 4.7 | F103: 4.7 | G103: Ω
D104: Transconductance, gFS | E104: 80 | F104: 80 | G104: S
D105: Gate-Source Threshold Voltage, VTH | E105: 2.3 | F105: 2.3 | G105: V
D106: Body Diode Forward Voltage, VBD | E106: 1 | F106: 1 | G106: V
D107: Body Diode Rev Recovery Charge, QRR | F107: 20 | G107: nC
D108: Thermal Resistance, θJA | E108: 60 | F108: 60 | G108: °C/W
D110: Boost-Leg Power MOSFETs (Q3, Q4) | E110: ISZ034N06LM5ATMA1
E111: Hi-side | F111: Low-side
D112: On-State Resistance, RDS(on) | E112: 4.2 | F112: 4.2 | G112: mΩ
D113: Total Gate Charge, QG | E113: 27 | F113: 27 | G113: nC
D114: Gate-Drain Charge, QGD | E114: 6.2 | F114: 6.2 | G114: nC
D115: Gate-Source Charge, QGS | E115: 6.2 | F115: 6.2 | G115: nC
D116: Gate Resistance, RG | E116: 4.7 | F116: 4.7 | G116: Ω
D117: Transconductance, gFS | E117: 80 | F117: 80 | G117: S
D118: Gate-Source Threshold Voltage, VTH | E118: 2.3 | F118: 2.3 | G118: V
D119: Body Diode Forward Voltage, VBD | E119: 1 | F119: 1 | G119: V
D120: Body Diode Rev Recovery Charge, QRR | E120: 20 | G120: nC
D121: Thermal Resistance, θJA | E121: 60 | F121: 60 | G121: °C/W
A123: External Schottky Diode (if applicable) | E123: Buck Leg | F123: Boost Leg
D124: Schottky Fwd Voltage, VFWDsch | E124: 0 | F124: 0 | G124: V
D125: Schottky Rev Recovery Charge, QRRsch | E125: 0 | F125: 0 | G125: nC

Sheet Extended Calculations (hidden)
A6: FB Resisitor (calc RFBT)
D7: Lower Feedback Resistor, RFBB | E7: 4.32 | F7: kΩ
D8: Upper Feedback Resistor, RFBT | E8: =(Vout-Vref)/(Vref/E7) -> 82.08 | F8: kΩ
A19: Mode Transitions
D20: =Timings!E2 -> Buck -> BuBo | E20: =Timings!F2 -> 22.87234128 | F20: V
D21: =Timings!E3 -> BuBo -> Buck | E21: =Timings!F3 -> 27.29890071 | F21: V
D22: =Timings!E4 -> Boost -> BuBo | E22: =Timings!F4 -> 17.48837144 | F22: V
D23: =Timings!E5 -> BuBo -> Boost | E23: =Timings!F5 -> 14.65260467 | F23: V

Sheet Licenses
A5: Version Number | B5: 1.2.0
A35: Version History
A36: Version | B36: Change List Description
A37: 1.0.0 | B37: Initial Release
A38: 1.0.1 | B38: Reworked inductor selection, updated current monitor and limiter configuration
A39: 1.1.0 | B39: updated input limit to 55V
B40: fixed error in efficency calculation - R for ISNS was not implemented right
B41: Fixed labeling in efficiency graph
B42: Updated Current Limit and Monitor configuration
B43: Added internal FB divider configuration
A44: 1.1.1 | B44: updated calculation for ILIM with DAC and ISET
B45: Fixed resistor value for R(CFG) setting 3
A46: 1.1.2 | B46: Fixed calculation of Softstart time
B47: Adjusted Rt calculation formula
B48: Added Filter for CSA/CSB
B49: updated limits for peak current limit threshold
B50: fixed issue when selecting internal FB
B51: Added Inductor De-Rate and updated Comment for Inductor to use derated Inductance
B52: Updated description of Inductor Derate
B53: Added MOSFET details to efficiency plots
B54: Added Bode plot for current limit
A55: 1.1.3 | B55: Fixed R_CFG4 value when selecting iSet
B56: Added note to set config via corresponding registers via when I2C is enabled
B57: Fixed Bit naming of CFG3 (uSleep replaced by EN_CONST_TDEAD)
B58: Improved calculation of Desired Crossover Frequency
A59: 1.2.0 | B59: updated deadtime dependency with fsw
B60: added support for LM51772-Q1

Sheet BOM & Schematic (hidden)
B45: ** Tie MODE to VCC (or voltage > 2.4V) for No Hiccup **
A46: ="VIN = "&VIN_min&" V to "&VIN_max&" V, VOUT = "& Vout &" V, IOUT = " &Iout & " A, Fsw = " & Fsw/1000 &" kHz, Current Limit = "&ROUNDUP(Ilimit_DC,0)&" A" -> 
A47: High Efficiency Synchronous Buck-Boost Regulator BOM
A48: Count | B48: Ref Des | C48: Value | D48: Description | H48: Size | I48: Part Number | J48: MFR
A49: 2 | B49: CBOOT1, CBOOT2 | C49: 0.1 | D49: =C49 -> 0.1 | H49: 0603 | I49: Std | J49: Std
A50: 1 | B50: CC1 | C50: ='Design Converter'!E91 -> 100 | D50: 100 | H50: 0603 | I50: Std | J50: Std
A51: 1 | B51: CC2 | C51: ='Design Converter'!E92 -> 1000 | D51: 1000 | H51: 0603 | I51: Std | J51: Std
A52: 1 | B52: RSLOPE | C52: =Rslope/1000 -> 59.52380952 | H52: 0603 | I52: Std | J52: Std
A53: 1 | B53: CCS | C53: 100 | D53: =C53 -> 100 | H53: 0603 | I53: Std | J53: Std
A54: 1 | B54: CDITH | C54: =Cdither*1000000000 -> 0 | D54: =C54 -> 0 | H54: 0603 | I54: Std | J54: Std
A55: =ROUNDUP('Design Converter'!E54/10,0) -> 10 | B55: CIN | C55: 10 | D55: =C55 -> 10 | H55: 1210 | I55: Std | J55: Std
A56: =ROUNDUP('Design Converter'!E45/22,0) -> 5 | B56: COUT | C56: 22 | D56: =C56 -> 22 | H56: 1210 | I56: Std | J56: Std
A57: 1 | B57: CSS | C57: ='Design Converter'!E63 -> 18 | D57: =C57 -> 18 | H57: 0603 | I57: Std | J57: Std
A58: 1 | B58: CVCC | C58: 1 | D58: 1 | H58: 0603 | I58: Std | J58: Std
A59: 1 | B59: CVIN | C59: 0.1 | D59: 0.1 | H59: 0603 | I59: Std | J59: Std
A60: 3 | B60: DBOOT1, DBOOT2, DVIN | C60: See description | D60: Schottky Diode, 200mA | H60: - | I60: - | J60: Various
A61: 1 | B61: LF | C61: ='Design Converter'!E18 -> 3 | D61: ="Inductor, "&Lf*1000000&"µH, "&Rdcr*1000&"mΩ, >"&ROUNDUP(IL_peak_OCP*1.1,0)&"A" -> Inductor, 3µH, 5.7mΩ, >25A | H61: - | I61: - | J61: Various
A62: 2 | B62: Q1, Q2 | C62: See description | D62: ='Design Converter'!E99 -> 4.2 | H62: Std | I62: ='Design Converter'!E97 -> ISZ034N06LM5ATMA1 | J62: -
A63: 2 | B63: Q3, Q4 | C63: See description | D63: ='Design Converter'!E112 -> 4.2 | H63: Std | I63: ='Design Converter'!E110 -> ISZ034N06LM5ATMA1 | J63: -
A64: 1 | B64: RC1 | C64: ='Design Converter'!E90 -> 100 | D64: =C64 -> 100 | H64: 0603 | I64: Std | J64: Std
A65: 1 | B65: RS | C65: =Rs*1000 -> 2.5 | D65: 2.5 | H65: 2512 | I65: Std | J65: Std
A66: 1 | B66: RCS(out) | C66: ='Standard Value Calculator'!R21 -> 10 | D66: =C66 -> 10 | H66: 2512 | I66: Std | J66: Std
A67: 1 | B67: RT | C67: ='Design Converter'!E13 -> 52.3 | D67: 52.3 | H67: 0603 | I67: Std | J67: Std
A68: 1 | B68: RFB1 | C68: ='Design Converter'!E78 -> 82 | D68: 82 | H68: 0603 | I68: Std | J68: Std
A69: 1 | B69: RFB2 | C69: ='Design Converter'!E79 -> 4.32 | D69: 4.32 | H69: 0603 | I69: Std | J69: Std
A70: 1 | B70: RPGOOD | C70: 20 | D70: 20 | H70: 0603 | I70: Std | J70: Std
A71: 2 | B71: RCS, RCSG | C71: 100 | D71: 100 | H71: 0603 | I71: Std | J71: Std
A72: 1 | B72: RUV1 | C72: ='Design Converter'!E67 -> 31.6 | D72: 31.6 | H72: 0603 | I72: Std | J72: Std
A73: 1 | B73: RUV2 | C73: ='Design Converter'!E68 -> 5.49 | D73: 5.49 | H73: 0603 | I73: Std | J73: Std
A74: 1 | B74: RVIN | C74: 2.2 | D74: 2.2 | H74: 0603 | I74: Std | J74: Std
A75: 1 | B75: U1 | C75: LM5177 | D75: IC, LM5177, Buck-Boost PWM Controller | H75: TSSOP-38 | I75: LM5177HTSSOP | J75: TI
A78: NOTES:
A79: ** For information on TI NexFETTM MOSFETs, see ** | D79: http://www.ti.com/nexfet | E79: **
A80: ** Inductor saturation current should be higher than the peak inductor current at the OCP setpoint for all input voltages and operating temperatures **
A81: ** Effective input and output capacitances should be appropriately derated for applied voltage and temperature, particularly with ceramics **

Sheet EVMs (hidden)
A1: LM5175 Quickstart Design Tool
B6: LM5175EVM-HD PCB Layout | M6: LM5175EVM-HP PCB Layout | W6: LM5175EVM PCB Layout

Sheet MOSFET LOSS (hidden)

Sheet Efficiency Plot Details (hidden)

Sheet DeviceParameter (hidden)
A1: EXCEL Device Parameter
B2: Input from user = | F2: to check
B3: Output =
B4: Constant
A5: Variable Name | B5: Selected Value | C5: STD Units | D5: Device
D6: LM5177 | E6: LM51771 | F6: LM51772 | G6: LM51772-Q1 | M6: t_on_min_Boost | N6: =VLOOKUP((Fsw/1000000),P7:Q107,2) -> 226.4947348 | P6: Freq[Mhz] | Q6: Minimum off-time Boost[ns]
A7: MaxVin | B7: =_xlfn.SWITCH(Device,DeviceParameter!$D$6,DeviceParameter!D7,DeviceParameter!$E$6,DeviceParameter!E7,DeviceParameter!$F$6,DeviceParameter!F7,DeviceParameter!$G$6,DeviceParameter!G7) -> 55 | C7: V | D7: 60 | F7: 55 | G7: 55 | P7: 0.09875 | Q7: 604.1806325
A8: MinVin | B8: =_xlfn.SWITCH(Device,DeviceParameter!$D$6,DeviceParameter!D8,DeviceParameter!$E$6,DeviceParameter!E8,DeviceParameter!$F$6,DeviceParameter!F8,DeviceParameter!$G$6,DeviceParameter!G8) -> 3.3 | C8: V | D8: 2.8 | F8: 3.3 | G8: 3.3 | M8: R_CS | N8: 10 | P8: 0.1404166667 | Q8: 523.3381075
A9: MaxfSW | B9: =_xlfn.SWITCH(Device,DeviceParameter!$D$6,DeviceParameter!D9,DeviceParameter!$E$6,DeviceParameter!E9,DeviceParameter!$F$6,DeviceParameter!F9,DeviceParameter!$G$6,DeviceParameter!G9) -> 2200 | C9: kHz | D9: 600 | F9: 2200 | G9: 2200 | M9: C_CS | N9: =(N6*0.000000001)/(2*PI()*(2*N8)*10) -> 1.802387832e-10 | P9: 0.1820833333 | Q9: 459.9117989
M10: C_CS_ideal | N10: ='Standard Value Calculator'!R23 -> 1.8e-10 | P10: 0.22375 | Q10: 415.9309591
A11: gm_monitor | B11: =_xlfn.SWITCH(Device,DeviceParameter!$D$6,DeviceParameter!D11,DeviceParameter!$E$6,DeviceParameter!E11,DeviceParameter!$F$6,DeviceParameter!F11,DeviceParameter!$G$6,DeviceParameter!G11) -> 0.001 | C11: S | D11: 0.001 | F11: 0.001 | G11: 0.001 | P11: 0.2654166667 | Q11: 378.5534256
A12: gm_IL_DAC | B12: =_xlfn.SWITCH(Device,DeviceParameter!$D$6,DeviceParameter!D12,DeviceParameter!$E$6,DeviceParameter!E12,DeviceParameter!$F$6,DeviceParameter!F12,DeviceParameter!$G$6,DeviceParameter!G12) -> 0.0005 | C12: S | F12: 0.0005 | G12: 0.0005 | P12: 0.3070833333 | Q12: 349.8049772
A13: gm_IL | B13: =_xlfn.SWITCH(Device,DeviceParameter!$D$6,DeviceParameter!D13,DeviceParameter!$E$6,DeviceParameter!E13,DeviceParameter!$F$6,DeviceParameter!F13,DeviceParameter!$G$6,DeviceParameter!G13) -> 0.001 | C13: S | D13: 0.0002 | F13: 0.001 | G13: 0.001 | P13: 0.34875 | Q13: 323.5475647
A14: gm_CDC | B14: =_xlfn.SWITCH(Device,DeviceParameter!$D$6,DeviceParameter!D14,DeviceParameter!$E$6,DeviceParameter!E14,DeviceParameter!$F$6,DeviceParameter!F14,DeviceParameter!$G$6,DeviceParameter!G14) -> 0.0005 | C14: S | F14: 0.0005 | G14: 0.0005 | J14: CDC Transconductance | P14: 0.3904166667 | Q14: 300.0906675
P15: 0.4320833333 | Q15: 283.5498289
A16: CDC_Threshold | B16: 0.05 | C16: V | P16: 0.47375 | Q16: 265.4306752
A17: IMON_Threshold | B17: 0.05 | C17: V | P17: 0.5154166667 | Q17: 251.2544049
A18: ILIM_Threshold | B18: 0.05 | C18: V | P18: 0.5570833333 | Q18: 238.8266086
P19: 0.59875 | Q19: 226.4947348
A20: V_Ilimit | B20: 1 | C20: V | P20: 0.6404166667 | Q20: 216.9915209
P21: 0.6820833333 | Q21: 207.092641
P22: 0.72375 | Q22: 198.487035
P23: 0.7654166667 | Q23: 190.6922922
P24: 0.8070833333 | Q24: 183.753459
P25: 0.84875 | Q25: 176.9759273
P26: 0.8904166667 | Q26: 170.8368949
P27: 0.9320833333 | Q27: 165.3238823
P28: 0.97375 | Q28: 160.0510081
P29: 1.015416667 | Q29: 155.2803568
P30: 1.057083333 | Q30: 150.6014904
P31: 1.09875 | Q31: 146.5348152
P32: 1.140416667 | Q32: 142.552153
P33: 1.182083333 | Q33: 138.8581795
P34: 1.22375 | Q34: 135.3446622
P35: 1.265416667 | Q35: 131.8995688
P36: 1.307083333 | Q36: 128.9805854
P37: 1.34875 | Q37: 125.8853923
P38: 1.390416667 | Q38: 123.1361358
P39: 1.432083333 | Q39: 120.5779206
P40: 1.47375 | Q40: 117.9004862
P41: 1.515416667 | Q41: 115.2237354
P42: 1.557083333 | Q42: 113.0683191
P43: 1.59875 | Q43: 111.187763
P44: 1.640416667 | Q44: 109.0574641
P45: 1.682083333 | Q45: 107.0780446
P46: 1.72375 | Q46: 105.3681463
P47: 1.765416667 | Q47: 103.4496675
P48: 1.807083333 | Q48: 101.8866401
P49: 1.84875 | Q49: 100.3398169
P50: 1.890416667 | Q50: 98.88521679
P51: 1.932083333 | Q51: 97.35229424
P52: 1.97375 | Q52: 95.90047656
P53: 2.015416667 | Q53: 94.52075533
P54: 2.057083333 | Q54: 93.43900133
P55: 2.09875 | Q55: 94.04588298
P56: 2.140416667 | Q56: 94.3702141
P57: 2.182083333 | Q57: 94.83257655
P58: 2.22375 | Q58: 94.9212079
P59: 2.265416667 | Q59: 95.11539857
P60: 2.307083333 | Q60: 95.20430256
P61: 2.34875 | Q61: 95.26965324
P62: 2.390416667 | Q62: 95.30232968
P63: 2.432083333 | Q63: 95.35252595
P64: 2.47375 | Q64: 95.22957209
P65: 2.515416667 | Q65: 95.27100455
P66: 2.557083333 | Q66: 95.21658888

Sheet Variable Management (hidden)
A1: EXCEL Variables Names/Calculations
B2: Input from user = | F2: to check
B3: Output =
B4: Constant
A5: Variable Name | B5: Value | C5: STD Units | E5: Notes | I5: Iteration
A6: Step 1: Operational Specs
A7: VIN_min | B7: ='Design Converter'!E7 -> 9 | C7: V | D7: Minimum input voltage | I7: 1
A8: VIN | B8: ='Design Converter'!E8 -> 16 | C8: V | D8: Nominal input voltage | K8: Efficiency vs IOUT Plot | L8: 1
A9: VIN_max | B9: ='Design Converter'!E9 -> 48 | C9: V | D9: Maximum input voltage | K9: Efficiency vs VIN Plot | L9: 2
A10: VIN_edgebuckboost | B10: =B44 -> 14.65260467 | C10: V | K10: PLOT_TYPE | L10: 1 | M10: CFG | O10: ='CFG Setting'!G28 -> 13 | P10: 1 = Yes, 2 = No
K11: BODEPLOT_TYPE | L11: FALSE
A12: Vout | B12: ='Design Converter'!E10 -> 20 | C12: V | D12: Output Voltage | I12: 1
A13: Iout | B13: ='Design Converter'!E11 -> 5 | C13: A | D13: Maximum Output Current | I13: 1
A14: Rout | B14: =Vout/Iout -> 4 | C14: W | D14: Load resistance
A15: Pout | B15: =Vout*Iout -> 100 | C15: W | D15: Output power
A16: Efficiency | B16: 0.95 | D16: Edited by Vijay from 96% to 90% to match datasheet calculations.
A17: Pin | B17: =Pout/Efficiency -> 105.2631579 | C17: W | D17: Calculate input power assuming 90% efficiency
A18: Iin_Vinmin | B18: =Pin/VIN_min -> 11.69590643 | C18: A
A19: Iin_Vinnom | B19: =Pin/VIN_nom -> 6.578947368 | C19: A | D19: Input currents at min, nom, max Vin
A20: Iin_Vinmax | B20: =Pin/VIN_max -> 2.192982456 | C20: A
A22: Fsw | B22: ='Design Converter'!E12*1000 -> 600000 | C22: Hz | D22: Nominal Switching Frequency | I22: 1
A23: Ts | B23: =1/Fsw -> 1.666666667e-06 | C23: sec | D23: Period
A24: Vref | B24: =_xlfn.SWITCH(Internal_FB_enabled,1,1,2,Vout/10,3,Vout/20) -> 1 | C24: V | D24: Reference Voltage
A25: Vref_eff | B25: =Vref -> 1 | C25: V | D25: effective Vref with Tracking
A26: Rt | B26: =1/(0.000000000032*Fsw) -> 52083.33333 | C26: W | D26: Frequency Set Resistor | F26: edited based on LM5177 curve fit.
A27: Ifb | B27: 6e-08 | C27: A
A29: Device | B29: =CHOOSE(C29,L29,L30,L31) -> LM51772 | C29: =D29+1 -> 2 | D29: 1 | K29: Device | L29: LM5177
A30: Mode | B30: 1 | D30: 0: PSM 1: FPWM 2: ACM | L30: LM51772
L31: LM51772-Q1
K33: useI2C | L33: =IF(OR('CFG Setting'!G57=1,'CFG Setting'!G57=16),1,0) -> 0
A44: VIN_BB_to_boost | B44: =IF($B$30=0,Vout,Timings!F5) -> 14.65260467 | C44: V
A45: VIN_boost_to_BB | B45: =IF($B$30=0,Vout,Timings!F4) -> 17.48837144 | C45: V
A46: VIN_buck_to_BB | B46: =IF($B$30=0,Vout,Timings!F2) -> 22.87234128 | C46: V
A47: VIN_BB_to_buck | B47: =IF($B$30=0,Vout,Timings!F3) -> 27.29890071 | C47: V
A51: Step 2: Filter Inductor
A52: Don1 | B52: =Vout/VIN_nom -> 1.25 | C52: =(Vout-VIN_nom)/Vout -> 0.2 | E52: Ideal Duty Cycle at VIN(nom) | I52: 1
A53: Doff1 | B53: =1-_Don1 -> -0.25 | E53: Ideal 1- Duty Cycle at VIN(nom) | I53: 1
A55: Don_Vinmin | B55: =IF(VIN_min>Vout, Vout/VIN_min, (Vout-VIN_min)/Vout) -> 0.55 | C55: =IF(VIN_min>Vout, "BUCK", "BOOST") -> BOOST
A56: Don_Vinnom | B56: =IF(VIN_nom>Vout, Vout/VIN_nom, (Vout-VIN_nom)/Vout) -> 0.2 | C56: =IF(VIN_nom>Vout, "BUCK", "BOOST") -> BOOST
A57: Don_Vinmax | B57: =IF(VIN_max>Vout, Vout/VIN_max, (Vout-VIN_max)/Vout) -> 0.4166666667 | C57: =IF(VIN_max>Vout, "BUCK", "BOOST") -> BUCK
B59: BUCK | C59: BOOST
A60: Lf_Vinmin | B60: =(VIN_min-Vout)*Don_Vinmin/(Fsw*Iout*0.3) -> -6.722222222e-06 | C60: =VIN_min/(Iin_Vinmin*0.3*Fsw)*(1-VIN_min/Vout) -> 2.35125e-06 | D60: H | E60: Calculated inductance for 30% ripple at VIN(min)
A61: Lf_Vinnom | B61: =(VIN_nom-Vout)*Don_Vinnom/(Fsw*Iout*0.35) -> -7.619047619e-07 | C61: =VIN_nom/(Iin_Vinnom*0.35*Fsw)*(1-VIN_nom/Vout) -> 2.316190476e-06 | D61: H | E61: Calculated inductance for 35% ripple at VIN(nom) | I61: 1
A62: Lf_Vinmax | B62: =(VIN_max-Vout)*Don_Vinmax/(Fsw*Iout*0.4) -> 9.722222222e-06 | C62: =VIN_max/(Iin_Vinmax*0.4*Fsw)*(1-VIN_max/Vout) -> -0.00012768 | D62: H | E62: Calculated inductance for 40% ripple at VIN(max) | K62: Joerg's Calculation | R62: LM5177
A64: L_Vinmin | B64: =MAX(IF(VIN_min>Vout,B60,C60),O64) -> 2.35125e-06 | C64: H | D64: =IF(VIN_min>Vout, "BUCK", "BOOST") -> BOOST | E64: Calculated inductance for 30% ripple at VIN(min) | K64: Lbuck | L64: =(VIN_max-Vout)*Vout/(0.4*Iout*Fsw*VIN_max) -> 9.722222222e-06 | M64: H | N64: Lmin | O64: =MAX(10*Vout*Rs/Fsw,Rs*125/Fsw) -> 8.333333333e-07 | P64: H
A65: L_Vinnom | B65: =IF(VIN_nom>Vout, B61,C61) -> 2.316190476e-06 | C65: H | D65: =IF(VIN_nom>Vout, "BUCK", "BOOST") -> BOOST | E65: Calculated inductance for 35% ripple at VIN(nom) | K65: Lboost | L65: =(Vout-VIN_min)*VIN_min^2/(0.3*Iout*Fsw*Vout^2) -> 2.475e-06 | M65: H | N65: Lmax | O65: =Rs*5000/Fsw -> 2.083333333e-05 | P65: H
A66: L_Vinmax | B66: =MIN(IF(VIN_max>Vout,B62,C62),O65) -> 9.722222222e-06 | C66: H | D66: =IF(VIN_max>Vout, "BUCK", "BOOST") -> BUCK | E66: Calculated inductance for 40% ripple at VIN(max) | K66: Lmax(0.5d boost) | L66: =Rs*25*Vout/Fsw -> 2.083333333e-06 | M66: H | N66: Ltyp | O66: =Rs*625/Fsw -> 2.604166667e-06 | P66: H
K67: Iinpeakmax | L67: =Vout/VIN_min*1.4*Iout -> 15.55555556 | M67: A | N67: Lminheadroom | O67: =Rs*10*Vout/Fsw -> 8.333333333e-07 | P67: H
A68: Lopt | B68: =O74 -> 3.348214286e-06 | C68: H | D68: average of calculated inductances at VIN(min), VIN(max) and VIN(nom) | K68: Rsns_suggest | L68: =Buck_CS_threshold/L67 -> 0.003214285714 | M68: W | N68: LminSC | O68: =Rs*125/Fsw -> 5.208333333e-07 | P68: H
A69: Lmin | B69: =O64 -> 8.333333333e-07 | C69: H
A70: Lmax | B70: =O65 -> 2.083333333e-05 | C70: H | K70: L_avg | L70: =(MAX(MIN(AVERAGE(L64:L65),O65),O64)) -> 6.098611111e-06 | M70: H
A71: Lopt_Limit | B71: =MAX(MIN(B68,B70),B69) -> 3.348214286e-06 | C71: H | K71: L_min | L71: =(MAX(MIN(MIN(L64:L65),O65),O64)) -> 2.475e-06 | M71: H
A72: Lf | B72: ='Design Converter'!E18/1000000 -> 3e-06 | C72: H | E72: Chosen inductance | I72: 2
A73: Rdcr | B73: ='Design Converter'!E19/1000 -> 0.0057 | C73: W | E73: Chosen inductor DCR | I73: 1 | N73: Ltyp_sugguest | O73: =L68*625/Fsw -> 3.348214286e-06 | P73: H
N74: Ltyp_sugguest_limit | O74: =MAX(O64,MIN(O65,O73)) -> 3.348214286e-06 | P74: H
A75: Don2 | B75: =(Vout+Iout*(Rdcr+Rs))/(Vin+Iout*Rs) -> 1.251584699 | I75: 2
A76: Doff2 | B76: =1-_Don2 -> -0.2515846995 | I76: 2
A78: Don_Vinmin_2 | B78: =IF(VIN_min>Vout, (Vout+Iout*(Rdcr+Rs))/(VIN_min+Iout*Rs), (Vout-VIN_min+Iin_Vinmin*(Rdcr))/(Vout-Iin_Vinmin*Rs)) -> 0.5541434846 | C78: =IF(VIN_min>Vout, "BUCK", "BOOST") -> BOOST | E78: Duty cycles adjusted for DCR and shunt voltage drops | I78: 2
A79: Don_Vinnom_2 | B79: =IF(VIN_nom>Vout, (Vout+Iout*(Rdcr+Rs))/(VIN_nom+Iout*Rs), (Vout-VIN_nom+Iin_Vinnom*(Rdcr))/(Vout-Iin_Vinnom*Rs)) -> 0.2020411523 | C79: =IF(VIN_nom>Vout, "BUCK", "BOOST") -> BOOST | E79: need to include RDS(on) later | R79: LM51772
A80: Don_Vinmax_2 | B80: =IF(VIN_max>Vout, (Vout+Iout*(Rdcr+Rs))/(VIN_max+Iout*Rs), (Vout-VIN_max+Iin_Vinmax*(Rdcr))/(Vout-Iin_Vinmax*Rs)) -> 0.4174121323 | C80: =IF(VIN_max>Vout, "BUCK", "BOOST") -> BUCK
A82: Vripple1 | B82: ='Design Converter'!E43/1000 -> 0.15 | C82: V | E82: Output voltage ripple spec(pk-pk) | I82: 1
A84: Iripple_Vinmin | B84: =IF(VIN_min>Vout, (VIN_min-Vout)*Don_Vinmin_2/(Fsw*Lf),VIN_min*Don_Vinmin_2/(Lf*Fsw)) -> 2.770717423 | C84: =(VIN_min-Vout)*Don_Vinmin_2/(Fsw*Lf) -> -3.386432406 | D84: A | E84: =IF(VIN_min>Vout, "BUCK", "BOOST") -> BOOST | H84: =VIN_min*Don_Vinmin_2/(Lopt*Fsw) -> 2.482562811
A85: Iripple_Vinnom | B85: =IF(VIN_nom>Vout, (VIN_nom-Vout)*Don_Vinnom_2/(Fsw*Lf),VIN_nom*Don_Vinnom_2/(Lf*Fsw)) -> 1.795921353 | C85: =(VIN_nom-Vout)*Don_Vinnom_2/(Fsw*Lf) -> -0.4489803384 | D85: A | E85: =IF(VIN_nom>Vout, "BUCK", "BOOST") -> BOOST
A86: Iripple_Vinmax | B86: =IF(VIN_max>Vout, (VIN_max-Vout)*Don_Vinmax_2/(Fsw*Lf),VIN_max*Don_Vinmax_2/(Lf*Fsw)) -> 6.493077613 | C86: =(VIN_max-Vout)*Don_Vinmax_2/(Fsw*Lf) -> 6.493077613 | D86: A | E86: =IF(VIN_max>Vout, "BUCK", "BOOST") -> BUCK
A89: Ishunt_rms_Vinmin | B89: =IF(VIN_min>Vout, SQRT(1-Don_Vinmin_2)*SQRT(Iout^2+(Iripple_Vinmin^2)/12), SQRT(Don_Vinmin_2)*SQRT(Iin_Vinmin^2+(Iripple_Vinmin^2)/12)) -> 8.726862971 | C89: A | E89: =SQRT(1-Don_Vinmin_2)*SQRT(Iout^2+(Iripple_Vinmin^2)/12) -> 3.381071568 | F89: =SQRT(Don_Vinmin_2)*SQRT(Iout^2+(Iripple_Vinmin^2)/12) -> 3.76936263
A90: Ishunt_rms_Vinnom | B90: =IF(VIN_nom>Vout, SQRT(1-Don_Vinnom_2)*SQRT(Iout^2+(Iripple_Vinnom^2)/12), SQRT(Don_Vinnom_2)*SQRT(Iin_Vinnom^2+(Iripple_Vinnom^2)/12)) -> 2.966337833 | C90: A | E90: =SQRT(1-Don_Vinnom_2)*SQRT(Iout^2+(Iripple_Vinnom^2)/12) -> 4.490372458 | F90: =SQRT(Don_Vinnom_2)*SQRT(Iout^2+(Iripple_Vinnom^2)/12) -> 2.259498392
A91: Ishunt_rms_Vinmax | B91: =IF(VIN_max>Vout, SQRT(1-Don_Vinmax_2)*SQRT(Iout^2+(Iripple_Vinmax^2)/12), SQRT(Don_Vinmax_2)*SQRT(Iin_Vinmax^2+(Iripple_Vinmax^2)/12)) -> 4.075723841 | C91: A | E91: =SQRT(1-Don_Vinmax_2)*SQRT(Iout^2+(Iripple_Vinmax^2)/12) -> 4.075723841 | F91: =SQRT(Don_Vinmax_2)*SQRT(Iout^2+(Iripple_Vinmax^2)/12) -> 3.449900469
A92: Max shunt power loss at full load | B92: =MAX(B89,B91)^2*Rs -> 0.1903953433 | C92: W | D92: =IF(B91>B89, "BUCK", "BOOST") -> BOOST
A94: Max inductor ripple current | B94: =MAX(B84:B86) -> 6.493077613 | C94: A
F95: Ripple I | G95: Iin
A96: % Ripple Current | B96: =IF(VIN_min>Vout, B84/Iout, B84/Iin_Vinmin) -> 0.2368963397 | C96: =IF(VIN_min>Vout, "BUCK", "BOOST") -> BOOST | F96: =B84 -> 2.770717423 | G96: =Iin_Vinmin -> 11.69590643
B97: =IF(VIN_nom>Vout, B85/Iout, B85/Iin_Vinnom) -> 0.2729800457 | C97: =IF(VIN_nom>Vout, "BUCK", "BOOST") -> BOOST | F97: =B85 -> 1.795921353 | G97: =Iin_Vinnom -> 6.578947368
B98: =IF(VIN_max>Vout, B86/Iout, B86/Iin_Vinmax) -> 1.298615523 | C98: =IF(VIN_max>Vout, "BUCK", "BOOST") -> BUCK | F98: =B86 -> 6.493077613 | G98: =Iin_Vinmax -> 2.192982456
A100: Temp | B100: 100
A101: DCR at hot | B101: =Rdcr*(1+0.0039*(B100-25)) -> 0.00736725 | C101: W
A104: Step 3: Sense Resistors, Slope Comp, Current Limit
A106: Ilimit_Margin | B106: ='Design Converter'!E30 -> 20 | C106: % | E106: Chosen OCP level - based on output current
A108: Ipeak_inductor_Vinmin | B108: =IF(VIN_min>Vout, Iout/Efficiency+Iripple_Vinmin/2, Iin_Vinmin+Iripple_Vinmin/2) -> 13.08126514 | C108: A | D108: =IF(VIN_min>Vout, "BUCK", "BOOST") -> BOOST
A109: Ipeak_inductor_Vinnom | B109: =IF(VIN_nom>Vout, Iout/Efficiency+Iripple_Vinnom/2,Iin_Vinnom+Iripple_Vinnom/2) -> 7.476908045 | C109: A | D109: =IF(VIN_nom>Vout, "BUCK", "BOOST") -> BOOST
A110: Ipeak_inductor_Vinmax | B110: =IF(VIN_max>Vout, Iout/Efficiency+Iripple_Vinmax/2,Iin_Vinmin+Iripple_Vinmax/2) -> 8.509696701 | C110: A | D110: =IF(VIN_max>Vout, "BUCK", "BOOST") -> BUCK
A111: Ipeak_inductor_buckboost | B111: =I_2 -> 8.593995852 | C111: A | D111: edge of buck-boost
A112: Ipeak_inductor_max | B112: =MAX(B108:B110) -> 13.08126514 | C112: A | D112: Max inductor of Boost and Buck
A113: Ipeak_inductor_max_margin | B113: =Ipeak_inductor_max*(1+Ilimit_Margin/100) -> 15.69751817 | C113: A | D113: with added margin
A115: Buck CS threshold_min | B115: 0.045 | C115: V
A116: Buck CS threshold | B116: 0.05 | C116: V | E116: Pos and neg. is identical - otherwise take lower value
A117: Buck CS threshold_max | B117: 0.055 | C117: V | E117: Identical for Buck and Boost
A119: Boost CS Threshold_min | B119: 0.045 | C119: V
A120: Boost CS Threshold | B120: 0.05 | C120: V | E120: Pos and neg. is identical - otherwise take lower value
A121: Boost CS Threshold_max | B121: 0.055 | C121: V | E121: Identical for Buck and Boost
A123: Assume we'd like to achieve current limit particularly at VIN(min) and boost side of buck-boost region; accept inevitable variation over line thereafter
A124: Shunt required to get OCP at VIN(min) | B124: =IF(VIN_min>Vout,Buck_CS_threshold/B108, Boost_CS_Threshold/B108)/(1+Ilimit_Margin/100) -> 0.003185216889 | C124: W | D124: =IF(VIN_min>Vout, "BUCK", "BOOST") -> BOOST
A125: Shunt required to get OCP at VIN(nom) | B125: =IF(VIN_nom>Vout,Buck_CS_threshold/B109, Boost_CS_Threshold/B109)/(1+Ilimit_Margin/100) -> 0.005572713535 | C125: W | D125: =IF(VIN_nom>Vout, "BUCK", "BOOST") -> BOOST
A126: Shunt required to get OCP at VIN(max) | B126: =IF(VIN_max>Vout,Buck_CS_threshold/B110, Boost_CS_Threshold/B110)/(1+Ilimit_Margin/100) -> 0.004896375057 | C126: W | D126: =IF(VIN_max>Vout, "BUCK", "BOOST") -> BUCK
A129: Rs_ideal | B129: =MIN(B124:B126) -> 0.003185216889 | C129: W | E129: Ideal Rs for the required OCP -- based on 80mV or 160mV CL threshold
A130: Rs | B130: ='Design Converter'!E32/1000 -> 0.0025 | C130: W | E130: Selected (starndard value) current limit sense resistor
A131: Rs_in_range | B131: =IF(AND(100<Rs/Lf,Rs/Lf<8000,Rs/Lf<(1*Fsw/(Vout*10))),1,0) -> 1
A132: BOOST current limit - peak | B132: =Boost_CS_Threshold_max/Rs -> 22 | C132: A | E132: Peak inductor current limit in BOOST
A133: BUCK current limit - peak | B133: =Buck_CS_threshold_max/Rs -> 22 | C133: A | E133: Peak inductor current limit in BUCK
A135: Iout_OCP_Vinmin | B135: =IF(VIN_min>Vout,Buck_CS_threshold/Rs-Iripple_Vinmin/2, (Boost_CS_Threshold/Rs-Iripple_Vinmin/2)*(1-Don_Vinmin_2)) -> 8.2994591 | C135: A | D135: =IF(VIN_min>Vout, "BUCK", "BOOST") -> BOOST | E135: Current limit setpoints (i.e. IOUT) after standard components are selected
A136: Iout_OCP_Vinnom | B136: =IF(VIN_nom>Vout,Buck_CS_threshold/Rs-Iripple_Vinnom/2, IF(VIN_nom<VIN_edgebuckboost,(Boost_CS_Threshold/Rs-Iripple_Vinnom/2)*(1-Don_Vinnom_2),(Buck_CS_threshold/Rs-Iripple_Vinnom/2)*(1-Don_Vinnom_2))) -> 15.24264129 | C136: A | D136: =IF(VIN_nom>Vout,"BUCK",IF(VIN_nom<VIN_edgebuckboost,"BOOST","BUCK-BOOST")) -> BUCK-BOOST
A137: Iout_OCP_Vinmax | B137: =IF(VIN_max>Vout, Buck_CS_threshold/Rs-Iripple_Vinmax/2, (Boost_CS_Threshold/Rs-Iripple_Vinmax/2)*(1-Don_Vinmax_2)) -> 16.75346119 | C137: A | D137: =IF(VIN_max>Vout, "BUCK", "BOOST") -> BUCK
K138: RMS current in Rs | M138: Power diss in Rs
A140: ILpeak_OCP_Vinmin | B140: =IF(VIN_min>Vout, Buck_CS_threshold_max/Rs, Boost_CS_Threshold_max/Rs) -> 22 | C140: A | D140: =IF(VIN_min>Vout, "BUCK", "BOOST") -> BOOST | E140: Peak inductor currents in OCP | H140: =SQRT(Don_Vinmin_2)*SQRT(Iin_Vinmin^2+(Iripple_Vinmin^2)/12) -> 8.726862971 | K140: =IF(VIN_min>Vout, SQRT(1-Don_Vinmin_2)*SQRT(Iout_OCP_Vinmin^2+(Iripple_Vinmin^2)/12), SQRT(Don_Vinmin_2)*SQRT(Iin_Vinmin^2+(Iripple_Vinmin^2)/12)) -> 8.726862971 | L140: A | M140: =K140^2*Rs -> 0.1903953433 | N140: W
A141: ILpeak_OCP_Vinnom | B141: =IF(VIN_nom>Vout, Buck_CS_threshold_max/Rs, IF(VIN_nom<VIN_edgebuckboost, Boost_CS_Threshold_max/Rs, Buck_CS_threshold_max/Rs)) -> 22 | C141: A | D141: =IF(VIN_nom>Vout,"BUCK",IF(VIN_nom<VIN_edgebuckboost,"BOOST","BUCK-BOOST")) -> BUCK-BOOST | H141: =SQRT(1-Don_Vinnom_2)*SQRT(Iout_OCP_Vinnom^2+(Iripple_Vinnom^2)/12) -> 13.62390278 | K141: =IF(VIN_nom>Vout, SQRT(1-Don_Vinnom_2)*SQRT(Iout_OCP_Vinnom^2+(Iripple_Vinnom^2)/12), SQRT(Don_Vinnom_2)*SQRT(Iin_Vinnom^2+(Iripple_Vinnom^2)/12)) -> 2.966337833 | L141: A | M141: =K141^2*Rs -> 0.02199790035 | N141: W
A142: ILpeak_OCP_Vinmax | B142: =IF(VIN_max>Vout, Buck_CS_threshold_max/Rs, Boost_CS_Threshold_max/Rs) -> 22 | C142: A | D142: =IF(VIN_max>Vout, "BUCK", "BOOST") -> BUCK | H142: =SQRT(1-Don_Vinmax_2)*SQRT(Iout_OCP_Vinmax^2+(Iripple_Vinmax^2)/12) -> 12.86727224 | K142: =IF(VIN_max>Vout, SQRT(1-Don_Vinmax_2)*SQRT(Iout_OCP_Vinmax^2+(Iripple_Vinmax^2)/12), SQRT(Don_Vinmax_2)*SQRT(Iin_Vinmax^2+(Iripple_Vinmax^2)/12)) -> 12.86727224 | L142: A | M142: =K142^2*Rs -> 0.413916737 | N142: W
A143: Worst case peak inductor current | B143: =MAX(B140:B142) -> 22 | C143: A
A145: IL_peak_OCP | B145: =MAX(B140:B142) -> 22 | C145: A | E145: Peak inductor current over the full input range
A147: Rslope calc LM51772 | B147: =Rs/Lf/Fsw*625 -> 0.8680555556
A148: Rslope select LM51772 | B148: =INDEX(P153:P168,MATCH(B147,P153:P168,1)+1) -> 0.875
A149: Rslope setting for CFG1 in LM51772 | B149: =INDEX(O153:O168,MATCH(B147,P153:P168)+1)+1 -> 7
A150: Rslope_equ_772 | B150: =625*50000000/(Fsw*B148) -> 59523.80952 | C150: W
A151: Islope_fixed | B151: =Isc_const -> 0 | C151: A | K151: BUCK | L151: BOOST | O151: LM51772 Slope table
A152: Rslope | B152: =B150 -> 59523.80952 | C152: W | K152: =B153*(1-Don_Vinmin_2)/Fsw -> 0.1029928551 | L152: =B153*Don_Vinmin_2/Fsw -> 0.1280071449 | M152: =IF(VIN_min>Vout, "BUCK", "BOOST") -> BOOST | O152: SEL_SLOPE | P152: Factor
A153: SLOPE comp dv/dt = I_slope_total/Cslope | B153: =(ABS((VIN_min-Vout))*gm_slopecomp/Cslope + Islope_fixed)/(Rslope) -> 138600 | C153: V/s | E153: at VIN_min | K153: =B154*(1-Don_Vinnom_2)/Fsw -> 0.06702854321 | L153: =B154*Don_Vinnom_2/Fsw -> 0.01697145679 | M153: =IF(VIN_nom>Vout, "BUCK", "BOOST") -> BOOST | O153: 0 | P153: =0.125 + 0.125 *O153 -> 0.125
A154: SLOPE comp dv/dt = I_slope_total/Cslope | B154: =(ABS((VIN_nom-Vout))*gm_slopecomp/Cslope + Islope_fixed)/(Rslope) -> 50400 | C154: V/s | E154: at VIN_nom | K154: =B155*(1-Don_Vinmax_2)/Fsw -> 0.3425616662 | L154: =B155*Don_Vinmax_2/Fsw -> 0.2454383338 | M154: =IF(VIN_max>Vout, "BUCK", "BOOST") -> BUCK | O154: 1 | P154: =0.125 + 0.125 *O154 -> 0.25
A155: SLOPE comp dv/dt = I_slope_total/Cslope | B155: =(ABS((VIN_max-Vout))*gm_slopecomp/Cslope + Islope_fixed)/(Rslope) -> 352800 | C155: V/s | E155: at VIN_max | O155: 2 | P155: =0.125 + 0.125 *O155 -> 0.375
O156: 3 | P156: 0.5
A157: DV_SLOPEcomp at Vinmin | B157: =IF(D157="BUCK", K152,L152) -> 0.1280071449 | C157: V | D157: =IF(VIN_min>Vout, "BUCK", "BOOST") -> BOOST | E157: at VIN_min | O157: 4 | P157: 0.625
A158: DV_SLOPEcomp at Vinnom | B158: =IF(D158="BUCK", K153,L153) -> 0.01697145679 | C158: V | D158: =IF(VIN_nom>Vout,"BUCK",IF(VIN_nom<VIN_edgebuckboost,"BOOST","BUCK-BOOST")) -> BUCK-BOOST | E158: at VIN_nom | O158: 5 | P158: 0.75
A159: DV_SLOPEcomp at Vinmax | B159: =IF(D159="BUCK", K154,L154) -> 0.3425616662 | C159: V | D159: =IF(VIN_max>Vout, "BUCK", "BOOST") -> BUCK | E159: at VIN_max | O159: 6 | P159: 0.875
O160: 7 | P160: 1
O161: 8 | P161: =1 + 4 *P153 -> 1.5
O162: 9 | P162: =1 + 4 *P154 -> 2
O163: 10 | P163: 2.5
O164: 11 | P164: 3
O165: 12 | P165: 3.5
O166: 13 | P166: 4
A167: Step 4: Output Capacitor | O167: 14 | P167: 4.5
A168: Icoutrms_VINmin | B168: =IF(D168="BUCK", Iripple_Vinmin/SQRT(12), Iout*SQRT((Vout-VIN_min)/VIN_min)) -> 5.527707984 | C168: A | D168: =IF(VIN_min>Vout, "BUCK", "BOOST") -> BOOST | E168: Output Cap RMS current | O168: 15 | P168: 5
A169: Icoutrms_VINnom | B169: =IF(D169="BUCK", Iripple_Vinnom/SQRT(12), Iout*SQRT((Vout-VIN_nom)/VIN_nom)) -> 2.5 | C169: A | D169: =IF(VIN_nom>Vout,"BUCK",IF(VIN_nom<VIN_edgebuckboost,"BOOST","BUCK-BOOST")) -> BUCK-BOOST
A170: Icoutrms_VINmax | B170: =IF(D170="BUCK", Iripple_Vinmax/SQRT(12), Iout*SQRT((Vout-VIN_max)/VIN_max)) -> 1.874390054 | C170: A | D170: =IF(VIN_max>Vout, "BUCK", "BOOST") -> BUCK
A171: Max Cout rms current | B171: =MAX(B168:B170) -> 5.527707984 | C171: A
A173: Output Ripple Spec (pk-pk) | B173: =Vripple1*1000 -> 150 | C173: mV | E173: Vout ripple spec at Vin(nom)
A175: Coutmin | B175: =IF(VIN_min>Vout, Iripple_Vinmin/(Fsw*8*Vripple1), Iout*Don_Vinmin_2/(Vripple1*Fsw)) -> 3.078574915e-05 | C175: F | E175: Minimum Output Capacitnace | H175: =Vripple2 -> 0.07117862372 | I175: 1 | K175: =Coutmin -> 3.078574915e-05
A176: Reported Coutmin | B176: =IF(Coutmin*1000000<H176, H176,Coutmin*1000000) -> 30.78574915 | C176: uF | E176: Limit Min. output Cap | H176: 0.1 | K176: =Coutmin*1000000 -> 30.78574915
A177: Cout | B177: ='Design Converter'!E45/1000000 -> 0.0001 | C177: F | E177: Chosen Output Capacitance | I177: 1
A178: Resrmax | B178: =IF(VIN_min>Vout, SQRT((Vripple1/Iripple_Vinmin)^2-(1/(Fsw*Cout*8))^2), (Vripple1-Iout*Don_Vinmin_2/(Fsw*Cout))/Iout) -> 0.02076427526 | C178: W | E178: Max ESR before ripple exceeds Vripple1 | I178: 1
A180: Reported Cout ESR max | B180: =IF(OR(CoutEsrMax>0.3, CoutEsrMax<0, (ISERROR(CoutEsrMax))), "N/A", CoutEsrMax*1000) -> 20.76427526 | C180: mΩ
A181: CoutEsr | B181: ='Design Converter'!E47/1000 -> 0.005 | C181: W | E181: Chosen ESR | I181: 1 | K181: =ISERROR(CoutEsrMax) -> FALSE | L181: =ISERROR(B180) -> FALSE
A182: Vripple | B182: =IF(VIN_min>Vout, Iripple_Vinmax*SQRT(CoutEsr^2+(1/(8*Fsw*Cout))^2), CoutEsr*Iout+Iout*Don_Vinmin_2/(Fsw*Cout)) -> 0.07117862372 | C182: Vp-p | L182: =OR(CoutEsrMax>0.3,CoutEsrMax<0) -> FALSE
K183: =OR(TRUE, FALSE, TRUE) -> TRUE
A184: Step 5: Input Capacitor
A186: Icinrms_VINmin | B186: =IF(D186="BUCK", Iout*SQRT(Don_Vinmin_2*(1-Don_Vinmax_2)), Iripple_Vinmin/SQRT(12)) -> 0.799837225 | C186: A | D186: =IF(VIN_min>Vout, "BUCK", "BOOST") -> BOOST | F186: =Iripple_Vinmin/SQRT(12) -> 0.799837225 | G186: =Iout*SQRT(Don_Vinmax_2*(1-Don_Vinmax_2)) -> 2.465660379 | H186: =Iout*0.25 -> 1.25
A187: Icinrms_VINnom | B187: =IF(D187="BUCK", Iout*SQRT(Don_Vinnom_2*(1-Don_Vinnom_2)), Iripple_Vinnom/SQRT(12)) -> 0.5184378384 | C187: A | D187: =IF(VIN_nom>Vout,"BUCK",IF(VIN_nom<VIN_edgebuckboost,"BOOST","BUCK-BOOST")) -> BUCK-BOOST
A188: Icinrms_VINmiax | B188: =IF(D188="BUCK", Iout*SQRT(Don_Vinmax_2*(1-Don_Vinmax_2)), Iripple_Vinmax/SQRT(12)) -> 2.465660379 | C188: A | D188: =IF(VIN_max>Vout, "BUCK", "BOOST") -> BUCK
A189: Max Cin rms current | B189: =MAX(B186:B188) -> 2.465660379 | C189: A | D189: …report this
A191: Vinripple1 | B191: ='Design Converter'!E52/1000 -> 0.18 | C191: Vp-p | D191: Input voltage ripple spec (pk-pk)
A193: Cinmin_Vinmax | B193: =IF(VIN_max>Vout, Iout*Don_Vinmax_2*(1-Don_Vinmax_2)/(Vinripple1*Fsw), Iripple_Vinmax/(Fsw*8*Vinripple1)) -> 1.125829834e-05 | C193: F | D193: Calculate cap at Vinmax and 50% duty cycle (Vin = 2*Vout) | K193: =Iripple_Vinnom/(Fsw*8*Vinripple1) -> 2.078612678e-06
A194: Cinmin_50%D | B194: =IF(VIN_max>Vout, Iout*0.5*(1-0.5)/(Vinripple1*Fsw), Iripple_Vinmax/(Fsw*8*Vinripple1)) -> 1.157407407e-05 | D194: Buck 50% typically worst case
A195: Cinmin | B195: =IF(VIN_max<2*Vout, B193,B194) -> 1.157407407e-05
A196: Reported Cinmin | B196: =IF(Cinmin*1000000<10, 10,Cinmin*1000000) -> 11.57407407 | C196: uF | D196: …report this
A197: Cin | B197: ='Design Converter'!E54/1000000 -> 0.0001 | C197: F | D197: Input capacitance
A198: CinEsrMax_Vinmax | B198: =IF(VIN_max>Vout, -(Iout*Don_Vinmax_2*(1-Don_Vinmax_2)/(Cin*Fsw)-Vinripple1)/(Iout+Iripple_Vinmax/2), SQRT((Vinripple1/Iripple_Vinmax)^2-(1/(Fsw*Cin*8))^2)) -> 0.01936995226 | C198: W
A199: CinEsrMax_50%D | B199: =IF(VIN_max>Vout, -(Iout*0.5*(1-0.5)/(Cin*Fsw)-Vinripple1)/(Iout+Iripple_Vinmax/2), SQRT((Vinripple1/Iripple_Vinmax)^2-(1/(Fsw*Cin*8))^2)) -> 0.01930102682 | C199: W | D199: Calculate ESR at Vinmax and 50% duty cycle (Vin = 2*Vout)
A200: CinEsrMax | B200: =IF(VIN_max<2*Vout, B198,B199) -> 0.01930102682 | C200: W
A201: Reported Cin ESR max | B201: =IF(OR(CinEsrMax>0.3, CinEsrMax<0), "N/A",CinEsrMax*1000) -> 19.30102682 | C201: mΩ | D201: …report this
A202: RCinEsr | B202: ='Design Converter'!E56/1000 -> 0.002 | C202: W | D202: Input capacitance series resistance (ESR)
K203: =CinEsrMax -> 0.01930102682
A204: Vinripple2_Vinmax | B204: =IF(VIN_max>Vout, Iout*Don_Vinmax_2*(1-Don_Vinmax_2)/(Cin*Fsw)+(Iout +Iripple_Vinmax/2)*RCinEsr, Iripple_Vinmax*SQRT(RCinEsr^2+(1/(8*Fsw*Cin))^2)) -> 0.03675801462 | C204: Vp-p
A205: Vinripple2_50%D | B205: =IF(VIN_max>Vout, Iout*0.5*(1-0.5)/(Cin*Fsw)+(Iout +Iripple_Vinmax/2)*RCinEsr, Iripple_Vinmax*SQRT(RCinEsr^2+(1/(8*Fsw*Cin))^2)) -> 0.03732641095 | C205: Vp-p | D205: Calculate ripple at Vinmax and 50% duty cycle (Vin = 2*Vout)
A206: Vinripple2 | B206: =IF(VIN_max<2*Vout, B204,B205) -> 0.03732641095 | C206: Vp-p | D206: …report highest of these
B208: =Iout*Don_Vinmax_2*(1-Don_Vinmax_2)/(Cin*Fsw) -> 0.02026493701 | C208: Vp-p
A210: Step 6a: Soft Start
A211: Tss | B211: ='Design Converter'!E62/1000 -> 0.0018 | C211: s | D211: Soft-start time
A212: Iss | B212: 1e-05 | C212: A | D212: Load cap current during soft start
A213: Css | B213: =Iss*Tss/Vref -> 1.8e-08 | C213: F
A214: Css_u | B214: ='Standard Value Calculator'!B4 -> 1.8e-08 | C214: F
A216: Step 6b: Other Components - UVLO, Dither, MODE
A218: VINUVLO_ON | B218: ='Design Converter'!E65 -> 8.8 | C218: V
A219: VINUVLO_OFF | B219: ='Design Converter'!E66 -> 8 | C219: V
A220: RUV1 | B220: =1/Iuvlo1*(VINuvlo_on-Vuvlo_on*VINuvlo_off/Vuvlo_off) -> 31.63841808 | C220: kΩ | D220: RUV1_STD | E220: ='Standard Value Calculator'!R16 -> 31.6 | F220: kΩ | G220: =IF(Ruvlo1<0,"N/A",E220) -> 31.6 | H220: =IF(Ruvlo1<0,"N/A",E220&"kΩ") -> 31.6kΩ
A221: RUV2 | B221: =Ruvlo1/(VINuvlo_off/Vuvlo_off-1) -> 5.474095797 | C221: kΩ | D221: RUV2_STD | E221: ='Standard Value Calculator'!R17 -> 5.49 | F221: kΩ | G221: =IF(G220="N/A","N/A",E221) -> 5.49 | H221: =IF(H220="N/A","N/A",E221&"kΩ") -> 5.49kΩ
A223: VINUVLO_ON_ACTUAL | B223: =(Iuvlo1+Vuvlo_on/RUV2_STD)*(RUV1_STD)+Vuvlo_on -> 8.769618215
A224: VINUVLO_OFF_ACTUAL | B224: =Vuvlo_off*(RUV1_STD+RUV2_STD)/RUV2_STD -> 7.971985428
A226: Rising UVLO/EN Threshold | B226: 1.27 | C226: V | D226: 1.23
A227: Falling UVLO/EN Threshold | B227: 1.18 | C227: V | D227: 1.22
A228: Voltage Hysteresis | B228: =B226-B227 -> 0.09 | C228: V
A229: Rising UVLO/EN Current | B229: 0.006 | C229: mA
A230: Falling UVLO/EN Current | C230: mA
A231: UVLO/EN Current Hysteresis | C231: mA
A233: RPG | B233: 20 | C233: kΩ
A234: RSB | C234: W
A235: Rh | B235: 0 | C235: W
A236: Rmode | C236: W | D236: TBD | E236: Tie to GND or VCC for DCM/CCM, respectively. Use 93.1k or 200k for hiccup in DCM, CCM, respectively.
A243: Step 6c: Current Monitor / Current Limiter
A244: Monitor
A245: With Rcs | B245: ='CFG Setting'!J146 -> 3 | E245: Flag to show current sense is used
A246: With_CDC | B246: ='CFG Setting'!B159 -> 1 | E246: Flag to show CDC is used
A247: IMONLIM_select | B247: ='CFG Setting'!F145-1 -> 2 | E247: 0:off / 1: ILIM (ext) / 2: ILIM (DAC)
A248: Imonitor,Max
A249: Required Constant Current Loop Setpoint | B249: ='Design Converter'!O53 -> 5 | C249: A
A250: Current Limit Threshold | B250: 50 | C250: mV | E250: Restored to 50mV as ICTRL went away and the 25mV centering also went away.
A251: Shunt Resistor in Output Leg | B251: =IF(IMONLIM_select>0,'Design Converter'!O56, 0) -> 10 | C251: mΩ
A252: used Shunt Resistor in Output Leg | B252: ='Design Converter'!O56/1000 -> 0.01 | C252: Ω
A253: Ilimit | B253: =IF(IMONLIM_select=1,'Design Converter'!O53,'Design Converter'!O57) -> 5 | C253: A | E253: Current limit with DAC
A254: g_m | B254: =DeviceParameter!B11 -> 0.001 | C254: S | E254: g_m of Current monitor amplifier
A255: V_ILIM | B255: ='Design Converter'!#REF! ->  | C255: V | E255: max Voltage at IMONOUT
A256: RiLim | B256: ='Design Converter'!O57*1000 -> 5000 | C256: Ω | E256: Resistor to be connected to IMONOUT
A257: Limit iSet | B257: .
A258: IMONOUT Filter , CISET | B258: ='Design Converter'!O58*0.000000000001 -> 2.2e-13 | C258: F
... 234 more rows

Sheet Inductor Current (hidden)
A1: VIN_min | B1: ='Design Converter'!E7 -> 9 | C1: V | D1: Minimum input voltage
B2: ='Design Converter'!E8 -> 16 | C2: V | D2: Nominal input voltage
A3: VIN_max | B3: ='Design Converter'!E9 -> 48 | C3: V | D3: Maximum input voltage | I3: Vin | J3: Iin | K3: D | L3: IL | N3: Ripple
H4: 0 | I4: =Vin -> 16 | J4: =Pin/I4 -> 6.578947368 | K4: =IF(I4>Vout, (Vout+Iout*(Rdcr+Rs))/(I4+Iout*Rs), (Vout-I4+J4*(Rdcr))/(Vout-J4*Rs)) -> 0.2020411523 | L4: =IF(I4>Vout, (I4-Vout)*K4/(Fsw*Lf),I4*K4/(Lf*Fsw)) -> 1.795921353 | M4: =(I4-Vout)*K4/(Fsw*Lf) -> -0.4489803384 | N4: =IF(I4>Vout, L4/Iout, L4/J4) -> 0.2729800457 | Q4: =IF(I4>Vout, "BUCK", "BOOST") -> BOOST
H5: 1 | I5: =VIN_min+(VIN_max-VIN_min)/20*H5 -> 10.95 | J5: 9.61307378 | K5: 0.4557874158 | L5: 2.772706779 | M5: -2.29159784 | N5: 0.2884308227 | Q5: BOOST
H6: 2 | I6: 12.9 | J6: 8.159934721 | K6: 0.3576904227 | L6: 2.563448029 | M6: -1.410890001 | N6: 0.314150556 | Q6: BOOST
H7: 3 | I7: 14.85 | J7: 7.088428141 | K7: 0.2597503547 | L7: 2.142940427 | M7: -0.743174626 | N7: 0.3023153207 | Q7: BOOST
H8: 4 | I8: 16.8 | J8: 6.26566416 | K8: 0.1619125255 | L8: 1.511183571 | M8: -0.2878444897 | N8: 0.2411848979 | Q8: BOOST
H9: 5 | I9: 18.75 | J9: 5.614035088 | K9: 0.06414501404 | L9: 0.6681772296 | M9: -0.04454514864 | N9: 0.119019069 | Q9: BOOST
H10: 6 | I10: 20.7 | J10: 5.08517671 | K10: 0.9675799638 | L10: 0.376281097 | M10: 0.376281097 | N10: 0.07525621941 | Q10: BUCK
H11: 7 | I11: 22.65 | J11: 4.64738004 | K11: 0.8843243243 | L11: 1.301921922 | M11: 1.301921922 | N11: 0.2603843844 | Q11: BUCK
H12: 8 | I12: 24.6 | J12: 4.278990158 | K12: 0.8142610462 | L12: 2.08088934 | M12: 2.08088934 | N12: 0.4161778681 | Q12: BUCK
H13: 9 | I13: 26.55 | J13: 3.964714045 | K13: 0.7544847059 | L13: 2.745486013 | M13: 2.745486013 | N13: 0.5490972026 | Q13: BUCK
H14: 10 | I14: 28.5 | J14: 3.693444137 | K14: 0.7028846997 | L14: 3.319177749 | M14: 3.319177749 | N14: 0.6638355497 | Q14: BUCK
H15: 11 | I15: 30.45 | J15: 3.456918157 | K15: 0.6578908494 | L15: 3.819421876 | M15: 3.819421876 | N15: 0.7638843751 | Q15: BUCK
H16: 12 | I16: 32.4 | J16: 3.248862898 | K16: 0.6183108369 | L16: 4.259474654 | M16: 4.259474654 | N16: 0.8518949308 | Q16: BUCK
H17: 13 | I17: 34.35 | J17: 3.064429633 | K17: 0.5832229902 | L17: 4.649583283 | M17: 4.649583283 | N17: 0.9299166566 | Q17: BUCK
H18: 14 | I18: 36.3 | J18: 2.899811512 | K18: 0.5519036145 | L18: 4.997793842 | M18: 4.997793842 | N18: 0.9995587684 | Q18: BUCK
H19: 15 | I19: 38.25 | J19: 2.751977984 | K19: 0.5237765436 | L19: 5.310512178 | M19: 5.310512178 | N19: 1.062102436 | Q19: BUCK
H20: 16 | I20: 40.2 | J20: 2.618486515 | K20: 0.4983773702 | L20: 5.592901599 | M20: 5.592901599 | N20: 1.11858032 | Q20: BUCK
H21: 17 | I21: 42.15 | J21: 2.497346569 | K21: 0.4753276015 | L21: 5.849170208 | M21: 5.849170208 | N21: 1.169834042 | Q21: BUCK
H22: 18 | I22: 44.1 | J22: 2.38691968 | K22: 0.4543156702 | L22: 6.082782028 | M22: 6.082782028 | N22: 1.216556406 | Q22: BUCK
H23: 19 | I23: 46.05 | J23: 2.285844905 | K23: 0.435082768 | L23: 6.296614503 | M23: 6.296614503 | N23: 1.259322901 | Q23: BUCK
H24: 20 | I24: 48 | J24: 2.192982456 | K24: 0.4174121323 | L24: 6.493077613 | M24: 6.493077613 | N24: 1.298615523 | Q24: BUCK
H28: Vin | I28: =VIN_min -> 9
I29: L | J29: Iin | K29: D | L29: IL Peak,Peak | N29: Ripple Ratio | O29: IL Peak
H30: 0 | I30: =Lmin -> 8.333333333e-07 | J30: =Pin/$I$28 -> 11.69590643 | K30: =IF($I$28>Vout, (Vout+Iout*(Rdcr+Rs))/($I$28+Iout*Rs), (Vout-$I$28+J30*(Rdcr))/(Vout-J30*Rs)) -> 0.5541434846 | L30: =IF($I$28>Vout, ($I$28-Vout)*K30/(Fsw*I30),$I$28*K30/(I30*Fsw)) -> 9.974582723 | M30: =($I$28-Vout)*K30/(Fsw*I30) -> -12.19115666 | N30: =IF($I$28>Vout, L30/Iout, L30/J30) -> 0.8528268228 | O30: =IF($I$80>Vout, L30/2+Iout, L30/2+J30) -> 9.987291362 | Q30: =IF(I30>Vout, "BUCK", "BOOST") -> BOOST
H31: 1 | I31: =Lmin+(Lmax-Lmin)/20*H5 -> 1.833333333e-06 | J31: 11.69590643 | K31: 0.5541434846 | L31: 4.533901238 | M31: -5.541434846 | N31: 0.3876485558 | O31: 7.266950619 | Q31: BOOST
H32: 2 | I32: 2.833333333e-06 | J32: 11.69590643 | K32: 0.5541434846 | L32: 2.933700801 | M32: -3.585634312 | N32: 0.2508314185 | O32: 6.4668504 | Q32: BOOST
H33: 3 | I33: 3.833333333e-06 | J33: 11.69590643 | K33: 0.5541434846 | L33: 2.168387549 | M33: -2.650251448 | N33: 0.1853971354 | O33: 6.084193774 | Q33: BOOST
H34: 4 | I34: 4.833333333e-06 | J34: 11.69590643 | K34: 0.5541434846 | L34: 1.719755642 | M34: -2.101923562 | N34: 0.1470391074 | O34: 5.859877821 | Q34: BOOST
H35: 5 | I35: 5.833333333e-06 | J35: 11.69590643 | K35: 0.5541434846 | L35: 1.424940389 | M35: -1.741593809 | N35: 0.1218324033 | O35: 5.712470195 | Q35: BOOST
H36: 6 | I36: 6.833333333e-06 | J36: 11.69590643 | K36: 0.5541434846 | L36: 1.216412527 | M36: -1.486726422 | N36: 0.1040032711 | O36: 5.608206264 | Q36: BOOST
H37: 7 | I37: 7.833333333e-06 | J37: 11.69590643 | K37: 0.5541434846 | L37: 1.061125822 | M37: -1.29693156 | N37: 0.09072625775 | O37: 5.530562911 | Q37: BOOST
H38: 8 | I38: 8.833333333e-06 | J38: 11.69590643 | K38: 0.5541434846 | L38: 0.9409983701 | M38: -1.150109119 | N38: 0.08045536065 | O38: 5.470499185 | Q38: BOOST
H39: 9 | I39: 9.833333333e-06 | J39: 11.69590643 | K39: 0.5541434846 | L39: 0.8453036206 | M39: -1.03314887 | N39: 0.07227345956 | O39: 5.42265181 | Q39: BOOST
H40: 10 | I40: 1.083333333e-05 | J40: 11.69590643 | K40: 0.5541434846 | L40: 0.7672755941 | M40: -0.9377812817 | N40: 0.0656020633 | O40: 5.383637797 | Q40: BOOST
H41: 11 | I41: 1.183333333e-05 | J41: 11.69590643 | K41: 0.5541434846 | L41: 0.702435403 | M41: -0.8585321593 | N41: 0.06005822696 | O41: 5.351217702 | Q41: BOOST
H42: 12 | I42: 1.283333333e-05 | J42: 11.69590643 | K42: 0.5541434846 | L42: 0.6477001768 | M42: -0.7916335495 | N42: 0.05537836512 | O42: 5.323850088 | Q42: BOOST
H43: 13 | I43: 1.383333333e-05 | J43: 11.69590643 | K43: 0.5541434846 | L43: 0.6008784773 | M43: -0.7344070278 | N43: 0.05137510981 | O43: 5.300439239 | Q43: BOOST
H44: 14 | I44: 1.483333333e-05 | J44: 11.69590643 | K44: 0.5541434846 | L44: 0.5603698159 | M44: -0.6848964417 | N44: 0.04791161926 | O44: 5.280184908 | Q44: BOOST
H45: 15 | I45: 1.583333333e-05 | J45: 11.69590643 | K45: 0.5541434846 | L45: 0.5249780381 | M45: -0.6416398243 | N45: 0.04488562225 | O45: 5.262489019 | Q45: BOOST
H46: 16 | I46: 1.683333333e-05 | J46: 11.69590643 | K46: 0.5541434846 | L46: 0.4937912239 | M46: -0.603522607 | N46: 0.04221914965 | O46: 5.246895612 | Q46: BOOST
H47: 17 | I47: 1.783333333e-05 | J47: 11.69590643 | K47: 0.5541434846 | L47: 0.4661019964 | M47: -0.5696802178 | N47: 0.03985172069 | O47: 5.233050998 | Q47: BOOST
H48: 18 | I48: 1.883333333e-05 | J48: 11.69590643 | K48: 0.5541434846 | L48: 0.4413532178 | M48: -0.5394317107 | N48: 0.03773570013 | O48: 5.220676609 | Q48: BOOST
H49: 19 | I49: 1.983333333e-05 | J49: 11.69590643 | K49: 0.5541434846 | L49: 0.4191001144 | M49: -0.5122334732 | N49: 0.03583305978 | O49: 5.209550057 | Q49: BOOST
H50: 20 | I50: 2.083333333e-05 | J50: 11.69590643 | K50: 0.5541434846 | L50: 0.3989833089 | M50: -0.4876462665 | N50: 0.03411307291 | O50: 5.199491654 | Q50: BOOST
H54: Vin | I54: =VIN_nom -> 16
I55: L | J55: Iin | K55: D | L55: IL Peak,Peak | N55: Ripple Ratio | O55: IL Peak
H56: 0 | I56: =Lmin -> 8.333333333e-07 | J56: =Pin/$I$54 -> 6.578947368 | K56: =IF($I$54>Vout, (Vout+Iout*(Rdcr+Rs))/($I$54+Iout*Rs), (Vout-$I$54+J56*(Rdcr))/(Vout-J56*Rs)) -> 0.2020411523 | L56: =IF($I$54>Vout, ($I$54-Vout)*K56/(Fsw*I56),$I$54*K56/(I56*Fsw)) -> 6.465316872 | M56: =($I$54-Vout)*K56/(Fsw*I56) -> -1.616329218 | N56: =IF($I$54>Vout, L56/Iout, L56/J56) -> 0.9827281646 | O56: =IF($I$80>Vout, L56/2+Iout, L56/2+J56) -> 8.232658436 | Q56: =IF(I56>Vout, "BUCK", "BOOST") -> BOOST
H57: 1 | I57: =Lmin+(Lmax-Lmin)/20*H31 -> 1.833333333e-06 | J57: 6.578947368 | K57: 0.2020411523 | L57: 2.938780397 | M57: -0.7346950991 | N57: 0.4466946203 | O57: 6.469390198 | Q57: BOOST
H58: 2 | I58: 2.833333333e-06 | J58: 6.578947368 | K58: 0.2020411523 | L58: 1.901563786 | M58: -0.4753909465 | N58: 0.2890376955 | O58: 5.950781893 | Q58: BOOST
H59: 3 | I59: 3.833333333e-06 | J59: 6.578947368 | K59: 0.2020411523 | L59: 1.405503668 | M59: -0.351375917 | N59: 0.2136365575 | O59: 5.702751834 | Q59: BOOST
H60: 4 | I60: 4.833333333e-06 | J60: 6.578947368 | K60: 0.2020411523 | L60: 1.114709806 | M60: -0.2786774514 | N60: 0.1694358904 | O60: 5.557354903 | Q60: BOOST
H61: 5 | I61: 5.833333333e-06 | J61: 6.578947368 | K61: 0.2020411523 | L61: 0.9236166961 | M61: -0.230904174 | N61: 0.1403897378 | O61: 5.461808348 | Q61: BOOST
H62: 6 | I62: 6.833333333e-06 | J62: 6.578947368 | K62: 0.2020411523 | L62: 0.7884532771 | M62: -0.1971133193 | N62: 0.1198448981 | O62: 5.394226639 | Q62: BOOST
H63: 7 | I63: 7.833333333e-06 | J63: 6.578947368 | K63: 0.2020411523 | L63: 0.6877996673 | M63: -0.1719499168 | N63: 0.1045455494 | O63: 5.343899834 | Q63: BOOST
H64: 8 | I64: 8.833333333e-06 | J64: 6.578947368 | K64: 0.2020411523 | L64: 0.609935554 | M64: -0.1524838885 | N64: 0.09271020421 | O64: 5.304967777 | Q64: BOOST
H65: 9 | I65: 9.833333333e-06 | J65: 6.578947368 | K65: 0.2020411523 | L65: 0.5479082095 | M65: -0.1369770524 | N65: 0.08328204785 | O65: 5.273954105 | Q65: BOOST
H66: 10 | I66: 1.083333333e-05 | J66: 6.578947368 | K66: 0.2020411523 | L66: 0.4973320671 | M66: -0.1243330168 | N66: 0.0755944742 | O66: 5.248666034 | Q66: BOOST
H67: 11 | I67: 1.183333333e-05 | J67: 6.578947368 | K67: 0.2020411523 | L67: 0.4553040051 | M67: -0.1138260013 | N67: 0.06920620878 | O67: 5.227652003 | Q67: BOOST
H68: 12 | I68: 1.283333333e-05 | J68: 6.578947368 | K68: 0.2020411523 | L68: 0.4198257709 | M68: -0.1049564427 | N68: 0.06381351718 | O68: 5.209912885 | Q68: BOOST
H69: 13 | I69: 1.383333333e-05 | J69: 6.578947368 | K69: 0.2020411523 | L69: 0.38947692 | M69: -0.09736923001 | N69: 0.05920049184 | O69: 5.19473846 | Q69: BOOST
H70: 14 | I70: 1.483333333e-05 | J70: 6.578947368 | K70: 0.2020411523 | L70: 0.363220049 | M70: -0.09080501225 | N70: 0.05520944745 | O70: 5.181610025 | Q70: BOOST
H71: 15 | I71: 1.583333333e-05 | J71: 6.578947368 | K71: 0.2020411523 | L71: 0.3402798354 | M71: -0.08506995885 | N71: 0.05172253498 | O71: 5.170139918 | Q71: BOOST
H72: 16 | I72: 1.683333333e-05 | J72: 6.578947368 | K72: 0.2020411523 | L72: 0.3200651917 | M72: -0.08001629793 | N72: 0.04864990914 | O72: 5.160032596 | Q72: BOOST
H73: 17 | I73: 1.783333333e-05 | J73: 6.578947368 | K73: 0.2020411523 | L73: 0.3021176109 | M73: -0.07552940272 | N73: 0.04592187685 | O73: 5.151058805 | Q73: BOOST
H74: 18 | I74: 1.883333333e-05 | J74: 6.578947368 | K74: 0.2020411523 | L74: 0.2860759678 | M74: -0.07151899195 | N74: 0.04348354711 | O74: 5.143037984 | Q74: BOOST
H75: 19 | I75: 1.983333333e-05 | J75: 6.578947368 | K75: 0.2020411523 | L75: 0.2716519694 | M75: -0.06791299236 | N75: 0.04129109935 | O75: 5.135825985 | Q75: BOOST
H76: 20 | I76: 2.083333333e-05 | J76: 6.578947368 | K76: 0.2020411523 | L76: 0.2586126749 | M76: -0.06465316872 | N76: 0.03930912658 | O76: 5.129306337 | Q76: BOOST
H80: Vin | I80: =VIN_max -> 48 | S80: IL Peak,Peak | X80: IL Peak | AC80: Ripple Ratio
I81: L | J81: Iin | K81: D | L81: IL Peak,Peak | N81: Ripple Ratio | O81: IL Peak | R81: =I81 -> L | S81: =CONCATENATE("Vin = ",$I$28," V") -> Vin = 9 V | T81: =CONCATENATE("Vin = ",$I$54," V") -> Vin = 16 V | U81: =CONCATENATE("Vin = ",$I$80," V") -> Vin = 48 V | W81: =I81 -> L | X81: =CONCATENATE("Vin = ",$I$28," V") -> Vin = 9 V | Y81: =CONCATENATE("Vin = ",$I$54," V") -> Vin = 16 V | Z81: =CONCATENATE("Vin = ",$I$80," V") -> Vin = 48 V | AB81: =I81 -> L | AC81: =CONCATENATE("Vin = ",$I$28," V") -> Vin = 9 V | AD81: =CONCATENATE("Vin = ",$I$54," V") -> Vin = 16 V | AE81: =CONCATENATE("Vin = ",$I$80," V") -> Vin = 48 V
H82: 0 | I82: =Lmin -> 8.333333333e-07 | J82: =Pin/$I$80 -> 2.192982456 | K82: =IF($I$80>Vout, (Vout+Iout*(Rdcr+Rs))/($I$80+Iout*Rs), (Vout-$I$80+J82*(Rdcr))/(Vout-J82*Rs)) -> 0.4174121323 | L82: =IF($I$80>Vout, ($I$80-Vout)*K82/(Fsw*I82),$I$80*K82/(I82*Fsw)) -> 23.37507941 | M82: =($I$80-Vout)*K82/(Fsw*I82) -> 23.37507941 | N82: =IF($I$80>Vout, L82/Iout, L82/J82) -> 4.675015881 | O82: =IF($I$80>Vout, L82/2+Iout, L82/2+J82) -> 16.6875397 | Q82: =IF(I82>Vout, "BUCK", "BOOST") -> BOOST | R82: =I82*1000000 -> 0.8333333333 | S82: =L30 -> 9.974582723 | T82: =L56 -> 6.465316872 | U82: =L82 -> 23.37507941 | W82: =I82 -> 8.333333333e-07 | X82: =O30 -> 9.987291362 | Y82: =O56 -> 8.232658436 | Z82: =O82 -> 16.6875397 | AB82: =I82*1000000 -> 0.8333333333 | AC82: =N30 -> 0.8528268228 | AD82: =N56 -> 0.9827281646 | AE82: =N82 -> 4.675015881
H83: 1 | I83: =Lmin+(Lmax-Lmin)/20*H57 -> 1.833333333e-06 | J83: 2.192982456 | K83: 0.4174121323 | L83: 10.62503609 | M83: 10.62503609 | N83: 2.125007219 | O83: 10.31251805 | Q83: BOOST | R83: =I83*1000000 -> 1.833333333 | S83: =L31 -> 4.533901238 | T83: =L57 -> 2.938780397 | U83: =L83 -> 10.62503609 | W83: =I83 -> 1.833333333e-06 | X83: =O31 -> 7.266950619 | Y83: =O57 -> 6.469390198 | Z83: =O83 -> 10.31251805 | AB83: 1.833333333 | AC83: 0.3876485558 | AD83: 0.4466946203 | AE83: 2.125007219
H84: 2 | I84: 2.833333333e-06 | J84: 2.192982456 | K84: 0.4174121323 | L84: 6.875023355 | M84: 6.875023355 | N84: 1.375004671 | O84: 8.437511677 | Q84: BOOST | R84: =I84*1000000 -> 2.833333333 | S84: 2.933700801 | T84: 1.901563786 | U84: 6.875023355 | W84: 2.833333333e-06 | X84: 6.4668504 | Y84: 5.950781893 | Z84: 8.437511677 | AB84: 2.833333333 | AC84: 0.2508314185 | AD84: 0.2890376955 | AE84: 1.375004671
H85: 3 | I85: 3.833333333e-06 | J85: 2.192982456 | K85: 0.4174121323 | L85: 5.081539001 | M85: 5.081539001 | N85: 1.0163078 | O85: 7.540769501 | Q85: BOOST | R85: 3.833333333 | S85: 2.168387549 | T85: 1.405503668 | U85: 5.081539001 | W85: 3.833333333e-06 | X85: 6.084193774 | Y85: 5.702751834 | Z85: 7.540769501 | AB85: 3.833333333 | AC85: 0.1853971354 | AD85: 0.2136365575 | AE85: 1.0163078
H86: 4 | I86: 4.833333333e-06 | J86: 2.192982456 | K86: 0.4174121323 | L86: 4.030186105 | M86: 4.030186105 | N86: 0.8060372209 | O86: 7.015093052 | Q86: BOOST | R86: 4.833333333 | S86: 1.719755642 | T86: 1.114709806 | U86: 4.030186105 | W86: 4.833333333e-06 | X86: 5.859877821 | Y86: 5.557354903 | Z86: 7.015093052 | AB86: 4.833333333 | AC86: 0.1470391074 | AD86: 0.1694358904 | AE86: 0.8060372209
H87: 5 | I87: 5.833333333e-06 | J87: 2.192982456 | K87: 0.4174121323 | L87: 3.339297058 | M87: 3.339297058 | N87: 0.6678594116 | O87: 6.669648529 | Q87: BOOST | R87: 5.833333333 | S87: 1.424940389 | T87: 0.9236166961 | U87: 3.339297058 | W87: 5.833333333e-06 | X87: 5.712470195 | Y87: 5.461808348 | Z87: 6.669648529 | AB87: 5.833333333 | AC87: 0.1218324033 | AD87: 0.1403897378 | AE87: 0.6678594116
H88: 6 | I88: 6.833333333e-06 | J88: 2.192982456 | K88: 0.4174121323 | L88: 2.85061944 | M88: 2.85061944 | N88: 0.570123888 | O88: 6.42530972 | Q88: BOOST | R88: 6.833333333 | S88: 1.216412527 | T88: 0.7884532771 | U88: 2.85061944 | W88: 6.833333333e-06 | X88: 5.608206264 | Y88: 5.394226639 | Z88: 6.42530972 | AB88: 6.833333333 | AC88: 0.1040032711 | AD88: 0.1198448981 | AE88: 0.570123888
H89: 7 | I89: 7.833333333e-06 | J89: 2.192982456 | K89: 0.4174121323 | L89: 2.486710575 | M89: 2.486710575 | N89: 0.497342115 | O89: 6.243355288 | Q89: BOOST | R89: 7.833333333 | S89: 1.061125822 | T89: 0.6877996673 | U89: 2.486710575 | W89: 7.833333333e-06 | X89: 5.530562911 | Y89: 5.343899834 | Z89: 6.243355288 | AB89: 7.833333333 | AC89: 0.09072625775 | AD89: 0.1045455494 | AE89: 0.497342115
H90: 8 | I90: 8.833333333e-06 | J90: 2.192982456 | K90: 0.4174121323 | L90: 2.20519617 | M90: 2.20519617 | N90: 0.4410392341 | O90: 6.102598085 | Q90: BOOST | R90: 8.833333333 | S90: 0.9409983701 | T90: 0.609935554 | U90: 2.20519617 | W90: 8.833333333e-06 | X90: 5.470499185 | Y90: 5.304967777 | Z90: 6.102598085 | AB90: 8.833333333 | AC90: 0.08045536065 | AD90: 0.09271020421 | AE90: 0.4410392341
H91: 9 | I91: 9.833333333e-06 | J91: 2.192982456 | K91: 0.4174121323 | L91: 1.980938933 | M91: 1.980938933 | N91: 0.3961877865 | O91: 5.990469466 | Q91: BOOST | R91: 9.833333333 | S91: 0.8453036206 | T91: 0.5479082095 | U91: 1.980938933 | W91: 9.833333333e-06 | X91: 5.42265181 | Y91: 5.273954105 | Z91: 5.990469466 | AB91: 9.833333333 | AC91: 0.07227345956 | AD91: 0.08328204785 | AE91: 0.3961877865
H92: 10 | I92: 1.083333333e-05 | J92: 2.192982456 | K92: 0.4174121323 | L92: 1.798083031 | M92: 1.798083031 | N92: 0.3596166063 | O92: 5.899041516 | Q92: BOOST | R92: 10.83333333 | S92: 0.7672755941 | T92: 0.4973320671 | U92: 1.798083031 | W92: 1.083333333e-05 | X92: 5.383637797 | Y92: 5.248666034 | Z92: 5.899041516 | AB92: 10.83333333 | AC92: 0.0656020633 | AD92: 0.0755944742 | AE92: 0.3596166063
H93: 11 | I93: 1.183333333e-05 | J93: 2.192982456 | K93: 0.4174121323 | L93: 1.646132353 | M93: 1.646132353 | N93: 0.3292264705 | O93: 5.823066176 | Q93: BOOST | R93: 11.83333333 | S93: 0.702435403 | T93: 0.4553040051 | U93: 1.646132353 | W93: 1.183333333e-05 | X93: 5.351217702 | Y93: 5.227652003 | Z93: 5.823066176 | AB93: 11.83333333 | AC93: 0.06005822696 | AD93: 0.06920620878 | AE93: 0.3292264705
H94: 12 | I94: 1.283333333e-05 | J94: 2.192982456 | K94: 0.4174121323 | L94: 1.517862299 | M94: 1.517862299 | N94: 0.3035724598 | O94: 5.75893115 | Q94: BOOST | R94: 12.83333333 | S94: 0.6477001768 | T94: 0.4198257709 | U94: 1.517862299 | W94: 1.283333333e-05 | X94: 5.323850088 | Y94: 5.209912885 | Z94: 5.75893115 | AB94: 12.83333333 | AC94: 0.05537836512 | AD94: 0.06381351718 | AE94: 0.3035724598
H95: 13 | I95: 1.383333333e-05 | J95: 2.192982456 | K95: 0.4174121323 | L95: 1.408137314 | M95: 1.408137314 | N95: 0.2816274627 | O95: 5.704068657 | Q95: BOOST | R95: 13.83333333 | S95: 0.6008784773 | T95: 0.38947692 | U95: 1.408137314 | W95: 1.383333333e-05 | X95: 5.300439239 | Y95: 5.19473846 | Z95: 5.704068657 | AB95: 13.83333333 | AC95: 0.05137510981 | AD95: 0.05920049184 | AE95: 0.2816274627
H96: 14 | I96: 1.483333333e-05 | J96: 2.192982456 | K96: 0.4174121323 | L96: 1.313206708 | M96: 1.313206708 | N96: 0.2626413416 | O96: 5.656603354 | Q96: BOOST | R96: 14.83333333 | S96: 0.5603698159 | T96: 0.363220049 | U96: 1.313206708 | W96: 1.483333333e-05 | X96: 5.280184908 | Y96: 5.181610025 | Z96: 5.656603354 | AB96: 14.83333333 | AC96: 0.04791161926 | AD96: 0.05520944745 | AE96: 0.2626413416
H97: 15 | I97: 1.583333333e-05 | J97: 2.192982456 | K97: 0.4174121323 | L97: 1.230267337 | M97: 1.230267337 | N97: 0.2460534674 | O97: 5.615133669 | Q97: BOOST | R97: 15.83333333 | S97: 0.5249780381 | T97: 0.3402798354 | U97: 1.230267337 | W97: 1.583333333e-05 | X97: 5.262489019 | Y97: 5.170139918 | Z97: 5.615133669 | AB97: 15.83333333 | AC97: 0.04488562225 | AD97: 0.05172253498 | AE97: 0.2460534674
H98: 16 | I98: 1.683333333e-05 | J98: 2.192982456 | K98: 0.4174121323 | L98: 1.157182149 | M98: 1.157182149 | N98: 0.2314364298 | O98: 5.578591074 | Q98: BOOST | R98: 16.83333333 | S98: 0.4937912239 | T98: 0.3200651917 | U98: 1.157182149 | W98: 1.683333333e-05 | X98: 5.246895612 | Y98: 5.160032596 | Z98: 5.578591074 | AB98: 16.83333333 | AC98: 0.04221914965 | AD98: 0.04864990914 | AE98: 0.2314364298
H99: 17 | I99: 1.783333333e-05 | J99: 2.192982456 | K99: 0.4174121323 | L99: 1.09229343 | M99: 1.09229343 | N99: 0.218458686 | O99: 5.546146715 | Q99: BOOST | R99: 17.83333333 | S99: 0.4661019964 | T99: 0.3021176109 | U99: 1.09229343 | W99: 1.783333333e-05 | X99: 5.233050998 | Y99: 5.151058805 | Z99: 5.546146715 | AB99: 17.83333333 | AC99: 0.03985172069 | AD99: 0.04592187685 | AE99: 0.218458686
H100: 18 | I100: 1.883333333e-05 | J100: 2.192982456 | K100: 0.4174121323 | L100: 1.034295549 | M100: 1.034295549 | N100: 0.2068591098 | O100: 5.517147774 | Q100: BOOST | R100: 18.83333333 | S100: 0.4413532178 | T100: 0.2860759678 | U100: 1.034295549 | W100: 1.883333333e-05 | X100: 5.220676609 | Y100: 5.143037984 | Z100: 5.517147774 | AB100: 18.83333333 | AC100: 0.03773570013 | AD100: 0.04348354711 | AE100: 0.2068591098
H101: 19 | I101: 1.983333333e-05 | J101: 2.192982456 | K101: 0.4174121323 | L101: 0.9821461935 | M101: 0.9821461935 | N101: 0.1964292387 | O101: 5.491073097 | Q101: BOOST | R101: 19.83333333 | S101: 0.4191001144 | T101: 0.2716519694 | U101: 0.9821461935 | W101: 1.983333333e-05 | X101: 5.209550057 | Y101: 5.135825985 | Z101: 5.491073097 | AB101: 19.83333333 | AC101: 0.03583305978 | AD101: 0.04129109935 | AE101: 0.1964292387
H102: 20 | I102: 2.083333333e-05 | J102: 2.192982456 | K102: 0.4174121323 | L102: 0.9350031763 | M102: 0.9350031763 | N102: 0.1870006353 | O102: 5.467501588 | Q102: BOOST | R102: 20.83333333 | S102: 0.3989833089 | T102: 0.2586126749 | U102: 0.9350031763 | W102: 2.083333333e-05 | X102: 5.199491654 | Y102: 5.129306337 | Z102: 5.467501588 | AB102: 20.83333333 | AC102: 0.03411307291 | AD102: 0.03930912658 | AE102: 0.1870006353

Sheet Timings (hidden)
A1: Device | B1: 2 | C1: 1:LM5177 / 2:LM51772 | E1: Transition | F1: Vin | G1: 1.15e-07 | H1: 8e-08 | I1: =IF($B$1=2,H1,G1) -> 8e-08 | L1: =I1 -> 8e-08 | N1: =0.75/$L$1*$J$3/2000000*0.2 -> 9.375e-07 | V1: BuckBoost | X1: iripple,avg_L | Y1: =1/2*Fsw/L*((W16)^2*(Vin-Vout)+(W15)^2*Vin+(W17)^2*Vout) -> 1.696815797 | AA1: di = du/L * dt | AC1: avg = 1/T * (I1 * dt1 + …
E2: Buck -> BuBo | F2: =$P$9 -> 22.87234128 | G2: 2 | H2: 4 | I2: =IF($B$1=2,H2,G2) -> 4 | N2: =MIN($J$3/2000000*$B$3*1000*$L$5+$J$4*(1-$L$5),$N$1) -> 3.5833324e-07 | P2: =$N$5-$J$7*$J$1 -> 2.093023801e-07 | R2: =$N$5-$J$7*$J$1 -> 2.093023801e-07 | T2: =MAX(MAX(0.5*$N$5/$L$4*$L$6,J6*$J$2)-$J$7*$J$1,0) -> 1.0465119e-07 | X2: iripple,avg_L_out_path | Y2: =1/2*Fsw/L*((W16)^2*(Vin-Vout)+(W17)^2*Vout) -> -0.03284101198
A3: Fsw [kHz] | B3: =Fsw/1000 -> 600 | E3: BuBo -> Buck | F3: =$T$9 -> 27.29890071 | G3: 1 | H3: 1 | I3: 1 | J3: 1e-06 | L3: =0.225-I2*0.025 -> 0.125 | P3: =$N$5+$J$7*$J$1 -> 2.093023801e-07 | R3: =$N$5+J7*$J$1 -> 2.093023801e-07 | T3: =MAX(0.5*$N$5/$L$4*$L$6,J5*$J$2) -> 1.0465119e-07 | X3: iripple,avg_L_in_path | Y3: =1/2*Fsw/L*((W16)^2*(Vin-Vout)+(W15)^2*Vin) -> 1.643603603
A4: IL [A] | B4: 0 | E4: Boost -> BuBo | F4: =$R$8 -> 17.48837144 | G4: 2 | H4: 2 | I4: 2 | J4: 1e-06 | L4: =0.75+I3*0.25 -> 1 | N4: =$L$3/$B$3*0.001 -> 2.083333333e-07 | P4: =0.001/$B$3-$P$3 -> 1.457364287e-06 | R4: =0.001/$B$3-R3 -> 1.457364287e-06 | T4: =MAX($T$5-$T$3-J7*$J$1,0) -> 5.222869035e-07
A5: Vin | B5: =VIN_nom -> 16 | E5: BuBo -> Boost | F5: =$T$8 -> 14.65260467 | G5: 1 | H5: 1 | I5: 1 | J5: =IF(B4>0,1,0) -> 0 | L5: =1-I4*0.0416666 -> 0.9166668 | N5: =$L$4*0.000000075/$N$2*0.000001 -> 2.093023801e-07 | T5: =$N$4+2*$N$5 -> 6.269380935e-07 | X5: iavg | Y5: =IF(B5>B6,Iin+Y1,Iout+Y1) -> 6.696815797
A6: Vout [V] | B6: =Vout -> 20 | G6: LM5177 | H6: LM51772 | J6: =IF(B4<0,1,0) -> 0 | L6: =0.75+I5*0.25 -> 1 | N6: =N4+2*N5 -> 6.269380935e-07 | T6: =0.001/$B$3-$T$5 -> 1.039728573e-06 | X6: dI1 | Y6: =Vin/L*W16 -> 2.473729802
A7: Iout | B7: =Iout -> 5 | J7: =J5-J6 -> 0 | X7: dI2 | Y7: =(Vin-Vout)/L*W15 -> -1.386304764
A8: Iin | B8: =Iin_Vinnom -> 6.578947368 | E8: Timings [ns] | F8: Phase II (Q1-Q4) | G8: Phase I (Q1-Q3) | H8: Phase III (Q2-Q4) | P8: =B6*1/($P$2*1000*$B$3) -> 159.2592178 | R8: =$B$6*(1-$R$2*1000*$B$3) -> 17.48837144 | T8: =$B$6*((0.001/$B$3-$T$4)/($T$6+$T$4)) -> 14.65260467 | X8: dI3 | Y8: =Vout/L*W17 -> 1.087425038
A9: eff | B9: =Efficiency -> 0.95 | E9: BuBo -> Buck | F9: =Timings!$T$6*1000000000 -> 1039.728573 | G9: =Timings!$T$2*1000000000 -> 104.65119 | H9: =(Timings!$T$5-Timings!$T$2)*1000000000 -> 522.2869035 | P9: =$B$6/($P$4*1000*$B$3) -> 22.87234128 | R9: =B6*(1-$R$4*1000*$B$3) -> 2.511628561 | T9: =$B$6*((0.001/$B$3-$T$2)/($T$6+$T$2)) -> 27.29890071
A10: L | B10: =Lf -> 3e-06 | E10: BuBo -> Boost | F10: =Timings!$T$6*1000000000 -> 1039.728573 | G10: =Timings!$T$4*1000000000 -> 522.2869035 | H10: =(Timings!$T$5-Timings!$T$4)*1000000000 -> 104.65119 | X10: Abs currents at
E11: BuBo center | F11: =Timings!$T$6*1000000000 -> 1039.728573 | G11: =Timings!$N$6*1000000000*L11 -> 411.8983274 | H11: =Timings!$N$6*1000000000*(1-L11) -> 215.0397661 | K11: Simplis Align factor | L11: 0.657 | X11: I_0 | Y11: =IF(Vin>B6,0,Y6)+Iout-Y2 -> 7.506570814 | AA11: =1/(W15+W16)*(Iin/Fsw-1/2*dI1_*W15-dI1_*W16-1/2*dI2_*W16) -> 5.8880757
K12: default 0.5 | X12: I_1 | Y12: =IF(Vin>B6,Y7,0)+Iout-Y2 -> 5.032841012
X13: I_2 | Y13: =Y11+Y8 -> 8.593995852
E14: Duty cycles [%] | F14: Phase II (Q1-Q4) | G14: Phase I (Q1-Q3) | H14: Phase III (Q2-Q4) | V14: Timings | X14: I_PP | Y14: =ABS(MAX(Y11:Y13))-ABS(MIN(Y11:Y13)) -> 3.56115484
E15: BuBo -> Buck | F15: =F9*$B$3*0.000001*100 -> 62.38371439 | G15: 6.279071403 | H15: 31.33721421 | V15: t1 - Ph. II | W15: =$F$11*0.000000001 -> 1.039728573e-06
E16: BuBo -> Boost | F16: 62.38371439 | G16: 31.33721421 | H16: 6.279071403 | V16: t2 - Ph. I | W16: =(Vout/Fsw-Vin*W15)/(Vin+Vout) -> 4.638243379e-07 | X16: i_rms | Y16: =SQRT(Fsw*(M75*(I_0*I_1+((I_1-I_0)^2)/3)+M76*(I_1*I_2+((I_2-I_1)^2)/3)+M77*(I_2*I_0+((I_0-I_2)^2)/3))) -> 6.663794182
E17: BuBo center | F17: 62.38371439 | G17: 24.71389965 | H17: 12.90238596 | V17: t3 - Ph. III | W17: =1/Fsw-(W15+W16) -> 1.631137557e-07
V18: t period | W18: =1/Fsw -> 1.666666667e-06
AC24: Boost | AE24: BuckBoost | AG24: Boost
AA25: =VIN_min -> 9 | AB25: =VIN_min -> 9 | AC25: =$F$5 -> 14.65260467 | AD25: =$F$4 -> 17.48837144 | AE25: =$F$2 -> 22.87234128 | AF25: =$F$3 -> 27.29890071 | AG25: =VIN_max -> 48
AA26: =$F$5 -> 14.65260467 | AB26: =AB25 -> 9 | AC26: =AC25-AB25 -> 5.652604668 | AD26: =AD25-AC25 -> 2.835766771 | AE26: 5.383969842 | AF26: 4.426559431 | AG26: 20.70109929
P27: Simplis | AA27: =$F$4 -> 17.48837144
P28: Boost | AA28: =$F$2 -> 22.87234128
K29: Simplis | M29: Ref - Calc | P29: Vin < vout | Q29: 16 | R29: 18 | AA29: =$F$3 -> 27.29890071
K30: t[ns] | L30: Delta t [ns] | AA30: =VIN_max -> 48
J31: t0 | K31: 806.5584 | P31: I start | Q31: Delta
J32: t1 - Ph. II | K32: 807.8462 | L32: =(K32-K31)*1000*0.000000001 -> 1.2878e-06 | M32: =$F$11*0.000000001 -> 1.039728573e-06 | O32: Ph. II | P32: 14.09 | Q32: =P33-P32 -> -1.81
J33: t2 - Ph. I | K33: 808.3201 | L33: =(K33-K32)*1000*0.000000001 -> 4.739e-07 | M33: =(Vout/Fsw-Vin*M32)/(Vin+Vout) -> 4.638243379e-07 | O33: Ph. I | P33: 12.28 | Q33: =P34-P33 -> 4.11
J34: t3 - Ph. III | K34: 808.5702 | L34: =(K34-K33)*1000*0.000000001 -> 2.501e-07 | M34: =1/Fsw-(M32+M33) -> 1.631137557e-07 | O34: Ph. III | P34: 16.39 | Q34: =P32-P34 -> -2.3
J35: t period | L35: =(K34-K31)*1000*0.000000001 -> 2.0118e-06 | M35: =1/Fsw -> 1.666666667e-06
P37: Buck
P38: Vin < vout | Q38: 20 | R38: 18
J39: t0 | K39: 1082.558 | P39: I start | Q39: Delta
J40: t1 - Ph. II | K40: 1083.841 | L40: =(K40-K39)*1000*0.000000001 -> 1.283e-06 | M40: =$F$11*0.000000001 -> 1.039728573e-06 | O40: Ph. II | P40: 10.9972 | Q40: =P41-P40 -> 1.0903
J41: t2 - Ph. I | K41: 1084.136 | L41: =(K41-K40)*1000*0.000000001 -> 2.95e-07 | M41: =(Vout/Fsw-Vin*M40)/(Vin+Vout) -> 4.638243379e-07 | O41: Ph. I | P41: 12.0875 | Q41: =P42-P41 -> 3.2568
J42: t3 - Ph. III | K42: 1084.558 | L42: =(K42-K41)*1000*0.000000001 -> 4.22e-07 | M42: =1/Fsw-(M40+M41) -> 1.631137557e-07 | O42: Ph. III | P42: 15.3443 | Q42: =P40-P42 -> -4.3471
J43: t period | L43: =(K42-K39)*1000*0.000000001 -> 2e-06 | M43: =1/Fsw -> 1.666666667e-06
D45: EVM
D46: XGL1060-332MEC
P54: Buck
J55: t0 | K55: 806.5584 | P55: Vin < vout | Q55: 16 | R55: 14
J56: t1 - Ph. II | K56: 807.8462 | L56: =(K56-K55)*1000*0.000000001 -> 1.2878e-06 | M56: =$F$11*0.000000001 -> 1.039728573e-06 | P56: I start | Q56: Delta
J57: t2 - Ph. I | K57: 808.118 | L57: =(K57-K56)*1000*0.000000001 -> 2.718e-07 | M57: =(Vout/Fsw-Vin*M56)/(Vin+Vout) -> 4.638243379e-07 | O57: Ph. II | P57: 10.92 | Q57: =P58-P57 -> 1.15
J58: t3 - Ph. III | K58: 808.5702 | L58: =(K58-K57)*1000*0.000000001 -> 4.522e-07 | M58: =1/Fsw-(M56+M57) -> 1.631137557e-07 | O58: Ph. I | P58: 12.07 | Q58: =P59-P58 -> 2.33
J59: T period | L59: =(K58-K55)*1000*0.000000001 -> 2.0118e-06 | M59: =1/Fsw -> 1.666666667e-06 | O59: Ph. III | P59: 14.4 | Q59: =P57-P59 -> -3.48
F69: Volt second balance
F71: U = L dI/dt
F72: V dt = L dI
F74: (Ui - Uo)* t1 + Ui * t2 - Uo * t3 = 0 | L74: math
F75: t3 = T -t1 -t2 | L75: t1 - Ph. II | M75: =$F$11*0.000000001 -> 1.039728573e-06
F76: (Ui - Uo)* t1 + Ui * t2 - Uo * (T -t1 -t2) = 0 | L76: t2 - Ph. I | M76: =(Vout/Fsw-Vin*M75)/(Vin+Vout) -> 4.638243379e-07
F77: (Ui - Uo)*t1 -Uo*T+Uo*t1 +Uo*t2 + Ui * t2 = 0 | L77: t3 - Ph. III | M77: =1/Fsw-(M75+M76) -> 1.631137557e-07
F78: (Ui *t1 + (Uo + Ui) * t2 -Uo*T = 0 | L78: T period | M78: =1/Fsw -> 1.666666667e-06
F79: (Ui *t1 + (Uo + ui) * t2 -Uo*T = 0
F80: t2 = (Uo*T - Ui*t1)/(Ui+Uo)
F94: rms = sqrt(1/T * t1 (i0 * i1 + (i1-i0)^2/3)
F96: rms = sqrt(1/T * ( t1 * (i0 * i1 + ((i1-i0)^2)/3) + t2 * (i1 * i2 + ((i2-i1)^2)/3) + t2 * (i2 * i0 + ((i0-i2)^2)/3) ) )

Sheet CFG Setting (hidden)
A1: LM5177
A2: CFG
A3: Setting | B3: R_CFG [ | C3: DRSS | D3: HICCUP | E3: USLEEP | F3: IMON_LIMIT | G3: =C3 -> DRSS | H3: =D3 -> HICCUP | I3: =E3 -> USLEEP | J3: =F3 -> IMON_LIMIT
A4: 1 | B4: 0 | C4: 0 | D4: 0 | E4: 0 | F4: 0 | G4: =IF(C4=1,"Enable","Disable") -> Disable | H4: =IF(D4=1,"Enable","Disable") -> Disable | I4: =IF(E4=1,"Enable","Disable") -> Disable | J4: =IF(F4=1,"Enable","Disable") -> Disable | L4: =CONCATENATE(G$3,": ",C4) -> DRSS: 0 | M4: =CONCATENATE(H$3,": ",D4) -> HICCUP: 0 | N4: =CONCATENATE(I$3,": ",E4) -> USLEEP: 0 | O4: =CONCATENATE(J$3,": ",F4) -> IMON_LIMIT: 0 | P4: =CONCATENATE(K$3,": ",G4) -> : Disable | R4: =CONCATENATE(L4," / ",M4," / ",N4," / ",O4) -> DRSS: 0 / HICCUP: 0 / USLEEP: 0 / IMON_LIMIT: 0
A5: 2 | B5: 0.511 | C5: 1 | D5: 0 | E5: 0 | F5: 0 | G5: =IF(C5=1,"Enable","Disable") -> Enable | H5: Disable | I5: Disable | J5: Disable | L5: =CONCATENATE(G$3,": ",C5) -> DRSS: 1 | M5: HICCUP: 0 | N5: USLEEP: 0 | O5: IMON_LIMIT: 0 | P5: : Enable | R5: =CONCATENATE(L5," / ",M5," / ",N5," / ",O5) -> DRSS: 1 / HICCUP: 0 / USLEEP: 0 / IMON_LIMIT: 0
A6: 3 | B6: 1.15 | C6: 0 | D6: 1 | E6: 0 | F6: 0 | G6: Disable | H6: Enable | I6: Disable | J6: Disable | L6: DRSS: 0 | M6: HICCUP: 1 | N6: USLEEP: 0 | O6: IMON_LIMIT: 0 | P6: : Disable | R6: DRSS: 0 / HICCUP: 1 / USLEEP: 0 / IMON_LIMIT: 0
A7: 4 | B7: 1.9 | C7: 1 | D7: 1 | E7: 0 | F7: 0 | G7: Enable | H7: Enable | I7: Disable | J7: Disable | L7: DRSS: 1 | M7: HICCUP: 1 | N7: USLEEP: 0 | O7: IMON_LIMIT: 0 | P7: : Enable | R7: DRSS: 1 / HICCUP: 1 / USLEEP: 0 / IMON_LIMIT: 0
A8: 5 | B8: 2.7 | C8: 0 | D8: 0 | E8: 0 | F8: 1 | G8: Disable | H8: Disable | I8: Disable | J8: Enable | L8: DRSS: 0 | M8: HICCUP: 0 | N8: USLEEP: 0 | O8: IMON_LIMIT: 1 | P8: : Disable | R8: DRSS: 0 / HICCUP: 0 / USLEEP: 0 / IMON_LIMIT: 1
A9: 6 | B9: 3.8 | C9: 1 | D9: 0 | E9: 0 | F9: 1 | G9: Enable | H9: Disable | I9: Disable | J9: Enable | L9: DRSS: 1 | M9: HICCUP: 0 | N9: USLEEP: 0 | O9: IMON_LIMIT: 1 | P9: : Enable | R9: DRSS: 1 / HICCUP: 0 / USLEEP: 0 / IMON_LIMIT: 1
A10: 7 | B10: 5.1 | C10: 0 | D10: 1 | E10: 0 | F10: 1 | G10: Disable | H10: Enable | I10: Disable | J10: Enable | L10: DRSS: 0 | M10: HICCUP: 1 | N10: USLEEP: 0 | O10: IMON_LIMIT: 1 | P10: : Disable | R10: DRSS: 0 / HICCUP: 1 / USLEEP: 0 / IMON_LIMIT: 1
A11: 8 | B11: 6.5 | C11: 1 | D11: 1 | E11: 0 | F11: 1 | G11: Enable | H11: Enable | I11: Disable | J11: Enable | L11: DRSS: 1 | M11: HICCUP: 1 | N11: USLEEP: 0 | O11: IMON_LIMIT: 1 | P11: : Enable | R11: DRSS: 1 / HICCUP: 1 / USLEEP: 0 / IMON_LIMIT: 1
A12: 9 | B12: 8.3 | C12: 0 | D12: 0 | E12: 1 | F12: 0 | G12: Disable | H12: Disable | I12: Enable | J12: Disable | L12: DRSS: 0 | M12: HICCUP: 0 | N12: USLEEP: 1 | O12: IMON_LIMIT: 0 | P12: : Disable | R12: DRSS: 0 / HICCUP: 0 / USLEEP: 1 / IMON_LIMIT: 0
A13: 10 | B13: 10.5 | C13: 1 | D13: 0 | E13: 1 | F13: 0 | G13: Enable | H13: Disable | I13: Enable | J13: Disable | L13: DRSS: 1 | M13: HICCUP: 0 | N13: USLEEP: 1 | O13: IMON_LIMIT: 0 | P13: : Enable | R13: DRSS: 1 / HICCUP: 0 / USLEEP: 1 / IMON_LIMIT: 0
A14: 11 | B14: 13.3 | C14: 0 | D14: 1 | E14: 1 | F14: 0 | G14: Disable | H14: Enable | I14: Enable | J14: Disable | L14: DRSS: 0 | M14: HICCUP: 1 | N14: USLEEP: 1 | O14: IMON_LIMIT: 0 | P14: : Disable | R14: DRSS: 0 / HICCUP: 1 / USLEEP: 1 / IMON_LIMIT: 0
A15: 12 | B15: 16.2 | C15: 1 | D15: 1 | E15: 1 | F15: 0 | G15: Enable | H15: Enable | I15: Enable | J15: Disable | L15: DRSS: 1 | M15: HICCUP: 1 | N15: USLEEP: 1 | O15: IMON_LIMIT: 0 | P15: : Enable | R15: DRSS: 1 / HICCUP: 1 / USLEEP: 1 / IMON_LIMIT: 0
A16: 13 | B16: 20.5 | C16: 0 | D16: 0 | E16: 1 | F16: 1 | G16: Disable | H16: Disable | I16: Enable | J16: Enable | L16: DRSS: 0 | M16: HICCUP: 0 | N16: USLEEP: 1 | O16: IMON_LIMIT: 1 | P16: : Disable | R16: DRSS: 0 / HICCUP: 0 / USLEEP: 1 / IMON_LIMIT: 1
A17: 14 | B17: 24.9 | C17: 1 | D17: 0 | E17: 1 | F17: 1 | G17: Enable | H17: Disable | I17: Enable | J17: Enable | L17: DRSS: 1 | M17: HICCUP: 0 | N17: USLEEP: 1 | O17: IMON_LIMIT: 1 | P17: : Enable | R17: DRSS: 1 / HICCUP: 0 / USLEEP: 1 / IMON_LIMIT: 1
A18: 15 | B18: 30.1 | C18: 0 | D18: 1 | E18: 1 | F18: 1 | G18: Disable | H18: Enable | I18: Enable | J18: Enable | L18: DRSS: 0 | M18: HICCUP: 1 | N18: USLEEP: 1 | O18: IMON_LIMIT: 1 | P18: : Disable | R18: DRSS: 0 / HICCUP: 1 / USLEEP: 1 / IMON_LIMIT: 1
A19: 16 | B19: 36.5 | C19: 1 | D19: 1 | E19: 1 | F19: 1 | G19: Enable | H19: Enable | I19: Enable | J19: Enable | L19: DRSS: 1 | M19: HICCUP: 1 | N19: USLEEP: 1 | O19: IMON_LIMIT: 1 | P19: : Enable | R19: DRSS: 1 / HICCUP: 1 / USLEEP: 1 / IMON_LIMIT: 1
C21: 0 | D21: 1 | E21: 3 | F21: 2
C22: DRSS: off | D22: HICCUP: off | E22: uSleep: off | F22: IMON_LIMIT: off
C23: DRSS: on | D23: HICCUP: on | E23: uSleep: on | F23: IMON: on
F24: ILIMIT: positive
F25: ILIMIT: negative
B27: CFG Setting | C27: 1 | D27: 1 | E27: 2 | F27: 3 | G27: Calc Setting | H27: =CONCATENATE("R_",A2) -> R_CFG | J27: This cell give 1 for disable and 2 for enable
C28: =(C27-1)*2^C21 -> 0 | D28: =(D27-1)*2^D21 -> 0 | E28: =(E27-1)*2^E21 -> 8 | F28: =(IF(F27>2,1,0)*2^F21) -> 4 | G28: =SUM(C28:F28)+1 -> 13 | H28: =INDEX(B4:B19,G28) -> 20.5
A30: LM51772
A31: CFG1
A32: Setting | B32: R_CFG2 [ | C32: Slope Comp. | D32: I2C
A33: 1 | B33: 0 | C33: n/a | D33: ADDR LSB: 0 | L33: =CONCATENATE($C$32,": ",C33) -> Slope Comp.: n/a | M33: =CONCATENATE(D$32," ",D33) -> I2C ADDR LSB: 0 | R33: =CONCATENATE(L33," / ",M33) -> Slope Comp.: n/a / I2C ADDR LSB: 0
A34: 2 | B34: 0.511 | C34: 0.25 | D34: Disabled | L34: =CONCATENATE($C$32,": ",C34) -> Slope Comp.: 0.25 | M34: =CONCATENATE(D$32," ",D34) -> I2C Disabled | R34: =CONCATENATE(L34," / ",M34," / ",N34," / ",O34) -> Slope Comp.: 0.25 / I2C Disabled / /
A35: 3 | B35: 1.15 | C35: 0.375 | D35: Disabled | L35: Slope Comp.: 0.375 | M35: I2C Disabled | R35: Slope Comp.: 0.375 / I2C Disabled / /
A36: 4 | B36: 1.9 | C36: 0.5 | D36: Disabled | L36: Slope Comp.: 0.5 | M36: I2C Disabled | R36: Slope Comp.: 0.5 / I2C Disabled / /
A37: 5 | B37: 2.7 | C37: 0.625 | D37: Disabled | L37: Slope Comp.: 0.625 | M37: I2C Disabled | R37: Slope Comp.: 0.625 / I2C Disabled / /
A38: 6 | B38: 3.8 | C38: 0.75 | D38: Disabled | L38: Slope Comp.: 0.75 | M38: I2C Disabled | R38: Slope Comp.: 0.75 / I2C Disabled / /
A39: 7 | B39: 5.1 | C39: 0.875 | D39: Disabled | L39: Slope Comp.: 0.875 | M39: I2C Disabled | R39: Slope Comp.: 0.875 / I2C Disabled / /
A40: 8 | B40: 6.5 | C40: 1 | D40: Disabled | L40: Slope Comp.: 1 | M40: I2C Disabled | R40: Slope Comp.: 1 / I2C Disabled / /
A41: 9 | B41: 8.3 | C41: 1.5 | D41: Disabled | L41: Slope Comp.: 1.5 | M41: I2C Disabled | R41: Slope Comp.: 1.5 / I2C Disabled / /
A42: 10 | B42: 10.5 | C42: 2 | D42: Disabled | L42: Slope Comp.: 2 | M42: I2C Disabled | R42: Slope Comp.: 2 / I2C Disabled / /
A43: 11 | B43: 13.3 | C43: 2.5 | D43: Disabled | L43: Slope Comp.: 2.5 | M43: I2C Disabled | R43: Slope Comp.: 2.5 / I2C Disabled / /
A44: 12 | B44: 16.2 | C44: 3 | D44: Disabled | L44: Slope Comp.: 3 | M44: I2C Disabled | R44: Slope Comp.: 3 / I2C Disabled / /
A45: 13 | B45: 20.5 | C45: 3.5 | D45: Disabled | L45: Slope Comp.: 3.5 | M45: I2C Disabled | R45: Slope Comp.: 3.5 / I2C Disabled / /
A46: 14 | B46: 24.9 | C46: 4 | D46: Disabled | L46: Slope Comp.: 4 | M46: I2C Disabled | R46: Slope Comp.: 4 / I2C Disabled / /
A47: 15 | B47: 30.1 | C47: 4.5 | D47: Disabled | L47: Slope Comp.: 4.5 | M47: I2C Disabled | R47: Slope Comp.: 4.5 / I2C Disabled / /
A48: 16 | B48: 36.5 | C48: n/a | D48: ADDR LSB: 1 | L48: Slope Comp.: n/a | M48: I2C ADDR LSB: 1 | R48: Slope Comp.: n/a / I2C ADDR LSB: 1 / /
C51: =CONCATENATE(C32,": off") -> Slope Comp.: off | D51: =CONCATENATE(D32,": 0") -> I2C: 0
C52: =CONCATENATE(C32,": on") -> Slope Comp.: on | D52: =CONCATENATE(D32,": 1") -> I2C: 1
B56: CFG Setting | C56: 7 | D56: =IF(OR(C56=1,B56=16),1,2) -> 2 | E56: 1 | F56: 1 | G56: Calc Setting | H56: =CONCATENATE("R_",A31) -> R_CFG1 | J56: This cell give 1 for disable and 2 for enable
C57: =C56 -> 7 | D57: =(D56-1)*2^D50 -> 1 | E57: =(E56-1)*2^E50 -> 0 | F57: =(IF(F56>1,1,0)*2^F50) -> 0 | G57: =C57 -> 7 | H57: =INDEX(B33:B48,G57) -> 5.1
A60: CFG2
A61: Setting | B61: R_CFG2 [ | C61: SYNC_OUT | D61: SYNC_IN_FALLING | E61: VDET | F61: PCM_HYST | G61: =C61 -> SYNC_OUT | H61: =D61 -> SYNC_IN_FALLING | I61: =E61 -> VDET | J61: =F61 -> PCM_HYST
A62: 1 | B62: 0 | C62: 0 | D62: 0 | E62: 0 | F62: 0 | G62: =IF(C62=1,"Enable","Disable") -> Disable | H62: =IF(D62=1,"Enable","Disable") -> Disable | I62: =IF(E62=1,"Enable","Disable") -> Disable | J62: =IF(F62=1,"Enable","Disable") -> Disable | L62: =CONCATENATE($C$61,": ",C62) -> SYNC_OUT: 0 | M62: =CONCATENATE(D$61,": ",D62) -> SYNC_IN_FALLING: 0 | N62: =CONCATENATE(E$61,": ",E62) -> VDET: 0 | O62: =CONCATENATE(F$61,": ",F62) -> PCM_HYST: 0 | P62: =CONCATENATE(K$3,": ",G62) -> : Disable | R62: =CONCATENATE(L62," / ",M62," / ",N62," / ",O62) -> SYNC_OUT: 0 / SYNC_IN_FALLING: 0 / VDET: 0 / PCM_HYST: 0
A63: 2 | B63: 0.511 | C63: 1 | D63: 0 | E63: 0 | F63: 0 | G63: Enable | H63: Disable | I63: Disable | J63: Disable | L63: =CONCATENATE($C$61,": ",C63) -> SYNC_OUT: 1 | M63: =CONCATENATE(D$61,": ",D63) -> SYNC_IN_FALLING: 0 | N63: =CONCATENATE(E$61,": ",E63) -> VDET: 0 | O63: =CONCATENATE(F$61,": ",F63) -> PCM_HYST: 0 | P63: : Enable | R63: =CONCATENATE(L63," / ",M63," / ",N63," / ",O63) -> SYNC_OUT: 1 / SYNC_IN_FALLING: 0 / VDET: 0 / PCM_HYST: 0
A64: 3 | B64: 1.15 | C64: 0 | D64: 1 | E64: 0 | F64: 0 | G64: Disable | H64: Enable | I64: Disable | J64: Disable | L64: SYNC_OUT: 0 | M64: SYNC_IN_FALLING: 1 | N64: VDET: 0 | O64: PCM_HYST: 0 | P64: : Disable | R64: SYNC_OUT: 0 / SYNC_IN_FALLING: 1 / VDET: 0 / PCM_HYST: 0
A65: 4 | B65: 1.9 | C65: 1 | D65: 1 | E65: 0 | F65: 0 | G65: Enable | H65: Enable | I65: Disable | J65: Disable | L65: SYNC_OUT: 1 | M65: SYNC_IN_FALLING: 1 | N65: VDET: 0 | O65: PCM_HYST: 0 | P65: : Enable | R65: SYNC_OUT: 1 / SYNC_IN_FALLING: 1 / VDET: 0 / PCM_HYST: 0
A66: 5 | B66: 2.7 | C66: 0 | D66: 0 | E66: 1 | F66: 0 | G66: Disable | H66: Disable | I66: Enable | J66: Disable | L66: SYNC_OUT: 0 | M66: SYNC_IN_FALLING: 0 | N66: VDET: 1 | O66: PCM_HYST: 0 | P66: : Disable | R66: SYNC_OUT: 0 / SYNC_IN_FALLING: 0 / VDET: 1 / PCM_HYST: 0
A67: 6 | B67: 3.8 | C67: 1 | D67: 1 | E67: 1 | F67: 0 | G67: Enable | H67: Enable | I67: Enable | J67: Disable | L67: SYNC_OUT: 1 | M67: SYNC_IN_FALLING: 1 | N67: VDET: 1 | O67: PCM_HYST: 0 | P67: : Enable | R67: SYNC_OUT: 1 / SYNC_IN_FALLING: 1 / VDET: 1 / PCM_HYST: 0
A68: 7 | B68: 5.1 | C68: 0 | D68: 1 | E68: 1 | F68: 0 | G68: Disable | H68: Enable | I68: Enable | J68: Disable | L68: SYNC_OUT: 0 | M68: SYNC_IN_FALLING: 1 | N68: VDET: 1 | O68: PCM_HYST: 0 | P68: : Disable | R68: SYNC_OUT: 0 / SYNC_IN_FALLING: 1 / VDET: 1 / PCM_HYST: 0
A69: 8 | B69: 6.5 | C69: 1 | D69: 1 | E69: 1 | F69: 0 | G69: Enable | H69: Enable | I69: Enable | J69: Disable | L69: SYNC_OUT: 1 | M69: SYNC_IN_FALLING: 1 | N69: VDET: 1 | O69: PCM_HYST: 0 | P69: : Enable | R69: SYNC_OUT: 1 / SYNC_IN_FALLING: 1 / VDET: 1 / PCM_HYST: 0
A70: 9 | B70: 8.3 | C70: 0 | D70: 0 | E70: 0 | F70: 1 | G70: Disable | H70: Disable | I70: Disable | J70: Enable | L70: SYNC_OUT: 0 | M70: SYNC_IN_FALLING: 0 | N70: VDET: 0 | O70: PCM_HYST: 1 | P70: : Disable | R70: SYNC_OUT: 0 / SYNC_IN_FALLING: 0 / VDET: 0 / PCM_HYST: 1
A71: 10 | B71: 10.5 | C71: 1 | D71: 0 | E71: 0 | F71: 1 | G71: Enable | H71: Disable | I71: Disable | J71: Enable | L71: SYNC_OUT: 1 | M71: SYNC_IN_FALLING: 0 | N71: VDET: 0 | O71: PCM_HYST: 1 | P71: : Enable | R71: SYNC_OUT: 1 / SYNC_IN_FALLING: 0 / VDET: 0 / PCM_HYST: 1
A72: 11 | B72: 13.3 | C72: 0 | D72: 1 | E72: 0 | F72: 1 | G72: Disable | H72: Enable | I72: Disable | J72: Enable | L72: SYNC_OUT: 0 | M72: SYNC_IN_FALLING: 1 | N72: VDET: 0 | O72: PCM_HYST: 1 | P72: : Disable | R72: SYNC_OUT: 0 / SYNC_IN_FALLING: 1 / VDET: 0 / PCM_HYST: 1
A73: 12 | B73: 16.2 | C73: 1 | D73: 1 | E73: 0 | F73: 1 | G73: Enable | H73: Enable | I73: Disable | J73: Enable | L73: SYNC_OUT: 1 | M73: SYNC_IN_FALLING: 1 | N73: VDET: 0 | O73: PCM_HYST: 1 | P73: : Enable | R73: SYNC_OUT: 1 / SYNC_IN_FALLING: 1 / VDET: 0 / PCM_HYST: 1
A74: 13 | B74: 20.5 | C74: 0 | D74: 0 | E74: 1 | F74: 1 | G74: Disable | H74: Disable | I74: Enable | J74: Enable | L74: SYNC_OUT: 0 | M74: SYNC_IN_FALLING: 0 | N74: VDET: 1 | O74: PCM_HYST: 1 | P74: : Disable | R74: SYNC_OUT: 0 / SYNC_IN_FALLING: 0 / VDET: 1 / PCM_HYST: 1
A75: 14 | B75: 24.9 | C75: 1 | D75: 0 | E75: 1 | F75: 1 | G75: Enable | H75: Disable | I75: Enable | J75: Enable | L75: SYNC_OUT: 1 | M75: SYNC_IN_FALLING: 0 | N75: VDET: 1 | O75: PCM_HYST: 1 | P75: : Enable | R75: SYNC_OUT: 1 / SYNC_IN_FALLING: 0 / VDET: 1 / PCM_HYST: 1
A76: 15 | B76: 30.1 | C76: 0 | D76: 1 | E76: 1 | F76: 1 | G76: Disable | H76: Enable | I76: Enable | J76: Enable | L76: SYNC_OUT: 0 | M76: SYNC_IN_FALLING: 1 | N76: VDET: 1 | O76: PCM_HYST: 1 | P76: : Disable | R76: SYNC_OUT: 0 / SYNC_IN_FALLING: 1 / VDET: 1 / PCM_HYST: 1
A77: 16 | B77: 36.5 | C77: 1 | D77: 1 | E77: 1 | F77: 1 | G77: Enable | H77: Enable | I77: Enable | J77: Enable | L77: SYNC_OUT: 1 | M77: SYNC_IN_FALLING: 1 | N77: VDET: 1 | O77: PCM_HYST: 1 | P77: : Enable | R77: SYNC_OUT: 1 / SYNC_IN_FALLING: 1 / VDET: 1 / PCM_HYST: 1
C79: 0 | D79: 1 | E79: 2 | F79: 3
C80: =CONCATENATE(C61,": off") -> SYNC_OUT: off | D80: =CONCATENATE(D61,": off") -> SYNC_IN_FALLING: off | E80: =CONCATENATE(E61,": off") -> VDET: off | F80: =CONCATENATE(F61,": off") -> PCM_HYST: off
C81: =CONCATENATE(C61,": on") -> SYNC_OUT: on | D81: =CONCATENATE(D61,": on") -> SYNC_IN_FALLING: on | E81: =CONCATENATE(E61,": on") -> VDET: on | F81: =CONCATENATE(F61,": on") -> PCM_HYST: on
B85: CFG Setting | C85: 1 | D85: 1 | E85: 1 | F85: 2 | G85: Calc Setting | H85: =CONCATENATE("R_",A60) -> R_CFG2 | J85: This cell give 1 for disable and 2 for enable
C86: =(C85-1)*2^C79 -> 0 | D86: =(D85-1)*2^D79 -> 0 | E86: =(E85-1)*2^E79 -> 0 | F86: =(F85-1)*2^F79 -> 8 | G86: =SUM(C86:F86)+1 -> 9 | H86: =INDEX(B62:B77,G86) -> 8.3
A90: CFG3
A91: Setting | B91: R_CFG3 [ | C91: EN_VCC1 | D91: INC_INDUCT_De-Rate | E91: CONST_TDEAD | F91: =IF(Device="LM51772","SCALE_DT","uSLEEP") -> SCALE_DT | G91: =C91 -> EN_VCC1 | H91: =D91 -> INC_INDUCT_De-Rate | I91: =E91 -> CONST_TDEAD | J91: =F91 -> SCALE_DT
A92: 1 | B92: 0 | C92: 0 | D92: 0 | E92: 0 | F92: 0 | G92: =IF(C92=1,"Enable","Disable") -> Disable | H92: =IF(Device="LM51772",IF(D92=1,"40%","30%"),IF(D92=1,"30%","20%")) -> 30% | I92: =IF(E92=1,"Enable","Disable") -> Disable | J92: =IF(F92=1,"Enable","Disable") -> Disable | L92: =CONCATENATE($C$91,": ",C92) -> EN_VCC1: 0 | M92: =CONCATENATE(D$91,": ",D92) -> INC_INDUCT_De-Rate: 0 | N92: =CONCATENATE(E$91,": ",E92) -> CONST_TDEAD: 0 | O92: =CONCATENATE(F$91,": ",F92) -> SCALE_DT: 0 | P92: =CONCATENATE(K$3,": ",G92) -> : Disable | R92: =CONCATENATE(L92," / ",M92," / ",N92," / ",O92) -> EN_VCC1: 0 / INC_INDUCT_De-Rate: 0 / CONST_TDEAD: 0 / SCALE_DT: 0
A93: 2 | B93: 0.511 | C93: 1 | D93: 0 | E93: 0 | F93: 0 | G93: Enable | H93: 30% | I93: Disable | J93: Disable | L93: =CONCATENATE($C$91,": ",C93) -> EN_VCC1: 1 | M93: =CONCATENATE(D$91,": ",D93) -> INC_INDUCT_De-Rate: 0 | N93: =CONCATENATE(E$91,": ",E93) -> CONST_TDEAD: 0 | O93: =CONCATENATE(F$91,": ",F93) -> SCALE_DT: 0 | P93: : Enable | R93: =CONCATENATE(L93," / ",M93," / ",N93," / ",O93) -> EN_VCC1: 1 / INC_INDUCT_De-Rate: 0 / CONST_TDEAD: 0 / SCALE_DT: 0
A94: 3 | B94: 1.15 | C94: 0 | D94: 1 | E94: 0 | F94: 0 | G94: Disable | H94: 40% | I94: Disable | J94: Disable | L94: EN_VCC1: 0 | M94: INC_INDUCT_De-Rate: 1 | N94: CONST_TDEAD: 0 | O94: SCALE_DT: 0 | P94: : Disable | R94: EN_VCC1: 0 / INC_INDUCT_De-Rate: 1 / CONST_TDEAD: 0 / SCALE_DT: 0
A95: 4 | B95: 1.9 | C95: 1 | D95: 1 | E95: 0 | F95: 0 | G95: Enable | H95: 40% | I95: Disable | J95: Disable | L95: EN_VCC1: 1 | M95: INC_INDUCT_De-Rate: 1 | N95: CONST_TDEAD: 0 | O95: SCALE_DT: 0 | P95: : Enable | R95: EN_VCC1: 1 / INC_INDUCT_De-Rate: 1 / CONST_TDEAD: 0 / SCALE_DT: 0
A96: 5 | B96: 2.7 | C96: 0 | D96: 0 | E96: 1 | F96: 0 | G96: Disable | H96: 30% | I96: Enable | J96: Disable | L96: EN_VCC1: 0 | M96: INC_INDUCT_De-Rate: 0 | N96: CONST_TDEAD: 1 | O96: SCALE_DT: 0 | P96: : Disable | R96: EN_VCC1: 0 / INC_INDUCT_De-Rate: 0 / CONST_TDEAD: 1 / SCALE_DT: 0
A97: 6 | B97: 3.8 | C97: 1 | D97: 0 | E97: 1 | F97: 0 | G97: Enable | H97: 30% | I97: Enable | J97: Disable | L97: EN_VCC1: 1 | M97: INC_INDUCT_De-Rate: 0 | N97: CONST_TDEAD: 1 | O97: SCALE_DT: 0 | P97: : Enable | R97: EN_VCC1: 1 / INC_INDUCT_De-Rate: 0 / CONST_TDEAD: 1 / SCALE_DT: 0
A98: 7 | B98: 5.1 | C98: 0 | D98: 1 | E98: 1 | F98: 0 | G98: Disable | H98: 40% | I98: Enable | J98: Disable | L98: EN_VCC1: 0 | M98: INC_INDUCT_De-Rate: 1 | N98: CONST_TDEAD: 1 | O98: SCALE_DT: 0 | P98: : Disable | R98: EN_VCC1: 0 / INC_INDUCT_De-Rate: 1 / CONST_TDEAD: 1 / SCALE_DT: 0
A99: 8 | B99: 6.5 | C99: 1 | D99: 1 | E99: 1 | F99: 0 | G99: Enable | H99: 40% | I99: Enable | J99: Disable | L99: EN_VCC1: 1 | M99: INC_INDUCT_De-Rate: 1 | N99: CONST_TDEAD: 1 | O99: SCALE_DT: 0 | P99: : Enable | R99: EN_VCC1: 1 / INC_INDUCT_De-Rate: 1 / CONST_TDEAD: 1 / SCALE_DT: 0
A100: 9 | B100: 8.3 | C100: 0 | D100: 0 | E100: 0 | F100: 1 | G100: Disable | H100: 30% | I100: Disable | J100: Enable | L100: EN_VCC1: 0 | M100: INC_INDUCT_De-Rate: 0 | N100: CONST_TDEAD: 0 | O100: SCALE_DT: 1 | P100: : Disable | R100: EN_VCC1: 0 / INC_INDUCT_De-Rate: 0 / CONST_TDEAD: 0 / SCALE_DT: 1
A101: 10 | B101: 10.5 | C101: 1 | D101: 0 | E101: 0 | F101: 1 | G101: Enable | H101: 30% | I101: Disable | J101: Enable | L101: EN_VCC1: 1 | M101: INC_INDUCT_De-Rate: 0 | N101: CONST_TDEAD: 0 | O101: SCALE_DT: 1 | P101: : Enable | R101: EN_VCC1: 1 / INC_INDUCT_De-Rate: 0 / CONST_TDEAD: 0 / SCALE_DT: 1
A102: 11 | B102: 13.3 | C102: 0 | D102: 1 | E102: 0 | F102: 1 | G102: Disable | H102: 40% | I102: Disable | J102: Enable | L102: EN_VCC1: 0 | M102: INC_INDUCT_De-Rate: 1 | N102: CONST_TDEAD: 0 | O102: SCALE_DT: 1 | P102: : Disable | R102: EN_VCC1: 0 / INC_INDUCT_De-Rate: 1 / CONST_TDEAD: 0 / SCALE_DT: 1
A103: 12 | B103: 16.2 | C103: 1 | D103: 1 | E103: 0 | F103: 1 | G103: Enable | H103: 40% | I103: Disable | J103: Enable | L103: EN_VCC1: 1 | M103: INC_INDUCT_De-Rate: 1 | N103: CONST_TDEAD: 0 | O103: SCALE_DT: 1 | P103: : Enable | R103: EN_VCC1: 1 / INC_INDUCT_De-Rate: 1 / CONST_TDEAD: 0 / SCALE_DT: 1
A104: 13 | B104: 20.5 | C104: 0 | D104: 0 | E104: 1 | F104: 1 | G104: Disable | H104: 30% | I104: Enable | J104: Enable | L104: EN_VCC1: 0 | M104: INC_INDUCT_De-Rate: 0 | N104: CONST_TDEAD: 1 | O104: SCALE_DT: 1 | P104: : Disable | R104: EN_VCC1: 0 / INC_INDUCT_De-Rate: 0 / CONST_TDEAD: 1 / SCALE_DT: 1
A105: 14 | B105: 24.9 | C105: 1 | D105: 0 | E105: 1 | F105: 1 | G105: Enable | H105: 30% | I105: Enable | J105: Enable | L105: EN_VCC1: 1 | M105: INC_INDUCT_De-Rate: 0 | N105: CONST_TDEAD: 1 | O105: SCALE_DT: 1 | P105: : Enable | R105: EN_VCC1: 1 / INC_INDUCT_De-Rate: 0 / CONST_TDEAD: 1 / SCALE_DT: 1
A106: 15 | B106: 30.1 | C106: 0 | D106: 1 | E106: 1 | F106: 1 | G106: Disable | H106: 40% | I106: Enable | J106: Enable | L106: EN_VCC1: 0 | M106: INC_INDUCT_De-Rate: 1 | N106: CONST_TDEAD: 1 | O106: SCALE_DT: 1 | P106: : Disable | R106: EN_VCC1: 0 / INC_INDUCT_De-Rate: 1 / CONST_TDEAD: 1 / SCALE_DT: 1
A107: 16 | B107: 36.5 | C107: 1 | D107: 1 | E107: 1 | F107: 1 | G107: Enable | H107: 40% | I107: Enable | J107: Enable | L107: EN_VCC1: 1 | M107: INC_INDUCT_De-Rate: 1 | N107: CONST_TDEAD: 1 | O107: SCALE_DT: 1 | P107: : Enable | R107: EN_VCC1: 1 / INC_INDUCT_De-Rate: 1 / CONST_TDEAD: 1 / SCALE_DT: 1
C109: 0 | D109: 1 | E109: 2 | F109: 3
C110: =CONCATENATE(C91,": off") -> EN_VCC1: off | D110: =CONCATENATE(D91,": 20%") -> INC_INDUCT_De-Rate: 20% | E110: =CONCATENATE(E91,": off") -> CONST_TDEAD: off | F110: =CONCATENATE(F91,": off") -> SCALE_DT: off
C111: =CONCATENATE(C91,": on") -> EN_VCC1: on | D111: =CONCATENATE(D91,": 30%") -> INC_INDUCT_De-Rate: 30% | E111: =CONCATENATE(E91,": on") -> CONST_TDEAD: on | F111: =CONCATENATE(F91,": on") -> SCALE_DT: on
B115: CFG Setting | C115: 1 | D115: 2 | E115: 1 | F115: 1 | G115: Calc Setting | H115: =CONCATENATE("R_",A90) -> R_CFG3 | J115: This cell give 1 for disable and 2 for enable
C116: =(C115-1)*2^C109 -> 0 | D116: =(D115-1)*2^D109 -> 2 | E116: =(E115-1)*2^E109 -> 0 | F116: =(F115-1)*2^F109 -> 0 | G116: =SUM(C116:F116)+1 -> 3 | H116: =INDEX(B92:B107,G116) -> 1.15
A120: CFG4
A121: Setting | B121: R_CFG4 [ | C121: DRSS | D121: SCP – Hiccup Mode | E121: Neg. Current Limit | F121: Current Limit | G121: Current Limit | H121: =D121 -> SCP – Hiccup Mode | I121: =E121 -> Neg. Current Limit | J121: =F121 -> Current Limit
A122: 1 | B122: 0 | C122: 0 | D122: 0 | E122: 0 | F122: 0 | G122: =IF(C122=1,"Enable","Disable") -> Disable | H122: =IF(D122=1,"Enable","Disable") -> Disable | I122: =IF(E122=1,"Enable","Disable") -> Disable | J122: =IF(F122=1,"Enable","Disable") -> Disable | L122: =CONCATENATE($C$121,": ",C122) -> DRSS: 0 | M122: =CONCATENATE(D$121,": ",D122) -> SCP – Hiccup Mode: 0 | N122: =CONCATENATE(E$121,": ",E122) -> Neg. Current Limit: 0 | O122: =CONCATENATE(F$121,": ",F122) -> Current Limit: 0 | P122: =CONCATENATE(K$3,": ",G122) -> : Disable | R122: =CONCATENATE(L122," / ",M122," / ",N122," / ",O122) -> DRSS: 0 / SCP – Hiccup Mode: 0 / Neg. Current Limit: 0 / Current Limit: 0
A123: 2 | B123: 0.511 | C123: 1 | D123: 0 | E123: 0 | F123: 0 | G123: Enable | H123: Disable | I123: Disable | J123: Disable | L123: =CONCATENATE($C$121,": ",C123) -> DRSS: 1 | M123: =CONCATENATE(D$121,": ",D123) -> SCP – Hiccup Mode: 0 | N123: =CONCATENATE(E$121,": ",E123) -> Neg. Current Limit: 0 | O123: =CONCATENATE(F$121,": ",F123) -> Current Limit: 0 | P123: : Enable | R123: =CONCATENATE(L123," / ",M123," / ",N123," / ",O123) -> DRSS: 1 / SCP – Hiccup Mode: 0 / Neg. Current Limit: 0 / Current Limit: 0
A124: 3 | B124: 1.15 | C124: 0 | D124: 1 | E124: 0 | F124: 0 | G124: Disable | H124: Enable | I124: Disable | J124: Disable | L124: DRSS: 0 | M124: SCP – Hiccup Mode: 1 | N124: Neg. Current Limit: 0 | O124: Current Limit: 0 | P124: : Disable | R124: DRSS: 0 / SCP – Hiccup Mode: 1 / Neg. Current Limit: 0 / Current Limit: 0
A125: 4 | B125: 1.9 | C125: 1 | D125: 1 | E125: 0 | F125: 0 | G125: Enable | H125: Enable | I125: Disable | J125: Disable | L125: DRSS: 1 | M125: SCP – Hiccup Mode: 1 | N125: Neg. Current Limit: 0 | O125: Current Limit: 0 | P125: : Enable | R125: DRSS: 1 / SCP – Hiccup Mode: 1 / Neg. Current Limit: 0 / Current Limit: 0
A126: 5 | B126: 2.7 | C126: 0 | D126: 0 | E126: 1 | F126: 0 | G126: Disable | H126: Disable | I126: Enable | J126: Disable | L126: DRSS: 0 | M126: SCP – Hiccup Mode: 0 | N126: Neg. Current Limit: 1 | O126: Current Limit: 0 | P126: : Disable | R126: DRSS: 0 / SCP – Hiccup Mode: 0 / Neg. Current Limit: 1 / Current Limit: 0
A127: 6 | B127: 3.8 | C127: 1 | D127: 0 | E127: 1 | F127: 0 | G127: Enable | H127: Disable | I127: Enable | J127: Disable | L127: DRSS: 1 | M127: SCP – Hiccup Mode: 0 | N127: Neg. Current Limit: 1 | O127: Current Limit: 0 | P127: : Enable | R127: DRSS: 1 / SCP – Hiccup Mode: 0 / Neg. Current Limit: 1 / Current Limit: 0
A128: 7 | B128: 5.1 | C128: 0 | D128: 1 | E128: 1 | F128: 0 | G128: Disable | H128: Enable | I128: Enable | J128: Disable | L128: DRSS: 0 | M128: SCP – Hiccup Mode: 1 | N128: Neg. Current Limit: 1 | O128: Current Limit: 0 | P128: : Disable | R128: DRSS: 0 / SCP – Hiccup Mode: 1 / Neg. Current Limit: 1 / Current Limit: 0
A129: 8 | B129: 6.5 | C129: 1 | D129: 1 | E129: 1 | F129: 0 | G129: Enable | H129: Enable | I129: Enable | J129: Disable | L129: DRSS: 1 | M129: SCP – Hiccup Mode: 1 | N129: Neg. Current Limit: 1 | O129: Current Limit: 0 | P129: : Enable | R129: DRSS: 1 / SCP – Hiccup Mode: 1 / Neg. Current Limit: 1 / Current Limit: 0
A130: 9 | B130: 8.3 | C130: 0 | D130: 0 | E130: 0 | F130: 1 | G130: Disable | H130: Disable | I130: Disable | J130: Enable | L130: DRSS: 0 | M130: SCP – Hiccup Mode: 0 | N130: Neg. Current Limit: 0 | O130: Current Limit: 1 | P130: : Disable | R130: DRSS: 0 / SCP – Hiccup Mode: 0 / Neg. Current Limit: 0 / Current Limit: 1
A131: 10 | B131: 10.5 | C131: 1 | D131: 0 | E131: 0 | F131: 1 | G131: Enable | H131: Disable | I131: Disable | J131: Enable | L131: DRSS: 1 | M131: SCP – Hiccup Mode: 0 | N131: Neg. Current Limit: 0 | O131: Current Limit: 1 | P131: : Enable | R131: DRSS: 1 / SCP – Hiccup Mode: 0 / Neg. Current Limit: 0 / Current Limit: 1
A132: 11 | B132: 13.3 | C132: 0 | D132: 1 | E132: 0 | F132: 1 | G132: Disable | H132: Enable | I132: Disable | J132: Enable | L132: DRSS: 0 | M132: SCP – Hiccup Mode: 1 | N132: Neg. Current Limit: 0 | O132: Current Limit: 1 | P132: : Disable | R132: DRSS: 0 / SCP – Hiccup Mode: 1 / Neg. Current Limit: 0 / Current Limit: 1
A133: 12 | B133: 16.2 | C133: 1 | D133: 1 | E133: 0 | F133: 1 | G133: Enable | H133: Enable | I133: Disable | J133: Enable | L133: DRSS: 1 | M133: SCP – Hiccup Mode: 1 | N133: Neg. Current Limit: 0 | O133: Current Limit: 1 | P133: : Enable | R133: DRSS: 1 / SCP – Hiccup Mode: 1 / Neg. Current Limit: 0 / Current Limit: 1
A134: 13 | B134: 20.5 | C134: 0 | D134: 0 | E134: 1 | F134: 1 | G134: Disable | H134: Disable | I134: Enable | J134: Enable | L134: DRSS: 0 | M134: SCP – Hiccup Mode: 0 | N134: Neg. Current Limit: 1 | O134: Current Limit: 1 | P134: : Disable | R134: DRSS: 0 / SCP – Hiccup Mode: 0 / Neg. Current Limit: 1 / Current Limit: 1
A135: 14 | B135: 24.9 | C135: 1 | D135: 0 | E135: 1 | F135: 1 | G135: Enable | H135: Disable | I135: Enable | J135: Enable | L135: DRSS: 1 | M135: SCP – Hiccup Mode: 0 | N135: Neg. Current Limit: 1 | O135: Current Limit: 1 | P135: : Enable | R135: DRSS: 1 / SCP – Hiccup Mode: 0 / Neg. Current Limit: 1 / Current Limit: 1
A136: 15 | B136: 30.1 | C136: 0 | D136: 1 | E136: 1 | F136: 1 | G136: Disable | H136: Enable | I136: Enable | J136: Enable | L136: DRSS: 0 | M136: SCP – Hiccup Mode: 1 | N136: Neg. Current Limit: 1 | O136: Current Limit: 1 | P136: : Disable | R136: DRSS: 0 / SCP – Hiccup Mode: 1 / Neg. Current Limit: 1 / Current Limit: 1
A137: 16 | B137: 36.5 | C137: 1 | D137: 1 | E137: 1 | F137: 1 | G137: Enable | H137: Enable | I137: Enable | J137: Enable | L137: DRSS: 1 | M137: SCP – Hiccup Mode: 1 | N137: Neg. Current Limit: 1 | O137: Current Limit: 1 | P137: : Enable | R137: DRSS: 1 / SCP – Hiccup Mode: 1 / Neg. Current Limit: 1 / Current Limit: 1
C139: 0 | D139: 1 | E139: 2 | F139: 3
C140: =CONCATENATE(C121,": off") -> DRSS: off | D140: =CONCATENATE(D121,": off") -> SCP – Hiccup Mode: off | E140: =CONCATENATE(E121,": off") -> Neg. Current Limit: off | F140: IMON_LIMIT: off
C141: =CONCATENATE(C121,": on") -> DRSS: on | D141: =CONCATENATE(D121,": on") -> SCP – Hiccup Mode: on | E141: =CONCATENATE(E121,": on") -> Neg. Current Limit: on | F141: ILIMIT: iSET
F142: ILIMIT: ILIM_DAC
F143: ILIMIT: ILIM_DAC (RC-Filter)
B145: CFG Setting | C145: 1 | D145: 1 | E145: 1 | F145: 3 | G145: Calc Setting | H145: =CONCATENATE("R_",A120) -> R_CFG4 | J145: This cell give 1 for disable and 2 for enable
C146: =(C145-1)*2^C139 -> 0 | D146: =(D145-1)*2^D139 -> 0 | E146: =(E145-1)*2^E139 -> 0 | F146: =(IF(F145>1,1,0)*2^F139) -> 8 | G146: =SUM(C146:F146)+1 -> 9 | H146: =INDEX(B122:B137,G146) -> 8.3 | J146: =F145 -> 3 | K146: Decoded IMON/Limiter
A151: CDC Gain
A152: 0.25
A153: 0.5
A154: 1
A155: 2
A159: CDC disabled | B159: 1
A160: CDC enabled
A162: Internal FB disabled | B162: 1
A163: Int. FB (SEL_DIV20 = 0)
A164: Int. FB (SEL_DIV20 = 1)

Sheet Schematic Management (hidden)
A2: =CHOOSE(With_CDC,CHOOSE(With_RCS, "SCH772_NO_RCS_NO_CDC", "SCH772_RCS_LIM_NO_CDC","SCH772_RCS_LIM_DAC_NO_CDC","SCH772_RCS_LIM_DACplus_NO_CDC"),CHOOSE(With_RCS, "SCH772_NO_RCS","SCH772_RCS_LIM","SCH772_RCS_LIM_DAC","SCH772_RCS_LIM_DACplus")) -> SCH772_RCS_LIM_DAC_NO_CDC
B6: "SCH772_NO_RCS_NO_CDC" | D6: "SCH772_RCS_LIM_NO_CDC" | F6: "SCH772_RCS_LIM_DAC_NO_CDC" | H6: "SCH772_RCS_LIM_DAC+_NO_CDC"
B17: "SCH772_NO_RCS" | D17: "SCH772_RCS_LIM" | F17: "SCH772_RCS_LIM_DAC" | H17: "SCH772_RCS_LIM_DAC+"

Sheet Stability Calculations (hidden)
B2: Divider Network & EA Poles/Zeros | E2: Modulator | J2: Power Stage Poles/Zeros | O2: Complex Pole Pair | Q2: Total System
B3: Afb1 | C3: =Afb -> 0.05 | D3: V/V | E3: Acs | F3: =Acs -> 40 | G3: A/V | H3: gm | I3: =gm -> 0.0006 | J3: z_ESR | L3: =Fesr -> 318309.8862 | M3: Hz | N3: p3 | O3: =Fsw/2 -> 300000 | P3: Hz | Q3: Adc | R3: =Am*Afb*AEA -> 19151.01235 | S3: V/V
B4: EA zero, z1 | C4: =Fz1_u -> 15.91549431 | D4: Hz | E4: Am | F4: =Am -> 63.83670782 | G4: V/V | J4: p_dom | L4: =Fp_dominant -> 795.7747155 | M4: Hz | N4: pterm1 | O4: =Q*PS_Pole2 -> 159264.4926 | Q4: Crossover | R4: =AW8/1000 -> 15.312 | S4: kHz
B5: EA pole, p1 | C5: =Fp1_u -> 0.1575791516 | D5: Hz | E5: Q | F5: =Q -> 0.530881642 | J5: z_RHP | L5: =IF(VIN_nom>Vout, 10000000,Frhp) -> 135120.0687 | M5: Hz | N5: pterm2 | O5: =PS_Pole2^2+0.01 -> 9e+10 | Q5: Phase Margin | R5: =AW9 -> -5.900084952 | S5: °
B6: Aea | C6: =AEA -> 6000 | D6: V/V | E6: mc | F6: =mc -> 1.378 | Q6: radconv | R6: =180/Pi -> 57.29577951 | AV6: XOVER SEARCH
B7: EA pole, p2 | C7: =Fp2_u -> 1579.943776 | D7: Hz | E7: k | F7: =k -> 1.099587292 | Q7: Adc [dB] | R7: =20*LOG(Adc) -> 85.64383472 | S7: dB | AV7: System | AX7: Error Amp
AV8: xover | AW8: =SUM(AV12:AV613) -> 15312 | AX8: xover | AY8: =SUM(AX12:AX613) -> 93325
AV9: phase margin | AW9: =SUM(AW13:AW613) -> -5.900084952 | AX9: phase margin | AY9: =SUM(AY13:AY613) -> -89.03977925
B10: Freq (Hz) | C10: Power Stage | S10: Error Amplifier | AG10: System Response | AL10: ERROR AMP Response | AO10: PLANT Response
D11: p_dom | G11: z_ESR | J11: z_RHP | M11: Sampling Double Pole | P11: Total | T11: p1 | W11: z1 | Z11: p2 | AC11: Total
C12: ADC | D12: Complex | E12: Gain(V/V) | F12: Phase(rad) | G12: Complex | H12: Gain(V/V) | I12: Phase(rad) | J12: Complex | K12: Gain(V/V) | L12: Phase(rad) | M12: Complex | N12: Gain(V/V) | O12: Phase(rad) | P12: Complex | Q12: Gain(V/V) | R12: Phase(rad) | S12: ADC_EA | T12: Complex | U12: Gain(V/V) | V12: Phase(rad) | W12: Complex | X12: Gain(V/V) | Y12: Phase(rad) | Z12: Complex | AA12: Gain(V/V) | AB12: Phase(rad) | AC12: Complex | AD12: Gain(V/V) | AE12: Phase(rad) | AF12: Complex | AG12: Gain(dB) | AH12: :Loop Phase Margin (°) | AI12: Phase (°) | AL12: Gain(dB) | AM12: Phase(Deg) | AO12: Gain(dB) | AP12: Phase(Deg)
B13: 1 | C13: =COMPLEX(Am*Afb,0) -> 3.1918353909465 | D13: =IMSUM(COMPLEX(1,0),IMDIV(COMPLEX(0,2*PI()*B13),COMPLEX(2*PI()*PS_Pole1,0))) -> 1+0.00125663706143592i | E13: =IMABS(D13) -> 1.00000079 | F13: =IMARGUMENT(D13) -> 0.0012566364 | G13: =IMSUM(COMPLEX(1,0),IMDIV(COMPLEX(0,2*PI()*B13),COMPLEX(2*PI()*PS_Zero1,0))) -> 1+0.0000031415926535898i | H13: =IMABS(G13) -> 1 | I13: =IMARGUMENT(G13) -> 3.141592654e-06 | J13: =IF(VIN_nom>Vout, 1,IMSUB(COMPLEX(1,0),IMDIV(COMPLEX(0,2*PI()*B13),COMPLEX(2*PI()*PS_RHPZ,0)))) -> 1-0.0000074008251310238i | K13: =IMABS(J13) -> 1 | L13: =IMARGUMENT(J13) -> -7.400825131e-06 | M13: =IMSUM(COMPLEX(1,0),IMDIV(COMPLEX(0,2*PI()*B13),COMPLEX(Q*(2*PI()*PS_Pole2/2),0)),IMDIV(IMPOWER(COMPLEX(0,2*PI()*B13),2),IMPOWER(COMPLEX(2*PI()*PS_Pole2/2,0),2))) -> 0.999999999955556+0.0000125577268820123i | N13: =IMABS(M13) -> 1 | O13: =IMARGUMENT(M13) -> 1.255772688e-05 | P13: =(IMDIV(IMPRODUCT(C13,G13,J13),IMPRODUCT(D13,M13))) -> 3.19183028269969-0.00406464919310214i | Q13: =IMABS(P13) -> 3.191832871 | R13: =IMARGUMENT(P13) -> -0.001273453359 | S13: =COMPLEX(AEA,0) -> 6000 | T13: =IMSUM(COMPLEX(1,0),IMDIV(COMPLEX(0,2*PI()*B13),COMPLEX(2*PI()*EA_Pole1,0))) -> 1+6.34601716025139i | U13: =IMABS(T13) -> 6.424323606 | V13: =IMARGUMENT(T13) -> 1.414502374 | W13: =IMSUM(COMPLEX(1,0),IMDIV(COMPLEX(0,2*PI()*B13),COMPLEX(2*PI()*EA_Zero1,0))) -> 1+0.0628318530717959i | X13: =IMABS(W13) -> 1.001971977 | Y13: =IMARGUMENT(W13) -> 0.06274936497 | Z13: =IMSUM(COMPLEX(1,0),IMDIV(COMPLEX(0,2*PI()*B13),COMPLEX(2*PI()*EA_Pole2,0))) -> 1+0.000632933915333344i | AA13: =IMABS(Z13) -> 1.0000002 | AB13: =IMARGUMENT(Z13) -> 0.0006329338308 | AC13: =IMPRODUCT(S13,IMDIV(W13,IMPRODUCT(T13,Z13))) -> 202.765582751726-913.560502215312i | AD13: =IMABS(AC13) -> 935.7920029 | AE13: =IMARGUMENT(AC13) -> -1.352385943 | AF13: =IMPRODUCT(P13,AC13) -> 643.480024358029-2916.75424701149i | AG13: =20*LOG10(IMABS(AF13)) -> 69.50438945 | AH13: =(180/PI())*IMARGUMENT(AF13) -> -77.55897028 | AI13: =IF(AH13>0,AH13-180,AH13+180) -> 102.4410297 | AL13: =20*LOG10(IMABS(AC13)) -> 59.42358659 | AM13: =(180/PI())*IMARGUMENT(AC13) -> -77.48600678 | AO13: =20*LOG10(IMABS(IMPRODUCT(COMPLEX(Am/Afb,0),P13))) -> 72.2028124 | AP13: =180/PI()*IMARGUMENT(IMPRODUCT(COMPLEX(Am/Afb,0),P13)) -> -0.0729635029 | AV13: =SUM((AG14<0)*(AG13>0))*B13 -> 0 | AW13: =IF(AV13>0,AI11,0) -> 0 | AX13: =SUM((AL14<0)*(AL13>0))*B13 -> 0 | AY13: =IF(AX13>0,AM13,0) -> 0
B14: 1.0965 | C14: 3.1918353909465 | D14: 1+0.00137790253786448i | E14: =IMABS(D14) -> 1.000000949 | F14: =IMARGUMENT(D14) -> 0.001377901666 | G14: 1+3.44475634466121E-06i | H14: =IMABS(G14) -> 1 | I14: =IMARGUMENT(G14) -> 3.444756345e-06 | J14: 1-8.11500475616759E-06i | K14: =IMABS(J14) -> 1 | L14: =IMARGUMENT(J14) -> -8.115004756e-06 | M14: 0.999999999946564+0.0000137695475261265i | N14: =IMABS(M14) -> 1 | O14: =IMARGUMENT(M14) -> 1.376954753e-05 | P14: =(IMDIV(IMPRODUCT(C14,G14,J14),IMPRODUCT(D14,M14))) -> 3.19182924924074-0.00445688641623003i | Q14: =IMABS(P14) -> 3.191832361 | R14: =IMARGUMENT(P14) -> -0.001396341462 | S14: 6000 | T14: 1+6.95840781621565i | U14: =IMABS(T14) -> 7.029896111 | V14: =IMARGUMENT(T14) -> 1.428062557 | W14: 1+0.0688951268932242i | X14: =IMABS(W14) -> 1.00237046 | Y14: =IMARGUMENT(W14) -> 0.06878643182 | Z14: 1+0.000694012038163012i | AA14: =IMABS(Z14) -> 1.000000241 | AB14: =IMARGUMENT(Z14) -> 0.0006940119267 | AC14: =IMPRODUCT(S14,IMDIV(W14,IMPRODUCT(T14,Z14))) -> 179.03298308507-836.578016824602i | AD14: =IMABS(AC14) -> 855.5206527 | AE14: =IMARGUMENT(AC14) -> -1.359970137 | AF14: 567.714178790447-2671.01211304295i | AG14: =20*LOG10(IMABS(AF14)) -> 68.72541143 | AH14: =(180/PI())*IMARGUMENT(AF14) -> -78.00055357 | AI14: 101.9994464 | AL14: 58.64460996 | AM14: -77.9205491 | AO14: 72.20281102 | AP14: -0.08000447252 | AV14: 0 | AW14: 0 | AX14: 0 | AY14: 0
B15: 1.2023 | C15: 3.1918353909465 | D15: 1+0.0015108547389644i | E15: =IMABS(D15) -> 1.000001141 | F15: =IMARGUMENT(D15) -> 0.001510853589 | G15: 1+3.77713684741101E-06i | H15: =IMABS(G15) -> 1 | I15: =IMARGUMENT(G15) -> 3.777136847e-06 | J15: 1-8.89801205502991E-06i | K15: =IMABS(J15) -> 1 | L15: =IMARGUMENT(J15) -> -8.898012055e-06 | M15: 0.999999999935754+0.0000150981550302434i | N15: =IMABS(M15) -> 1 | O15: =IMARGUMENT(M15) -> 1.509815503e-05 | P15: 3.19182800685174-0.00488692428638924i | Q15: =IMABS(P15) -> 3.191831748 | R15: =IMARGUMENT(P15) -> -0.00153107262 | S15: 6000 | T15: 1+7.62981643177024i | U15: =IMABS(T15) -> 7.695069771 | V15: =IMARGUMENT(T15) -> 1.440474409 | W15: 1+0.0755427369482202i | X15: =IMABS(W15) -> 1.002849293 | Y15: =IMARGUMENT(W15) -> 0.07539952694 | Z15: 1+0.000760976446405279i | AA15: =IMABS(Z15) -> 1.00000029 | AB15: =IMARGUMENT(Z15) -> 0.0007609762995 | AC15: =IMPRODUCT(S15,IMDIV(W15,IMPRODUCT(T15,Z15))) -> 159.147336267863-765.574658148012i | AD15: =IMABS(AC15) -> 781.9414504 | AE15: =IMARGUMENT(AC15) -> -1.365835858 | AF15: 504.229619725669-2444.36037619549i | AG15: =20*LOG10(IMABS(AF15)) -> 67.94428451 | AH15: =(180/PI())*IMARGUMENT(AF15) -> -78.34435417 | AI15: 101.6556458 | AL15: 57.86348471 | AM15: -78.25663017 | AO15: 72.20280935 | AP15: -0.08772399923 | AV15: 0 | AW15: 0 | AX15: 0 | AY15: 0
B16: 1.3183 | C16: 3.1918353909465 | D16: 1+0.00165662463809097i | E16: =IMABS(D16) -> 1.000001372 | F16: =IMARGUMENT(D16) -> 0.001656623123 | G16: 1+4.14156159522742E-06i | H16: =IMABS(G16) -> 1 | I16: =IMARGUMENT(G16) -> 4.141561595e-06 | J16: 1-9.75650777022867E-06i | K16: =IMABS(J16) -> 1 | L16: =IMARGUMENT(J16) -> -9.75650777e-06 | M16: 0.999999999922759+0.0000165548513485568i | N16: =IMABS(M16) -> 1 | O16: =IMARGUMENT(M16) -> 1.655485135e-05 | P16: 3.19182651325866-0.00535842078671439i | Q16: =IMABS(P16) -> 3.191831011 | R16: =IMARGUMENT(P16) -> -0.00167879292 | S16: 6000 | T16: 1+8.3659544223594i | U16: =IMABS(T16) -> 8.425508495 | V16: =IMARGUMENT(T16) -> 1.451828696 | W16: 1+0.0828312319045485i | X16: =IMABS(W16) -> 1.003424642 | Y16: =IMARGUMENT(W16) -> 0.08264257255 | Z16: 1+0.000834396780583947i | AA16: =IMABS(Z16) -> 1.000000348 | AB16: =IMARGUMENT(Z16) -> 0.0008343965869 | AC16: =IMPRODUCT(S16,IMDIV(W16,IMPRODUCT(T16,Z16))) -> 142.504765443745-700.207704453384i | AD16: =IMABS(AC16) -> 714.5617101 | AE16: =IMARGUMENT(AC16) -> -1.37002052 | AF16: 451.098481090491-2235.70511635965i | AG16: =20*LOG10(IMABS(AF16)) -> 67.16159261 | AH16: =(180/PI())*IMARGUMENT(AF16) -> -78.59258139 | AI16: 101.4074186 | AL16: 57.08079482 | AM16: -78.49639365 | AO16: 72.20280734 | AP16: -0.096187749 | AV16: 0 | AW16: 0 | AX16: 0 | AY16: 0
B17: 1.4454 | C17: 3.1918353909465 | D17: 1+0.00181634320859947i | E17: =IMABS(D17) -> 1.00000165 | F17: =IMARGUMENT(D17) -> 0.001816341211 | G17: 1+4.54085802149868E-06i | H17: =IMABS(G17) -> 1 | I17: =IMARGUMENT(G17) -> 4.540858021e-06 | J17: 1-0.0000106971526443818i | K17: =IMABS(J17) -> 1 | L17: =IMARGUMENT(J17) -> -1.069715264e-05 | M17: 0.999999999907147+0.0000181509384352606i | N17: =IMABS(M17) -> 1 | O17: =IMARGUMENT(M17) -> 1.815093843e-05 | P17: 3.19182471891187-0.00587503383795629i | Q17: =IMABS(P17) -> 3.191830126 | R17: =IMARGUMENT(P17) -> -0.001840648444 | S17: 6000 | T17: 1+9.17253320342734i | U17: =IMABS(T17) -> 9.226882755 | V17: =IMARGUMENT(T17) -> 1.462204063 | W17: 1+0.0908171604299737i | X17: =IMABS(W17) -> 1.00411541 | Y17: =IMARGUMENT(W17) -> 0.09056870949 | Z17: 1+0.000914842681222814i | AA17: =IMABS(Z17) -> 1.000000418 | AB17: =IMARGUMENT(Z17) -> 0.000914842426 | AC17: =IMPRODUCT(S17,IMDIV(W17,IMPRODUCT(T17,Z17))) -> 128.598512003041-640.16066622189i | AD17: =IMABS(AC17) -> 652.949658 | AE17: =IMARGUMENT(AC17) -> -1.372550196 | AF17: 406.702943850809-2044.03615913165i | AG17: =20*LOG10(IMABS(AF17)) -> 66.37838936 | AH17: =(180/PI())*IMARGUMENT(AF17) -> -78.74679478 | AI17: 101.2532052 | AL17: 56.29759397 | AM17: -78.64133339 | AO17: 72.20280493 | AP17: -0.1054613874 | AV17: 0 | AW17: 0 | AX17: 0 | AY17: 0
B18: 1.5849 | C18: 3.1918353909465 | D18: 1+0.00199164407866979i | E18: 1.000001983 | F18: 0.001991641445 | G18: 1+4.97911019667446E-06i | H18: 1 | I18: 4.979110197e-06 | J18: 1-0.0000117295677501596i | K18: 1 | L18: -1.172956775e-05 | M18: 0.99999999988836+0.0000199027413353013i | N18: 1 | O18: 1.990274133e-05 | P18: 3.19182255953106-0.00644204712433644i | Q18: 3.191829061 | R18: -0.002018294644 | S18: 6000 | T18: 1+10.0578025972824i | U18: 10.10739299 | V18: 1.471696721 | W18: 1+0.0995822039334893i | X18: 1.004946076 | Y18: 0.09925497593 | Z18: 1+0.00100313696241182i | AA18: 1.000000503 | AB18: 0.001003136626 | AC18: 116.969372633193-584.981053236647i | AD18: 596.5606983 | AE18: -1.373444881 | AF18: 369.577006833026-1867.90924482958i | AG18: 65.59388526 | AH18: -78.80823485 | AI18: 101.1917651 | AL18: 55.51309277 | AM18: -78.69259509 | AO18: 72.20280203 | AP18: -0.1156397649 | AV18: 0 | AW18: 0 | AX18: 0 | AY18: 0
B19: 1.7378 | C19: 3.1918353909465 | D19: 1+0.00218378388536334i | E19: 1.000002384 | F19: 0.002183780414 | G19: 1+5.45945971340835E-06i | H19: 1 | I19: 5.459459713e-06 | J19: 1-0.0000128611539126932i | K19: 1 | L19: -1.286115391e-05 | M19: 0.99999999986578+0.000021822817775561i | N19: 1 | O19: 2.182281778e-05 | P19: 3.19181996435168-0.00706352483471897i | Q19: 3.19182778 | R19: -0.002213004926 | S19: 6000 | T19: 1+11.0281086210849i | U19: 11.07335449 | V19: 1.480366256 | W19: 1+0.109189194268167i | X19: 1.005943478 | Y19: 0.1087583441 | Z19: 1+0.00109991255806629i | AA19: 1.000000605 | AB19: 0.001099912115 | AC19: 107.265655680948-534.402396503267i | AD19: 545.0613197 | AE19: -1.372707824 | AF19: 338.597896692289-1706.47391177932i | AG19: 64.80969627 | AH19: -78.77716065 | AI19: 101.2228394 | AL19: 54.72890727 | AM19: -78.6503648 | AO19: 72.20279855 | AP19: -0.1267958423 | AV19: 0 | AW19: 0 | AX19: 0 | AY19: 0
B20: 1.9055 | C20: 3.1918353909465 | D20: 1+0.00239452192056614i | E20: 1.000002867 | F20: 0.002394517344 | G20: 1+5.98630480141535E-06i | H20: 1 | I20: 5.986304801e-06 | J20: 1-0.0000141022722871658i | K20: 1 | L20: -1.410227229e-05 | M20: 0.999999999838625+0.0000239287485736744i | N20: 1 | O20: 2.392874857e-05 | P20: 3.1918168433357-0.00774515685658758i | Q20: 3.19182624 | R20: -0.00242656206 | S20: 6000 | T20: 1+12.092335698859i | U20: 12.13361375 | V20: 1.488287064 | W20: 1+0.119726096028307i | X20: 1.007141667 | Y20: 0.1191589015 | Z20: 1+0.00120605557566769i | AA20: 1.000000727 | AB20: 0.001206054991 | AC20: 99.1678806303714-488.052094783696i | AD20: 498.025216 | AE20: -1.370334217 | AF20: 312.745671685638-1558.54096734649i | AG20: 64.02581147 | AH20: -78.65339892 | AI20: 101.3466011 | AL20: 53.94502665 | AM20: -78.51436715 | AO20: 72.20279436 | AP20: -0.1390317648 | AV20: 0 | AW20: 0 | AX20: 0 | AY20: 0
B21: 2.0893 | C21: 3.1918353909465 | D21: 1+0.00262549181245806i | E21: 1.000003447 | F21: 0.00262548578 | G21: 1+6.56372953114515E-06i | H21: 1 | I21: 6.563729531e-06 | J21: 1-0.000015462543946248i | K21: 1 | L21: -1.546254395e-05 | M21: 0.999999999805992+0.0000262368587745883i | N21: 1 | O21: 2.623685877e-05 | P21: 3.19181309267635-0.00849222642685907i | Q21: 3.19182439 | R21: -0.002660621453 | S21: 6000 | T21: 1+13.2587336529132i | U21: 13.29639117 | V21: 1.495516869 | W21: 1+0.131274590622903i | X21: 1.008579703 | Y21: 0.1305282072 | Z21: 1+0.00132238882930595i | AA21: 1.000000874 | AB21: 0.001322388058 | AC21: 92.4184142017686-445.639291255912i | AD21: 455.1214576 | AE21: -1.366311049 | AF21: 291.197834687541-1423.18216254104i | AG21: 63.24332601 | AH21: -78.43629901 | AI21: 101.563701 | AL21: 53.16254623 | AM21: -78.28385663 | AO21: 72.20278932 | AP21: -0.1524423801 | AV21: 0 | AW21: 0 | AX21: 0 | AY21: 0
B22: 2.2909 | C22: 3.1918353909465 | D22: 1+0.00287882984404354i | E22: 1.000004144 | F22: 0.002878821891 | G22: 1+7.19707461010885E-06i | H22: 1 | I22: 7.19707461e-06 | J22: 1-0.0000169545502926624i | K22: 1 | L22: -1.695455029e-05 | M22: 0.999999999766746+0.000028768496514002i | N22: 1 | O22: 2.876849651e-05 | P22: 3.19180858190893-0.00931164236356084i | Q22: 3.191822165 | R22: -0.002917347863 | S22: 6000 | T22: 1+14.5380907124199i | U22: 14.57244254 | V22: 1.502119678 | W22: 1+0.143941492202177i | X22: 1.010306465 | Y22: 0.1429595553 | Z22: 1+0.00144998830663716i | AA22: 1.000001051 | AB22: 0.00144998729 | AC22: 86.7907330554324-406.824324281605i | AD22: 415.9791607 | AE22: -1.36061011 | AF22: 273.231203983989-1299.31353383801i | AG22: 62.46220521 | AH22: -78.12436861 | AI22: 101.8756314 | AL22: 52.38143149 | AM22: -77.95721689 | AO22: 72.20278327 | AP22: -0.1671517199 | AV22: 0 | AW22: 0 | AX22: 0 | AY22: 0
B23: 2.5119 | C23: 3.1918353909465 | D23: 1+0.00315654663462088i | E23: 1.000004982 | F23: 0.003156536151 | G23: 1+0.0000078913665865522i | H23: 1 | I23: 7.891366586e-06 | J23: 1-0.0000185901326466187i | K23: 1 | L23: -1.859013264e-05 | M23: 0.999999999719571+0.0000315437541549267i | N23: 1 | O23: 3.154375415e-05 | P23: 3.19180316001014-0.0102099066940739i | Q23: 3.19181949 | R23: -0.003198778671 | S23: 6000 | T23: 1+15.9405605048354i | U23: 15.97189623 | V23: 1.508145376 | W23: 1+0.157827331731044i | X23: 1.012378124 | Y23: 0.1565361108 | Z23: 1+0.00158986670192583i | AA23: 1.000001264 | AB23: 0.001589865362 | AC23: 82.1027384006904-371.341248414446i | AD23: 380.3093247 | AE23: -1.35319913 | AF23: 258.264420374837-1186.08643142974i | AG23: 61.68350592 | AH23: -77.71587552 | AI23: 102.2841245 | AL23: 51.60273948 | AM23: -77.53259901 | AO23: 72.20277599 | AP23: -0.1832765175 | AV23: 0 | AW23: 0 | AX23: 0 | AY23: 0
B24: 2.7542 | C24: 3.1918353909465 | D24: 1+0.0034610297946068i | E24: 1.000005989 | F24: 0.003461015975 | G24: 1+0.000008652574486517i | H24: 1 | I24: 8.652574486e-06 | J24: 1-0.0000203833525758657i | K24: 1 | L24: -2.038335257e-05 | M24: 0.999999999662861+0.0000345864913784383i | N24: 1 | O24: 3.458649138e-05 | P24: 3.19179664214238-0.0111947403766097i | Q24: 3.191816274 | R24: -0.003507333245 | S24: 6000 | T24: 1+17.4782004627643i | U24: 17.50678415 | V24: 1.513644506 | W24: 1+0.17305148973034i | X24: 1.014862955 | Y24: 0.1713544327 | Z24: 1+0.00174322658961109i | AA24: 1.000001519 | AB24: 0.001743224824 | AC24: 78.1979651131944-338.913254644123i | AD24: 347.8176475 | AE24: -1.344033298 | AF24: 245.797956574728-1082.61759406808i | AG24: 60.90778996 | AH24: -77.20839089 | AI24: 102.7916091 | AL24: 50.82703227 | AM24: -77.00743549 | AO24: 72.20276724 | AP24: -0.2009553923 | AV24: 0 | AW24: 0 | AX24: 0 | AY24: 0
B25: 3.02 | C25: 3.1918353909465 | D25: 1+0.00379504392553646i | E25: 1.000007201 | F25: 0.003795025706 | G25: 1+9.48760981384115E-06i | H25: 1 | I25: 9.487609814e-06 | J25: 1-0.0000223504918956918i | K25: 1 | L25: -2.235049189e-05 | M25: 0.999999999594649+0.0000379243351836771i | N25: 1 | O25: 3.792433518e-05 | P25: 3.19178880228973-0.012275083143108i | Q25: 3.191812406 | R25: -0.003845812924 | S25: 6000 | T25: 1+19.1649718239591i | U25: 19.19104335 | V25: 1.518665076 | W25: 1+0.189752196276823i | X25: 1.017843748 | Y25: 0.187522766 | Z25: 1+0.00191146042430669i | AA25: 1.000001827 | AB25: 0.001911458096 | AC25: 74.9447155727754-309.273065037443i | AD25: 318.2240392 | AE25: -1.333053768 | AF25: 235.411351368715-988.054258451126i | AG25: 60.13540685 | AH25: -76.59870365 | AI25: 103.4012964 | AL25: 50.05465968 | AM25: -76.3783548 | AO25: 72.20275671 | AP25: -0.2203488493 | AV25: 0 | AW25: 0 | AX25: 0 | AY25: 0
B26: 3.3113 | C26: 3.1918353909465 | D26: 1+0.00416110230153276i | E26: 1.000008657 | F26: 0.004161078286 | G26: 1+0.0000104027557538319i | H26: 1 | I26: 1.040275575e-05 | J26: 1-0.0000245063522563591i | K26: 1 | L26: -2.450635225e-05 | M26: 0.99999999951268+0.0000415824010244074i | N26: 1 | O26: 4.158240102e-05 | P26: 3.19177938139479-0.0134590610674711i | Q26: 3.191807758 | R26: -0.004216764283 | S26: 6000 | T26: 1+21.0135666227404i | U26: 21.03734732 | V26: 1.523243897 | W26: 1+0.208055115076638i | X26: 1.021414182 | Y26: 0.2051287293 | Z26: 1+0.0020958340738433i | AA26: 1.000002196 | AB26: 0.002095831005 | AC26: 72.2374123582692-282.215419286388i | AD26: 291.3138971 | AE26: -1.320210999 | AF26: 226.767528768079-901.741604134265i | AG26: 59.36795858 | AH26: -75.88412112 | AI26: 104.1158789 | AL26: 49.28722406 | AM26: -75.64251832 | AO26: 72.20274406 | AP26: -0.2416027966 | AV26: 0 | AW26: 0 | AX26: 0 | AY26: 0
B27: 3.6308 | C27: 3.1918353909465 | D27: 1+0.00456259784266152i | E27: 1.000010409 | F27: 0.004562566183 | G27: 1+0.0000114064946066538i | H27: 1 | I27: 1.140649461e-05 | J27: 1-0.0000268709158857211i | K27: 1 | L27: -2.687091588e-05 | M27: 0.999999999414102+0.0000455945947632102i | N27: 1 | O27: 4.559459476e-05 | P27: 3.19176805171266-0.0147576443551991i | Q27: 3.191802169 | R27: -0.004623625199 | S27: 6000 | T27: 1+23.0411191054407i | U27: 23.06280923 | V27: 1.527422876 | W27: 1+0.228129892133076i | X27: 1.025691595 | Y27: 0.2242915144 | Z27: 1+0.0022980564597923i | AA27: 1.000002641 | AB27: 0.002298052414 | AC27: 69.9829597734714-257.501853207902i | AD27: 266.8423112 | AE27: -1.305429414 | AF27: 219.569254398811-822.918971957046i | AG27: 58.60581318 | AH27: -75.06051011 | AI27: 104.9394899 | AL27: 48.52509387 | AM27: -74.7955959 | AO27: 72.20272885 | AP27: -0.2649142099 | AV27: 0 | AW27: 0 | AX27: 0 | AY27: 0
B28: 3.9811 | C28: 3.1918353909465 | D28: 1+0.00500279780528254i | E28: 1.000012514 | F28: 0.005002756069 | G28: 1+0.0000125069945132063i | H28: 1 | I28: 1.250699451e-05 | J28: 1-0.0000294634249291189i | K28: 1 | L28: -2.946342492e-05 | M28: 0.999999999295593+0.0000499935664899793i | N28: 1.000000001 | O28: 4.999356648e-05 | P28: 3.19175443143818-0.0161813954339354i | Q28: 3.191795449 | R28: -0.005069706066 | S28: 6000 | T28: 1+25.2641289166768i | U28: 25.28391208 | V28: 1.531235167 | W28: 1+0.250139890264127i | X28: 1.030810344 | Y28: 0.2451103202 | Z28: 1+0.00251977321033358i | AA28: 1.000003175 | AB28: 0.002519767877 | AC28: 68.106624361989-234.943268800937i | AD28: 244.6157228 | AE28: -1.288644614 | AF28: 213.577910180665-750.983279552434i | AG28: 57.85038838 | AH28: -74.12437045 | AI28: 105.8756295 | AL28: 47.76968736 | AM28: -73.83389769 | AO28: 72.20271057 | AP28: -0.290472761 | AV28: 0 | AW28: 0 | AX28: 0 | AY28: 0
B29: 4.3652 | C29: 3.1918353909465 | D29: 1+0.00548547210058006i | E29: 1.000015045 | F29: 0.005485417082 | G29: 1+0.0000137136802514501i | H29: 1 | I29: 1.371368025e-05 | J29: 1-0.000032306081861945i | K29: 1.000000001 | L29: -3.230608185e-05 | M29: 0.999999999153112+0.00005481698938536i | N29: 1.000000001 | O29: 5.481698938e-05 | P29: 3.19173805622665-0.0177425007517194i | Q29: 3.19178737 | R29: -0.005558826473 | S29: 6000 | T29: 1+27.7016341079293i | U29: 27.71967771 | V29: 1.534713042 | W29: 1+0.274273605029003i | X29: 1.036931054 | Y29: 0.2676907619 | Z29: 1+0.00276288312721311i | AA29: 1.000003817 | AB29: 0.002762876097 | AC29: 66.5450233314294-214.353992025536i | AD29: 224.445704 | AE29: -1.269785156 | AF29: 208.591107554766-685.342468978488i | AG29: 57.10290498 | AH29: -73.07182761 | AI29: 106.9281724 | AL29: 47.02222594 | AM29: -72.75333032 | AO29: 72.20268858 | AP29: -0.3184972959 | AV29: 0 | AW29: 0 | AX29: 0 | AY29: 0
B30: 4.7863 | C30: 3.1918353909465 | D30: 1+0.00601464196715074i | E30: 1.000018088 | F30: 0.00601456944 | G30: 1+0.0000150366049178769i | H30: 1 | I30: 1.503660492e-05 | J30: 1-0.0000354225693246192i | K30: 1.000000001 | L30: -3.542256931e-05 | M30: 0.999999998981837+0.0000601050481753756i | N30: 1.000000001 | O30: 6.010504816e-05 | P30: 3.19171837186638-0.0194539573289972i | Q30: 3.191777659 | R30: -0.006095060453 | S30: 6000 | T30: 1+30.3739419341112i | U30: 30.39039895 | V30: 1.537885257 | W30: 1+0.300732098357537i | X30: 1.044241253 | Y30: 0.2921283089 | Z30: 1+0.00302941159895999i | AA30: 1.000004589 | AB30: 0.003029402332 | AC30: 65.245648662816-195.56781593897i | AD30: 206.1644133 | AE30: -1.24878635 | AF30: 204.441167575247-625.466677143182i | AG30: 56.36492666 | AH30: -71.89940862 | AI30: 108.1005914 | AL30: 46.28427405 | AM30: -71.55018738 | AO30: 72.20266215 | AP30: -0.3492212398 | AV30: 0 | AW30: 0 | AX30: 0 | AY30: 0
B31: 5.2481 | C31: 3.1918353909465 | D31: 1+0.00659495696212184i | E31: 1.000021746 | F31: 0.006594861352 | G31: 1+0.0000164873924053046i | H31: 1 | I31: 1.64873924e-05 | J31: 1-0.000038840270370126i | K31: 1.000000001 | L31: -3.884027035e-05 | M31: 0.999999998775887+0.0000659042064494888i | N31: 1.000000001 | O31: 6.590420643e-05 | P31: 3.19169470268179-0.0213307912854675i | Q31: 3.191765981 | R31: -0.006683118437 | S31: 6000 | T31: 1+33.3045326587153i | U31: 33.31954225 | V31: 1.540779402 | W31: 1+0.329747848106092i | X31: 1.052964217 | Y31: 0.3185201542 | Z31: 1+0.00332170048106092i | AA31: 1.000005517 | AB31: 0.003321688264 | AC31: 64.1642296321878-178.424405435421i | AD31: 189.6109618 | AE31: -1.225580936 | AF31: 200.986698066135-570.844903447658i | AG31: 55.63788965 | AH31: -70.60352959 | AI31: 109.3964704 | AL31: 45.55726882 | AM31: -70.22061511 | AO31: 72.20263037 | AP31: -0.3829144804 | AV31: 0 | AW31: 0 | AX31: 0 | AY31: 0
B32: 5.7544 | C32: 3.1918353909465 | D32: 1+0.00723119230632684i | E32: 1.000026145 | F32: 0.00723106627 | G32: 1+0.0000180779807658171i | H32: 1 | I32: 1.807798076e-05 | J32: 1-0.0000425873081339633i | K32: 1.000000001 | L32: -4.258730811e-05 | M32: 0.999999998528306+0.0000722621835698516i | N32: 1.000000001 | O32: 7.226218355e-05 | P32: 3.19166624953756-0.023388431160825i | Q32: 3.191751943 | R32: -0.007327837781 | S32: 6000 | T32: 1+36.5175211469505i | U32: 36.53121064 | V32: 1.543419054 | W32: 1+0.361559615316342i | X32: 1.063355705 | Y32: 0.3469355731 | Z32: 1+0.00364215492239419i | AA32: 1.000006633 | AB32: 0.003642138818 | AC32: 63.2644997261784-162.786431139169i | AD32: 174.6476999 | AE32: -1.200125619 | AF32: 198.111849331307-521.039615546326i | AG32: 54.92384004 | AH32: -69.18198706 | AI32: 110.8180129 | AL32: 44.84325741 | AM32: -68.76213288 | AO32: 72.20259217 | AP32: -0.4198541778 | AV32: 0 | AW32: 0 | AX32: 0 | AY32: 0
B33: 6.3096 | C33: 3.1918353909465 | D33: 1+0.00792887720283606i | E33: 1.000031433 | F33: 0.007928711054 | G33: 1+0.0000198221930070901i | H33: 1 | I33: 1.9822193e-05 | J33: 1-0.0000466962462467077i | K33: 1.000000001 | L33: -4.669624621e-05 | M33: 0.99999999823062+0.0000792342335347448i | N33: 1.000000001 | O33: 7.923423351e-05 | P33: 3.19163203872942-0.0256447386958765i | Q33: 3.191735065 | R33: -0.008034819341 | S33: 6000 | T33: 1+40.0408298743221i | U33: 40.05331518 | V33: 1.54582701 | W33: 1+0.396443860141803i | X33: 1.075717311 | Y33: 0.3774369851 | Z33: 1+0.00399355983218726i | AA33: 1.000007974 | AB33: 0.003993538602 | AC33: 62.5158081510504-148.520590184459i | AD33: 161.1415278 | AE33: -1.172383563 | AF33: 195.718684495716-475.626275608117i | AG33: 54.22468623 | AH33: -67.63299139 | AI33: 112.3670086 | AL33: 44.14414954 | AM33: -67.17263016 | AO33: 72.20254624 | AP33: -0.4603612374 | AV33: 0 | AW33: 0 | AX33: 0 | AY33: 0
B34: 6.9183 | C34: 3.1918353909465 | D34: 1+0.0086937921821321i | E34: 1.00003779 | F34: 0.008693573161 | G34: 1+0.0000217344804553303i | H34: 1 | I34: 2.173448045e-05 | J34: 1-0.0000512011285039619i | K34: 1.000000001 | L34: -5.120112846e-05 | M34: 0.999999997872761+0.0000868781218878257i | N34: 1.000000002 | O34: 8.687812185e-05 | P34: 3.19159091366064-0.028118381486867i | Q34: 3.191714775 | R34: -0.00880991793 | S34: 6000 | T34: 1+43.9036505197671i | U34: 43.91503762 | V34: 1.548023115 | W34: 1+0.434689609106605i | X34: 1.090392157 | Y34: 0.4100491236 | Z34: 1+0.00437882670645067i | AA34: 1.000009587 | AB34: 0.00437879872 | AC34: 61.892936281215-135.510653774606i | AD34: 148.9760815 | AE34: -1.14235279 | AF34: 193.726592796534-434.234900484943i | AG34: 53.54281242 | AH34: -65.95676472 | AI34: 114.0432353 | AL34: 43.46233094 | AM34: -65.4519936 | AO34: 72.20249102 | AP34: -0.5047711153 | AV34: 0 | AW34: 0 | AX34: 0 | AY34: 0
B35: 7.5858 | C35: 3.1918353909465 | D35: 1+0.00953259742064058i | E35: 1.000045434 | F35: 0.009532308693 | G35: 1+0.0000238314935516014i | H35: 1 | I35: 2.383149355e-05 | J35: 1-0.0000561411792789203i | K35: 1.000000002 | L35: -5.614117922e-05 | M35: 0.999999997442473+0.0000952604045815689i | N35: 1.000000002 | O35: 9.526040454e-05 | P35: 3.19154146638972-0.0308308626779791i | Q35: 3.191690379 | R35: -0.009659878783 | S35: 6000 | T35: 1+48.1396169742349i | U35: 48.15000231 | V35: 1.550026403 | W35: 1+0.476629871032029i | X35: 1.107779777 | Y35: 0.4447773246 | Z35: 1+0.00480131009493568i | AA35: 1.000011526 | AB35: 0.004801273201 | AC35: 61.3746260815608-123.644885566256i | AD35: 138.039496 | AE35: -1.110050351 | AF35: 192.067585635738-396.510012060351i | AG35: 52.88048239 | AH35: -64.15467045 | AI35: 115.8453296 | AL35: 42.8000673 | AM35: -63.60120016 | AO35: 72.20242463 | AP35: -0.5534702849 | AV35: 0 | AW35: 0 | AX35: 0 | AY35: 0
B36: 8.3176 | C36: 3.1918353909465 | D36: 1+0.0104522044221994i | E36: 1.000054623 | F36: 0.01045182382 | G36: 1+0.0000261305110554984i | H36: 1 | I36: 2.613051105e-05 | J36: 1-0.0000615571031098035i | K36: 1.000000002 | L36: -6.155710303e-05 | M36: 0.999999996925224+0.000104450149113825i | N36: 1.000000002 | O36: 0.0001044501491 | P36: 3.19148202786256-0.0338044860958888i | Q36: 3.191661053 | R36: -0.01059170056 | S36: 6000 | T36: 1+52.7836323321069i | U36: 52.79310412 | V36: 1.551853326 | W36: 1+0.522610221109969i | X36: 1.128326834 | Y36: 0.4815717413 | Z36: 1+0.00526449113417661i | AA36: 1.000013857 | AB36: 0.0052644425 | AC36: 60.9434176085754-112.826594882427i | AD36: 128.2339295 | AE36: -1.075546027 | AF36: 190.685776956342-362.144210745381i | AG36: 52.24039429 | AH36: -62.23110777 | AI36: 117.7688922 | AL36: 42.16005901 | AM36: -61.62424803 | AO36: 72.20234483 | AP36: -0.6068597399 | AV36: 0 | AW36: 0 | AX36: 0 | AY36: 0
B37: 9.1201 | C37: 3.1918353909465 | D37: 1+0.0114606556640017i | E37: 1.000065671 | F37: 0.01146015393 | G37: 1+0.0000286516391600043i | H37: 1 | I37: 2.865163915e-05 | J37: 1-0.0000674962652774502i | K37: 1.000000002 | L37: -6.749626517e-05 | M37: 0.999999996303279+0.000114527724936641i | N37: 1.000000003 | O37: 0.0001145277249 | P37: 3.19141056139472-0.0370651968221373i | Q37: 3.191625793 | R37: -0.01161352628 | S37: 6000 | T37: 1+57.8763111032087i | U37: 57.88494957 | V37: 1.55351982 | W37: 1+0.573032783200086i | X37: 1.15254786 | Y37: 0.5203546074 | Z37: 1+0.00577242060123163i | AA37: 1.00001666 | AB37: 0.005772356489 | AC37: 60.5845589916216-102.962014427215i | AD37: 119.4640749 | AE37: -1.038937569 | AF37: 189.533894093354-330.839638868896i | AG37: 51.62498581 | AH37: -60.1921439 | AI37: 119.8078561 | AL37: 41.54474649 | AM37: -59.52673786 | AO37: 72.20224887 | AP37: -0.6654060412 | AV37: 0 | AW37: 0 | AX37: 0 | AY37: 0
B38: 10 | C38: 3.1918353909465 | D38: 1+0.0125663706143592i | E38: 1.000078954 | F38: 0.01256570921 | G38: 1+0.0000314159265358979i | H38: 1 | I38: 3.141592653e-05 | J38: 1-0.000074008251310238i | K38: 1.000000003 | L38: -7.400825118e-05 | M38: 0.999999995555556+0.000125577268820123i | N38: 1.000000003 | O38: 0.0001255772687 | P38: 3.1913246461127-0.0406401379109411i | Q38: 3.191583403 | R38: -0.0127338788 | S38: 6000 | T38: 1+63.4601716025139i | U38: 63.46805007 | V38: 1.555039716 | W38: 1+0.628318530717959i | X38: 1.181009812 | Y38: 0.5609821161 | Z38: 1+0.00632933915333344i | AA38: 1.00002003 | AB38: 0.006329254636 | AC38: 60.285928380993-93.9697082133672i | AD38: 111.6454174 | AE38: -1.000386854 | AF38: 188.573027154806-302.33787425283i | AG38: 51.03694199 | AH38: -58.04754214 | AI38: 121.9524579 | AL38: 40.95681803 | AM38: -57.31794463 | AO38: 72.2021335 | AP38: -0.7295975123 | AV38: 0 | AW38: 0 | AX38: 0 | AY38: 0
B39: 10.965 | C39: 3.1918353909465 | D39: 1+0.0137790253786448i | E39: 1.000094926 | F39: 0.01377815344 | G39: 1+0.0000344475634466121i | H39: 1.000000001 | I39: 3.444756343e-05 | J39: 1-0.0000811500475616759i | K39: 1.000000003 | L39: -8.115004738e-05 | M39: 0.99999999465639+0.000137695475261265i | N39: 1.000000004 | O39: 0.0001376954751 | P39: 3.19122133579086-0.0445604877030535i | Q39: 3.19153243 | R39: -0.0139625514 | S39: 6000 | T39: 1+69.5840781621565i | U39: 69.59126334 | V39: 1.556426212 | W39: 1+0.688951268932242i | X39: 1.214353264 | Y39: 0.6032721556 | Z39: 1+0.00694012038163011i | AA39: 1.000024082 | AB39: 0.006940008961 | AC39: 60.0373224243912-85.7719309394568i | AD39: 104.6962474 | AE39: -0.9600940657 | AF39: 187.770345190577-276.392508393591i | AG39: 50.47860755 | AH39: -55.80933317 | AI39: 124.1906668 | AL39: 40.39862231 | AM39: -55.0093379 | AO39: 72.20199478 | AP39: -0.7999952665 | AV39: 0 | AW39: 0 | AX39: 0 | AY39: 0
B40: 12.023 | C40: 3.1918353909465 | D40: 1+0.015108547389644i | E40: 1.000114128 | F40: 0.01510739795 | G40: 1+0.0000377713684741101i | H40: 1.000000001 | I40: 3.777136846e-05 | J40: 1-0.0000889801205502991i | K40: 1.000000004 | L40: -8.898012032e-05 | M40: 0.999999993575443+0.000150981550302434i | N40: 1.000000005 | O40: 0.0001509815501 | P40: 3.19109714830305-0.0488582006470832i | Q40: 3.191471155 | R40: -0.01530958825 | S40: 6000 | T40: 1+76.2981643177024i | U40: 76.30471727 | V40: 1.557690602 | W40: 1+0.755427369482202i | X40: 1.253263943 | Y40: 0.6469655859 | Z40: 1+0.00760976446405279i | AA40: 1.000028954 | AB40: 0.007609617579 | AC40: 59.8303776681613-78.3021714040416i | AD40: 98.54391985 | AE40: -0.9183346336 | AF40: 187.098844357203-252.793040470276i | AG40: 49.95241514 | AH40: -53.49387348 | AI40: 126.5061265 | AL40: 39.87259667 | AM40: -52.61669869 | AO40: 72.20182802 | AP40: -0.8771747927 | AV40: 0 | AW40: 0 | AX40: 0 | AY40: 0
B41: 13.183 | C41: 3.1918353909465 | D41: 1+0.0165662463809097i | E41: 1.000137211 | F41: 0.01656473115 | G41: 1+0.0000414156159522743i | H41: 1.000000001 | I41: 4.141561593e-05 | J41: 1-0.0000975650777022867i | K41: 1.000000005 | L41: -9.756507739e-05 | M41: 0.999999992275934+0.000165548513485568i | N41: 1.000000006 | O41: 0.0001655485133 | P41: 3.19094786329937-0.0535696519278018i | Q41: 3.191397495 | R41: -0.01678642912 | S41: 6000 | T41: 1+83.659544223594i | U41: 83.66552061 | V41: 1.558843687 | W41: 1+0.828312319045485i | X41: 1.298499633 | Y41: 0.691767728 | Z41: 1+0.00834396780583947i | AA41: 1.00003481 | AB41: 0.008343774173 | AC41: 59.6580396561485-71.496801652155i | AD41: 93.11752973 | AE41: -0.8754197334 | AF41: 186.535635390959-231.338426883758i | AG41: 49.46024692 | AH41: -51.11964757 | AI41: 128.8803524 | AL41: 39.38062892 | AM41: -50.15785602 | AO41: 72.20162754 | AP41: -0.9617915418 | AV41: 0 | AW41: 0 | AX41: 0 | AY41: 0
B42: 14.454 | C42: 3.1918353909465 | D42: 1+0.0181634320859947i | E42: 1.000164942 | F42: 0.01816143505 | G42: 1+0.0000454085802149869i | H42: 1.000000001 | I42: 4.540858018e-05 | J42: 1-0.000106971526443818i | K42: 1.000000006 | L42: -0.000106971526 | M42: 0.99999999071475+0.000181509384352606i | N42: 1.000000007 | O42: 0.000181509384 | P42: 3.19076853592871-0.0587311544616162i | Q42: 3.19130901 | R42: -0.01840450738 | S42: 6000 | T42: 1+91.7253320342734i | U42: 91.73078293 | V42: 1.559894645 | W42: 1+0.908171604299737i | X42: 1.350842575 | Y42: 0.7373115 | Z42: 1+0.00914842681222814i | AA42: 1.000041846 | AB42: 0.009148171603 | AC42: 59.5145236928123-65.3017994064858i | AD42: 88.3532882 | AE42: -0.8317313166 | AF42: 186.061819562245-211.858283569455i | AG42: 49.00383151 | AH42: -48.70919473 | AI42: 131.2908053 | AL42: 38.92445434 | AM42: -47.65469413 | AO42: 72.20138671 | AP42: -1.054500597 | AV42: 0 | AW42: 0 | AX42: 0 | AY42: 0
B43: 15.849 | C43: 3.1918353909465 | D43: 1+0.0199164407866979i | E43: 1.000198313 | F43: 0.01991380803 | G43: 1+0.0000497911019667447i | H43: 1.000000001 | I43: 4.979110193e-05 | J43: 1-0.000117295677501596i | K43: 1.000000007 | L43: -0.000117295677 | M43: 0.999999988835964+0.000199027413353013i | N43: 1.000000009 | O43: 0.0001990274129 | P43: 3.19055275309022-0.0643951812053097i | Q43: 3.191202533 | R43: -0.02018034002 | S43: 6000 | T43: 1+100.578025972824i | U43: 100.5829971 | V43: 1.560854125 | W43: 1+0.995822039334893i | X43: 1.41126239 | Y43: 0.7833048131 | Z43: 1+0.0100313696241182i | AA43: 1.000050313 | AB43: 0.01003103316 | AC43: 59.3947170241024-59.6545044351465i | AD43: 84.18071222 | AE43: -0.7875803448 | AF43: 185.66051529745-194.155576925195i | AG43: 48.58333928 | AH43: -46.2812781 | AI43: 133.7187219 | AL43: 38.50425192 | AM43: -45.12502979 | AO43: 72.20109691 | AP43: -1.156248312 | AV43: 0 | AW43: 0 | AX43: 0 | AY43: 0
B44: 17.378 | C44: 3.1918353909465 | D44: 1+0.0218378388536334i | E44: 1.000238417 | F44: 0.02183436842 | G44: 1+0.0000545945971340835i | H44: 1.000000001 | I44: 5.459459708e-05 | J44: 1-0.000128611539126932i | K44: 1.000000008 | L44: -0.0001286115384 | M44: 0.999999986578005+0.00021822817775561i | N44: 1.00000001 | O44: 0.0002182281772 | P44: 3.19029345944224-0.0706019127614814i | Q44: 3.191074582 | R44: -0.02212661354 | S44: 6000 | T44: 1+110.281086210849i | U44: 110.28562 | V44: 1.561728837 | W44: 1+1.09189194268167i | X44: 1.480617444 | Y44: 0.829297613 | Z44: 1+0.0109991255806629i | AA44: 1.000060489 | AB44: 0.01099868205 | AC44: 59.2947361226255-54.51551210225i | AD44: 80.54692292 | AE44: -0.7434299063 | AF44: 185.318709401775-178.106803484897i | AG44: 48.19971817 | AH44: -43.86315757 | AI44: 136.1368424 | AL44: 38.12097908 | AM44: -42.595396 | AO44: 72.20074864 | AP44: -1.267761571 | AV44: 0 | AW44: 0 | AX44: 0 | AY44: 0
B45: 19.055 | C45: 3.1918353909465 | D45: 1+0.0239452192056614i | E45: 1.000286646 | F45: 0.02394064426 | G45: 1+0.0000598630480141535i | H45: 1.000000002 | I45: 5.986304794e-05 | J45: 1-0.000141022722871658i | K45: 1.00000001 | L45: -0.0001410227219 | M45: 0.999999983862532+0.000239287485736744i | N45: 1.000000012 | O45: 0.000239287485 | P45: 3.18998168209983-0.0774076252047515i | Q45: 3.190920725 | R45: -0.02426109142 | S45: 6000 | T45: 1+120.92335698859i | U45: 120.9274918 | V45: 1.562526814 | W45: 1+1.19726096028307i | X45: 1.559946732 | Y45: 0.8749339796 | Z45: 1+0.0120605557566769i | AA45: 1.000072726 | AB45: 0.01205997104 | AC45: 59.2111075761221-49.8376957319237i | AD45: 77.39348278 | AE45: -0.6996528058 | AF45: 185.024530872387-163.564727686112i | AG45: 47.85240811 | AH45: -41.47721104 | AI45: 138.522789 | AL45: 37.77408781 | AM45: -40.0871529 | AO45: 72.20032984 | AP45: -1.390058145 | AV45: 0 | AW45: 0 | AX45: 0 | AY45: 0
B46: 20.893 | C46: 3.1918353909465 | D46: 1+0.0262549181245806i | E46: 1.000344601 | F46: 0.02624888793 | G46: 1+0.0000656372953114515i | H46: 1.000000002 | I46: 6.563729522e-05 | J46: 1-0.00015462543946248i | K46: 1.000000012 | L46: -0.0001546254382 | M46: 0.999999980599224+0.000262368587745883i | N46: 1.000000015 | O46: 0.0002623685868 | P46: 3.18960708457848-0.0848643456762106i | Q46: 3.190735857 | R46: -0.02660024466 | S46: 6000 | T46: 1+132.587336529132i | U46: 132.5911076 | V46: 1.563254271 | W46: 1+1.31274590622903i | X46: 1.650242956 | Y46: 0.9198099131 | Z46: 1+0.0132238882930595i | AA46: 1.000087432 | AB46: 0.01322311755 | AC46: 59.1410441024425-45.5846651013075i | AD46: 74.6701064 | AE46: -0.6566674758 | AF46: 184.768180481827-150.416136765629i | AG46: 47.54075246 | AH46: -39.14835666 | AI46: 140.8516433 | AL46: 37.4629354 | AM46: -37.62427491 | AO46: 72.1998266 | AP46: -1.524081753 | AV46: 0 | AW46: 0 | AX46: 0 | AY46: 0
B47: 22.909 | C47: 3.1918353909465 | D47: 1+0.0287882984404354i | E47: 1.000414297 | F47: 0.02878034947 | G47: 1+0.0000719707461010885i | H47: 1.000000003 | I47: 7.197074598e-05 | J47: 1-0.000169545502926624i | K47: 1.000000014 | L47: -0.0001695455013 | M47: 0.999999976674565+0.00028768496514002i | N47: 1.000000018 | O47: 0.0002876849639 | P47: 3.18915668499333-0.0930400799957074i | Q47: 3.190513566 | R47: -0.02916560919 | S47: 6000 | T47: 1+145.380907124199i | U47: 145.3843463 | V47: 1.563917953 | W47: 1+1.43941492202177i | X47: 1.752688026 | Y47: 0.9636182546 | Z47: 1+0.0144998830663715i | AA47: 1.000105118 | AB47: 0.01449886701 | AC47: 59.0821057714144-41.7170216143522i | AD47: 72.32568779 | AE47: -0.6147985653 | AF47: 184.540737556207-138.53912220671i | AG47: 47.26306336 | AH47: -36.89642936 | AI47: 143.1035706 | AL47: 37.18585145 | AM47: -35.22536304 | AO47: 72.19922146 | AP47: -1.671066314 | AV47: 0 | AW47: 0 | AX47: 0 | AY47: 0
B48: 25.119 | C48: 3.1918353909465 | D48: 1+0.0315654663462088i | E48: 1.000498065 | F48: 0.03155498889 | G48: 1+0.000078913665865522i | H48: 1.000000003 | I48: 7.89136657e-05 | J48: 1-0.000185901326466187i | K48: 1.000000017 | L48: -0.0001859013243 | M48: 0.999999971957148+0.000315437541549267i | N48: 1.000000022 | O48: 0.0003154375399 | P48: 3.18861547345431-0.10199844607523i | Q48: 3.190246436 | R48: -0.03197741409 | S48: 6000 | T48: 1+159.405605048354i | U48: 159.4087417 | V48: 1.564523104 | W48: 1+1.57827331731044i | X48: 1.868407521 | Y48: 1.006033906 | Z48: 1+0.0158986670192583i | AA48: 1.000126376 | AB48: 0.01589732767 | AC48: 59.0323233570546-38.2042278768693i | AD48: 70.31627286 | AE48: -0.5743865251 | AF48: 184.334607813318-127.83979741019i | AG48: 47.0176015 | AH48: -34.74209457 | AI48: 145.2579054 | AL48: 36.94111685 | AM48: -32.9099237 | AO48: 72.19849419 | AP48: -1.832170867 | AV48: 0 | AW48: 0 | AX48: 0 | AY48: 0
B49: 27.542 | C49: 3.1918353909465 | D49: 1+0.034610297946068i | E49: 1.000598757 | F49: 0.03459648829 | G49: 1+0.00008652574486517i | H49: 1.000000004 | I49: 8.652574465e-05 | J49: 1-0.000203833525758657i | K49: 1.000000021 | L49: -0.0002038335229 | M49: 0.999999966286144+0.000345864913784383i | N49: 1.000000026 | O49: 0.0003458649117 | P49: 3.18796510023616-0.111814792889516i | Q49: 3.189925395 | R49: -0.03505966098 | S49: 6000 | T49: 1+174.782004627643i | U49: 174.7848653 | V49: 1.565074976 | W49: 1+1.7305148973034i | X49: 1.99867001 | Y49: 1.046813318 | Z49: 1+0.0174322658961109i | AA49: 1.00015193 | AB49: 0.01743050042 | AC49: 58.9899921194425-35.0158076050707i | AD49: 68.59975184 | AE49: -0.5356921587 | AF49: 184.142750864769-118.225126352939i | AG49: 46.80206141 | AH49: -32.70167042 | AI49: 147.2983296 | AL49: 36.72645089 | AM49: -30.69289981 | AO49: 72.19762007 | AP49: -2.008770605 | AV49: 0 | AW49: 0 | AX49: 0 | AY49: 0
B50: 30.2 | C50: 3.1918353909465 | D50: 1+0.0379504392553646i | E50: 1.000719859 | F50: 0.03793223579 | G50: 1+0.0000948760981384115i | H50: 1.000000005 | I50: 9.487609785e-05 | J50: 1-0.000223504918956918i | K50: 1.000000025 | L50: -0.0002235049152 | M50: 0.999999959464889+0.000379243351836771i | N50: 1.000000031 | O50: 0.000379243349 | P50: 3.18718315848635-0.122576045133913i | Q50: 3.189539367 | R50: -0.03844010796 | S50: 6000 | T50: 1+191.649718239591i | U50: 191.6523271 | V50: 1.565578521 | W50: 1+1.89752196276823i | X50: 2.144898506 | Y50: 1.085780313 | Z50: 1+0.0191146042430669i | AA50: 1.000182667 | AB50: 0.0191122768 | AC50: 58.9536529184827-32.1231765989249i | AD50: 67.13740885 | AE50: -0.4989104852 | AF50: 183.958557768403-109.608753074121i | AG50: 46.61385085 | AH50: -30.78792111 | AI50: 149.2120789 | AL50: 36.53929152 | AM50: -28.58546516 | AO50: 72.19656888 | AP50: -2.20245595 | AV50: 0 | AW50: 0 | AX50: 0 | AY50: 0
B51: 33.113 | C51: 3.1918353909465 | D51: 1+0.0416110230153276i | E51: 1.000865364 | F51: 0.04158703175 | G51: 1+0.000104027557538319i | H51: 1.000000005 | I51: 0.0001040275572 | J51: 1-0.000245063522563591i | K51: 1.00000003 | L51: -0.0002450635177 | M51: 0.999999951267966+0.000415824010244074i | N51: 1.000000038 | O51: 0.0004158240065 | P51: 3.18624402013256-0.134360278508853i | Q51: 3.189075672 | R51: -0.04214389172 | S51: 6000 | T51: 1+210.135666227404i | U51: 210.1380456 | V51: 1.566037532 | W51: 1+2.08055115076638i | X51: 2.308396216 | Y51: 1.122754805 | Z51: 1+0.020958340738433i | AA51: 1.000219602 | AB51: 0.02095527288 | AC51: 58.922104622242-29.5045490392486i | AD51: 65.89637947 | AE51: -0.4642380004 | AF51: 183.775964080052-101.925483330386i | AG51: 46.45052757 | AH51: -29.01354524 | AI51: 150.9864548 | AL51: 36.37723108 | AM51: -26.59887812 | AO51: 72.19530603 | AP51: -2.414667128 | AV51: 0 | AW51: 0 | AX51: 0 | AY51: 0
B52: 36.308 | C52: 3.1918353909465 | D52: 1+0.0456259784266152i | E52: 1.001040324 | F52: 0.04559435759 | G52: 1+0.000114064946066538i | H52: 1.000000007 | I52: 0.0001140649456 | J52: 1-0.000268709158857211i | K52: 1.000000036 | L52: -0.0002687091524 | M52: 0.999999941410184+0.000455945947632102i | N52: 1.000000045 | O52: 0.0004559459428 | P52: 3.18511531676653-0.147272905851379i | Q52: 3.188518291 | R52: -0.04620494774 | S52: 6000 | T52: 1+230.411191054407i | U52: 230.4133611 | V52: 1.566456287 | W52: 1+2.28129892133076i | X52: 2.490848203 | Y52: 1.15767538 | Z52: 1+0.022980564597923i | AA52: 1.000264018 | AB52: 0.02297652049 | AC52: 58.894247172747-27.1355134796815i | AD52: 64.84495695 | AE52: -0.4317574279 | AF52: 183.588642817428-95.103266531518i | AG52: 46.30930238 | AH52: -27.38522689 | AI52: 152.6147731 | AL52: 36.23752413 | AM52: -24.73787839 | AO52: 72.1937878 | AP52: -2.647348498 | AV52: 0 | AW52: 0 | AX52: 0 | AY52: 0
B53: 39.811 | C53: 3.1918353909465 | D53: 1+0.0500279780528254i | E53: 1.001250617 | F53: 0.04998630397 | G53: 1+0.000125069945132063i | H53: 1.000000008 | I53: 0.0001250699445 | J53: 1-0.000294634249291189i | K53: 1.000000043 | L53: -0.0002946342408 | M53: 0.999999929559301+0.000499935664899793i | N53: 1.000000055 | O53: 0.0004999356585 | P53: 3.18375944995364-0.161413981370872i | Q53: 3.187848602 | R53: -0.05065580392 | S53: 6000 | T53: 1+252.641289166768i | U53: 252.6432682 | V53: 1.566838166 | W53: 1+2.50139890264127i | X53: 2.693881302 | Y53: 1.190482809 | Z53: 1+0.0251977321033358i | AA53: 1.000317412 | AB53: 0.02519240124 | AC53: 58.8691451959912-24.99694825424i | AD53: 63.95642015 | AE53: -0.4015477588 | AF53: 183.390340388591-89.0865733304236i | AG53: 46.18763669 | AH53: -25.90935562 | AI53: 154.0906444 | AL53: 36.11768294 | AM53: -23.00699185 | AO53: 72.1919633 | AP53: -2.902363772 | AV53: 0 | AW53: 0 | AX53: 0 | AY53: 0
B54: 43.652 | C54: 3.1918353909465 | D54: 1+0.0548547210058006i | E54: 1.00150339 | F54: 0.0547998001 | G54: 1+0.000137136802514502i | H54: 1.000000009 | I54: 0.0001371368017 | J54: 1-0.00032306081861945i | K54: 1.000000052 | L54: -0.0003230608074 | M54: 0.99999991531124+0.000548169893853601i | N54: 1.000000066 | O54: 0.0005481698854 | P54: 3.18213082751594-0.176898005389476i | Q54: 3.187044008 | R54: -0.05553389399 | S54: 6000 | T54: 1+277.016341079293i | U54: 277.018146 | V54: 1.567186447 | W54: 1+2.74273605029003i | X54: 2.919349421 | Y54: 1.221174995 | Z54: 1+0.0276288312721311i | AA54: 1.000381603 | AB54: 0.02762180431 | AC54: 58.845942891704-23.0704880130154i | AD54: 63.20674341 | AE54: -0.3736332563 | AF54: 183.17436563707-83.8230410348587i | AG54: 46.0830295 | AH54: -24.58946642 | AI54: 155.4105336 | AL54: 36.0152683 | AM54: -21.40760867 | AO54: 72.18977075 | AP54: -3.181857746 | AV54: 0 | AW54: 0 | AX54: 0 | AY54: 0
B55: 47.863 | C55: 3.1918353909465 | D55: 1+0.0601464196715074i | E55: 1.001807163 | F55: 0.06007404829 | G55: 1+0.000150366049178768i | H55: 1.000000011 | I55: 0.000150366048 | J55: 1-0.000354225693246192i | K55: 1.000000063 | L55: -0.0003542256784 | M55: 0.999999898183699+0.000601050481753756i | N55: 1.000000079 | O55: 0.0006010504706 | P55: 3.18017524129132-0.193845294948734i | Q55: 3.186077614 | R55: -0.0608789584 | S55: 6000 | T55: 1+303.739419341112i | U55: 303.7410655 | V55: 1.567504043 | W55: 1+3.00732098357537i | X55: 3.169223801 | Y55: 1.249776266 | Z55: 1+0.0302941159895999i | AA55: 1.000458762 | AB55: 0.03028485378 | AC55: 58.8238548977836-21.3399972760542i | AD55: 62.57508601 | AE55: -0.3480126305 | AF55: 182.933508877063-79.2676584892142i | AG55: 45.99315613 | AH55: -23.42776232 | AI55: 156.5722377 | AL55: 35.9280291 | AM55: -19.93965494 | AO55: 72.18713657 | AP55: -3.488107377 | AV55: 0 | AW55: 0 | AX55: 0 | AY55: 0
B56: 52.481 | C56: 3.1918353909465 | D56: 1+0.0659495696212184i | E56: 1.002172313 | F56: 0.06585420587 | G56: 1+0.000164873924053046i | H56: 1.000000014 | I56: 0.0001648739226 | J56: 1-0.00038840270370126i | K56: 1.000000075 | L56: -0.0003884026842 | M56: 0.999999877588651+0.000659042064494888i | N56: 1.000000095 | O56: 0.0006590420498 | P56: 3.177826880461-0.212393335466001i | Q56: 3.184916735 | R56: -0.06673677668 | S56: 6000 | T56: 1+333.045326587153i | U56: 333.0468279 | V56: 1.567793742 | W56: 1+3.29747848106092i | X56: 3.445774852 | Y56: 1.276349543 | Z56: 1+0.0332170048106092i | AA56: 1.000551533 | AB56: 0.03320479602 | AC56: 58.8021246892805-19.7902635223367i | AD56: 62.04308502 | AE56: -0.3246489949 | AF56: 182.659652386555-75.3792107879323i | AG56: 45.91582935 | AH56: -22.42475287 | AI56: 157.5752471 | AL56: 35.85386769 | AM56: -18.60101723 | AO56: 72.1839712 | AP56: -3.823735642 | AV56: 0 | AW56: 0 | AX56: 0 | AY56: 0
B57: 57.544 | C57: 3.1918353909465 | D57: 1+0.0723119230632684i | E57: 1.002611098 | F57: 0.07218627701 | G57: 1+0.000180779807658171i | H57: 1.000000016 | I57: 0.0001807798057 | J57: 1-0.000425873081339633i | K57: 1.000000091 | L57: -0.0004258730556 | M57: 0.999999852830581+0.000722621835698516i | N57: 1.000000114 | O57: 0.0007226218163 | P57: 3.17500835446848-0.232679746546716i | Q57: 3.183522878 | R57: -0.07315399207 | S57: 6000 | T57: 1+365.175211469505i | U57: 365.1765807 | V57: 1.568057922 | W57: 1+3.61559615316342i | X57: 3.751337834 | Y57: 1.300962204 | Z57: 1+0.0364215492239419i | AA57: 1.000663045 | AB57: 0.03640545728 | AC57: 58.7800210375326-18.4085285518531i | AD57: 61.59516861 | AE57: -0.3035011758 | AF57: 182.343766112256-72.1241523426289i | AG57: 45.84909247 | AH57: -21.58075145 | AI57: 158.4192486 | AL57: 35.79093297 | AM57: -17.38933645 | AO57: 72.18016905 | AP57: -4.191415 | AV57: 0 | AW57: 0 | AX57: 0 | AY57: 0
B58: 63.096 | C58: 3.1918353909465 | D58: 1+0.0792887720283606i | E58: 1.00313843 | F58: 0.07912324081 | G58: 1+0.000198221930070902i | H58: 1.00000002 | I58: 0.0001982219275 | J58: 1-0.000466962462467077i | K58: 1.000000109 | L58: -0.0004669624285 | M58: 0.99999982306199+0.000792342335347448i | N58: 1.000000137 | O58: 0.0007923423097 | P58: 3.17162594182207-0.254861127264927i | Q58: 3.181849354 | R58: -0.08018432362 | S58: 6000 | T58: 1+400.408298743221i | U58: 400.4095475 | V58: 1.568298881 | W58: 1+3.96443860141803i | X58: 4.088615099 | Y58: 1.323708169 | Z58: 1+0.0399355983218726i | AA58: 1.000797108 | AB58: 0.03991438816 | AC58: 58.7567905487812-17.1827360485509i | AD58: 61.21770049 | AE58: -0.2845051006 | AF58: 181.975349683891-69.4720332767969i | AG58: 45.79113252 | AH58: -20.89516484 | AI58: 159.1048352 | AL58: 35.73754025 | AM58: -16.30094151 | AO58: 72.17560182 | AP58: -4.594223327 | AV58: 0 | AW58: 0 | AX58: 0 | AY58: 0
B59: 69.183 | C59: 3.1918353909465 | D59: 1+0.086937921821321i | E59: 1.003771987 | F59: 0.08671987832 | G59: 1+0.000217344804553303i | H59: 1.000000024 | I59: 0.0002173448011 | J59: 1-0.000512011285039619i | K59: 1.000000131 | L59: -0.0005120112403 | M59: 0.999999787276112+0.000868781218878257i | N59: 1.000000165 | O59: 0.0008687811851 | P59: 3.16756922325139-0.279095417922526i | Q59: 3.179841039 | R59: -0.08788332594 | S59: 6000 | T59: 1+439.036505197671i | U59: 439.0376441 | V59: 1.568518616 | W59: 1+4.34689609106605i | X59: 4.460437829 | Y59: 1.344681204 | Z59: 1+0.0437882670645067i | AA59: 1.000958247 | AB59: 0.0437603125 | AC59: 58.7316522734022-16.1026668223217i | AD59: 60.89912033 | AE59: -0.267597724 | AF59: 181.542393645488-67.3980468751831i | AG59: 45.74032859 | AH59: -20.36756386 | AI59: 159.6324361 | AL59: 35.69222039 | AM59: -15.33222019 | AO59: 72.17011775 | AP59: -5.035343666 | AV59: 0 | AW59: 0 | AX59: 0 | AY59: 0
B60: 75.858 | C60: 3.1918353909465 | D60: 1+0.0953259742064058i | E60: 1.004533246 | F60: 0.09503879467 | G60: 1+0.000238314935516014i | H60: 1.000000028 | I60: 0.000238314931 | J60: 1-0.000561411792789203i | K60: 1.000000158 | L60: -0.0005614117338 | M60: 0.999999744247282+0.000952604045815689i | N60: 1.000000198 | O60: 0.0009526040013 | P60: 3.16270497380863-0.305559758577313i | Q60: 3.177431277 | R60: -0.09631449547 | S60: 6000 | T60: 1+481.396169742349i | U60: 481.3972084 | V60: 1.568719039 | W60: 1+4.76629871032029i | X60: 4.870072217 | Y60: 1.363989557 | Z60: 1+0.0480131009493568i | AA60: 1.001151965 | AB60: 0.0479762577 | AC60: 58.7037520854426-15.1588393526356i | AD60: 60.6293734 | AE60: -0.252705739 | AF60: 181.030717408954-65.8804409325569i | AG60: 45.69518492 | AH60: -19.9973864 | AI60: 160.0026136 | AL60: 35.6536616 | AM60: -14.4789723 | AO60: 72.16353287 | AP60: -5.518414096 | AV60: 0 | AW60: 0 | AX60: 0 | AY60: 0
B61: 83.176 | C61: 3.1918353909465 | D61: 1+0.104522044221994i | E61: 1.005447591 | F61: 0.1041438904 | G61: 1+0.000261305110554984i | H61: 1.000000034 | I61: 0.0002613051046 | J61: 1-0.000615571031098035i | K61: 1.000000189 | L61: -0.0006155709533 | M61: 0.999999692522357+0.00104450149113825i | N61: 1.000000238 | O61: 0.001044501432 | P61: 3.15687713627154-0.334427885032368i | Q61: 3.174541741 | R61: -0.1055426577 | S61: 6000 | T61: 1+527.836323321069i | U61: 527.8372706 | V61: 1.568901802 | W61: 1+5.22610221109969i | X61: 5.320915741 | Y61: 1.381734446 | Z61: 1+0.0526449113417661i | AA61: 1.001384785 | AB61: 0.05259635717 | AC61: 58.6721575521529-14.343364109347i | AD61: 60.3999517 | AE61: -0.2397637134 | AF61: 180.423971788775-64.9018437744677i | AG61: 45.65435266 | AH61: -19.7845977 | AI61: 160.2154023 | AL61: 35.62073183 | AM61: -13.73744886 | AO61: 72.15563038 | AP61: -6.047148845 | AV61: 0 | AW61: 0 | AX61: 0 | AY61: 0
B62: 91.201 | C62: 3.1918353909465 | D62: 1+0.114606556640017i | E62: 1.006545907 | F62: 0.1141087015 | G62: 1+0.000286516391600043i | H62: 1.000000041 | I62: 0.0002865163838 | J62: 1-0.000674962652774502i | K62: 1.000000228 | L62: -0.0006749625503 | M62: 0.999999630327893+0.00114527724936641i | N62: 1.000000286 | O62: 0.001145277172 | P62: 3.14989769358215-0.365894318857538i | Q62: 3.171077756 | R62: -0.1156424248 | S62: 6000 | T62: 1+578.763111032087i | U62: 578.7639749 | V62: 1.569068506 | W62: 1+5.73032783200086i | X62: 5.81692849 | Y62: 1.398026057 | Z62: 1+0.0577242060123163i | AA62: 1.001664656 | AB62: 0.05766021992 | AC62: 58.6357996252396-13.648967179442i | AD62: 60.20341604 | AE62: -0.2287026693 | AF62: 179.702690451656-64.4473562028469i | AG62: 45.61656051 | AH62: -19.72952059 | AI62: 160.2704794 | AL62: 35.59242269 | AM62: -13.10369771 | AO62: 72.14614737 | AP62: -6.625822874 | AV62: 0 | AW62: 0 | AX62: 0 | AY62: 0
B63: 100 | C63: 3.1918353909465 | D63: 1+0.125663706143592i | E63: 1.007864756 | F63: 0.1250084364 | G63: 1+0.000314159265358979i | H63: 1.000000049 | I63: 0.000314159255 | J63: 1-0.00074008251310238i | K63: 1.000000274 | L63: -0.000740082378 | M63: 0.999999555555556+0.00125577268820123i | N63: 1.000000344 | O63: 0.001255772586 | P63: 3.14154696561045-0.400146127962254i | Q63: 3.166928206 | R63: -0.1266901321 | S63: 6000 | T63: 1+634.601716025139i | U63: 634.6025039 | V63: 1.569220537 | W63: 1+6.28318530717959i | X63: 6.362265132 | Y63: 1.412965137 | Z63: 1+0.0632933915333344i | AA63: 1.002001025 | AB63: 0.0632090752 | AC63: 58.5934665188621-13.0696936903075i | AD63: 60.03341746 | AE63: -0.2194644753 | AF63: 178.8443396231-64.5050053056522i | AG63: 45.58062569 | AH63: -19.83319806 | AI63: 160.1668019 | AL63: 35.56786133 | AM63: -12.57438819 | AO63: 72.1347739 | AP63: -7.258809873 | AV63: 0 | AW63: 0 | AX63: 0 | AY63: 0
B64: 109.65 | C64: 3.1918353909465 | D64: 1+0.137790253786448i | E64: 1.009448441 | F64: 0.1369280193 | G64: 1+0.000344475634466121i | H64: 1.000000059 | I64: 0.0003444756208 | J64: 1-0.000811500475616759i | K64: 1.000000329 | L64: -0.0008115002975 | M64: 0.999999465639+0.00137695475261265i | N64: 1.000000414 | O64: 0.001376954618 | P64: 3.13156256657327-0.437384475686749i | Q64: 3.161959723 | R64: -0.1387719986 | S64: 6000 | T64: 1+695.840781621564i | U64: 695.8415002 | V64: 1.569359217 | W64: 1+6.88951268932242i | X64: 6.96170849 | Y64: 1.426654812 | Z64: 1+0.0694012038163011i | AA64: 1.002405371 | AB64: 0.06929010046 | AC64: 58.5437351780954-12.6002773653022i | AD64: 59.88435454 | AE64: -0.211994506 | AF64: 177.822203882172-65.064677841236i | AG64: 45.54539413 | AH64: -20.09744031 | AI64: 159.9025597 | AL64: 35.54626746 | AM64: -12.14639047 | AO64: 72.12113621 | AP64: -7.951049836 | AV64: 0 | AW64: 0 | AX64: 0 | AY64: 0
B65: 120.23 | C65: 3.1918353909465 | D65: 1+0.15108547389644i | E65: 1.01134901 | F65: 0.1499513664 | G65: 1+0.000377713684741101i | H65: 1.000000071 | I65: 0.0003777136668 | J65: 1-0.000889801205502991i | K65: 1.000000396 | L65: -0.0008898009707 | M65: 0.999999357544316+0.00150981550302434i | N65: 1.000000497 | O65: 0.001509815326 | P65: 3.11964221637984-0.477786198428092i | Q65: 3.156017619 | R65: -0.151973269 | S65: 6000 | T65: 1+762.981643177024i | U65: 762.9822985 | V65: 1.56948568 | W65: 1+7.55427369482202i | X65: 7.620173952 | Y65: 1.439186113 | Z65: 1+0.0760976446405279i | AA65: 1.002891246 | AB65: 0.07595126286 | AC65: 58.4849703941009-12.2365800025439i | AD65: 59.75136527 | AE65: -0.2062508294 | AF65: 176.605713623986-66.1170632298223i | AG65: 45.50974504 | AH65: -20.52472896 | AI65: 159.475271 | AL65: 35.52695666 | AM65: -11.81730205 | AO65: 72.10479792 | AP65: -8.707426912 | AV65: 0 | AW65: 0 | AX65: 0 | AY65: 0
B66: 131.83 | C66: 3.1918353909465 | D66: 1+0.165662463809097i | E66: 1.013629149 | F66: 0.1641714564 | G66: 1+0.000414156159522743i | H66: 1.000000086 | I66: 0.0004141561358 | J66: 1-0.000975650777022867i | K66: 1.000000476 | L66: -0.0009756504675 | M66: 0.999999227593382+0.00165548513485568i | N66: 1.000000598 | O66: 0.001655484901 | P66: 3.1054295952916-0.521529344665215i | Q66: 3.1489182 | R66: -0.1663884356 | S66: 6000 | T66: 1+836.59544223594i | U66: 836.5960399 | V66: 1.569601006 | W66: 1+8.28312319045485i | X66: 8.343268531 | Y66: 1.45065038 | Z66: 1+0.0834396780583947i | AA66: 1.003475052 | AB66: 0.08324684227 | AC66: 58.4152337820424-11.9750542720295i | AD66: 59.63003826 | AE66: -0.202197469 | AF66: 175.15905359581-67.6529465343974i | AG66: 45.47252934 | AH66: -21.11841672 | AI66: 158.8815833 | AL66: 35.50930176 | AM66: -11.5850616 | AO66: 72.08523712 | AP66: -9.533355119 | AV66: 0 | AW66: 0 | AX66: 0 | AY66: 0
B67: 144.54 | C67: 3.1918353909465 | D67: 1+0.181634320859947i | E67: 1.016361661 | F67: 0.1796755166 | G67: 1+0.000454085802149869i | H67: 1.000000103 | I67: 0.0004540857709 | J67: 1-0.00106971526443818i | K67: 1.000000572 | L67: -0.001069714856 | M67: 0.99999907147504+0.00181509384352606i | N67: 1.000000719 | O67: 0.001815093536 | P67: 3.08852307375775-0.568740249472049i | Q67: 3.140452236 | R67: -0.1821062392 | S67: 6000 | T67: 1+917.253320342735i | U67: 917.2538654 | V67: 1.569706116 | W67: 1+9.08171604299737i | X67: 9.136605841 | Y67: 1.461126784 | Z67: 1+0.0914842681222814i | AA67: 1.004175966 | AB67: 0.0912303202 | AC67: 58.332299220799-11.81298319894i | AD67: 59.51641542 | AE67: -0.199809652 | AF67: 173.442133077205-69.6605975909543i | AG67: 45.43257918 | AH67: -21.8821687 | AI67: 158.1178313 | AL67: 35.49273533 | AM67: -11.44824976 | AO67: 72.06185339 | AP67: -10.43391893 | AV67: 0 | AW67: 0 | AX67: 0 | AY67: 0
B68: 158.49 | C68: 3.1918353909465 | D68: 1+0.199164407866979i | E68: 1.019640359 | F68: 0.1965919769 | G68: 1+0.000497911019667446i | H68: 1.000000124 | I68: 0.0004979109785 | J68: 1-0.00117295677501596i | K68: 1.000000688 | L68: -0.001172956237 | M68: 0.99999888359644+0.00199027413353013i | N68: 1.000000864 | O68: 0.001990273728 | P68: 3.06841632776937-0.61962656995994i | Q68: 3.130353949 | R68: -0.1992572959 | S68: 6000 | T68: 1+1005.78025972824i | U68: 1005.780757 | V68: 1.569802074 | W68: 1+9.95822039334893i | X68: 10.00830422 | Y68: 1.470712297 | Z68: 1+0.100313696241182i | AA68: 1.005018825 | AB68: 0.09997923317 | AC68: 58.2333230519183-11.7480472666802i | AD68: 59.40653607 | AE68: -0.1990690107 | AF68: 171.404677041194-72.1308142725171i | AG68: 45.38855352 | AH68: -22.82241624 | AI68: 157.1775838 | AL68: 35.4766846 | AM68: -11.40581415 | AO68: 72.03387846 | AP68: -11.41660209 | AV68: 0 | AW68: 0 | AX68: 0 | AY68: 0
B69: 173.78 | C69: 3.1918353909465 | D69: 1+0.218378388536334i | E69: 1.023566862 | F69: 0.2150030309 | G69: 1+0.000545945971340835i | H69: 1.000000149 | I69: 0.0005459459171 | J69: 1-0.00128611539126932i | K69: 1.000000827 | L69: -0.001286114682 | M69: 0.999998657800516+0.0021822817775561i | N69: 1.000001039 | O69: 0.002182281242 | P69: 3.04459068169542-0.67420077231859i | Q69: 3.118345571 | R69: -0.2179254809 | S69: 6000 | T69: 1+1102.81086210849i | U69: 1102.811315 | V69: 1.569889553 | W69: 1+10.9189194268167i | X69: 10.96461588 | Y69: 1.479466951 | Z69: 1+0.109991255806629i | AA69: 1.006030853 | AB69: 0.1095508871 | AC69: 58.115244839596-11.7789394026359i | AD69: 59.29692316 | AE69: -0.1999734898 | AF69: 168.995762860731-75.0433920998599i | AG69: 45.33912801 | AH69: -23.94384729 | AI69: 156.0561527 | AL69: 35.46064318 | AM69: -11.45763698 | AO69: 72.00049437 | AP69: -12.4862103 | AV69: 0 | AW69: 0 | AX69: 0 | AY69: 0
B70: 190.55 | C70: 3.1918353909465 | D70: 1+0.239452192056614i | E70: 1.028269105 | F70: 0.2350269437 | G70: 1+0.000598630480141535i | H70: 1.000000179 | I70: 0.0005986304086 | J70: 1-0.00141022722871658i | K70: 1.000000994 | L70: -0.001410226294 | M70: 0.999998386253222+0.00239287485736744i | N70: 1.000001249 | O70: 0.002392874152 | P70: 3.01641629175795-0.732515615811699i | Q70: 3.104085433 | R70: -0.2382314137 | S70: 6000 | T70: 1+1209.2335698859i | U70: 1209.233983 | V70: 1.569969357 | W70: 1+11.9726096028307i | X70: 12.01429901 | Y70: 1.487465766 | Z70: 1+0.120605557566769i | AA70: 1.007246594 | AB70: 0.1200258445 | AC70: 57.9742297094541-11.9047045717734i | AD70: 59.18389394 | AE70: -0.2025294349 | AF70: 166.154028997266-78.3765733956923i | AG70: 45.28274403 | AH70: -25.2537364 | AI70: 154.7462636 | AL70: 35.44407071 | AM70: -11.60408185 | AO70: 71.96068286 | AP70: -13.64965455 | AV70: 0 | AW70: 0 | AX70: 0 | AY70: 0
B71: 208.93 | C71: 3.1918353909465 | D71: 1+0.262549181245806i | E71: 1.033891712 | F71: 0.2567543407 | G71: 1+0.000656372953114515i | H71: 1.000000215 | I71: 0.0006563728589 | J71: 1-0.0015462543946248i | K71: 1.000001195 | L71: -0.001546253162 | M71: 0.999998059922449+0.00262368587745883i | N71: 1.000001502 | O71: 0.002623684947 | P71: 2.98323071317467-0.794459479033117i | Q71: 3.087204456 | R71: -0.2602679059 | S71: 6000 | T71: 1+1325.87336529132i | U71: 1325.873742 | V71: 1.570042107 | W71: 1+13.1274590622903i | X71: 13.16549207 | Y71: 1.494766957 | Z71: 1+0.132238882930595i | AA71: 1.008705667 | AB71: 0.1314760451 | AC71: 57.8059621453891-12.1247072246103i | AD71: 59.06384499 | AE71: -0.2067511949 | AF71: 162.815933091644-82.0952935517422i | AG71: 45.21774216 | AH71: -26.75822343 | AI71: 153.2417766 | AL71: 35.42643431 | AM71: -11.84597088 | AO71: 71.91331739 | AP71: -14.91225255 | AV71: 0 | AW71: 0 | AX71: 0 | AY71: 0
B72: 229.09 | C72: 3.1918353909465 | D72: 1+0.287882984404354i | E72: 1.040613575 | F72: 0.2803035317 | G72: 1+0.000719707461010885i | H72: 1.000000259 | I72: 0.0007197073367 | J72: 1-0.00169545502926624i | K72: 1.000001437 | L72: -0.001695453405 | M72: 0.999997667456529+0.0028768496514002i | N72: 1.000001806 | O72: 0.002876848425 | P72: 2.94426093726189-0.859899441170989i | Q72: 3.067262544 | R72: -0.2841561262 | S72: 6000 | T72: 1+1453.80907124199i | U72: 1453.809415 | V72: 1.570108479 | W72: 1+14.3941492202177i | X72: 14.42884374 | Y72: 1.501435102 | Z72: 1+0.144998830663716i | AA72: 1.010457649 | AB72: 0.1439952765 | AC72: 57.6051251993572-12.4389009843802i | AD72: 58.9328152 | AE72: -0.2126686535 | AF72: 158.908315905298-86.1579852382912i | AG72: 45.14216278 | AH72: -28.46596303 | AI72: 151.534037 | AL72: 35.40714375 | AM72: -12.18501628 | AO72: 71.85702857 | AP72: -16.28094675 | AV72: 0 | AW72: 0 | AX72: 0 | AY72: 0
B73: 251.19 | C73: 3.1918353909465 | D73: 1+0.315654663462088i | E73: 1.048636194 | F73: 0.305756281 | G73: 1+0.00078913665865522i | H73: 1.000000311 | I73: 0.0007891364948 | J73: 1-0.00185901326466187i | K73: 1.000001728 | L73: -0.001859011123 | M73: 0.99999719571484+0.00315437541549267i | N73: 1.000002171 | O73: 0.003154373799 | P73: 2.89872747972195-0.928479910839425i | Q73: 3.043796305 | R73: -0.3099805295 | S73: 6000 | T73: 1+1594.05605048354i | U73: 1594.056364 | V73: 1.570168996 | W73: 1+15.7827331731044i | X73: 15.81438163 | Y73: 1.507520529 | Z73: 1+0.158986670192583i | AA73: 1.01255951 | AB73: 0.1576670702 | AC73: 57.3657599336053-12.8471056074688i | AD73: 58.78672074 | AE73: -0.2203155377 | AF73: 154.359425245707-90.5032137276495i | AG73: 45.05389641 | AH73: -30.38372654 | AI73: 149.6162735 | AL73: 35.3855847 | AM73: -12.62315047 | AO73: 71.79032125 | AP73: -17.76057607 | AV73: 0 | AW73: 0 | AX73: 0 | AY73: 0
B74: 275.42 | C74: 3.1918353909465 | D74: 1+0.34610297946068i | E74: 1.058200015 | F74: 0.3331988765 | G74: 1+0.0008652574486517i | H74: 1.000000374 | I74: 0.0008652572327 | J74: 1-0.00203833525758657i | K74: 1.000002077 | L74: -0.002038332435 | M74: 0.999996628614382+0.00345864913784383i | N74: 1.00000261 | O74: 0.003458647007 | P74: 2.84579407762153-0.999721448869888i | Q74: 3.016286941 | R74: -0.3378305987 | S74: 6000 | T74: 1+1747.82004627643i | U74: 1747.820332 | V74: 1.570224186 | W74: 1+17.305148973034i | X74: 17.33401803 | Y74: 1.51307425 | Z74: 1+0.174322658961109i | AA74: 1.015080484 | AB74: 0.1725883771 | AC74: 57.0807938673665-13.3493337442229i | AD74: 58.62100084 | AE74: -0.2297383128 | AF74: 149.094569861465-95.0543488572298i | AG74: 44.95051765 | AH74: -32.51930321 | AI74: 147.4806968 | AL74: 35.36106458 | AM74: -13.16303572 | AO74: 71.71146262 | AP74: -19.3562675 | AV74: 0 | AW74: 0 | AX74: 0 | AY74: 0
B75: 302 | C75: 3.1918353909465 | D75: 1+0.379504392553646i | E75: 1.069590381 | F75: 0.3627138668 | G75: 1+0.000948760981384115i | H75: 1.00000045 | I75: 0.0009487606967 | J75: 1-0.00223504918956918i | K75: 1.000002498 | L75: -0.002235045468 | M75: 0.999995946488889+0.00379243351836771i | N75: 1.000003138 | O75: 0.003792430709 | P75: 2.78459444877784-1.0729761758369i | Q75: 2.984165565 | R75: -0.3677925823 | S75: 6000 | T75: 1+1916.49718239591i | U75: 1916.497443 | V75: 1.570274542 | W75: 1+18.9752196276823i | X75: 19.00155151 | Y75: 1.518144722 | Z75: 1+0.191146042430669i | AA75: 1.018104518 | AB75: 0.1888678254 | AC75: 56.7418922747374-13.9457017803741i | AD75: 58.43051375 | AE75: -0.240997645 | AF75: 143.039752475716-99.715822344638i | AG75: 44.82925239 | AH75: -34.88111064 | AI75: 145.1188894 | AL75: 35.3327941 | AM75: -13.80814793 | AO75: 71.61846784 | AP75: -21.0729627 | AV75: 0 | AW75: 0 | AX75: 0 | AY75: 0
B76: 331.13 | C76: 3.1918353909465 | D76: 1+0.416110230153276i | E76: 1.083119441 | F76: 0.3943169026 | G76: 1+0.00104027557538319i | H76: 1.000000541 | I76: 0.0010402752 | J76: 1-0.00245063522563591i | K76: 1.000003003 | L76: -0.00245063032 | M76: 0.999995126796582+0.00415824010244074i | N76: 1.000003772 | O76: 0.0041582364 | P76: 2.71439750939349-1.14726250393152i | Q76: 2.94689075 | R76: -0.3998854942 | S76: 6000 | T76: 1+2101.35666227404i | U76: 2101.3569 | V76: 1.570320444 | W76: 1+20.8055115076638i | X76: 20.82952974 | Y76: 1.5227691 | Z76: 1+0.20958340738433i | AA76: 1.02172658 | AB76: 0.206593164 | AC76: 56.3400401157399-14.6349649095055i | AD76: 58.2098129 | AE76: -0.2541445073 | AF76: 136.139118082265-104.361927795209i | AG76: 44.68720478 | AH76: -37.47315876 | AI76: 142.5268412 | AL76: 35.29992407 | AM76: -14.56140765 | AO76: 71.50929025 | AP76: -22.9117511 | AV76: 0 | AW76: 0 | AX76: 0 | AY76: 0
B77: 363.08 | C77: =COMPLEX(Am*Afb,0) -> 3.1918353909465 | D77: =IMSUM(COMPLEX(1,0),IMDIV(COMPLEX(0,2*PI()*B77),COMPLEX(2*PI()*PS_Pole1,0))) -> 1+0.456259784266152i | E77: 1.099169228 | F77: 0.4280473553 | G77: =IMSUM(COMPLEX(1,0),IMDIV(COMPLEX(0,2*PI()*B77),COMPLEX(2*PI()*PS_Zero1,0))) -> 1+0.00114064946066538i | H77: 1.000000651 | I77: 0.001140648966 | J77: =IF(VIN_nom>Vout, 1,IMSUB(COMPLEX(1,0),IMDIV(COMPLEX(0,2*PI()*B77),COMPLEX(2*PI()*PS_RHPZ,0)))) -> 1-0.00268709158857211i | K77: 1.00000361 | L77: -0.002687085121 | M77: =IMSUM(COMPLEX(1,0),IMDIV(COMPLEX(0,2*PI()*B77),COMPLEX(Q*(2*PI()*PS_Pole2/2),0)),IMDIV(IMPOWER(COMPLEX(0,2*PI()*B77),2),IMPOWER(COMPLEX(2*PI()*PS_Pole2/2,0),2))) -> 0.999994141018382+0.00455945947632102i | N77: 1.000004535 | O77: 0.004559454595 | P77: 2.63445967740478-1.22148687581171i | Q77: 2.903860875 | R77: -0.4341532461 | S77: =COMPLEX(AEA,0) -> 6000 | T77: =IMSUM(COMPLEX(1,0),IMDIV(COMPLEX(0,2*PI()*B77),COMPLEX(2*PI()*EA_Pole1,0))) -> 1+2304.11191054407i | U77: 2304.112128 | V77: 1.57036232 | W77: =IMSUM(COMPLEX(1,0),IMDIV(COMPLEX(0,2*PI()*B77),COMPLEX(2*PI()*EA_Zero1,0))) -> 1+22.8129892133076i | X77: 22.83489603 | Y77: 1.526989694 | Z77: =IMSUM(COMPLEX(1,0),IMDIV(COMPLEX(0,2*PI()*B77),COMPLEX(2*PI()*EA_Pole2,0))) -> 1+0.22980564597923i | AA77: 1.026065609 | AB77: 0.2258837909 | AC77: 55.8643307550038-15.416195737127i | AD77: 57.95241619 | AE77: -0.2692564172 | AF77: =IMPRODUCT(P77,AC77) -> 128.341646011416-108.850892891682i | AG77: 44.52094706 | AH77: -40.30240497 | AI77: =IF(AH77>0,AH77-180,AH77+180) -> 139.697595 | AL77: =20*LOG10(IMABS(AC77)) -> 35.26143095 | AM77: =(180/PI())*IMARGUMENT(AC77) -> -15.42725631 | AO77: =20*LOG10(IMABS(IMPRODUCT(COMPLEX(Am/Afb,0),P77))) -> 71.38152565 | AP77: =180/PI()*IMARGUMENT(IMPRODUCT(COMPLEX(Am/Afb,0),P77)) -> -24.87514866 | AV77: =SUM((AG78<0)*(AG77>0))*B77 -> 0 | AW77: =IF(AV77>0,AI75,0) -> 0 | AX77: =SUM((AL78<0)*(AL77>0))*B77 -> 0 | AY77: =IF(AX77>0,AM77,0) -> 0
B78: 398.11 | C78: 3.1918353909465 | D78: 1+0.500279780528254i | E78: 1.118159138 | F78: 0.4638714084 | G78: 1+0.00125069945132064i | H78: 1.000000782 | I78: 0.001250698799 | J78: 1-0.00294634249291189i | K78: 1.00000434 | L78: -0.002946333967 | M78: 0.999992955930129+0.00499935664899793i | N78: 1.000005453 | O78: 0.004999350214 | P78: =(IMDIV(IMPRODUCT(C78,G78,J78),IMPRODUCT(D78,M78))) -> 2.54428817723104-1.2942250554979i | Q78: 2.854543891 | R78: -0.4705663938 | S78: 6000 | T78: 1+2526.41289166768i | U78: 2526.41309 | V78: 1.570400509 | W78: 1+25.0139890264127i | X78: 25.03396986 | Y78: 1.530839974 | Z78: 1+0.251977321033358i | AA78: 1.031257761 | AB78: 0.2468388036 | AC78: 55.3030410350911-16.2865065262576i | AD78: 57.65133687 | AE78: -0.2863993384 | AF78: 119.628468657693-113.012147355997i | AG78: 44.32692215 | AH78: -43.37094169 | AI78: 136.6290583 | AL78: 35.21618765 | AM78: -16.40947335 | AO78: 71.23274404 | AP78: -26.96146834 | AV78: 0 | AW78: 0 | AX78: 0 | AY78: 0
B79: 436.52 | C79: 3.1918353909465 | D79: 1+0.548547210058006i | E79: 1.140571805 | F79: 0.501727141 | G79: 1+0.00137136802514501i | H79: 1.00000094 | I79: 0.001371367165 | J79: 1-0.0032306081861945i | K79: 1.000005218 | L79: -0.003230596947 | M79: 0.999991531123982+0.00548169893853601i | N79: 1.000006556 | O79: 0.005481690456 | P79: 2.4436046979634-1.36386332882305i | Q79: 2.798450839 | R79: -0.5090680612 | S79: 6000 | T79: 1+2770.16341079293i | U79: 2770.163591 | V79: 1.570435337 | W79: 1+27.4273605029003i | X79: 27.44558442 | Y79: 1.534352527 | Z79: 1+0.276288312721311i | AA79: 1.037465774 | AB79: 0.26956355 | AC79: 54.6430284180772-17.2417221279915i | AD79: 57.29866959 | AE79: -0.3056463606 | AF79: 110.010608417236-116.657575828191i | AG79: 44.10124441 | AH79: -46.67969788 | AI79: 133.3203021 | AL79: 35.16289077 | AM79: -17.51224649 | AO79: 71.06036318 | AP79: -29.16745139 | AV79: 0 | AW79: 0 | AX79: 0 | AY79: 0
B80: 478.63 | C80: 3.1918353909465 | D80: 1+0.601464196715074i | E80: 1.166944377 | F80: 0.5414954201 | G80: 1+0.00150366049178768i | H80: 1.00000113 | I80: 0.001503659359 | J80: 1-0.00354225693246192i | K80: 1.000006274 | L80: -0.003542242117 | M80: 0.999989818369916+0.00601050481753756i | N80: 1.000007881 | O80: 0.006010493635 | P80: 2.33248160206682-1.4285952103661i | Q80: 2.735206519 | R80: -0.5495444965 | S80: 6000 | T80: 1+3037.39419341112i | U80: 3037.394358 | V80: 1.570467097 | W80: 1+30.0732098357537i | X80: 30.08983134 | Y80: 1.537556387 | Z80: 1+0.302941159895999i | AA80: 1.044879585 | AB80: 0.2941529173 | AC80: 53.8702347086465-18.2753304331027i | AD80: 56.88576175 | AE80: -0.3270636272 | AF80: 99.5432818323511-119.585631292974i | AG80: 43.83987402 | AH80: -50.22594577 | AI80: 129.7740542 | AL80: 35.10007156 | AM80: -18.73936547 | AO80: 70.861812 | AP80: -31.4865803 | AV80: 0 | AW80: 0 | AX80: 0 | AY80: 0
B81: 524.81 | C81: 3.1918353909465 | D81: 1+0.659495696212184i | E81: =IMABS(D81) -> 1.197887546 | F81: =IMARGUMENT(D81) -> 0.5830216412 | G81: 1+0.00164873924053046i | H81: =IMABS(G81) -> 1.000001359 | I81: =IMARGUMENT(G81) -> 0.001648737747 | J81: 1-0.0038840270370126i | K81: =IMABS(J81) -> 1.000007543 | L81: =IMARGUMENT(J81) -> -0.003884007506 | M81: 0.999987758865062+0.00659042064494888i | N81: =IMABS(M81) -> 1.000009476 | O81: =IMARGUMENT(M81) -> 0.006590405904 | P81: 2.21134224445462-1.48654041513419i | Q81: =IMABS(P81) -> 2.664551919 | R81: =IMARGUMENT(P81) -> -0.5918473169 | S81: 6000 | T81: 1+3330.45326587153i | U81: =IMABS(T81) -> 3330.453416 | V81: =IMARGUMENT(T81) -> 1.570496067 | W81: 1+32.9747848106092i | X81: =IMABS(W81) -> 32.98994443 | Y81: =IMARGUMENT(W81) -> 1.540479416 | Z81: 1+0.332170048106092i | AA81: =IMABS(Z81) -> 1.053725268 | AB81: =IMARGUMENT(Z81) -> 0.3207032326 | AC81: =IMPRODUCT(S81,IMDIV(W81,IMPRODUCT(T81,Z81))) -> 52.9694869250772-19.3785962467178i | AD81: =IMABS(AC81) -> 56.40298341 | AE81: =IMARGUMENT(AC81) -> -0.3507198839 | AF81: 88.3265975951961-121.593991601646i | AG81: =20*LOG10(IMABS(AF81)) -> 43.53852527 | AH81: =(180/PI())*IMARGUMENT(AF81) -> -54.00512251 | AI81: 125.9948775 | AL81: 35.02604153 | AM81: -20.09476914 | AO81: 70.63449328 | AP81: -33.91035337 | AV81: 0 | AW81: 0 | AX81: 0 | AY81: 0
B82: 575.44 | C82: 3.1918353909465 | D82: 1+0.723119230632684i | E82: 1.234058921 | F82: 0.6260743039 | G82: 1+0.00180779807658171i | H82: 1.000001634 | I82: 0.001807796107 | J82: 1-0.00425873081339633i | K82: 1.000009068 | L82: -0.004258705067 | M82: 0.999985283058062+0.00722621835698516i | N82: 1.000011392 | O82: 0.007226198925 | P82: 2.08112524024209-1.53578891461141i | Q82: 2.586451209 | R82: -0.6357514118 | S82: 6000 | T82: 1+3651.75211469505i | U82: 3651.752252 | V82: 1.570522486 | W82: 1+36.1559615316342i | X82: 36.16978787 | Y82: 1.54314542 | Z82: 1+0.364215492239419i | AA82: 1.064261681 | AB82: 0.3492824016 | AC82: 51.9257812130095-20.5389529536056i | AD82: 55.84026632 | AE82: -0.3766594674 | AF82: 76.5205576378098-122.491172569371i | AG82: 43.19303542 | AH82: -58.00687051 | AI82: 121.9931295 | AL82: 34.93894962 | AM82: -21.5809978 | AO82: 70.37609535 | AP82: -36.42587272 | AV82: 0 | AW82: 0 | AX82: 0 | AY82: 0
B83: 630.96 | C83: 3.1918353909465 | D83: 1+0.792887720283606i | E83: 1.276193926 | F83: 0.6703891154 | G83: 1+0.00198221930070901i | H83: 1.000001965 | I83: 0.001982216705 | J83: 1-0.00466962462467077i | K83: 1.000010903 | L83: -0.004669590684 | M83: 0.99998230619904+0.00792342335347448i | N83: 1.000013697 | O83: 0.007923397736 | P83: 1.94317963579401-1.57459044461001i | Q83: 2.50105621 | R83: -0.6809998871 | S83: 6000 | T83: 1+4004.08298743221i | U83: 4004.083112 | V83: 1.570546582 | W83: 1+39.6443860141803i | X83: 39.65699613 | Y83: 1.545577422 | Z83: 1+0.399355983218726i | AA83: 1.076793946 | AB83: 0.379951067 | AC83: 50.7240738725774-21.7405964017097i | AD83: 55.18682091 | AE83: -0.4049202266 | AF83: 64.3334520394486-122.115526229271i | AG83: 42.79917658 | AH83: -62.21863941 | AI83: 117.7813606 | AL83: 34.83670754 | AM83: -23.20022002 | AO83: 70.08447859 | AP83: -39.01841938 | AV83: 0 | AW83: 0 | AX83: 0 | AY83: 0
B84: 691.83 | C84: 3.1918353909465 | D84: 1+0.86937921821321i | E84: 1.325073668 | F84: 0.7156376665 | G84: 1+0.00217344804553302i | H84: 1.000002362 | I84: 0.002173444623 | J84: 1-0.00512011285039619i | K84: 1.000013108 | L84: -0.005120068109 | M84: 0.99997872761116+0.00868781218878257i | N84: 1.000016467 | O84: 0.008687778419 | P84: 1.79934848893957-1.60145040357746i | Q84: 2.408796044 | R84: -0.7272720684 | S84: 6000 | T84: 1+4390.36505197671i | U84: 4390.365166 | V84: 1.570568555 | W84: 1+43.4689609106605i | X84: 43.48046185 | Y84: 1.547795463 | Z84: 1+0.437882670645067i | AA84: 1.091669013 | AB84: 0.4127315889 | AC84: 49.351108299517-22.9630930058473i | AD84: 54.43193484 | AE84: -0.4355046811 | AF84: 52.0255875846281-120.351959004707i | AG84: 42.35307603 | AH84: -66.62220026 | AI84: 113.3777997 | AL84: 34.71707544 | AM84: -24.95258019 | AO84: 69.75801013 | AP84: -41.66962008 | AV84: 0 | AW84: 0 | AX84: 0 | AY84: 0
B85: 758.58 | C85: 3.1918353909465 | D85: 1+0.953259742064058i | E85: 1.381558589 | F85: 0.761473368 | G85: 1+0.00238314935516015i | H85: 1.00000284 | I85: 0.002383144844 | J85: 1-0.00561411792789203i | K85: 1.000015759 | L85: -0.005614058946 | M85: 0.99997442472816+0.00952604045815689i | N85: 1.000019798 | O85: 0.009525995941 | P85: 1.6517793940726-1.6152916028971i | Q85: 2.310312128 | R85: -0.7742302781 | S85: 6000 | T85: 1+4813.96169742349i | U85: 4813.961801 | V85: 1.570588598 | W85: 1+47.6629871032029i | X85: 47.67347627 | Y85: 1.549818764 | Z85: 1+0.480131009493568i | AA85: 1.109290668 | AB85: 0.4476264469 | AC85: 47.79558418492-24.1821763735614i | AD85: 53.56487209 | AE85: -0.4683962807 | AF85: 39.8864946483227-117.147426427141i | AG85: 41.8510146 | AH85: -71.19725733 | AI85: 108.8027427 | AL85: 34.57760144 | AM85: -26.83713002 | AO85: 69.3954227 | AP85: -44.36012731 | AV85: 0 | AW85: 0 | AX85: 0 | AY85: 0
B86: 831.76 | C86: 3.1918353909465 | D86: 1+1.04522044221994i | E86: 1.446542697 | F86: 0.8075048638 | G86: 1+0.00261305110554984i | H86: 1.000003414 | I86: 0.002613045158 | J86: 1-0.00615571031098035i | K86: 1.000018946 | L86: -0.00615563256 | M86: 0.999969252235662+0.0104450149113825i | N86: 1.000023802 | O86: 0.01044495623 | P86: 1.50292792267525-1.61553540458191i | Q86: 2.206523733 | R86: -0.8214924074 | S86: 6000 | T86: 1+5278.36323321069i | U86: 5278.363328 | V86: 1.570606874 | W86: 1+52.2610221109969i | X86: 52.2705886 | Y86: 1.551663942 | Z86: 1+0.526449113417661i | AA86: 1.130110025 | AB86: 0.4845823266 | AC86: 46.0507512625363-25.3688385311893i | AD86: 52.57613204 | AE86: -0.5035252587 | AF86: 28.2267031123803-112.524154866587i | AG86: 41.28994471 | AH86: -75.91792005 | AI86: 104.08208 | AL86: 34.41577265 | AM86: -28.8498722 | AO86: 68.9961816 | AP86: -47.06804785 | AV86: 0 | AW86: 0 | AX86: 0 | AY86: 0
B87: 912.01 | C87: 3.1918353909465 | D87: 1+1.14606556640017i | E87: 1.521008311 | F87: 0.853355381 | G87: 1+0.00286516391600043i | H87: 1.000004105 | I87: 0.002865156076 | J87: 1-0.006749626527745i | K87: 1.000022778 | L87: -0.006749524032 | M87: 0.999963032789329+0.011452772493664i | N87: 1.000028616 | O87: 0.01145269513 | P87: 1.35526201688902-1.60217050777992i | Q87: 2.098496002 | R87: -0.8686924441 | S87: 6000 | T87: 1+5787.63111032086i | U87: 5787.631197 | V87: 1.570623545 | W87: 1+57.3032783200085i | X87: 57.31200316 | Y87: 1.553347089 | Z87: 1+0.577242060123162i | AA87: 1.154646438 | AB87: 0.523517615 | AC87: 44.1143485019464-26.4910866640928i | AD87: 51.45729702 | AE87: -0.5407940701 | AF87: 17.3432631522416-106.581071681704i | AG87: 40.66710231 | AH87: -80.75762854 | AI87: 99.24237146 | AL87: 34.22893939 | AM87: -30.9852178 | AO87: 68.56017247 | AP87: -49.77241074 | AV87: 0 | AW87: 0 | AX87: 0 | AY87: 0
B88: 1000 | C88: 3.1918353909465 | D88: 1+1.25663706143592i | E88: 1.605969086 | F88: 0.8986370931 | G88: 1+0.0031415926535898i | H88: 1.000004935 | I88: 0.003141582318 | J88: 1-0.0074008251310238i | K88: 1.000027386 | L88: -0.007400690016 | M88: 0.999955555555556+0.0125577268820123i | N88: 1.000034404 | O88: 0.0125576249 | P88: 1.21123055719835-1.5757508086265i | Q88: 1.98747832 | R88: -0.9154538257 | S88: 6000 | T88: 1+6346.01716025139i | U88: 6346.017239 | V88: 1.570638748 | W88: 1+62.8318530717959i | X88: 62.83981032 | Y88: 1.554882176 | Z88: 1+0.632933915333344i | AA88: 1.183471732 | AB88: 0.5642842699 | AC88: 41.9915505366568-27.5139902405788i | AD88: 50.20268893 | AE88: -0.5800408414 | AF88: 7.50625678400382-99.4940054434637i | AG88: 39.98058758 | AH88: -85.68553271 | AI88: 94.31446729 | AL88: 34.01453958 | AM88: -33.23389216 | AO88: 68.08805754 | AP88: -52.45164055 | AV88: 0 | AW88: 0 | AX88: 0 | AY88: 0
B89: 1096.5 | C89: 3.1918353909465 | D89: 1+1.37790253786448i | E89: 1.702532057 | F89: 0.9430027768 | G89: 1+0.00344475634466121i | H89: 1.000005933 | I89: 0.003444742719 | J89: 1-0.00811500475616759i | K89: 1.000032926 | L89: -0.00811482663 | M89: 0.9999465639+0.0137695475261265i | N89: 1.000041365 | O89: 0.01376941308 | P89: 1.07299228463445-1.53733114849984i | Q89: 1.874753185 | R89: -0.9614422738 | S89: 6000 | T89: 1+6958.40781621564i | U89: 6958.407888 | V89: 1.570652616 | W89: 1+68.8951268932242i | X89: 68.90238392 | Y89: 1.556282531 | Z89: 1+0.694012038163011i | AA89: 1.217231576 | AB89: 0.6066958826 | AC89: 39.6945686259646-28.4022373884701i | AD89: 48.80928054 | AE89: -0.6210659671 | AF89: -1.07167834682912-91.4990783591444i | AG89: 39.22893012 | AH89: -90.67104325 | AI89: 89.32895675 | AL89: 33.77004812 | AM89: -35.58445871 | AO89: 67.58089154 | AP89: -55.08658453 | AV89: 0 | AW89: 0 | AX89: 0 | AY89: 0
B90: 1202.3 | C90: 3.1918353909465 | D90: 1+1.5108547389644i | E90: 1.811817331 | F90: 0.9861169815 | G90: 1+0.00377713684741101i | H90: 1.000007133 | I90: 0.003777118885 | J90: 1-0.00889801205502991i | K90: 1.000039587 | L90: -0.008897777234 | M90: 0.999935754431556+0.0150981550302434i | N90: 1.000049732 | O90: 0.01509797779 | P90: 0.94242389426658-1.4883955739824i | Q90: 1.761670849 | R90: -1.006335618 | S90: 6000 | T90: 1+7629.81643177024i | U90: 7629.816497 | V90: 1.570665262 | W90: 1+75.5427369482202i | X90: 75.54935543 | Y90: 1.55755956 | Z90: 1+0.760976446405279i | AA90: 1.256616549 | AB90: 0.6504891025 | AC90: 37.2453280451363-29.1214198559587i | AD90: 47.27865856 | AE90: -0.6635948046 | AF90: -8.24330532215849-82.8805033211281i | AG90: 38.41179828 | AH90: -95.67996528 | AI90: 84.32003472 | AL90: 33.49330292 | AM90: -38.02118161 | AO90: 67.0405049 | AP90: -57.65878366 | AV90: 0 | AW90: =IF(AV90>0,AI90,0) -> 0 | AX90: 0 | AY90: 0
B91: 1318.3 | C91: 3.1918353909465 | D91: 1+1.65662463809097i | E91: 1.935046561 | F91: 1.02770682 | G91: 1+0.00414156159522742i | H91: 1.000008576 | I91: 0.004141537916 | J91: 1-0.00975650777022867i | K91: 1.000047594 | L91: -0.009756198216 | M91: 0.999922759338222+0.0165548513485568i | N91: 1.000059792 | O91: 0.0165546177 | P91: 0.820911595501375-1.43069700858474i | Q91: 1.649481669 | R91: -1.049876098 | S91: 6000 | T91: 1+8365.9544223594i | U91: 8365.954482 | V91: 1.570676795 | W91: 1+82.8312319045485i | X91: 82.83726806 | Y91: 1.558724172 | Z91: 1+0.834396780583947i | AA91: 1.302389338 | AB91: 0.6953655563 | AC91: 34.6733307639125-29.641407163112i | AD91: 45.61636641 | AE91: -0.7073181786 | AF91: -13.9441332797563-73.940005448775i | AG91: 37.52936364 | AH91: -100.6798158 | AI91: 79.32018418 | AL91: 33.18241377 | AM91: -40.5263464 | AO91: 66.46895942 | AP91: -60.15346942 | AV91: 0 | AW91: 0 | AX91: 0 | AY91: 0
B92: 1445.4 | C92: 3.1918353909465 | D92: 1+1.81634320859947i | E92: 2.073427754 | F92: 1.067525775 | G92: 1+0.00454085802149868i | H92: 1.00001031 | I92: 0.004540826812 | J92: 1-0.0106971526443818i | K92: 1.000057213 | L92: -0.01069674465 | M92: 0.999907147504+0.0181509384352606i | N92: 1.000071878 | O92: 0.01815063048 | P92: 0.709444958563852-1.36617005656437i | Q92: 1.539393638 | R92: -1.091832323 | S92: 6000 | T92: 1+9172.53320342735i | U92: 9172.533258 | V92: 1.570687306 | W92: 1+90.8171604299737i | X92: 90.82266583 | Y92: 1.559785637 | Z92: 1+0.914842681222814i | AA92: 1.355336538 | AB92: 0.7409552202 | AC92: 32.0171616377117-29.9383163095452i | AD92: 43.83379316 | AE92: -0.7518568889 | AF92: -18.1864173746548-64.98047509932i | AG92: 36.58317483 | AH92: -105.6356106 | AI92: 74.36438941 | AL92: 32.83618108 | AM92: -43.07822653 | AO92: 65.86900329 | AP92: -62.55738406 | AV92: 0 | AW92: 0 | AX92: 0 | AY92: 0
B93: 1584.9 | C93: 3.1918353909465 | D93: 1+1.99164407866979i | E93: 2.228597347 | F93: 1.105471931 | G93: 1+0.00497911019667447i | H93: 1.000012396 | I93: 0.004979069051 | J93: 1-0.0117295677501596i | K93: 1.000068789 | L93: -0.01172902987 | M93: 0.999888359644+0.0199027413353013i | N93: 1.000086422 | O93: 0.01990233532 | P93: 0.608313399979361-1.29660300664972i | Q93: 1.432209674 | R93: -1.132124227 | S93: 6000 | T93: 1+10057.8025972824i | U93: 10057.80265 | V93: 1.570696901 | W93: 1+99.5822039334893i | X93: 99.58722478 | Y93: 1.560754709 | Z93: 1+1.00313696241182i | AA93: 1.416433467 | AB93: 0.786964187 | AC93: 29.314647402232-29.9972516659788i | AD93: 41.94262343 | AE93: -0.7969063791 | AF93: -21.0620338708885-56.2571901115785i | AG93: 35.57324388 | AH93: -110.5253123 | AI93: 69.47468773 | AL93: 32.45311182 | AM93: -45.65937219 | AO93: 65.2421416 | AP93: -64.86594008 | AV93: 0 | AW93: 0 | AX93: 0 | AY93: 0
B94: 1737.8 | C94: 3.1918353909465 | D94: 1+2.18378388536334i | E94: 2.401855961 | F94: 1.141375042 | G94: 1+0.00545945971340835i | H94: 1.000014903 | I94: 0.005459405473 | J94: 1-0.0128611539126932i | K94: 1.000082701 | L94: -0.01286044486 | M94: 0.999865780051556+0.021822817775561i | N94: 1.000103901 | O94: 0.02182228256 | P94: 0.517738531950333-1.22389123323831i | Q94: 1.328895383 | R94: -1.170598364 | S94: 6000 | T94: 1+11028.1086210849i | U94: 11028.10867 | V94: 1.570705649 | W94: 1+109.189194268167i | X94: 109.1937734 | Y94: 1.561638167 | Z94: 1+1.09991255806629i | AA94: 1.486542174 | AB94: 0.8329416985 | AC94: 26.6147561208965-29.8125819898595i | AD94: 39.96417506 | AE94: -0.8420091805 | AF94: -22.7078729753383-48.0086891242197i | AG94: 34.5032329 | AH94: -115.3139181 | AI94: 64.68608188 | AL94: 32.03341705 | AM94: -48.24357235 | AO94: 64.59182539 | AP94: -67.07034577 | AV94: 0 | AW94: 0 | AX94: 0 | AY94: 0
B95: 1905.5 | C95: 3.1918353909465 | D95: 1+2.39452192056614i | E95: 2.594944167 | F95: 1.175193261 | G95: 1+0.00598630480141535i | H95: 1.000017918 | I95: 0.005986233295 | J95: 1-0.0141022722871658i | K95: 1.000099432 | L95: -0.01410133754 | M95: 0.999838625322222+0.0239287485736744i | N95: 1.000124923 | O95: 0.02392804297 | P95: 0.437396661286855-1.14961406921311i | Q95: 1.230011523 | R95: -1.207236409 | S95: 6000 | T95: 1+12092.335698859i | U95: 12092.33574 | V95: 1.57071363 | W95: 1+119.726096028307i | X95: 119.7302722 | Y95: 1.562444123 | Z95: 1+1.20605557566769i | AA95: 1.566706754 | AB95: 0.8785324696 | AC95: 23.9608085463103-29.3893361047088i | AD95: 37.91903774 | AE95: -0.8868019764 | AF95: -23.3060166109164-40.4004801041969i | AG95: 33.37532976 | AH95: -119.9795616 | AI95: 60.0204384 | AL95: 31.57714616 | AM95: -50.81001051 | AO95: 63.92019315 | AP95: -69.16955109 | AV95: 0 | AW95: 0 | AX95: 0 | AY95: 0
B96: 2089.3 | C96: 3.1918353909465 | D96: 1+2.62549181245806i | E96: 2.80948523 | F96: 1.206879689 | G96: 1+0.00656372953114515i | H96: 1.000021541 | I96: 0.006563635273 | J96: 1-0.015462543946248i | K96: 1.000119538 | L96: -0.01546131181 | M96: 0.999805992244889+0.0262368587745883i | N96: 1.000150186 | O96: 0.02623592865 | P96: 0.366831290053201-1.07522914331418i | Q96: 1.136082262 | R96: -1.242013294 | S96: 6000 | T96: 1+13258.7336529132i | U96: 13258.73369 | V96: 1.570720905 | W96: 1+131.274590622903i | X96: 131.2783994 | Y96: 1.563178854 | Z96: 1+1.32238882930595i | AA96: 1.657924068 | AB96: 0.9233344096 | AC96: 21.3967384057073-28.7428592399906i | AD96: 35.83256022 | AE96: -0.9308764607 | AF96: -23.0561667647187-33.5501768405096i | AG96: 32.19375237 | AH96: -124.4974123 | AI96: 55.50258771 | AL96: 31.08555679 | AM96: -53.33529244 | AO96: 63.23020513 | AP96: -71.16211984 | AV96: 0 | AW96: 0 | AX96: 0 | AY96: 0
B97: 2290.9 | C97: 3.1918353909465 | D97: 1+2.87882984404354i | E97: 3.047566451 | F97: 1.236472338 | G97: 1+0.00719707461010885i | H97: 1.000025899 | I97: 0.00719695035 | J97: 1-0.0169545502926624i | K97: 1.000143718 | L97: -0.01695292601 | M97: 0.999766745652889+0.028768496514002i | N97: 1.00018057 | O97: 0.02876727032 | P97: 0.305302183761613-1.00184114154935i | Q97: 1.047327597 | R97: -1.274995584 | S97: 6000 | T97: 1+14538.0907124199i | U97: 14538.09075 | V97: 1.570727542 | W97: 1+143.941492202177i | X97: 143.9449658 | Y97: 1.563849171 | Z97: 1+1.44998830663716i | AA97: 1.761381869 | AB97: 0.9670432244 | AC97: 18.9570067342225-27.8960608038886i | AD97: 33.72770838 | AE97: -0.9739215949 | AF97: -22.1598058469561-27.5086375487461i | AG97: 30.96138763 | AH97: -128.8534628 | AI97: 51.14653718 | AL97: 30.55973668 | AM97: -55.80159697 | AO97: 62.52366049 | AP97: -73.05186585 | AV97: 0 | AW97: 0 | AX97: 0 | AY97: 0
B98: 2511.9 | C98: 3.1918353909465 | D98: 1+3.15654663462088i | E98: 3.311160923 | F98: 1.263997096 | G98: 1+0.0078913665865522i | H98: 1.000031136 | I98: 0.007891202785 | J98: 1-0.0185901326466187i | K98: 1.000172782 | L98: -0.01858799155 | M98: 0.999719571484+0.0315437541549267i | N98: 1.000217091 | O98: 0.03154213775 | P98: 0.252058349776542-0.93041177615933i | Q98: 0.963949939 | R98: -1.306236022 | S98: 6000 | T98: 1+15940.5605048354i | U98: 15940.56054 | V98: 1.570733594 | W98: 1+157.827331731044i | X98: 157.8304997 | Y98: 1.564460373 | Z98: 1+1.58986670192583i | AA98: 1.878210885 | AB98: 1.009337564 | AC98: 16.6720139987071-26.8789515010373i | AD98: 31.62963934 | AE98: -1.015610785 | AF98: -20.8061726714151-22.2869023157655i | AG98: 29.6829744 | AH98: -133.0320227 | AI98: 46.96797729 | AL98: 30.0018848 | AM98: -58.19021159 | AO98: 61.80309915 | AP98: -74.84181111 | AV98: 0 | AW98: 0 | AX98: 0 | AY98: 0
B99: 2754.2 | C99: 3.1918353909465 | D99: 1+3.4610297946068i | E99: 3.602600067 | F99: 1.289524938 | G99: 1+0.008652574486517i | H99: 1.000037433 | I99: 0.008652358565 | J99: 1-0.0203833525758657i | K99: 1.000207719 | L99: -0.02038053031 | M99: 0.999662861438222+0.0345864913784383i | N99: 1.000260997 | O99: 0.03458436062 | P99: 0.206255756591128-0.861624122056254i | Q99: 0.8859670224 | R99: -1.33583747 | S99: 6000 | T99: 1+17478.2004627643i | U99: 17478.20049 | V99: 1.570739113 | W99: 1+173.05148973034i | X99: 173.054379 | Y99: 1.565017764 | Z99: 1+1.74322658961109i | AA99: 2.00968628 | AB99: 1.049978034 | AC99: 14.5619725672493-25.7247036847291i | AD99: 29.5603015 | AE99: -1.055699383 | AF99: -19.1615345581947-17.8528150502398i | AG99: 28.36252832 | AH99: -137.0249682 | AI99: 42.97503179 | AL99: 29.41417719 | AM99: -60.48711905 | AO99: 61.07036068 | AP99: -76.53784916 | AV99: 0 | AW99: 0 | AX99: 0 | AY99: 0
B100: 3020 | C100: 3.1918353909465 | D100: 1+3.79504392553646i | E100: 3.92458385 | F100: 1.313151231 | G100: 1+0.00948760981384115i | H100: 1.000045006 | I100: 0.009487325154 | J100: 1-0.0223504918956918i | K100: 1.000249741 | L100: -0.02234677132 | M100: 0.999594648888889+0.0379243351836771i | N100: 1.000313809 | O100: 0.03792152604 | P100: 0.167040548307104-0.795937984494134i | Q100: 0.8132772098 | R100: -1.363932203 | S100: 6000 | T100: 1+19164.9718239591i | U100: 19164.97185 | V100: 1.570744148 | W100: 1+189.752196276823i | X100: 189.7548313 | Y100: 1.565526344 | Z100: 1+1.91146042430669i | AA100: 2.157239197 | AB100: 1.088792698 | AC100: 12.6380512974656-24.4671063422152i | AD100: 27.53833026 | AE100: -1.094010502 | AF100: -17.3632322901645-14.1461039365301i | AG100: 27.00352413 | AH100: -140.8297433 | AI100: 39.17025674 | AL100: 28.79875208 | AM100: -62.6821845 | AO100: 60.32678159 | AP100: -78.14755876 | AV100: 0 | AW100: 0 | AX100: 0 | AY100: 0
B101: 3311.3 | C101: 3.1918353909465 | D101: 1+4.16110230153276i | E101: 4.27957619 | F101: 1.334947911 | G101: 1+0.0104027557538319i | H101: 1.000054107 | I101: 0.01040238053 | J101: 1-0.0245063522563591i | K101: 1.000300236 | L101: -0.02450144817 | M101: 0.999512679658222+0.0415824010244074i | N101: 1.000377275 | O101: 0.04157869802 | P101: 0.133647744193683-0.733740324778777i | Q101: 0.7458127002 | R101: -1.390625677 | S101: 6000 | T101: 1+21013.5666227404i | U101: 21013.56665 | V101: 1.570748738 | W101: 1+208.055115076638i | X101: 208.0575183 | Y101: 1.565989945 | Z101: 1+2.0958340738433i | AA101: 2.32218011 | AB101: 1.125605828 | AC101: 10.9064872863866-23.1408904771179i | AD101: 25.58226489 | AE101: -1.130364621 | AF101: -15.5217770714479-11.0952573346088i | AG101: 25.61137532 | AH101: -144.4421043 | AI101: 35.55789571 | AL101: 28.15877983 | AM101: -64.76512212 | AO101: 59.57460503 | AP101: -79.67698217 | AV101: 0 | AW101: 0 | AX101: 0 | AY101: 0
B102: 3630.8 | C102: 3.1918353909465 | D102: 1+4.56259784266152i | E102: 4.670899172 | F102: 1.355034615 | G102: 1+0.0114064946066538i | H102: 1.000065052 | I102: 0.01140599995 | J102: 1-0.0268709158857211i | K102: 1.000360958 | L102: -0.02686445134 | M102: 0.999414101838222+0.0455945947632102i | N102: 1.000453604 | O102: 0.04558971305 | P102: 0.105298556615564-0.675164281122661i | Q102: 0.6833261246 | R102: -1.41608278 | S102: 6000 | T102: 1+23041.1191054407i | U102: 23041.11913 | V102: 1.570752926 | W102: 1+228.129892133076i | X102: 228.1320839 | Y102: 1.566412887 | Z102: 1+2.2980564597923i | AA102: 2.506204998 | AB102: 1.160359778 | AC102: 9.36361393281084-21.7759392454536i | AD102: 23.70377177 | AE102: -1.164699817 | AF102: -13.7163613345971-8.61495264115084i | AG102: 24.18890963 | AH102: -147.8679506 | AI102: 32.13204941 | AL102: 27.49634914 | AM102: -66.73238389 | AO102: 58.81457004 | AP102: -81.13556671 | AV102: 0 | AW102: 0 | AX102: 0 | AY102: 0
B103: 3981.1 | C103: 3.1918353909465 | D103: 1+5.00279780528254i | E103: 5.101763017 | F103: 1.373508317 | G103: 1+0.0125069945132063i | H103: 1.000078209 | I103: 0.01250634244 | J103: 1-0.0294634249291189i | K103: 1.000433953 | L103: -0.0294549037 | M103: 0.999295593012889+0.0499935664899793i | N103: 1.000545371 | O103: 0.04998713097 | P103: 0.0813193618941571-0.62030545635311i | Q103: 0.6256130576 | R103: -1.440444009 | S103: 6000 | T103: 1+25264.1289166768i | U103: 25264.12894 | V103: 1.570756745 | W103: 1+250.139890264127i | X103: 250.1418891 | Y103: 1.566798585 | Z103: 1+2.51977321033358i | AA103: 2.710951315 | AB103: 1.192998812 | AC103: 8.00263910967984-20.3999751171341i | AD103: 21.91349396 | AE103: -1.196956972 | AF103: -12.0034463687576-6.62299366414123i | AG103: 22.74034866 | AH103: -151.1119451 | AI103: 28.88805488 | AL103: 26.81423257 | AM103: -68.58058277 | AO103: 58.04812564 | AP103: -82.53136235 | AV103: 0 | AW103: 0 | AX103: 0 | AY103: 0
B104: 4365.2 | C104: 3.1918353909465 | D104: 1+5.48547210058006i | E104: 5.575876986 | F104: 1.390476743 | G104: 1+0.0137136802514502i | H104: 1.000094028 | I104: 0.01371282066 | J104: 1-0.032306081861945i | K104: 1.000521705 | L104: -0.03229484979 | M104: 0.999153112398222+0.0548169893853601i | N104: 1.000655707 | O104: 0.05480850546 | P104: 0.0610910736532322-0.569144319031834i | Q104: 0.5724136399 | R104: -1.463867277 | S104: 6000 | T104: 1+27701.6341079293i | U104: 27701.63413 | V104: 1.570760228 | W104: 1+274.273605029003i | X104: 274.275428 | Y104: 1.567150349 | Z104: 1+2.76288312721311i | AA104: 2.938285754 | AB104: 1.223523721 | AC104: 6.81221895068808-19.0358140258415i | AD104: 20.21802519 | AE104: -1.2271336 | AF104: -10.4179596412958-5.04005403248704i | AG104: 21.26897415 | AH104: -154.1829929 | AI104: 25.81700706 | AL104: 26.11477467 | AM104: -70.30957619 | AO104: 57.27620902 | AP104: -83.87341675 | AV104: 0 | AW104: 0 | AX104: 0 | AY104: 0
B105: 4786.3 | C105: 3.1918353909465 | D105: 1+6.01464196715074i | E105: 6.097205753 | F105: 1.406042441 | G105: 1+0.0150366049178768i | H105: 1.000113043 | I105: 0.01503547182 | J105: 1-0.0354225693246192i | K105: 1.000627183 | L105: -0.03540776488 | M105: 0.998981836991556+0.0601050481753756i | N105: 1.000788353 | O105: 0.0600938642 | P105: 0.0440695661130085-0.521608001557102i | Q105: 0.5234663637 | R105: -1.486508598 | S105: 6000 | T105: 1+30373.9419341112i | U105: 30373.94195 | V105: 1.570763404 | W105: 1+300.732098357537i | X105: 300.733761 | Y105: 1.56747112 | Z105: 1+3.02941159895999i | AA105: 3.190193511 | AB105: 1.2519612 | AC105: 5.77886558545048-17.7021443590415i | AD105: 18.62152524 | AE105: -1.255253483 | AF105: -8.97890804341876-3.79442835046674i | AG105: 19.77808061 | AH105: -157.0913957 | AI105: 22.90860431 | AL105: 25.400305 | AM105: -71.92072681 | AO105: 56.49978515 | AP105: -85.17066888 | AV105: 0 | AW105: 0 | AX105: 0 | AY105: 0
B106: 5248.1 | C106: 3.1918353909465 | D106: 1+6.59495696212184i | E106: 6.67034162 | F106: 1.42031164 | G106: 1+0.0164873924053046i | H106: 1.000135908 | I106: 0.0164858987 | J106: 1-0.038840270370126i | K106: 1.000753999 | L106: -0.03882075698 | M106: 0.998775886506222+0.0659042064494888i | N106: 1.000947869 | O106: 0.06588946237 | P106: 0.029771338300809-0.477556785614382i | Q106: 0.4784838723 | R106: -1.508535961 | S106: 6000 | T106: 1+33304.5326587153i | U106: 33304.53267 | V106: 1.570766301 | W106: 1+329.747848106092i | X106: 329.7493644 | Y106: 1.567763716 | Z106: 1+3.32170048106092i | AA106: 3.468961528 | AB106: 1.278375937 | AC106: 4.88739761671712-16.4128429531717i | AD106: 17.12507137 | AE106: -1.281378522 | AF106: -7.69256015565248-2.82264219589574i | AG106: 18.26999388 | AH106: -159.850325 | AI106: 20.14967495 | AL106: 24.6726478 | AM106: -73.41758125 | AO106: 55.71935563 | AP106: -86.43274379 | AV106: 0 | AW106: 0 | AX106: 0 | AY106: 0
B107: 5370.3 | C107: 3.1918353909465 | D107: 1+6.7485180110293i | E107: 6.822206047 | F107: 1.423686137 | G107: 1+0.0168712950275733i | H107: 1.00014231 | I107: 0.01686969455 | J107: 1-0.039744651201137i | K107: 1.000789507 | L107: -0.03972374364 | M107: 0.998718216796+0.0674387606744706i | N107: 1.000992539 | O107: 0.06742296235 | P107: 0.0265740337969905-0.467076041763142i | Q107: 0.4678313885 | R107: -1.513963148 | S107: 6000 | T107: 1+34080.015955698i | U107: 34080.01597 | V107: 1.570766984 | W107: 1+337.425900551465i | X107: 337.4273824 | Y107: 1.567832722 | Z107: 1+3.39904500551465i | AA107: 3.543092851 | AB107: 1.284668831 | AC107: 4.68502130848151-16.0989114035317i | AD107: 16.76676394 | AE107: -1.287603093 | AF107: -7.39491590046589-2.61607422407373i | AG107: 17.89077214 | AH107: -160.5179216 | AI107: 19.48207836 | AL107: 24.488985 | AM107: -73.77422292 | AO107: 55.52379668 | AP107: -86.74369872 | AV107: 0 | AW107: 0 | AX107: 0 | AY107: 0
B108: 5432.85 | C108: 3.1918353909465 | D108: 1+6.82712065922212i | E108: 6.899969311 | F108: 1.42535594 | G108: 1+0.0170678016480553i | H108: 1.000145644 | I108: 0.0170661446 | J108: 1-0.0402075728130826i | K108: 1.000807998 | L108: -0.04018592663 | M108: 0.998688184039+0.0682242464909405i | N108: 1.001015802 | O108: 0.0682078896 | P108: 0.0250180676606037-0.461881162801916i | Q108: 0.4625582258 | R108: -1.516683612 | S108: 6000 | T108: 1+34476.9593290717i | U108: 34476.95934 | V108: 1.570767322 | W108: 1+341.356032961106i | X108: 341.3574977 | Y108: 1.567866842 | Z108: 1+3.43863502191875i | AA108: 3.58109073 | AB108: 1.287789075 | AC108: 4.58612606192371-15.9423198974071i | AD108: 16.58885517 | AE108: -1.290689554 | AF108: -7.24872123985725-2.51709127609781i | AG108: 17.69965648 | AH108: -160.8506339 | AI108: 19.14936608 | AL108: 24.39632831 | AM108: -73.95106411 | AO108: 55.42533771 | AP108: -86.89956981 | AV108: 0 | AW108: 0 | AX108: 0 | AY108: 0
B109: 5495.4 | C109: 3.1918353909465 | D109: 1+6.90572330741494i | E109: 6.977751386 | F109: 1.426988521 | G109: 1+0.0172643082685373i | H109: 1.000149017 | I109: 0.01726259333 | J109: 1-0.0406704944250281i | K109: 1.000826703 | L109: -0.04064809245 | M109: 0.998657803504+0.0690097323074104i | N109: 1.001039336 | O109: 0.06899280384 | P109: 0.0235135555244611-0.456796577140939i | Q109: 0.4574013557 | R109: -1.519366824 | S109: 6000 | T109: 1+34873.9027024453i | U109: 34873.90272 | V109: 1.570767652 | W109: 1+345.286165370747i | X109: 345.2876134 | Y109: 1.567900186 | Z109: 1+3.47822503832286i | AA109: 3.619122741 | AB109: 1.290843769 | AC109: 4.4902447265999-15.7884266104117i | AD109: 16.41452748 | AE109: -1.293711234 | AF109: -7.10651761537966-2.42237046738378i | AG109: 17.51051666 | AH109: -161.1775002 | AI109: 18.82249981 | AL109: 24.30456771 | AM109: -74.12419364 | AO109: 55.32795849 | AP109: -87.05330655 | AV109: 0 | AW109: 0 | AX109: 0 | AY109: 0
B110: 5559.4 | C110: 3.1918353909465 | D110: 1+6.98614807934684i | E110: 7.057355382 | F110: 1.428621695 | G110: 1+0.0174653701983671i | H110: 1.000152508 | I110: 0.01746359465 | J110: 1-0.0411441472334137i | K110: 1.000846063 | L110: -0.04112095396 | M110: 0.998626358739556+0.0698134268278592i | N110: 1.001063694 | O110: 0.06979589991 | P110: 0.022025104536042-0.451704730491836i | Q110: 0.4522413833 | R110: -1.522074955 | S110: 6000 | T110: 1+35280.0478007015i | U110: 35280.04781 | V110: 1.570767982 | W110: 1+349.307403967342i | X110: 349.3088354 | Y110: 1.567933527 | Z110: 1+3.51873280890419i | AA110: 3.658070609 | AB110: 1.293903502 | AC110: 4.39513750806164-15.6336985063413i | AD110: 16.2397587 | AE110: -1.296737958 | AF110: -6.96501220733218-2.32963824744067i | AG110: 17.31899746 | AH110: -161.5060831 | AI110: 18.49391688 | AL110: 24.21159144 | AM110: -74.29761212 | AO110: 55.22941556 | AP110: -87.20847101 | AV110: 0 | AW110: 0 | AX110: 0 | AY110: 0
B111: 5623.4 | C111: 3.1918353909465 | D111: 1+7.06657285127874i | E111: 7.136977782 | F111: 1.430218434 | G111: 1+0.0176664321281969i | H111: 1.000156039 | I111: 0.01766459456 | J111: 1-0.0416178000417992i | K111: 1.000865646 | L111: -0.04159379707 | M111: 0.998594549886222+0.070617121348308i | N111: 1.001088334 | O111: 0.07059898202 | P111: 0.0205859383881007-0.446721284017361i | Q111: 0.447195356 | R111: -1.524746618 | S111: 6000 | T111: 1+35686.1928989576i | U111: 35686.19291 | V111: 1.570768305 | W111: 1+353.328642563937i | X111: 353.3300577 | Y111: 1.567966108 | Z111: 1+3.55924057948553i | AA111: 3.697052002 | AB111: 1.29689874 | AC111: 4.30294223542498-15.4816741922404i | AD111: 16.06852662 | AE111: -1.299700937 | AF111: -6.82741327015006-2.24092067152769i | AG111: 17.12946683 | AH111: -161.8289244 | AI111: 18.17107563 | AL111: 24.11952113 | AM111: -74.46737832 | AO111: 55.13195524 | AP111: -87.36154605 | AV111: 0 | AW111: 0 | AX111: 0 | AY111: 0
B112: 5688.9 | C112: 3.1918353909465 | D112: 1+7.14888257880278i | E112: 7.218484753 | F112: 1.431816118 | G112: 1+0.017872206447007i | H112: 1.000159695 | I112: 0.01787030392 | J112: 1-0.0421025540878812i | K112: 1.00088592 | L112: -0.04207770317 | M112: 0.998561618524+0.0714396524590797i | N112: 1.001113845 | O112: 0.07142087177 | P112: 0.0191618473756736-0.441729772603151i | Q112: 0.4421451893 | R112: -1.527444389 | S112: 6000 | T112: 1+36101.857022954i | U112: 36101.85704 | V112: 1.570768627 | W112: 1+357.444128940139i | X112: 357.4455278 | Y112: 1.567998694 | Z112: 1+3.60069775093985i | AA112: 3.736980639 | AB112: 1.29989945 | AC112: 4.21148189656844-15.3288243205216i | AD112: 15.89683726 | AE112: -1.302669383 | AF112: -6.6904983080502-2.15406553257181i | AG112: 16.93751265 | AH112: -162.1535747 | AI112: 17.84642533 | AL112: 24.02621456 | AM112: -74.63745774 | AO112: 55.03330763 | AP112: -87.51611692 | AV112: 0 | AW112: 0 | AX112: 0 | AY112: 0
B113: 5754.4 | C113: 3.1918353909465 | D113: 1+7.23119230632684i | E113: 7.300009738 | F113: 1.433378121 | G113: 1+0.0180779807658171i | H113: 1.000163393 | I113: 0.01807601178 | J113: 1-0.0425873081339633i | K113: 1.000906429 | L113: -0.04256158955 | M113: 0.998528305806222+0.0722621835698516i | N113: 1.001139651 | O113: 0.07224274658 | P113: 0.0177849806129752-0.436844824843894i | Q113: 0.4372067092 | R113: -1.530106445 | S113: 6000 | T113: 1+36517.5211469506i | U113: 36517.52116 | V113: 1.570768943 | W113: 1+361.559615316342i | X113: 361.5609982 | Y113: 1.568030538 | Z113: 1+3.64215492239419i | AA113: 3.776942213 | AB113: 1.302836687 | AC113: 4.12283498444093-15.1786816437968i | AD113: 15.72864091 | AE113: -1.305575092 | AF113: -6.55740398377686-2.07099168540383i | AG113: 16.7475603 | AH113: -162.4725841 | AI113: 17.52741588 | AL113: 23.93382395 | AM113: -74.8039426 | AO113: 54.9357459 | AP113: -87.66864152 | AV113: 0 | AW113: 0 | AX113: 0 | AY113: 0
B114: 5821.4 | C114: 3.1918353909465 | D114: 1+7.31538698944304i | E114: 7.383419723 | F114: 1.434940203 | G114: 1+0.0182884674736076i | H114: 1.00016722 | I114: 0.01828642891 | J114: 1-0.0430831634177419i | K114: 1.000927649 | L114: -0.04305653667 | M114: 0.998493835646222+0.0731035512709464i | N114: 1.001166354 | O114: 0.0730834273 | P114: 0.0164233076585198-0.43195480208571i | Q114: 0.4322669038 | R114: -1.532793738 | S114: 6000 | T114: 1+36942.7042966874i | U114: 36942.70431 | V114: 1.570769258 | W114: 1+365.769349472152i | X114: 365.7707165 | Y114: 1.56806237 | Z114: 1+3.68456149472152i | AA114: 3.817851936 | AB114: 1.305777548 | AC114: 4.034952894446-15.0278376766883i | AD114: 15.56010122 | AE114: -1.308484435 | AF114: -6.42507937663695-1.98972408055213i | AG114: 16.55528806 | AH114: -162.7932477 | AI114: 17.20675226 | AL114: 23.84024836 | AM114: -74.97063569 | AO114: 54.83704925 | AP114: -87.82261205 | AV114: 0 | AW114: 0 | AX114: 0 | AY114: 0
B115: 5888.4 | C115: 3.1918353909465 | D115: 1+7.39958167255924i | E115: 7.466847322 | F115: 1.436467382 | G115: 1+0.0184989541813981i | H115: 1.000171091 | I115: 0.01849684443 | J115: 1-0.0435790187015204i | K115: 1.000949115 | L115: -0.04355146267 | M115: 0.998458966464+0.0739449189720411i | N115: 1.001193367 | O115: 0.07392409202 | P115: 0.015106831681429-0.427169401313065i | Q115: 0.4274364441 | R115: -1.535446092 | S115: 6000 | T115: 1+37367.8874464242i | U115: 37367.88746 | V115: 1.570769566 | W115: 1+369.979083627962i | X115: 369.9804351 | Y115: 1.568093478 | Z115: 1+3.72696806704885i | AA115: 3.858793979 | AB115: 1.308656027 | AC115: 3.94978491699803-14.8796981712052i | AD115: 15.39500629 | AE115: -1.311332115 | AF115: -6.2964830235939-1.91201235405229i | AG115: 16.36502838 | AH115: -163.1083765 | AI115: 16.89162352 | AL115: 23.74759741 | AM115: -75.13379571 | AO115: 54.73944051 | AP115: -87.97458076 | AV115: 0 | AW115: 0 | AX115: 0 | AY115: 0
B116: 5957 | C116: 3.1918353909465 | D116: 1+7.48578697497376i | E116: 7.552284862 | F116: 1.437996069 | G116: 1+0.0187144674374344i | H116: 1.0001751 | I116: 0.0187122831 | J116: 1-0.0440867153055087i | K116: 1.000971347 | L116: -0.04405818569 | M116: 0.998422851155556+0.0748063790361473i | N116: 1.001221346 | O116: 0.07478481554 | P116: 0.0138036985666162-0.422374708756135i | Q116: 0.4226002091 | R116: -1.538126787 | S116: 6000 | T116: 1+37803.2242236175i | U116: 37803.22424 | V116: 1.570769874 | W116: 1+374.289348748688i | X116: 374.2906846 | Y116: 1.568124603 | Z116: 1+3.77038733364073i | AA116: 3.900746165 | AB116: 1.311540615 | AC116: 3.86528258752566-14.7307576778399i | AD116: 15.22943306 | AE116: -1.314185885 | AF116: -6.16854428822183-1.83593654580908i | AG116: 16.17226888 | AH116: -163.425478 | AI116: 16.57452201 | AL116: 23.65367473 | AM116: -75.29730473 | AO116: 54.64060369 | AP116: -88.12817326 | AV116: 0 | AW116: 0 | AX116: 0 | AY116: 0
B117: 6025.6 | C117: 3.1918353909465 | D117: 1+7.57199227738826i | E117: 7.637739656 | F117: 1.439490552 | G117: 1+0.0189299806934707i | H117: 1.000179156 | I117: 0.01892772003 | J117: 1-0.0445944119094969i | K117: 1.000993837 | L117: -0.04456488607 | M117: 0.998386317539556+0.0756678391002533i | N117: 1.00124965 | O117: 0.07564552189 | P117: 0.0125438993575661-0.417682902618633i | Q117: 0.4178712201 | R117: -1.54077324 | S117: 6000 | T117: 1+38238.5610008107i | U117: 38238.56101 | V117: 1.570770175 | W117: 1+378.599613869413i | X117: 378.6009345 | Y117: 1.56815502 | Z117: 1+3.81380660023259i | AA117: 3.942730118 | AB117: 1.314363793 | AC117: 3.78340234983262-14.5845209622448i | AD117: 15.06726203 | AE117: -1.316978948 | AF117: -6.04424643050723-1.76320923838096i | AG117: 15.98153604 | AH117: -163.7371393 | AI117: 16.26286074 | AL117: 23.56068682 | AM117: -75.45733544 | AO117: 54.54285877 | AP117: -88.27980382 | AV117: 0 | AW117: 0 | AX117: 0 | AY117: 0
B118: 6095.8 | C118: 3.1918353909465 | D118: 1+7.66020819910106i | E118: 7.725204829 | F118: 1.440985659 | G118: 1+0.0191505204977526i | H118: 1.000183354 | I118: 0.01914817991 | J118: 1-0.0451139498336948i | K118: 1.001017117 | L118: -0.04508338082 | M118: 0.998348498771556+0.0765493915273706i | N118: 1.001278949 | O118: 0.07652628505 | P118: 0.0112976137659497-0.412984813226413i | Q118: 0.4131393131 | R118: -1.543447145 | S118: 6000 | T118: 1+38684.0514054604i | U118: 38684.05142 | V118: 1.570770476 | W118: 1+383.010409955053i | X118: 383.0117154 | Y118: 1.568185438 | Z118: 1+3.85823856108899i | AA118: 3.985725128 | AB118: 1.317191222 | AC118: 3.70221759159265-14.4376056820396i | AD118: 14.90472653 | AE118: -1.319776261 | AF118: -5.9206856616064-1.6920701332882i | AG118: 15.7884107 | AH118: -164.0506169 | AI118: 15.94938307 | AL118: 23.46648024 | AM118: -75.61760964 | AO118: 54.44394001 | AP118: -88.4330073 | AV118: 0 | AW118: 0 | AX118: 0 | AY118: 0
B119: 6166 | C119: 3.1918353909465 | D119: 1+7.74842412081386i | E119: 7.812686885 | F119: 1.442447286 | G119: 1+0.0193710603020346i | H119: 1.000187601 | I119: 0.01936863793 | J119: 1-0.0456334877578927i | K119: 1.001040666 | L119: -0.04560185132 | M119: 0.998310241955556+0.0774309439544878i | N119: 1.001308589 | O119: 0.0774070298 | P119: 0.0100928246241417-0.408387767626895i | Q119: 0.4085124648 | R119: -1.54608753 | S119: 6000 | T119: 1+39129.54181011i | U119: 39129.54182 | V119: 1.570770771 | W119: 1+387.421206040693i | X119: 387.4224966 | Y119: 1.568215163 | Z119: 1+3.90267052194539i | AA119: 4.028751321 | AB119: 1.31995828 | AC119: 3.6235620864481-14.2933875852024i | AD119: 14.74554614 | AE119: -1.322513888 | AF119: -5.80067267109357-1.62407908552433i | AG119: 15.5973235 | AH119: -164.3587543 | AI119: 15.64124568 | AL119: 23.37321725 | AM119: -75.77446412 | AO119: 54.34611579 | AP119: -88.5842902 | AV119: 0 | AW119: 0 | AX119: 0 | AY119: 0
B120: 6237.8 | C120: 3.1918353909465 | D120: 1+7.83865066182496i | E120: 7.902179712 | F120: 1.443908747 | G120: 1+0.0195966266545624i | H120: 1.000191995 | I120: 0.01959411868 | J120: 1-0.0461648670023002i | K120: 1.00106503 | L120: -0.04613211343 | M120: 0.998270660051556+0.0783325887446163i | N120: 1.001339256 | O120: 0.07830782926 | P120: 0.00890161949056432-0.403787155108749i | Q120: 0.4038852627 | R120: -1.548754571 | S120: 6000 | T120: 1+39585.1858422161i | U120: 39585.18585 | V120: 1.570771065 | W120: 1+391.932533091248i | X120: 391.9338088 | Y120: 1.568244873 | Z120: 1+3.94811517706633i | AA120: 4.072789394 | AB120: 1.322727905 | AC120: 3.54562435417061-14.1486044671294i | AD120: 14.58610505 | AE120: -1.325254097 | AF120: -5.68146294768381-1.55762306434373i | AG120: 15.40394687 | AH120: -164.6685669 | AI120: 15.33143306 | AL120: 23.27878674 | AM120: -75.93146652 | AO120: 54.24716968 | AP120: -88.73710042 | AV120: 0 | AW120: 0 | AX120: 0 | AY120: 0
B121: 6309.6 | C121: 3.1918353909465 | D121: 1+7.92887720283606i | E121: 7.991689039 | F121: 1.445337473 | G121: 1+0.0198221930070901i | H121: 1.00019644 | I121: 0.01981959744 | J121: 1-0.0466962462467077i | K121: 1.001089676 | L121: -0.04666234958 | M121: 0.998230619904+0.0792342335347448i | N121: 1.001370278 | O121: 0.07920860903 | P121: 0.00775010637787921-0.399285652864402i | Q121: 0.3993608603 | R121: -1.551388834 | S121: 6000 | T121: 1+40040.8298743221i | U121: 40040.82989 | V121: 1.570771352 | W121: 1+396.443860141803i | X121: 396.4451214 | Y121: 1.568273907 | Z121: 1+3.99355983218726i | AA121: 4.116858041 | AB121: 1.325438255 | AC121: 3.470122800254-14.0065064377595i | AD121: 14.42996794 | AE121: -1.327935701 | AF121: -5.56570324650398-1.49412216269415i | AG121: 15.21261731 | AH121: -164.9731437 | AI121: 15.0268563 | AL121: 23.18530733 | AM121: -76.08511112 | AO121: 54.14931953 | AP121: -88.88803259 | AV121: 0 | AW121: 0 | AX121: 0 | AY121: 0
B122: 6383.05 | C122: 3.1918353909465 | D122: 1+8.02117719499854i | E122: 8.083271837 | F122: 1.446766288 | G122: 1+0.0200529429874963i | H122: 1.00020104 | I122: 0.02005025574 | J122: 1-0.0472398368525815i | K122: 1.001115179 | L122: -0.04720474365 | M122: 0.998189185453222+0.0801565985742287i | N122: 1.001402382 | O122: 0.08013006855 | P122: 0.00661139929688526-0.39477999432669i | Q122: 0.3948353512 | R122: -1.554050845 | S122: 6000 | T122: 1+40506.9448347426i | U122: 40506.94485 | V122: 1.57077164 | W122: 1+401.058859749927i | X122: 401.0601064 | Y122: 1.568302932 | Z122: 1+4.0400488282685i | AA122: 4.161970031 | AB122: 1.328151481 | AC122: 3.39530450388148-13.8638521690102i | AD122: 14.27355911 | AE122: -1.330620188 | AF122: -5.45072376681824-1.43205775526203i | AG122: 15.01896615 | AH122: -165.2794755 | AI122: 14.72052454 | AL122: 23.09064556 | AM122: -76.23892091 | AO122: 54.05033014 | AP122: -89.04055455 | AV122: 0 | AW122: 0 | AX122: 0 | AY122: 0
B123: 6456.5 | C123: 3.1918353909465 | D123: 1+8.113477187161i | E123: 8.174870768 | F123: 1.448163087 | G123: 1+0.0202836929679025i | H123: 1.000205693 | I123: 0.02028091189 | J123: 1-0.0477834274584551i | K123: 1.001140977 | L123: -0.04774710993 | M123: 0.998147271455556+0.0810789636137124i | N123: 1.001434858 | O123: 0.08105150697 | P123: 0.00551066956971906-0.390371566992321i | Q123: 0.3904104607 | R123: -1.556680792 | S123: 6000 | T123: 1+40973.0597951631i | U123: 40973.05981 | V123: 1.570771921 | W123: 1+405.67385935805i | X123: 405.6750919 | Y123: 1.568331297 | Z123: 1+4.08653782434973i | AA123: 4.207112001 | AB123: 1.3308065 | AC123: 3.32283272061825-13.7238694030633i | AD123: 14.12040398 | AE123: -1.333247123 | AF123: -5.33909737091301-1.37276712549936i | AG123: 14.82737135 | AH123: -165.5806726 | AI123: 14.4193274 | AL123: 22.99694244 | AM123: -76.38943319 | AO123: 53.95243846 | AP123: -89.19123941 | AV123: 0 | AW123: 0 | AX123: 0 | AY123: 0
B124: 6531.7 | C124: 3.1918353909465 | D124: 1+8.20797629418098i | E124: 8.268668263 | F124: 1.4495611 | G124: 1+0.0205199407354524i | H124: 1.000210512 | I124: 0.02051706137 | J124: 1-0.0483399695083081i | K124: 1.001167695 | L124: -0.04830236936 | M124: 0.998103862004889+0.0820233046752398i | N124: 1.001468493 | O124: 0.08199487724 | P124: 0.0044213310322094-0.385955624828063i | Q124: 0.3859809484 | R124: -1.559341285 | S124: 6000 | T124: 1+41450.280285614i | U124: 41450.2803 | V124: 1.570772202 | W124: 1+410.398814709049i | X124: 410.400033 | Y124: 1.568359677 | Z124: 1+4.1341344547828i | AA124: 4.253359577 | AB124: 1.333466371 | AC124: 3.25096599627717-13.583249086255i | AD124: 13.96686921 | AE124: -1.335878895 | AF124: -5.22815779143677-1.31478465309123i | AG124: 14.63329871 | AH124: -165.8838971 | AI124: 14.11610291 | AL124: 22.90198133 | AM124: -76.54022261 | AO124: 53.85332692 | AP124: -89.34367448 | AV124: 0 | AW124: 0 | AX124: 0 | AY124: 0
B125: 6606.9 | C125: 3.1918353909465 | D125: 1+8.30247540120094i | E125: 8.362481557 | F125: 1.45092775 | G125: 1+0.0207561885030023i | H125: 1.000215386 | I125: 0.02075320855 | J125: 1-0.048896511558161i | K125: 1.001194721 | L125: -0.04885759898 | M125: 0.998059949884+0.0829676457367669i | N125: 1.001502518 | O125: 0.08293822488 | P125: 0.00336838528034047-0.381635207878058i | Q125: 0.3816500726 | R125: -1.561970365 | S125: 6000 | T125: 1+41927.5007760648i | U125: 41927.50079 | V125: 1.570772476 | W125: 1+415.123770060047i | X125: 415.1249745 | Y125: 1.568387411 | Z125: 1+4.18173108521586i | AA125: 4.299636597 | AB125: 1.336069003 | AC125: 3.1813622494639-13.4452887041716i | AD125: 13.81654277 | AE125: -1.338454068 | AF125: -5.12047949582451-1.25940875597062i | AG125: 14.4412947 | AH125: -166.1820788 | AI125: 13.81792121 | AL125: 22.80798771 | AM125: -76.68776916 | AO125: 53.75531653 | AP125: -89.49430963 | AV125: 0 | AW125: 0 | AX125: 0 | AY125: 0
B126: 6683.85 | C126: 3.1918353909465 | D126: 1+8.39917362307846i | E126: 8.458493811 | F126: 1.452294818 | G126: 1+0.0209979340576962i | H126: 1.000220432 | I126: 0.02099484878 | J126: 1-0.0494660050519934i | K126: 1.001222695 | L126: -0.0494257183 | M126: 0.998014495519+0.083933962820338i | N126: 1.001537739 | O126: 0.08390350173 | P126: 0.00232695179493419-0.377309968808728i | Q126: 0.3773171441 | R126: -1.56462919 | S126: 6000 | T126: 1+42415.8267965462i | U126: 42415.82681 | V126: 1.570772751 | W126: 1+419.958681153923i | X126: 419.9598717 | Y126: 1.568415145 | Z126: 1+4.23043535000077i | AA126: 4.347020043 | AB126: 1.338674821 | AC126: 3.11238518423442-13.3068003773634i | AD126: 13.6659386 | AE126: -1.341032427 | AF126: -5.01354606503597-1.20529823980717i | AG126: 14.24692008 | AH126: -166.4821473 | AI126: 13.51785266 | AL126: 22.7127893 | AM126: -76.83549827 | AO126: 53.65614032 | AP126: -89.64664907 | AV126: 0 | AW126: 0 | AX126: 0 | AY126: 0
B127: 6760.8 | C127: 3.1918353909465 | D127: 1+8.49587184495594i | E127: 8.554521518 | F127: 1.453631198 | G127: 1+0.0212396796123898i | H127: 1.000225537 | I127: 0.02123648657 | J127: 1-0.0500354985458256i | K127: 1.001250993 | L127: -0.04999380568 | M127: 0.997968514816+0.0849002799039087i | N127: 1.001573369 | O127: 0.08486875434 | P127: 0.00132035076392894-0.373078457488344i | Q127: 0.3730807939 | R127: -1.567257272 | S127: 6000 | T127: 1+42904.1528170275i | U127: 42904.15283 | V127: 1.570773019 | W127: 1+424.793592247797i | X127: 424.7947693 | Y127: 1.568442247 | Z127: 1+4.27913961478566i | AA127: 4.394432369 | AB127: 1.341224427 | AC127: 3.04558730798066-13.1709552823603i | AD127: 13.51849345 | AE127: -1.343555199 | AF127: -4.90977843686223-1.15363329587624i | AG127: 14.05462374 | AH127: -166.7772695 | AI127: 13.22273046 | AL127: 22.6185659 | AM127: -76.98004246 | AO127: 53.55806739 | AP127: -89.79722707 | AV127: 0 | AW127: 0 | AX127: 0 | AY127: 0
B128: 6839.55 | C128: 3.1918353909465 | D128: 1+8.59483201354402i | E128: 8.65281095 | F128: 1.454968125 | G128: 1+0.02148708003386i | H128: 1.000230821 | I128: 0.02148377413 | J128: 1-0.0506183135248937i | K128: 1.001280287 | L128: -0.05057514822 | M128: 0.997920913591+0.0858892008958672i | N128: 1.001610256 | O128: 0.08585656056 | P128: 0.000324679509206214-0.368841889583857i | Q128: 0.3688420325 | R128: -1.56991606 | S128: 6000 | T128: 1+43403.9016683973i | U128: 43403.90168 | V128: 1.570773287 | W128: 1+429.741600677201i | X128: 429.7427642 | Y128: 1.568469351 | Z128: 1+4.32898316061817i | AA128: 4.442982692 | AB128: 1.343777316 | AC128: 2.97939016921938-13.0345976144045i | AD128: 13.37077039 | AE128: -1.346081252 | AF128: -4.80673826712431-1.10315596657859i | AG128: 13.85993675 | AH128: -167.0743391 | AI128: 12.92566095 | AL128: 22.52312862 | AM128: -77.12477465 | AO128: 53.45881767 | AP128: -89.9495644 | AV128: 0 | AW128: 0 | AX128: 0 | AY128: 0
B129: 6918.3 | C129: 3.1918353909465 | D129: 1+8.6937921821321i | E129: 8.751115501 | F129: 1.456275018 | G129: 1+0.0217344804553302i | H129: 1.000236166 | I129: 0.02173105906 | J129: 1-0.0512011285039619i | K129: 1.00130992 | L129: -0.05115645655 | M129: 0.997872761116+0.0868781218878257i | N129: 1.00164757 | O129: 0.0868443408 | P129: -0.00063764799610787-0.364697290144484i | Q129: 0.3646978476 | R129: -1.572544756 | S129: 6000 | T129: 1+43903.6505197671i | U129: 43903.65053 | V129: 1.57077355 | W129: 1+434.689609106605i | X129: 434.6907594 | Y129: 1.568495839 | Z129: 1+4.37882670645067i | AA129: 4.491561346 | AB129: 1.346275 | AC129: 2.91529126563559-12.9008650484332i | AD129: 13.2261575 | AE129: -1.348552711 | AF129: -4.70676945331688-1.05497261381299i | AG129: 13.6673378 | AH129: -167.3665564 | AI129: 12.63344361 | AL129: 22.4286738 | AM129: -77.26637878 | AO129: 53.36067355 | AP129: -90.10017761 | AV129: 0 | AW129: 0 | AX129: 0 | AY129: 0
B130: 6998.9 | C130: 3.1918353909465 | D130: 1+8.79507712928384i | E130: 8.851744557 | F130: 1.457582551 | G130: 1+0.0219876928232096i | H130: 1.0002417 | I130: 0.02198415047 | J130: 1-0.0517976350095224i | K130: 1.001340599 | L130: -0.05175138517 | M130: 0.997822906612889+0.0878902746745159i | N130: 1.001686205 | O130: 0.08785529882 | P130: -0.00158957678634393-0.360547493577254i | Q130: 0.3605509976 | R130: -1.575205084 | S130: 6000 | T130: 1+44415.1395028834i | U130: 44415.13951 | V130: 1.570773812 | W130: 1+439.753856464192i | X130: 439.7549935 | Y130: 1.568522331 | Z130: 1+4.42984118002654i | AA130: 4.5413096 | AB130: 1.34877601 | AC130: 2.85176937740299-12.7666369808123i | AD130: 13.08126937 | AE130: -1.351027491 | AF130: -4.60751207124488-1.00790475149864i | AG130: 13.47233181 | AH130: -167.6607764 | AI130: 12.33922359 | AL130: 22.33299778 | AM130: -77.40817321 | AO130: 53.26134357 | AP130: -90.2526032 | AV130: 0 | AW130: 0 | AX130: 0 | AY130: 0
B131: 7079.5 | C131: 3.1918353909465 | D131: 1+8.89636207643558i | E131: 8.952388407 | F131: 1.458860687 | G131: 1+0.0222409051910889i | H131: 1.000247298 | I131: 0.02223723907 | J131: 1-0.052394141515083i | K131: 1.001371632 | L131: -0.05234627714 | M131: 0.997772474655556+0.0889024274612061i | N131: 1.001725288 | O131: 0.08886622899 | P131: -0.00250958379158272-0.356487940068i | Q131: 0.3564967734 | R131: -1.577835954 | S131: 6000 | T131: 1+44926.6284859997i | U131: 44926.6285 | V131: 1.570774068 | W131: 1+444.818103821779i | X131: 444.8192279 | Y131: 1.568548221 | Z131: 1+4.48085565360241i | AA131: 4.591085644 | AB131: 1.351222804 | AC131: 2.79026745189809-12.635014484312i | AD131: 12.93944294 | AE131: -1.353448651 | AF131: -4.51123269621319-0.962988068609695i | AG131: 13.27942366 | AH131: -167.9502364 | AI131: 12.04976355 | AL131: 22.23831159 | AM131: -77.5468955 | AO131: 53.16312161 | AP131: -90.40334095 | AV131: 0 | AW131: 0 | AX131: 0 | AY131: 0
B132: 7161.95 | C132: 3.1918353909465 | D132: 1+8.99997180215096i | E132: 9.055357113 | F132: 1.460138762 | G132: 1+0.0224999295053774i | H132: 1.000253091 | I132: 0.02249613382 | J132: 1-0.0530043395471358i | K132: 1.001403745 | L132: -0.0529547852 | M132: 0.997720287653222+0.0899378120426279i | N132: 1.001765732 | O132: 0.08990033373 | P132: -0.00341913573704179-0.352425567626574i | Q132: 0.352442153 | R132: -1.580497747 | S132: 6000 | T132: 1+45449.8576008624i | U132: 45449.85761 | V132: 1.570774325 | W132: 1+449.998590107548i | X132: 449.9997012 | Y132: 1.568574101 | Z132: 1+4.53304105492164i | AA132: 4.642032013 | AB132: 1.353671449 | AC132: 2.72935708746311-12.5029942803853i | AD132: 12.79743162 | AE132: -1.355871672 | AF132: -4.41570689865349-0.919145786240705i | AG132: 13.08421327 | AH132: -168.2415748 | AI132: 11.75842519 | AL132: 22.14245635 | AM132: -77.68572439 | AO132: 53.06376646 | AP132: -90.55585042 | AV132: 0 | AW132: 0 | AX132: 0 | AY132: 0
B133: 7244.4 | C133: 3.1918353909465 | D133: 1+9.10358152786636i | E133: 9.158340277 | F133: 1.461388095 | G133: 1+0.0227589538196659i | H133: 1.000258951 | I133: 0.02275502556 | J133: 1-0.0536145375791888i | K133: 1.001436228 | L133: -0.053563254 | M133: 0.997667496384+0.09097319662405i | N133: 1.001806646 | O133: 0.09093440864 | P133: -0.00429816167308777-0.348451637420811i | Q133: 0.3484781454 | R133: -1.583130732 | S133: 6000 | T133: 1+45973.0867157251i | U133: 45973.08673 | V133: 1.570774575 | W133: 1+455.179076393318i | X133: 455.1801749 | Y133: 1.568599393 | Z133: 1+4.58522645624087i | AA133: 4.69300561 | AB133: 1.356066916 | AC133: 2.67038865393336-12.3735556558295i | AD133: 12.6584302 | AE133: -1.358242099 | AF133: -4.32306349115591-0.87731775633333i | AG133: 12.89110796 | AH133: -168.5282492 | AI133: 11.47175083 | AL133: 22.04759702 | AM133: -77.8215398 | AO133: 52.96552048 | AP133: -90.70670936 | AV133: 0 | AW133: 0 | AX133: 0 | AY133: 0
B134: 7328.75 | C134: 3.1918353909465 | D134: 1+9.20957886399848i | E134: 9.263711073 | F134: 1.462637471 | G134: 1+0.0230239471599962i | H134: 1.000265016 | I134: 0.02301988011 | J134: 1-0.0542387971789906i | K134: 1.001469843 | L134: -0.05418570345 | M134: 0.997612863263889+0.0920324408865477i | N134: 1.001848988 | O134: 0.09199228183 | P134: -0.00516724943648997-0.344474692732575i | Q134: 0.3445134459 | R134: -1.585795576 | S134: 6000 | T134: 1+46508.3732631923i | U134: 46508.37327 | V134: 1.570774825 | W134: 1+460.478943199924i | X134: 460.480029 | Y134: 1.568624678 | Z134: 1+4.63861443199924i | AA134: 4.745181119 | AB134: 1.358464314 | AC134: 2.61198713193488-12.2437329166138i | AD134: 12.51924409 | AE134: -1.360614461 | AF134: -4.23115292338586-0.836497042680801i | AG134: 12.69568567 | AH134: -168.8168598 | AI134: 11.18314016 | AL134: 21.95156214 | AM134: -77.95746614 | AO134: 52.86613307 | AP134: -90.8593937 | AV134: 0 | AW134: 0 | AX134: 0 | AY134: 0
B135: 7413.1 | C135: 3.1918353909465 | D135: 1+9.3155762001306i | E135: 9.369096004 | F135: 1.463858743 | G135: 1+0.0232889405003265i | H135: 1.000271151 | I135: 0.02328473143 | J135: 1-0.0548630567787925i | K135: 1.001503847 | L135: -0.05480811086 | M135: 0.997557597706222+0.0930916851490454i | N135: 1.001891822 | O135: 0.09305012307 | P135: -0.00600714217627419-0.340584428569932i | Q135: 0.3406374007 | R135: -1.588432246 | S135: 6000 | T135: 1+47043.6598106595i | U135: 47043.65982 | V135: 1.57077507 | W135: 1+465.77881000653i | X135: 465.7798835 | Y135: 1.568649388 | Z135: 1+4.69200240775761i | AA135: 4.797383307 | AB135: 1.36080955 | AC135: 2.55545231051299-12.1164667080799i | AD135: 12.38301668 | AE135: -1.362935232 | AF135: -4.14203085541194-0.79756192672425i | AG135: 12.50237576 | AH135: -169.1009003 | AI135: 10.89909975 | AL135: 21.85652916 | AM135: -78.09043653 | AO135: 52.76785615 | AP135: -91.01046372 | AV135: 0 | AW135: 0 | AX135: 0 | AY135: 0
B136: 7499.45 | C136: 3.1918353909465 | D136: 1+9.4240868103856i | E136: 9.476993838 | F136: 1.465080836 | G136: 1+0.023560217025964i | H136: 1.000277503 | I136: 0.02355585918 | J136: 1-0.0555021180288564i | K136: 1.001539058 | L136: -0.05544523198 | M136: 0.997500366653222+0.0941760448653073i | N136: 1.00193618 | O136: 0.09413301302 | P136: -0.00683804392760067-0.336688799613205i | Q136: 0.3367582317 | R136: -1.591103221 | S136: 6000 | T136: 1+47591.6383924473i | U136: 47591.6384 | V136: 1.570775315 | W136: 1+471.20434051928i | X136: 471.2054016 | Y136: 1.568674108 | Z136: 1+4.74665625134665i | AA136: 4.850849984 | AB136: 1.363158095 | AC136: 2.4994297308309-11.988758079944i | AD136: 12.24652887 | AE136: -1.365259301 | AF136: -4.05357177708283-0.759550341402977i | AG136: 12.30662462 | AH136: -169.3870953 | AI136: 10.61290475 | AL136: 21.76026021 | AM136: -78.2235959 | AO136: 52.66837395 | AP136: -91.16349936 | AV136: 0 | AW136: 0 | AX136: 0 | AY136: 0
B137: 7585.8 | C137: 3.1918353909465 | D137: 1+9.53259742064058i | E137: 9.584905507 | F137: 1.466275412 | G137: 1+0.0238314935516014i | H137: 1.00028393 | I137: 0.02382698347 | J137: 1-0.0561411792789203i | K137: 1.001574676 | L137: -0.05608230805 | M137: 0.997442472816+0.0952604045815689i | N137: 1.001981053 | O137: 0.09521586871 | P137: -0.0076409894218965-0.332878221755322i | Q137: 0.332965907 | R137: -1.593746605 | S137: 6000 | T137: 1+48139.6169742349i | U137: 48139.61698 | V137: 1.570775554 | W137: 1+476.629871032029i | X137: 476.6309201 | Y137: 1.568698266 | Z137: 1+4.80131009493568i | AA137: 4.904342833 | AB137: 1.36545542 | AC137: 2.44520331534061-11.8635827963389i | AD137: 12.11295241 | AE137: -1.367532708 | AF137: -3.96781211755923-0.723305420788181i | AG137: 12.11299557 | AH137: -169.6688066 | AI137: 10.33119341 | AL137: 21.66500022 | AM137: -78.35385251 | AO137: 52.5700049 | AP137: -91.31495409 | AV137: 0 | AW137: 0 | AX137: 0 | AY137: 0
B138: 7674.15 | C138: 3.1918353909465 | D138: 1+9.64362130501844i | E138: 9.695330416 | F138: 1.467470132 | G138: 1+0.0241090532625461i | H138: 1.000290581 | I138: 0.02410438379 | J138: 1-0.0567950421792462i | K138: 1.00161154 | L138: -0.05673409261 | M138: 0.997382552079+0.0963698797515947i | N138: 1.002027499 | O138: 0.09632376914 | P138: -0.00843487698278878-0.329064552294048i | Q138: 0.3291726397 | R138: -1.59642361 | S138: 6000 | T138: 1+48700.2875903431i | U138: 48700.2876 | V138: 1.570775793 | W138: 1+482.181065250922i | X138: 482.1821022 | Y138: 1.56872242 | Z138: 1+4.85722980635537i | AA138: 4.959100865 | AB138: 1.367754645 | AC138: 2.39150192723864-11.73805717345i | AD138: 11.97920146 | AE138: -1.369808018 | AF138: -3.88275055314362-0.687949442722144i | AG138: 11.91703198 | AH138: -169.9525533 | AI138: 10.04744667 | AL138: 21.56855738 | AM138: -78.48421818 | AO138: 52.47048415 | AP138: -91.46833515 | AV138: 0 | AW138: 0 | AX138: 0 | AY138: 0
B139: 7762.5 | C139: 3.1918353909465 | D139: 1+9.7546451893963i | E139: 9.805768852 | F139: 1.468637942 | G139: 1+0.0243866129734908i | H139: 1.000297309 | I139: 0.0243817804 | J139: 1-0.0574489050795721i | K139: 1.001648829 | L139: -0.05738582893 | M139: 0.9973219375+0.0974793549216204i | N139: 1.002074484 | O139: 0.09743163287 | P139: -0.00920202532176678-0.325334232667566i | Q139: 0.3254643455 | R139: -1.599073623 | S139: 6000 | T139: 1+49260.9582064513i | U139: 49260.95822 | V139: 1.570776027 | W139: 1+487.732259469815i | X139: 487.7332846 | Y139: 1.568746024 | Z139: 1+4.91314951777508i | AA139: 5.01388454 | AB139: 1.370003638 | AC139: 2.33952645511441-11.6150376414474i | AD139: 11.84831142 | AE139: -1.37203364 | AF139: -3.80029774016609-0.654246173590244i | AG139: 11.72319759 | AH139: -170.2319067 | AI139: 9.768093336 | AL139: 21.47312921 | AM139: -78.61173692 | AO139: 52.37207792 | AP139: -91.62016974 | AV139: 0 | AW139: 0 | AX139: 0 | AY139: 0
B140: 7852.9 | C140: 3.1918353909465 | D140: 1+9.86824517975012i | E140: 9.918783339 | F140: 1.46980593 | G140: 1+0.0246706129493753i | H140: 1.000304273 | I140: 0.02466560961 | J140: 1-0.0581179396714168i | K140: 1.001687424 | L140: -0.05805263707 | M140: 0.997259198292889+0.0986145734317545i | N140: 1.002123118 | O140: 0.09856516411 | P140: -0.00996052155229313-0.321600821039494i | Q140: 0.3217550312 | R140: -1.601758121 | S140: 6000 | T140: 1+49834.6381577381i | U140: 49834.63817 | V140: 1.57077626 | W140: 1+493.412258987506i | X140: 493.4132723 | Y140: 1.568769627 | Z140: 1+4.97036674372122i | AA140: 5.069965046 | AB140: 1.372254495 | AC140: 2.28805619916841-11.4916845641377i | AD140: 11.71725289 | AE140: -1.374261128 | AF140: -3.71852542403824-0.621377580463817i | AG140: 11.527023 | AH140: -170.5133427 | AI140: 9.486657256 | AL140: 21.37651607 | AM140: -78.73936259 | AO140: 52.27251647 | AP140: -91.77398015 | AV140: 0 | AW140: 0 | AX140: 0 | AY140: 0
B141: 7943.3 | C141: =COMPLEX(Am*Afb,0) -> 3.1918353909465 | D141: =IMSUM(COMPLEX(1,0),IMDIV(COMPLEX(0,2*PI()*B141),COMPLEX(2*PI()*PS_Pole1,0))) -> 1+9.98184517010392i | E141: 10.03181105 | F141: 1.4709476 | G141: =IMSUM(COMPLEX(1,0),IMDIV(COMPLEX(0,2*PI()*B141),COMPLEX(2*PI()*PS_Zero1,0))) -> 1+0.0249546129252598i | H141: 1.000311318 | I141: 0.02494943484 | J141: =IF(VIN_nom>Vout, 1,IMSUB(COMPLEX(1,0),IMDIV(COMPLEX(0,2*PI()*B141),COMPLEX(2*PI()*PS_RHPZ,0)))) -> 1-0.0587869742632613i | K141: 1.001726464 | L141: -0.05871939354 | M141: =IMSUM(COMPLEX(1,0),IMDIV(COMPLEX(0,2*PI()*B141),COMPLEX(Q*(2*PI()*PS_Pole2/2),0)),IMDIV(IMPOWER(COMPLEX(0,2*PI()*B141),2),IMPOWER(COMPLEX(2*PI()*PS_Pole2/2,0),2))) -> 0.997195732671556+0.0997497919418883i | N141: 1.002172316 | O141: 0.09969865602 | P141: -0.0106934418696283-0.317949087851713i | Q141: 0.3181288609 | R141: -1.604416215 | S141: =COMPLEX(AEA,0) -> 6000 | T141: =IMSUM(COMPLEX(1,0),IMDIV(COMPLEX(0,2*PI()*B141),COMPLEX(2*PI()*EA_Pole1,0))) -> 1+50408.3181090248i | U141: 50408.31812 | V141: 1.570776489 | W141: =IMSUM(COMPLEX(1,0),IMDIV(COMPLEX(0,2*PI()*B141),COMPLEX(2*PI()*EA_Zero1,0))) -> 1+499.092258505196i | X141: 499.0932603 | Y141: 1.568792692 | Z141: =IMSUM(COMPLEX(1,0),IMDIV(COMPLEX(0,2*PI()*B141),COMPLEX(2*PI()*EA_Pole2,0))) -> 1+5.02758396966735i | AA141: 5.126070676 | AB141: 1.37445609 | AC141: 2.23824404592088-11.3708093650833i | AD141: 11.58900522 | AE141: -1.376439887 | AF141: =IMPRODUCT(P141,AC141) -> -3.63927299835905-0.590054563833928i | AG141: 11.33298458 | AH141: -170.790474 | AI141: =IF(AH141>0,AH141-180,AH141+180) -> 9.20952603 | AL141: =20*LOG10(IMABS(AC141)) -> 21.28092317 | AM141: =(180/PI())*IMARGUMENT(AC141) -> -78.86419629 | AO141: =20*LOG10(IMABS(IMPRODUCT(COMPLEX(Am/Afb,0),P141))) -> 52.17407095 | AP141: =180/PI()*IMARGUMENT(IMPRODUCT(COMPLEX(Am/Afb,0),P141)) -> -91.92627768 | AV141: =SUM((AG142<0)*(AG141>0))*B141 -> 0 | AW141: 0 | AX141: =SUM((AL142<0)*(AL141>0))*B141 -> 0 | AY141: =IF(AX141>0,AM141,0) -> 0
B142: 8035.8 | C142: 3.1918353909465 | D142: 1+10.0980840982867i | E142: 10.14747764 | F142: 1.472089463 | G142: 1+0.0252452102457169i | H142: 1.00031861 | I142: 0.0252398492 | J142: 1-0.059471550587881i | K142: 1.001766872 | L142: -0.05940158472 | M142: 0.997130040816+0.100911381678474i | N142: 1.002223241 | O142: 0.1008584379 | P142: =(IMDIV(IMPRODUCT(C142,G142,J142),IMPRODUCT(D142,M142))) -> -0.0114180860913107-0.314294312085676i | Q142: 0.3145016491 | R142: -1.607109637 | S142: 6000 | T142: 1+50995.324696348i | U142: 50995.32471 | V142: 1.570776717 | W142: 1+504.904204914337i | X142: 504.9051952 | Y142: 1.568815756 | Z142: 1+5.08613035683568i | AA142: 5.1835048 | AB142: 1.376659485 | AC142: 2.18891857637313-11.249618135558i | AD142: 11.46059653 | AE142: -1.378620447 | AF142: -3.56068425389364-0.559515549806579i | AG142: 11.13660301 | AH142: -171.0697326 | AI142: 8.930267438 | AL142: 21.18414447 | AM142: -78.98913316 | AO142: 52.07446808 | AP142: -92.08059941 | AV142: 0 | AW142: 0 | AX142: 0 | AY142: 0
B143: 8128.3 | C143: 3.1918353909465 | D143: 1+10.2143230264696i | E143: 10.26315716 | F143: 1.473205588 | G143: 1+0.0255358075661739i | H143: 1.000325986 | I143: 0.0255302593 | J143: 1-0.0601561269125006i | K143: 1.001807746 | L143: -0.06008372054 | M143: 0.997063588404889+0.102072971415061i | N143: 1.002274758 | O143: 0.1020181776 | P143: -0.012118267057195-0.310719570840676i | Q143: 0.3109557912 | R143: -1.609777227 | S143: 6000 | T143: 1+51582.3312836713i | U143: 51582.33129 | V143: 1.57077694 | W143: 1+510.716151323478i | X143: 510.7171303 | Y143: 1.568838294 | Z143: 1+5.14467674400401i | AA143: 5.240963537 | AB143: 1.378814577 | AC143: 2.1411857287292-11.1308756502065i | AD143: 11.33494901 | AE143: -1.380753223 | AF143: -3.48452836559289-0.530421387011286i | AG143: 10.94236441 | AH143: -171.3447733 | AI143: 8.655226722 | AL143: 21.08839142 | AM143: -79.11133223 | AO143: 51.97598253 | AP143: -92.23344105 | AV143: 0 | AW143: 0 | AX143: 0 | AY143: 0
B144: 8222.95 | C144: 3.1918353909465 | D144: 1+10.3332637243345i | E144: 10.38153838 | F144: 1.474321906 | G144: 1+0.0258331593108362i | H144: 1.00033362 | I144: 0.02582741501 | J144: 1-0.0608566150111521i | K144: 1.001850052 | L144: -0.06078165346 | M144: 0.996994804146556+0.103261560264443i | N144: 1.002328085 | O144: 0.1032048293 | P144: -0.0128105214657182-0.307141878956657i | Q144: 0.3074089187 | R144: -1.612480973 | S144: 6000 | T144: 1+52182.9818078891i | U144: 52182.98182 | V144: 1.570777163 | W144: 1+516.663186216724i | X144: 516.664154 | Y144: 1.568860832 | Z144: 1+5.20458393909032i | AA144: 5.299782446 | AB144: 1.380971379 | AC144: 2.09392215199341-11.0118352003499i | AD144: 11.20914914 | AE144: -1.38288771 | AF144: -3.40901998887218-0.502063832941189i | AG144: 10.74578222 | AH144: -171.6219836 | AI144: 8.378016365 | AL144: 20.99145295 | AM144: -79.23362931 | AO144: 51.87633881 | AP144: -92.38835433 | AV144: 0 | AW144: 0 | AX144: 0 | AY144: 0
B145: 8270.275 | C145: 3.1918353909465 | D145: 1+10.3927340732669i | E145: =IMABS(D145) -> 10.44073376 | F145: =IMARGUMENT(D145) -> 1.474870571 | G145: 1+0.0259818351831674i | H145: =IMABS(G145) -> 1.000337471 | I145: =IMARGUMENT(G145) -> 0.02597599115 | J145: 1-0.0612068590604778i | K145: =IMABS(J145) -> 1.001871389 | L145: =IMARGUMENT(J145) -> -0.06113059774 | M145: 0.996960113396639+0.103855854689134i | N145: =IMABS(M145) -> 1.00235498 | O145: =IMARGUMENT(M145) -> 0.1037981382 | P145: -0.0131478085522574-0.305382600956866i | Q145: =IMABS(P145) -> 0.3056654999 | R145: =IMARGUMENT(P145) -> -1.613823316 | S145: 6000 | T145: 1+52483.3070699981i | U145: =IMABS(T145) -> 52483.30708 | V145: =IMARGUMENT(T145) -> 1.570777273 | W145: 1+519.636703663347i | X145: =IMABS(W145) -> 519.6376659 | Y145: =IMARGUMENT(W145) -> 1.568871908 | Z145: 1+5.23453753663347i | AA145: =IMABS(Z145) -> 5.329200993 | AB145: =IMARGUMENT(Z145) -> 1.382031923 | AC145: =IMPRODUCT(S145,IMDIV(W145,IMPRODUCT(T145,Z145))) -> 2.07086799271708-10.9532264038182i | AD145: =IMABS(AC145) -> 11.14727154 | AE145: =IMARGUMENT(AC145) -> -1.383937289 | AF145: -3.37215214397266-0.488396130067334i | AG145: =20*LOG10(IMABS(AF145)) -> 10.64830008 | AH145: =(180/PI())*IMARGUMENT(AF145) -> -171.7590306 | AI145: 8.240969357 | AL145: 20.94337161 | AM145: -79.29376574 | AO145: 51.82693801 | AP145: -92.4652649 | AV145: 0 | AW145: 0 | AX145: 0 | AY145: 0
B146: 8317.6 | C146: 3.1918353909465 | D146: 1+10.4522044221994i | E146: 10.49993225 | F146: 1.47541305 | G146: 1+0.0261305110554984i | H146: 1.000341344 | I146: 0.02612456616 | J146: 1-0.0615571031098035i | K146: 1.001892847 | L146: -0.0614795271 | M146: 0.996925223566222+0.104450149113825i | N146: 1.00238203 | O146: 0.1043914358 | P146: -0.0134793774012682-0.30364260311219i | Q146: 0.3039416458 | R146: -1.615159447 | S146: 6000 | T146: 1+52783.6323321069i | U146: 52783.63234 | V146: 1.570777382 | W146: 1+522.610221109969i | X146: 522.6111778 | Y146: 1.568882857 | Z146: 1+5.26449113417661i | AA146: 5.358625468 | AB146: 1.383080822 | AC146: 2.04818795688055-10.8952134798051i | AD146: 11.0860611 | AE146: -1.384975346 | AF146: -3.33585928093057-0.475056428528571i | AG146: 10.55134957 | AH146: -171.8950616 | AI146: 8.10493836 | AL146: 20.89554536 | AM146: -79.35324207 | AO146: 51.77781376 | AP146: -92.54181957 | AV146: 0 | AW146: 0 | AX146: 0 | AY146: 0
B147: 8366.05 | C147: 3.1918353909465 | D147: 1+10.513088487826i | E147: 10.56054116 | F147: 1.475962125 | G147: 1+0.0262827212195649i | H147: 1.000345331 | I147: 0.02627667185 | J147: 1-0.0619156730874016i | K147: 1.001914942 | L147: -0.06183673562 | M147: 0.996889298106556+0.105058570981259i | N147: 1.002409884 | O147: 0.1049988254 | P147: -0.0138130368949539-0.301880886494975i | Q147: 0.3021967399 | R147: -1.616521014 | S147: 6000 | T147: 1+53091.0968635211i | U147: 53091.09687 | V147: 1.570777491 | W147: 1+525.654424391298i | X147: 525.6553756 | Y147: 1.568893939 | Z147: 1+5.29515678237452i | AA147: 5.388755455 | AB147: 1.384142787 | AC147: 2.02534804308092-10.8364297823187i | AD147: 11.0240757 | AE147: -1.38602634 | AF147: -3.29928723637112-0.461729858313386i | AG147: 10.45263924 | AH147: -172.0332912 | AI147: 7.966708844 | AL147: 20.84684374 | AM147: -79.41345957 | AO147: 51.72780504 | AP147: -92.61983158 | AV147: 0 | AW147: 0 | AX147: 0 | AY147: 0
B148: 8414.5 | C148: 3.1918353909465 | D148: 1+10.5739725534525i | E148: 10.62115321 | F148: 1.476504932 | G148: 1+0.0264349313836313i | H148: 1.000349342 | I148: 0.02642877634 | J148: 1-0.0622742430649997i | K148: 1.001937164 | L148: -0.06219392834 | M148: 0.996853163988889+0.105666992848692i | N148: 1.0024379 | O148: 0.1056062028 | P148: -0.0141409682793325-0.300138716518869i | Q148: 0.3004716561 | R148: -1.617876287 | S148: 6000 | T148: 1+53398.5613949352i | U148: 53398.5614 | V148: 1.5707776 | W148: 1+528.698627672626i | X148: 528.6995734 | Y148: 1.568904892 | Z148: 1+5.32582243057242i | AA148: 5.418891451 | AB148: 1.385192942 | AC148: 2.00288360884112-10.778252526613i | AD148: 10.96276746 | AE148: -1.387065649 | AF148: -3.2632935932337-0.448727988608784i | AG148: 10.35447425 | AH148: -172.1704906 | AI148: 7.829509366 | AL148: 20.79840404 | AM148: -79.47300762 | AO148: 51.67807976 | AP148: -92.69748302 | AV148: 0 | AW148: 0 | AX148: 0 | AY148: 0
B149: 8462.95 | C149: 3.1918353909465 | D149: 1+10.6348566190791i | E149: 10.68176836 | F149: 1.477041579 | G149: 1+0.0265871415476977i | H149: 1.000353376 | I149: 0.0265808796 | J149: 1-0.0626328130425978i | K149: 1.001959515 | L149: -0.06255110516 | M149: 0.996816821213222+0.106275414716126i | N149: 1.002466079 | O149: 0.1062135682 | P149: -0.0144633001492226-0.298415769611555i | Q149: 0.29876606 | R149: -1.619225373 | S149: 6000 | T149: 1+53706.0259263495i | U149: 53706.02594 | V149: 1.570777707 | W149: 1+531.742830953955i | X149: 531.7437713 | Y149: 1.568915721 | Z149: 1+5.35648807877032i | AA149: 5.449033358 | AB149: 1.38623148 | AC149: 1.9807865668113-10.7206728069552i | AD149: 10.90212552 | AE149: -1.388093466 | AF149: -3.22786653708855-0.436041639162622i | AG149: 10.25684875 | AH149: -172.3066771 | AI149: 7.693322869 | AL149: 20.75022356 | AM149: -79.53189718 | AO149: 51.62863474 | AP149: -92.77477996 | AV149: 0 | AW149: 0 | AX149: 0 | AY149: 0
B150: 8511.4 | C150: 3.1918353909465 | D150: 1+10.6957406847057i | E150: 10.74238655 | F150: 1.47757217 | G150: 1+0.0267393517117641i | H150: 1.000357433 | I150: 0.02673298163 | J150: 1-0.0629913830201959i | K150: 1.001981993 | L150: -0.06290826601 | M150: 0.996780269779556+0.106883836583559i | N150: 1.002494419 | O150: 0.1068209214 | P150: -0.0147801575139555-0.296711729233313i | Q150: 0.2970796245 | R150: -1.620568376 | S150: 6000 | T150: 1+54013.4904577636i | U150: 54013.49047 | V150: 1.570777813 | W150: 1+534.787034235283i | X150: 534.7879692 | Y150: 1.568926426 | Z150: 1+5.38715372696822i | AA150: 5.479181077 | AB150: 1.38725859 | AC150: 1.95904904351308-10.6636818806913i | AD150: 10.84213929 | AE150: -1.389109977 | AF150: -3.19299454425455-0.423661931478303i | AG150: 10.15975698 | AH150: -172.4418673 | AI150: 7.558132669 | AL150: 20.70229965 | AM150: -79.59013898 | AO150: 51.57946687 | AP150: -92.85172835 | AV150: 0 | AW150: 0 | AX150: 0 | AY150: 0
B151: 8560.95 | C151: 3.1918353909465 | D151: 1+10.7580070510998i | E151: 10.8043841 | F151: 1.478108649 | G151: 1+0.0268950176277495i | H151: 1.000361606 | I151: 0.02688853568 | J151: 1-0.0633580939054382i | K151: 1.002005114 | L151: -0.06327351915 | M151: 0.996742672671+0.107506071950563i | N151: 1.002523571 | O151: 0.1074420512 | P151: -0.0150986730411635-0.294988233202982i | Q151: 0.2953743856 | R151: -1.621935684 | S151: 6000 | T151: 1+54327.9356080541i | U151: 54327.93562 | V151: 1.57077792 | W151: 1+537.900352554991i | X151: 537.9012821 | Y151: 1.568937249 | Z151: 1+5.41851560247299i | AA151: 5.510019177 | AB151: 1.388297394 | AC151: 1.93718186235794-10.6059970959931i | AD151: 10.78145853 | AE151: -1.390138065 | AF151: -3.15789322026398-0.411309372541902i | AG151: 10.06100696 | AH151: -172.5791134 | AI151: 7.420886611 | AL151: 20.65355033 | AM151: -79.64904407 | AO151: 51.52946617 | AP151: -92.93006932 | AV151: 0 | AW151: 0 | AX151: 0 | AY151: 0
B152: 8610.5 | C152: 3.1918353909465 | D152: 1+10.820273417494i | E152: 10.86638472 | F152: 1.478639006 | G152: 1+0.0270506835437349i | H152: 1.000365803 | I152: 0.02704408842 | J152: 1-0.0637248047906803i | K152: 1.002028368 | L152: -0.06363875538 | M152: 0.996704857322222+0.108128307317567i | N152: 1.002552893 | O152: 0.1080631681 | P152: -0.0154117161535509-0.293283863991682i | Q152: 0.2936885185 | R152: -1.623296841 | S152: 6000 | T152: 1+54642.3807583445i | U152: 54642.38077 | V152: 1.570778026 | W152: 1+541.013670874698i | X152: 541.0145951 | Y152: 1.568947947 | Z152: 1+5.44987747797775i | AA152: 5.540863157 | AB152: 1.389324633 | AC152: 1.9156747093845-10.5489101556151i | AD152: 10.72144184 | AE152: -1.391154712 | AF152: -3.12334896620346-0.399259671871778i | AG152: 9.962803247 | AH152: -172.7153515 | AI152: 7.284648454 | AL152: 20.60506388 | AM152: -79.70729364 | AO152: 51.47974891 | AP152: -93.0080579 | AV152: 0 | AW152: 0 | AX152: 0 | AY152: 0
B153: 8660.05 | C153: 3.1918353909465 | D153: 1+10.8825397838881i | E153: 10.92838836 | F153: 1.479163346 | G153: 1+0.0272063494597203i | H153: 1.000370024 | I153: 0.02719963986 | J153: 1-0.0640915156759226i | K153: 1.002051756 | L153: -0.06400397461 | M153: 0.996666823733222+0.108750542684571i | N153: 1.002582385 | O153: 0.108684272 | P153: -0.015719409692591-0.291598304624945i | Q153: 0.2920216963 | R153: -1.624651952 | S153: 6000 | T153: 1+54956.825908635i | U153: 54956.82592 | V153: 1.570778131 | W153: 1+544.126989194406i | X153: 544.1279081 | Y153: 1.568958523 | Z153: 1+5.48123935348252i | AA153: 5.571712919 | AB153: 1.390340498 | AC153: 1.89451981407332-10.4924122151983i | AD153: 10.66207857 | AE153: -1.392160106 | AF153: -3.08935034650604-0.387504239587898i | AG153: 9.865139958 | AH153: -172.8505985 | AI153: 7.149401496 | AL153: 20.55683757 | AM153: -79.76489846 | AO153: 51.43031193 | AP153: -93.08570004 | AV153: 0 | AW153: 0 | AX153: 0 | AY153: 0
B154: 8709.6 | C154: 3.1918353909465 | D154: 1+10.9448061502823i | E154: 10.99039497 | F154: 1.479681768 | G154: 1+0.0273620153757057i | H154: 1.00037427 | I154: 0.02735518998 | J154: 1-0.0644582265611648i | K154: 1.002075278 | L154: -0.06436917675 | M154: 0.996628571904+0.109372778051574i | N154: 1.002612046 | O154: 0.1093053629 | P154: -0.0160218730739028-0.289931245028773i | Q154: 0.2903735995 | R154: -1.626001118 | S154: 6000 | T154: 1+55271.2710589254i | U154: 55271.27107 | V154: 1.570778234 | W154: 1+547.240307514113i | X154: 547.2412212 | Y154: 1.568968978 | Z154: 1+5.51260122898729i | AA154: 5.602568367 | AB154: 1.391345174 | AC154: 1.87370961194584-10.4364945942745i | AD154: 10.60335829 | AE154: -1.39315443 | AF154: -3.05588620903401-0.376034768887898i | AG154: 9.768011297 | AH154: -172.9848706 | AI154: 7.015129398 | AL154: 20.50886874 | AM154: -79.82186906 | AO154: 51.38115211 | AP154: -93.16300154 | AV154: 0 | AW154: =IF(AV154>0,AI154,0) -> 0 | AX154: 0 | AY154: 0
B155: 8760.325 | C155: 3.1918353909465 | D155: 1+11.0085490652236i | E155: 11.053875 | F155: 1.48020646 | G155: 1+0.027521372663059i | H155: 1.000378641 | I155: 0.02751442735 | J155: 1-0.064833633415936i | K155: 1.002099496 | L155: -0.06474302127 | M155: 0.996589186928639+0.110009768747664i | N155: 1.002642587 | O155: 0.1099411684 | P155: -0.0163262124276031-0.2882435000809i | Q155: 0.288705491 | R155: -1.627376222 | S155: 6000 | T155: 1+55593.1727793792i | U155: 55593.17279 | V155: 1.570778339 | W155: 1+550.42745326118i | X155: 550.4283616 | Y155: 1.568979559 | Z155: 1+5.54470680184257i | AA155: 5.634161297 | AB155: 1.392362275 | AC155: 1.8527552916028-10.3798432056821i | AD155: 10.54390095 | AE155: -1.394161055 | AF155: -3.02217081236383-0.364581144903821i | AG155: 9.669127226 | AH155: -173.1213336 | AI155: 6.878666377 | AL155: 20.46002635 | AM155: -79.87954441 | AO155: 51.33111042 | AP155: -93.24178921 | AV155: 0 | AW155: 0 | AX155: 0 | AY155: 0
B156: 8811.05 | C156: 3.1918353909465 | D156: 1+11.0722919801649i | E156: 11.11735804 | F156: 1.480725159 | G156: 1+0.0276807299504124i | H156: 1.000383038 | I156: 0.02767366333 | J156: 1-0.0652090402707072i | K156: 1.002123854 | L156: -0.06511684767 | M156: 0.996549573239889+0.110646759443755i | N156: 1.002673305 | O156: 0.1105769601 | P156: -0.0166253133794041-0.286574506441889i | Q156: 0.2870563512 | R156: -1.628745304 | S156: 6000 | T156: 1+55915.074499833i | U156: 55915.07451 | V156: 1.570778443 | W156: 1+553.614599008247i | X156: 553.6155022 | Y156: 1.568990018 | Z156: 1+5.57681237469786i | AA156: 5.66575999 | AB156: 1.393368032 | AC156: 1.83214679700224-10.3237820871205i | AD156: 10.48509602 | AE156: -1.395156456 | AF156: -2.98899277088741-0.353410451620948i | AG156: 9.570791442 | AH156: -173.2568085 | AI156: 6.743191479 | AL156: 20.41144824 | AM156: -79.93657671 | AO156: 51.28135275 | AP156: -93.32023181 | AV156: 0 | AW156: 0 | AX156: 0 | AY156: 0
B157: 8861.775 | C157: 3.1918353909465 | D157: 1+11.1360348951063i | E157: 11.18084403 | F157: 1.481237969 | G157: 1+0.0278400872377657i | H157: 1.00038746 | I157: 0.0278328979 | J157: 1-0.0655844471254784i | K157: 1.002148352 | L157: -0.06549065584 | M157: 0.99650973083775+0.111283750139845i | N157: 1.002704202 | O157: 0.1112127378 | P157: -0.0169192936148297-0.284923952734549i | Q157: 0.2854258596 | R157: -1.630108464 | S157: 6000 | T157: 1+56236.9762202867i | U157: 56236.97623 | V157: 1.570778545 | W157: 1+556.801744755314i | X157: 556.8026427 | Y157: 1.569000357 | Z157: 1+5.60891794755314i | AA157: 5.697364351 | AB157: 1.394362632 | AC157: 1.811876642336-10.2683024370573i | AD157: 10.42693301 | AE157: -1.396140819 | AF157: -2.9563409911457-0.342514630943332i | AG157: 9.472998017 | AH157: -173.3913117 | AI157: 6.608688303 | AL157: 20.36313166 | AM157: -79.99297654 | AO157: 51.2318759 | AP157: -93.39833515 | AV157: 0 | AW157: 0 | AX157: 0 | AY157: 0
B158: 8912.5 | C158: 3.1918353909465 | D158: 1+11.1997778100476i | E158: 11.24433293 | F158: 1.481744987 | G158: 1+0.027999444525119i | H158: 1.000391908 | I158: 0.02799213107 | J158: 1-0.0659598539802496i | K158: 1.00217299 | L158: -0.06586444568 | M158: 0.996469659722222+0.111920740835935i | N158: 1.002735277 | O158: 0.1118485017 | P158: -0.0172082675335131-0.28329153437736i | Q158: 0.2838137028 | R158: -1.631465803 | S158: 6000 | T158: 1+56558.8779407405i | U158: 56558.87795 | V158: 1.570778646 | W158: 1+559.988890502381i | X158: 559.9897834 | Y158: 1.569010579 | Z158: 1+5.64102352040843i | AA158: 5.728974285 | AB158: 1.395346257 | AC158: 1.79193754098083-10.2133956190236i | AD158: 10.36940163 | AE158: -1.397114324 | AF158: -2.92420465672475-0.331885891255084i | AG158: 9.375741119 | AH158: -173.5248592 | AI158: 6.475140806 | AL158: 20.31507392 | AM158: -80.04875426 | AO158: 51.18267674 | AP158: -93.47610494 | AV158: 0 | AW158: 0 | AX158: 0 | AY158: 0
B159: 8964.4 | C159: 3.1918353909465 | D159: 1+11.2649972735361i | E159: 11.30929545 | F159: 1.482257858 | G159: 1+0.0281624931838403i | H159: 1.000396484 | I159: 0.02815505126 | J159: 1-0.0663439568045497i | K159: 1.002198344 | L159: -0.06624687496 | M159: 0.996428423672889+0.112572486861111i | N159: 1.002767255 | O159: 0.1124989778 | P159: -0.0174988696560703-0.281639762090958i | Q159: 0.2821828592 | R159: -1.632848659 | S159: 6000 | T159: 1+56888.2362313575i | U159: 56888.23624 | V159: 1.570778748 | W159: 1+563.249863676807i | X159: 563.2507514 | Y159: 1.569020918 | Z159: 1+5.67387279061423i | AA159: 5.761322109 | AB159: 1.396341494 | AC159: 1.77187181522467-10.1578009838012i | AD159: 10.31118085 | AE159: -1.398099325 | AF159: -2.89184640638695-0.32127952108771i | AG159: 9.276780676 | AH159: -173.6605274 | AI159: 6.339472574 | AL159: 20.26616808 | AM159: -80.10519067 | AO159: 51.13262214 | AP159: -93.55533676 | AV159: 0 | AW159: 0 | AX159: 0 | AY159: 0
B160: 9016.3 | C160: 3.1918353909465 | D160: 1+11.3302167370247i | E160: 11.37426091 | F160: 1.48276487 | G160: 1+0.0283255418425617i | H160: 1.000401088 | I160: 0.02831796995 | J160: 1-0.0667280596288498i | K160: 1.002223844 | L160: -0.06662928484 | M160: 0.996386948191556+0.113224232886288i | N160: 1.00279942 | O160: 0.1131494392 | P160: -0.0177844630700958-0.280006350971476i | Q160: 0.2805705681 | R160: -1.634225624 | S160: 6000 | T160: 1+57217.5945219745i | U160: 57217.59453 | V160: 1.57077885 | W160: 1+566.510836851233i | X160: 566.5117194 | Y160: 1.569031137 | Z160: 1+5.70672206082002i | AA160: 5.793675576 | AB160: 1.397325618 | AC160: 1.75213783645313-10.1027882482644i | AD160: 10.25360022 | AE160: -1.39907333 | AF160: -2.86000570268014-0.310937057478042i | AG160: 9.178369841 | AH160: -173.7952281 | AI160: 6.20477194 | AL160: 20.21752761 | AM160: -80.16099703 | AO160: 51.08285178 | AP160: -93.63423103 | AV160: 0 | AW160: 0 | AX160: 0 | AY160: 0
B161: 9068.2 | C161: 3.1918353909465 | D161: 1+11.3954362005132i | E161: 11.43922927 | F161: 1.483266123 | G161: 1+0.028488590501283i | H161: 1.000405718 | I161: 0.02848088714 | J161: 1-0.0671121624531499i | K161: 1.002249491 | L161: -0.0670116752 | M161: 0.996345233278222+0.113875978911464i | N161: 1.002831772 | O161: 0.1137998857 | P161: -0.018065160327876-0.27839099569401i | Q161: 0.278976516 | R161: -1.635596797 | S161: 6000 | T161: 1+57546.9528125916i | U161: 57546.95282 | V161: 1.57077895 | W161: 1+569.771810025659i | X161: 569.7726876 | Y161: 1.56904124 | Z161: 1+5.73957133102582i | AA161: 5.826034592 | AB161: 1.39829881 | AC161: 1.73272840728219-10.0483486752512i | AD161: 10.19664939 | AE161: -1.400036519 | AF161: -2.82867180926599-0.300850956721772i | AG161: 9.080502657 | AH161: -173.9289772 | AI161: 6.071022826 | AL161: 20.16914973 | AM161: -80.21618372 | AO161: 51.03336247 | AP161: -93.71279346 | AV161: 0 | AW161: 0 | AX161: 0 | AY161: 0
B162: 9120.1 | C162: 3.1918353909465 | D162: 1+11.4606556640017i | E162: 11.50420046 | F162: 1.483761715 | G162: 1+0.0286516391600043i | H162: 1.000410374 | I162: 0.02864380282 | J162: 1-0.06749626527745i | K162: 1.002275284 | L162: -0.06739404593 | M162: 0.996303278932889+0.11452772493664i | N162: 1.00286431 | O162: 0.1144503172 | P162: -0.0183410708372484-0.276793397609684i | Q162: 0.2774003963 | R162: -1.636962275 | S162: 6000 | T162: 1+57876.3111032086i | U162: 57876.31111 | V162: 1.570779049 | W162: 1+573.032783200085i | X162: 573.0336557 | Y162: 1.569051228 | Z162: 1+5.77242060123162i | AA162: 5.858399064 | AB162: 1.39926125 | AC162: 1.71363652237761-9.99447369321288i | AD162: 10.14031827 | AE162: -1.400989071 | AF162: -2.79783425971122-0.291013925308709i | AG162: 8.983173263 | AH162: -174.0617905 | AI162: 5.938209507 | AL162: 20.12103172 | AM162: -80.2707609 | AO162: 50.98415109 | AP162: -93.7910296 | AV162: 0 | AW162: 0 | AX162: 0 | AY162: 0
B163: 9173.2 | C163: 3.1918353909465 | D163: 1+11.527383091964i | E163: 11.57067677 | F163: 1.484263005 | G163: 1+0.0288184577299099i | H163: 1.000415166 | I163: 0.02881048376 | J163: 1-0.0678892490919075i | K163: 1.002301826 | L163: -0.06778523718 | M163: 0.996260106744889+0.115194540234075i | N163: 1.002897793 | O163: 0.1151157719 | P163: -0.0186185176541204-0.275176933982112i | Q163: 0.2758060808 | R163: -1.638353531 | S163: 6000 | T163: 1+58213.284614418i | U163: 58213.28462 | V163: 1.570779149 | W163: 1+576.369154598198i | X163: 576.3700221 | Y163: 1.569061329 | Z163: 1+5.80602939213583i | AA163: 5.891517402 | AB163: 1.400234998 | AC163: 1.69442473788455-9.93992860032012i | AD163: 10.08331571 | AE163: -1.401952818 | AF163: -2.76678675313308-0.281199868108758i | AG163: 8.884144047 | AH163: -174.1967222 | AI163: 5.803277818 | AL163: 20.07206731 | AM163: -80.32597953 | AO163: 50.93408628 | AP163: -93.87074265 | AV163: 0 | AW163: 0 | AX163: 0 | AY163: 0
B164: 9226.3 | C164: 3.1918353909465 | D164: 1+11.5941105199262i | E164: 11.63715596 | F164: 1.484758568 | G164: 1+0.0289852762998155i | H164: 1.000419985 | I164: 0.0289771631 | J164: 1-0.0682822329063648i | K164: 1.002328521 | L164: -0.06817640766 | M164: 0.996216683924889+0.11586135553151i | N164: 1.002931471 | O164: 0.1157812109 | P164: -0.0188911758774745-0.273578446346845i | Q164: 0.2742299087 | R164: -1.639739024 | S164: 6000 | T164: 1+58550.2581256273i | U164: 58550.25813 | V164: 1.570779247 | W164: 1+579.70552599631i | X164: 579.7063885 | Y164: 1.569071315 | Z164: 1+5.83963818304002i | AA164: 5.924641264 | AB164: 1.40119786 | AC164: 1.67553110570695-9.88595687125158i | AD164: 10.0269411 | AE164: -1.402905792 | AF164: -2.73623747429501-0.271631846733178i | AG164: 8.785665655 | AH164: -174.3307065 | AI164: 5.669293486 | AL164: 20.02336927 | AM164: -80.38058096 | AO164: 50.88430593 | AP164: -93.95012555 | AV164: 0 | AW164: 0 | AX164: 0 | AY164: 0
B165: 9279.4 | C165: 3.1918353909465 | D165: 1+11.6608379478884i | E165: 11.70363797 | F165: 1.485248501 | G165: 1+0.0291520948697211i | H165: 1.000424832 | I165: 0.02914384083 | J165: 1-0.068675216720822i | K165: 1.002355369 | L165: -0.06856755723 | M165: 0.996173010472889+0.116528170828945i | N165: 1.002965344 | O165: 0.1164466338 | P165: -0.0191591531297007-0.271997635399751i | Q165: 0.2726715732 | R165: -1.641118851 | S165: 6000 | T165: 1+58887.2316368365i | U165: 58887.23165 | V165: 1.570779345 | W165: 1+583.041897394421i | X165: 583.042755 | Y165: 1.569081186 | Z165: 1+5.87324697394421i | AA165: 5.957770558 | AB165: 1.402150014 | AC165: 1.65694870872143-9.83254984076988i | AD165: 9.971184252 | AE165: -1.403848173 | AF165: -2.70617604067806-0.262302802696175i | AG165: 8.687732104 | AH165: -174.4637592 | AI165: 5.536240754 | AL165: 19.97493483 | AM165: -80.43457538 | AO165: 50.83480682 | AP165: -94.02918386 | AV165: 0 | AW165: 0 | AX165: 0 | AY165: 0
B166: 9332.5 | C166: 3.1918353909465 | D166: 1+11.7275653758507i | E166: 11.77012275 | F166: 1.485732899 | G166: 1+0.0293189134396268i | H166: 1.000429707 | I166: 0.02931051694 | J166: 1-0.0690682005352796i | K166: 1.00238237 | L166: -0.0689586858 | M166: 0.996129086388889+0.11719498612638i | N166: 1.002999413 | O166: 0.1171120408 | P166: -0.0194225540248825-0.270434208392437i | Q166: 0.2711307741 | R166: -1.642493109 | S166: 6000 | T166: 1+59224.205148046i | U166: 59224.20516 | V166: 1.570779442 | W166: 1+586.378268792535i | X166: 586.3791215 | Y166: 1.569090945 | Z166: 1+5.90685576484843i | AA166: 5.990905193 | AB166: 1.403091636 | AC166: 1.63867081486357-9.77969900952174i | AD166: 9.916035234 | AE166: -1.404780133 | AF166: -2.676592332387-0.253205912273893i | AG166: 8.590337506 | AH166: -174.5958958 | AI166: 5.404104211 | AL166: 19.92676122 | AM166: -80.48797277 | AO166: 50.78558582 | AP166: -94.10792302 | AV166: 0 | AW166: 0 | AX166: 0 | AY166: 0
B167: 9386.85 | C167: 3.1918353909465 | D167: 1+11.7958636001397i | E167: 11.83817545 | F167: 1.486223066 | G167: 1+0.0294896590003494i | H167: 1.000434726 | I167: 0.029481115 | J167: 1-0.0694704353811507i | K167: 1.002410166 | L167: -0.06935899984 | M167: 0.996083868759+0.117877498582417i | N167: 1.003034485 | O167: 0.117793095 | P167: -0.0196875224209877-0.26885168129441i | Q167: 0.2695715584 | R167: -1.643894046 | S167: 6000 | T167: 1+59569.1111807057i | U167: 59569.11119 | V167: 1.57077954 | W167: 1+589.793180006987i | X167: 589.7940278 | Y167: 1.569100819 | Z167: 1+5.94125572314679i | AA167: 6.024825273 | AB167: 1.404044698 | AC167: 1.62027115193257-9.72617133632562i | AD167: 9.860207273 | AE167: -1.405723418 | AF167: -2.64679664096039-0.244128407095623i | AG167: 8.491202273 | AH167: -174.7302098 | AI167: 5.269790173 | AL167: 19.87772089 | AM167: -80.54201904 | AO167: 50.73549093 | AP167: -94.18819079 | AV167: 0 | AW167: 0 | AX167: 0 | AY167: 0
B168: 9441.2 | C168: 3.1918353909465 | D168: 1+11.8641618244288i | E168: 11.90623097 | F168: 1.486707629 | G168: 1+0.029660404561072i | H168: 1.000439773 | I168: 0.02965171134 | J168: 1-0.0698726702270218i | K168: 1.002438123 | L168: -0.06975929161 | M168: 0.996038388558222+0.118560011038455i | N168: 1.003069762 | O168: 0.1184741322 | P168: -0.0199479090129866-0.267286765896623i | Q168: 0.2680300996 | R168: -1.645289341 | S168: 6000 | T168: 1+59914.0172133653i | U168: 59914.01722 | V168: 1.570779636 | W168: 1+593.208091221439i | X168: 593.2089341 | Y168: 1.569110579 | Z168: 1+5.97565568144516i | AA168: 6.058750764 | AB168: 1.404987087 | AC168: 1.60217679454525-9.6732088553736i | AD168: 9.804995668 | AE168: -1.406656144 | AF168: -2.61748078771569-0.235280363698009i | AG168: 8.392619477 | AH168: -174.8635956 | AI168: 5.136404371 | AL168: 19.82894812 | AM168: -80.59546028 | AO168: 50.6856809 | AP168: -94.26813535 | AV168: 0 | AW168: 0 | AX168: 0 | AY168: 0
B169: 9495.55 | C169: 3.1918353909465 | D169: 1+11.9324600487178i | E169: 11.97428924 | F169: 1.487186684 | G169: 1+0.0298311501217946i | H169: 1.00044485 | I169: 0.02982230595 | J169: 1-0.070274905072893i | K169: 1.00246624 | L169: -0.070159561 | M169: 0.995992645786556+0.119242523494492i | N169: 1.003105244 | O169: 0.1191551524 | P169: -0.0202038168279094-0.265739168485004i | Q169: 0.2665060973 | R169: -1.646679091 | S169: 6000 | T169: 1+60258.923246025i | U169: 60258.92325 | V169: 1.570779732 | W169: 1+596.623002435891i | X169: 596.6238405 | Y169: 1.569120228 | Z169: 1+6.01005563974353i | AA169: 6.092681577 | AB169: 1.405918981 | AC169: 1.58438108875804-9.62080296876972i | AD169: 9.750390413 | AE169: -1.407578485 | AF169: -2.58863472638179-0.226655172171496i | AG169: 8.2945831 | AH169: -174.9960687 | AI169: 5.003931346 | AL169: 19.78044011 | AM169: -80.6483065 | AO169: 50.63615253 | AP169: -94.34776215 | AV169: 0 | AW169: 0 | AX169: 0 | AY169: 0
B170: 9549.9 | C170: 3.1918353909465 | D170: 1+12.0007582730069i | E170: 12.04235023 | F170: 1.487660324 | G170: 1+0.0300018956825172i | H170: 1.000449956 | I170: 0.02999289883 | J170: 1-0.0706771399187641i | K170: 1.002494518 | L170: -0.07055980786 | M170: 0.995946640444+0.119925035950529i | N170: 1.00314093 | O170: 0.1198361553 | P170: -0.0204553460103431-0.264208601791947i | Q170: 0.2649992574 | R170: -1.648063388 | S170: 6000 | T170: 1+60603.8292786847i | U170: 60603.82929 | V170: 1.570779826 | W170: 1+600.037913650343i | X170: 600.0387469 | Y170: 1.569129767 | Z170: 1+6.04445559804189i | AA170: 6.126617621 | AB170: 1.406840552 | AC170: 1.56687755916432-9.56894524480878i | AD170: 9.696381716 | AE170: -1.408490611 | AF170: -2.56024866638318-0.218246443149393i | AG170: 8.197087219 | AH170: -175.127644 | AI170: 4.872355981 | AL170: 19.73219408 | AM170: -80.70056749 | AO170: 50.58690268 | AP170: -94.42707652 | AV170: 0 | AW170: 0 | AX170: 0 | AY170: 0
B171: 9605.525 | C171: 3.1918353909465 | D171: 1+12.0706587095492i | E171: 12.11201064 | F171: 1.488139563 | G171: 1+0.0301766467738731i | H171: 1.000455211 | I171: 0.03016749186 | J171: 1-0.0710888108166773i | K171: 1.002523625 | L171: -0.0709694207 | M171: 0.995899283976639+0.120623559508341i | N171: 1.003177665 | O171: 0.120533116 | P171: -0.0207083434986834-0.262659470933912i | Q171: 0.2634745399 | R171: -1.649474608 | S171: 6000 | T171: 1+60956.8264832237i | U171: 60956.82649 | V171: 1.570779922 | W171: 1+603.532935477462i | X171: 603.5337639 | Y171: 1.569139418 | Z171: 1+6.07966254708231i | AA171: 6.161355101 | AB171: 1.407773229 | AC171: 1.54925937500822-9.51642996132804i | AD171: 9.641713739 | AE171: -1.409413733 | AF171: -2.53166305412828-0.209858147258719i | AG171: 8.097857759 | AH171: -175.261392 | AI171: 4.738608048 | AL171: 19.68308466 | AM171: -80.75345849 | AO171: 50.53678264 | AP171: -94.50793346 | AV171: 0 | AW171: 0 | AX171: 0 | AY171: 0
B172: 9661.15 | C172: 3.1918353909465 | D172: 1+12.1405591460916i | E172: 12.18167379 | F172: 1.488613321 | G172: 1+0.0303513978652291i | H172: 1.000460498 | I172: 0.03034208304 | J172: 1-0.0715004817145906i | K172: 1.002552901 | L172: -0.07137900968 | M172: 0.995851652474556+0.121322083066153i | N172: 1.003214614 | O172: 0.1212300585 | P172: -0.0209569579270668-0.261127590286251i | Q172: 0.2619671974 | R172: -1.650880307 | S172: 6000 | T172: 1+61309.8236877627i | U172: 61309.8237 | V172: 1.570780016 | W172: 1+607.027957304581i | X172: 607.028781 | Y172: 1.569148958 | Z172: 1+6.11486949612273i | AA172: 6.196097881 | AB172: 1.408695448 | AC172: 1.53193406014143-9.46447150687746i | AD172: 9.58765054 | AE172: -1.410326506 | AF172: -2.50353931556922-0.201683718430611i | AG172: 7.999182198 | AH172: -175.3942306 | AI172: 4.605769397 | AL172: 19.63424392 | AM172: -80.80575655 | AO172: 50.48694782 | AP172: -94.58847405 | AV172: 0 | AW172: 0 | AX172: 0 | AY172: 0
B173: 9716.775 | C173: 3.1918353909465 | D173: 1+12.210459582634i | E173: 12.25133965 | F173: 1.489081692 | G173: 1+0.030526148956585i | H173: 1.000465814 | I173: 0.03051667237 | J173: 1-0.0719121526125037i | K173: 1.002582345 | L173: -0.07178857467 | M173: 0.99580374593775+0.122020606623965i | N173: 1.003251777 | O173: 0.1219269826 | P173: -0.0212012878901373-0.259612671740539i | Q173: 0.2604769355 | R173: -1.652280577 | S173: 6000 | T173: 1+61662.8208923016i | U173: 61662.8209 | V173: 1.57078011 | W173: 1+610.522979131699i | X173: 610.5237981 | Y173: 1.569158388 | Z173: 1+6.15007644516315i | AA173: 6.230845872 | AB173: 1.409607381 | AC173: 1.51489521731257-9.41306135871588i | AD173: 9.534182275 | AE173: -1.411229103 | AF173: -2.47586773821949-0.193716970979818i | AG173: 7.901054487 | AH173: -175.5261751 | AI173: 4.47382487 | AL173: 19.58566901 | AM173: -80.85747151 | AO173: 50.43739502 | AP173: -94.66870362 | AV173: 0 | AW173: 0 | AX173: 0 | AY173: 0
B174: 9772.4 | C174: 3.1918353909465 | D174: 1+12.2803600191764i | E174: 12.32100816 | F174: 1.489544765 | G174: 1+0.0307009000479409i | H174: 1.000471162 | I174: 0.03069125984 | J174: 1-0.0723238235104169i | K174: 1.002611957 | L174: -0.07219811554 | M174: 0.995755564366222+0.122719130181777i | N174: 1.003289155 | O174: 0.1226238883 | P174: -0.0214414292219388-0.258114433523649i | Q174: 0.2590034665 | R174: -1.653675509 | S174: 6000 | T174: 1+62015.8180968406i | U174: 62015.8181 | V174: 1.570780202 | W174: 1+614.018000958818i | X174: 614.0188153 | Y174: 1.569167711 | Z174: 1+6.18528339420357i | AA174: 6.265598987 | AB174: 1.410509199 | AC174: 1.49813662138456-9.3621911603232i | AD174: 9.481299313 | AE174: -1.41212169 | AF174: -2.44863885821915-0.185951926243378i | AG174: 7.803468674 | AH174: -175.6572404 | AI174: 4.342759643 | AL174: 19.53735714 | AM174: -80.90861298 | AO174: 50.38812108 | AP174: -94.74862738 | AV174: 0 | AW174: 0 | AX174: 0 | AY174: 0
B175: 9829.3 | C175: 3.1918353909465 | D175: 1+12.3518626679721i | E175: 12.39227628 | F175: 1.490013066 | G175: 1+0.0308796566699302i | H175: 1.000476663 | I175: 0.03086984715 | J175: 1-0.0727449304603722i | K175: 1.002642421 | L175: -0.07261701854 | M175: 0.995705993844889+0.123433664841364i | N175: 1.003327611 | O175: 0.1233367489 | P175: -0.0216828382857841-0.256598824580038i | Q175: 0.257513305 | R175: -1.655096986 | S175: 6000 | T175: 1+62376.9064732589i | U175: 62376.90648 | V175: 1.570780295 | W175: 1+617.593133398603i | X175: 617.593943 | Y175: 1.569177139 | Z175: 1+6.22129733398603i | AA175: 6.301153904 | AB175: 1.411421395 | AC175: 1.48127753650264-9.3107050627404i | AD175: 9.42779995 | AE175: -1.413024551 | AF175: -2.42123427639095-0.17821156254136i | AG175: 7.704200627 | AH175: -175.7904151 | AI175: 4.209584873 | AL175: 19.48820717 | AM175: -80.96034312 | AO175: 50.338003 | AP175: -94.83007201 | AV175: 0 | AW175: 0 | AX175: 0 | AY175: 0
B176: 9886.2 | C176: 3.1918353909465 | D176: 1+12.4233653167678i | E176: 12.46354708 | F176: 1.490476011 | G176: 1+0.0310584132919194i | H176: 1.000482196 | I176: 0.03104843249 | J176: 1-0.0731660374103274i | K176: 1.002673062 | L176: -0.073035896 | M176: 0.995656135536+0.12414819950095i | N176: 1.003366292 | O176: 0.1240495899 | P176: -0.0219200589022057-0.255100092526484i | Q176: 0.2560401261 | R176: -1.656513065 | S176: 6000 | T176: 1+62737.9948496771i | U176: 62737.99486 | V176: 1.570780387 | W176: 1+621.168265838388i | X176: 621.1690708 | Y176: 1.569186458 | Z176: 1+6.2573112737685i | AA176: 6.336714005 | AB176: 1.412323353 | AC176: 1.46469904417853-9.25976677907238i | AD176: 9.374893284 | AE176: -1.413917282 | AF176: -2.39427365143742-0.170670228475441i | AG176: 7.605487305 | AH176: -175.9227002 | AI176: 4.077299827 | AL176: 19.43932666 | AM176: -81.01149286 | AO176: 50.28817019 | AP176: -94.91120731 | AV176: 0 | AW176: 0 | AX176: 0 | AY176: 0
B177: 9943.1 | C177: 3.1918353909465 | D177: 1+12.4948679655635i | E177: 12.53482052 | F177: 1.490933692 | G177: 1+0.0312371699139086i | H177: 1.000487761 | I177: 0.03122701586 | J177: 1-0.0735871443602826i | K177: 1.002703878 | L177: -0.0734547478 | M177: 0.995605989439556+0.124862734160536i | N177: 1.003405197 | O177: 0.1247624113 | P177: -0.0221531852692395-0.253617955240213i | Q177: 0.2545836421 | R177: -1.657923835 | S177: 6000 | T177: 1+63099.0832260955i | U177: 63099.08323 | V177: 1.570780479 | W177: 1+624.743398278173i | X177: 624.7441986 | Y177: 1.569195671 | Z177: 1+6.29332521355096i | AA177: 6.372279203 | AB177: 1.413215244 | AC177: 1.44839500531246-9.2093678801157i | AD177: 9.322569648 | AE177: -1.414800052 | AF177: -2.36774761370557-0.163322146766697i | AG177: 7.507322638 | AH177: -176.0541103 | AI177: 3.945889668 | AL177: 19.39071273 | AM177: -81.06207184 | AO177: 50.23861945 | AP177: -94.99203849 | AV177: 0 | AW177: 0 | AX177: 0 | AY177: 0
B178: 10000 | C178: 3.1918353909465 | D178: 1+12.5663706143592i | E178: 12.60609656 | F178: 1.491386197 | G178: 1+0.0314159265358979i | H178: 1.000493359 | I178: 0.03140559723 | J178: 1-0.074008251310238i | K178: 1.002734871 | L178: -0.07387357377 | M178: 0.995555555555556+0.125577268820123i | N178: 1.003444326 | O178: 0.125475213 | P178: -0.0223823089467928-0.252152136810046i | Q178: 0.2531435716 | R178: -1.659329386 | S178: 6000 | T178: 1+63460.1716025139i | U178: 63460.17161 | V178: 1.570780569 | W178: 1+628.318530717959i | X178: 628.3193265 | Y178: 1.569204779 | Z178: 1+6.32933915333344i | AA178: 6.407849414 | AB178: 1.414097234 | AC178: 1.43235944631599-9.1595001023655i | AD178: 9.270819581 | AE178: -1.415673024 | AF178: -2.3416470345736-0.156161733979306i | AG178: 7.409700654 | AH178: -176.1846601 | AI178: 3.815339882 | AL178: 19.34236259 | AM178: -81.11208947 | AO178: 50.18934761 | AP178: -95.07257065 | AV178: 0 | AW178: 0 | AX178: 0 | AY178: 0
B179: 10058.25 | C179: 3.1918353909465 | D179: 1+12.6395697231878i | E179: 12.67906632 | F179: 1.491844168 | G179: 1+0.0315989243079696i | H179: 1.000499121 | I179: 0.03158841351 | J179: 1-0.0744393493741201i | K179: 1.002766781 | L179: -0.07430230985 | M179: 0.995503626975+0.126308756411i | N179: 1.003484615 | O179: 0.1262049058 | P179: -0.0226128154244644-0.250668163108052i | Q179: 0.2516860493 | R179: -1.66076297 | S179: 6000 | T179: 1+63829.8271020985i | U179: 63829.82711 | V179: 1.57078066 | W179: 1+631.978486159391i | X179: 631.9792773 | Y179: 1.569213996 | Z179: 1+6.3662075539016i | AA179: 6.444268664 | AB179: 1.414990064 | AC179: 1.41621547205629-9.10899088493388i | AD179: 9.218426178 | AE179: -1.416556728 | AF179: -2.31535863196524-0.149020201361415i | AG179: 7.310318518 | AH179: -176.3174309 | AI179: 3.682569113 | AL179: 19.29313564 | AM179: -81.16272195 | AO179: 50.13919242 | AP179: -95.15470894 | AV179: 0 | AW179: 0 | AX179: 0 | AY179: 0
B180: 10116.5 | C180: 3.1918353909465 | D180: 1+12.7127688320165i | E180: 12.75203871 | F180: 1.492296897 | G180: 1+0.0317819220800412i | H180: 1.000504918 | I180: 0.03177122769 | J180: 1-0.0748704474380022i | K180: 1.002798875 | L180: -0.07473101856 | M180: 0.995451396788889+0.127040244001877i | N180: 1.00352514 | O180: 0.1269345778 | P180: -0.0228393131195627-0.249200725848522i | Q180: 0.2502451518 | R180: -1.662191266 | S180: 6000 | T180: 1+64199.4826016831i | U180: 64199.48261 | V180: 1.57078075 | W180: 1+635.638441600823i | X180: 635.6392282 | Y180: 1.569223107 | Z180: 1+6.40307595446977i | AA180: 6.480692994 | AB180: 1.415872857 | AC180: 1.40034070812559-9.05902127973096i | AD180: 9.166614459 | AE180: -1.417430501 | AF180: -2.28949749829311-0.142064097335573i | AG180: 7.211492758 | AH180: -176.4493297 | AI180: 3.550670264 | AL180: 19.24417931 | AM180: -81.21278546 | AO180: 50.08932299 | AP180: -95.23654428 | AV180: 0 | AW180: 0 | AX180: 0 | AY180: 0
B181: 10174.75 | C181: 3.1918353909465 | D181: 1+12.7859679408451i | E181: 12.82501369 | F181: 1.492744475 | G181: 1+0.0319649198521127i | H181: 1.000510748 | I181: 0.03195403974 | J181: 1-0.0753015455018843i | K181: 1.002831154 | L181: -0.07515969975 | M181: 0.995398864997222+0.127771731592755i | N181: 1.0035659 | O181: 0.1276642287 | P181: -0.0230618922366585-0.247749548156039i | Q181: 0.248820597 | R181: -1.663614364 | S181: 6000 | T181: 1+64569.1381012678i | U181: 64569.13811 | V181: 1.57078084 | W181: 1+639.298397042255i | X181: 639.2991791 | Y181: 1.569232113 | Z181: 1+6.43994435503794i | AA181: 6.517122317 | AB181: 1.416745783 | AC181: 1.3847292507665-9.00958293572652i | AD181: 9.115374911 | AE181: -1.418294509 | AF181: -2.26405457815873-0.135288015434889i | AG181: 7.113217269 | AH181: -176.5803712 | AI181: 3.419628776 | AL181: 19.19549071 | AM181: -81.26228946 | AO181: 50.0397361 | AP181: -95.31808177 | AV181: 0 | AW181: 0 | AX181: 0 | AY181: 0
B182: 10233 | C182: 3.1918353909465 | D182: 1+12.8591670496737i | E182: 12.89799121 | F182: 1.493186988 | G182: 1+0.0321479176241843i | H182: 1.000516611 | I182: 0.03213684965 | J182: 1-0.0757326435657664i | K182: 1.002863617 | L182: -0.07558835327 | M182: 0.9953460316+0.128503219183632i | N182: 1.003606895 | O182: 0.1283938584 | P182: -0.0232806404515444-0.246314359263281i | Q182: 0.2474121092 | R182: -1.66503235 | S182: 6000 | T182: 1+64938.7936008524i | U182: 64938.79361 | V182: 1.570780928 | W182: 1+642.958352483687i | X182: 642.9591301 | Y182: 1.569241017 | Z182: 1+6.4768127556061i | AA182: 6.553556551 | AB182: 1.417609002 | AC182: 1.36937535582385-8.96066766739716i | AD182: 9.064698225 | AE182: -1.419148913 | AF182: -2.23902105036827-0.128686731190227i | AG182: 7.015486045 | AH182: -176.7105696 | AI182: 3.289430411 | AL182: 19.14706701 | AM182: -81.3112432 | AO182: 49.99042858 | AP182: -95.39932639 | AV182: 0 | AW182: 0 | AX182: 0 | AY182: 0
B183: 10292.5 | C183: 3.1918353909465 | D183: 1+12.9339369548292i | E183: 12.97253734 | F183: 1.493633856 | G183: 1+0.032334842387073i | H183: 1.000522634 | I183: 0.03232358031 | J183: 1-0.0761729926610624i | K183: 1.002896966 | L183: -0.07602617663 | M183: 0.995291753055556+0.129250403933112i | N183: 1.003649013 | O183: 0.1291391235 | P183: -0.0235002163482934-0.24486460413342i | Q183: 0.2459897041 | R183: -1.666475576 | S183: 6000 | T183: 1+65316.3816218874i | U183: 65316.38163 | V183: 1.570781017 | W183: 1+646.696847741459i | X183: 646.6976209 | Y183: 1.569250008 | Z183: 1+6.51447232356844i | AA183: 6.590777621 | AB183: 1.418480892 | AC183: 1.3539520792033-8.91123440609328i | AD183: 9.013505693 | AE183: -1.420011901 | AF183: -2.21386405197464-0.122119003416189i | AG183: 6.916213349 | AH183: -176.8427059 | AI183: 3.157294068 | AL183: 19.09787475 | AM183: -81.36068876 | AO183: 49.94034815 | AP183: -95.48201717 | AV183: 0 | AW183: 0 | AX183: 0 | AY183: 0
B184: 10352 | C184: 3.1918353909465 | D184: 1+13.0087068599846i | E184: 13.04708604 | F184: 1.494075618 | G184: 1+0.0325217671499616i | H184: 1.000528693 | I184: 0.03251030871 | J184: 1-0.0766133417563583i | K184: 1.002930508 | L184: -0.07646397079 | M184: 0.995237159822222+0.129997588682591i | N184: 1.003691376 | O184: 0.1298843661 | P184: -0.0237159723744084-0.243430979071507i | Q184: 0.2445835009 | R184: -1.667913646 | S184: 6000 | T184: 1+65693.9696429223i | U184: 65693.96965 | V184: 1.570781105 | W184: 1+650.435342999231i | X184: 650.4361117 | Y184: 1.569258896 | Z184: 1+6.55213189153077i | AA184: 6.628003645 | AB184: 1.419342989 | AC184: 1.33878591000823-8.86233015785544i | AD184: 8.962881431 | AE184: -1.420865198 | AF184: -2.1891163168387-0.115723187643856i | AG184: 6.817496166 | AH184: -176.9739916 | AI184: 3.026008384 | AL184: 19.04895302 | AM184: -81.40957908 | AO184: 49.89055269 | AP184: -95.56441254 | AV184: 0 | AW184: 0 | AX184: 0 | AY184: 0
B185: 10411.5 | C185: 3.1918353909465 | D185: 1+13.0834767651401i | E185: 13.12163726 | F185: 1.494512361 | G185: 1+0.0327086919128501i | H185: 1.000534786 | I185: 0.03269703484 | J185: 1-0.0770536908516543i | K185: 1.002964242 | L185: -0.07690173558 | M185: 0.9951822519+0.130744773432071i | N185: 1.003733984 | O185: 0.1306295863 | P185: -0.0239279943362801-0.242013214180011i | Q185: 0.2431932251 | R185: -1.669346648 | S185: 6000 | T185: 1+66071.5576639573i | U185: 66071.55767 | V185: 1.570781192 | W185: 1+654.173838257003i | X185: 654.1746026 | Y185: 1.569267682 | Z185: 1+6.58979145949311i | AA185: 6.66523454 | AB185: 1.420195455 | AC185: 1.32387120960128-8.81394670867872i | AD185: 8.912816141 | AE185: -1.421708965 | AF185: -2.16476915538397-0.109494259670446i | AG185: 6.719328399 | AH185: -177.1044408 | AI185: 2.895559169 | AL185: 19.00029895 | AM185: -81.45792337 | AO185: 49.84103899 | AP185: -95.64651746 | AV185: 0 | AW185: 0 | AX185: 0 | AY185: 0
B186: 10471 | C186: 3.1918353909465 | D186: 1+13.1582466702955i | E186: 13.19619094 | F186: 1.494944168 | G186: 1+0.0328956166757387i | H186: 1.000540915 | I186: 0.03288375869 | J186: 1-0.0774940399469502i | K186: 1.002998169 | L186: -0.07733947085 | M186: 0.995127029288889+0.131491958181551i | N186: 1.003776837 | O186: 0.1313747839 | P186: -0.0241363656377357-0.240611045513923i | Q186: 0.2418186084 | R186: -1.670774664 | S186: 6000 | T186: 1+66449.1456849923i | U186: 66449.14569 | V186: 1.570781278 | W186: 1+657.912333514775i | X186: 657.9130935 | Y186: 1.569276369 | Z186: 1+6.62745102745544i | AA186: 6.702470225 | AB186: 1.42103845 | AC186: 1.30920249184936-8.76607600824696i | AD186: 8.863300725 | AE186: -1.42254336 | AF186: -2.14081410343593-0.103427364610077i | AG186: 6.621704049 | AH186: -177.2340675 | AI186: 2.765932547 | AL186: 18.9519097 | AM186: -81.50573068 | AO186: 49.7918039 | AP186: -95.72833678 | AV186: 0 | AW186: 0 | AX186: 0 | AY186: 0
B187: 10532 | C187: 3.1918353909465 | D187: 1+13.2349015310431i | E187: 13.27262666 | F187: 1.495381826 | G187: 1+0.0330872538276077i | H187: 1.000547233 | I187: 0.03307518748 | J187: 1-0.0779454902799426i | K187: 1.00303315 | L187: -0.07778821062 | M187: 0.995070087822222+0.132257979521354i | N187: 1.003821026 | O187: 0.1321387444 | P187: -0.0243462849922116-0.239189448799119i | Q187: 0.240425319 | R187: -1.672233593 | S187: 6000 | T187: 1+66836.2527317676i | U187: 66836.25274 | V187: 1.570781365 | W187: 1+661.745076552154i | X187: 661.7458321 | Y187: 1.569285172 | Z187: 1+6.66605999629077i | AA187: 6.740649514 | AB187: 1.421893028 | AC187: 1.29441374946994-8.7175225255674i | AD187: 8.813098544 | AE187: -1.423389221 | AF187: -2.1166535738268-0.0973708234202277i | AG187: 6.522176543 | AH187: -177.3661222 | AI187: 2.633877784 | AL187: 18.90257252 | AM187: -81.55419498 | AO187: 49.74161356 | AP187: -95.81192724 | AV187: 0 | AW187: 0 | AX187: 0 | AY187: 0
B188: 10593 | C188: 3.1918353909465 | D188: 1+13.3115563917907i | E188: 13.3490649 | F188: 1.495814471 | G188: 1+0.0332788909794767i | H188: 1.000553589 | I188: 0.03326661385 | J188: 1-0.0783969406129351i | K188: 1.003068333 | L188: -0.07823691901 | M188: 0.9950128156+0.133024000861156i | N188: 1.003865473 | O188: 0.1329026808 | P188: -0.024552537430682-0.237783701246062i | Q188: 0.2390479359 | R188: -1.673687457 | S188: 6000 | T188: 1+67223.3597785429i | U188: 67223.35979 | V188: 1.570781451 | W188: 1+665.577819589534i | X188: 665.5785708 | Y188: 1.569293874 | Z188: 1+6.70466896512611i | AA188: 6.77883367 | AB188: 1.422737979 | AC188: 1.27987234148608-8.669491345434i | AD188: 8.763455563 | AE188: -1.424225556 | AF188: -2.09288785360883-0.0914747717172819i | AG188: 6.423207738 | AH188: -177.4973409 | AI188: 2.502659052 | AL188: 18.85350778 | AM188: -81.60211345 | AO188: 49.69170951 | AP188: -95.8952275 | AV188: 0 | AW188: 0 | AX188: 0 | AY188: 0
B189: 10654 | C189: 3.1918353909465 | D189: 1+13.3882112525383i | E189: 13.4255056 | F189: 1.496242189 | G189: 1+0.0334705281313456i | H189: 1.000559981 | I189: 0.03345803778 | J189: 1-0.0788483909459275i | K189: 1.003103718 | L189: -0.07868559582 | M189: 0.994955212622222+0.133790022200959i | N189: 1.003910178 | O189: 0.1336665931 | P189: -0.0247552054769084-0.236393536875919i | Q189: 0.2376861891 | R189: -1.675136341 | S189: 6000 | T189: 1+67610.4668253182i | U189: 67610.46683 | V189: 1.570781536 | W189: 1+669.410562626913i | X189: 669.4113096 | Y189: 1.569302476 | Z189: 1+6.74327793396144i | AA189: 6.817022612 | AB189: 1.423573464 | AC189: 1.26557282401021-8.62197430374498i | AD189: 8.714362597 | AE189: -1.425052524 | AF189: -2.06950851581993-0.0857344905359873i | AG189: 6.324791481 | AH189: -177.6277376 | AI189: 2.372262372 | AL189: 18.80471253 | AM189: -81.6494952 | AO189: 49.64208849 | AP189: -95.97824243 | AV189: 0 | AW189: 0 | AX189: 0 | AY189: 0
B190: 10715 | C190: 3.1918353909465 | D190: 1+13.4648661132859i | E190: 13.50194873 | F190: 1.496665065 | G190: 1+0.0336621652832146i | H190: 1.00056641 | I190: 0.03364945926 | J190: 1-0.07929984127892i | K190: 1.003139305 | L190: -0.0791342409 | M190: 0.994897278888889+0.134556043540762i | N190: 1.003955141 | O190: 0.134430481 | P190: -0.0249543693385108-0.235018695595182i | Q190: 0.2363398143 | R190: -1.676580328 | S190: 6000 | T190: 1+67997.5738720936i | U190: 67997.57388 | V190: 1.57078162 | W190: 1+673.243305664293i | X190: 673.2440483 | Y190: 1.569310981 | Z190: 1+6.78188690279678i | AA190: 6.855216259 | AB190: 1.42439964 | AC190: 1.251509900977-8.57496340051356i | AD190: 8.665810658 | AE190: -1.425870279 | AF190: -2.04650735346491-0.080145420691442i | AG190: 6.226921714 | AH190: -177.7573259 | AI190: 2.242674073 | AL190: 18.75618391 | AM190: -81.69634914 | AO190: 49.59274734 | AP190: -96.06097679 | AV190: 0 | AW190: 0 | AX190: 0 | AY190: 0
B191: 10777.5 | C191: 3.1918353909465 | D191: 1+13.5434059296256i | E191: 13.58027408 | F191: 1.497093401 | G191: 1+0.033858514824064i | H191: 1.000573035 | I191: 0.03384558526 | J191: 1-0.0797623928496089i | K191: 1.003175976 | L191: -0.07959388512 | M191: 0.9948375775+0.135340901470888i | N191: 1.004001477 | O191: 0.1352131277 | P191: -0.0251548776925773-0.233625673705098i | Q191: 0.2349760058 | R191: -1.678054829 | S191: 6000 | T191: 1+68394.1999446093i | U191: 68394.19995 | V191: 1.570781706 | W191: 1+677.17029648128i | X191: 677.1710348 | Y191: 1.569319594 | Z191: 1+6.82144527250511i | AA191: 6.894353893 | AB191: 1.425236636 | AC191: 1.23734117364325-8.5273132549839i | AD191: 8.616616768 | AE191: -1.426698747 | AF191: -2.02332446997701-0.0745711433200477i | AG191: 6.127205898 | AH191: -177.8892764 | AI191: 2.110723644 | AL191: 18.70673555 | AM191: -81.74381687 | AO191: 49.54247989 | AP191: -96.14545949 | AV191: 0 | AW191: 0 | AX191: 0 | AY191: 0
B192: 10840 | C192: 3.1918353909465 | D192: 1+13.6219457459653i | E192: 13.6586019 | F192: 1.497516825 | G192: 1+0.0340548643649134i | H192: 1.000579699 | I192: 0.03404170866 | J192: 1-0.0802249444202979i | K192: 1.00321286 | L192: -0.08005349564 | M192: 0.994777528888889+0.136125759401013i | N192: 1.004048084 | O192: 0.1359957485 | P192: -0.0253518707551183-0.232248203218185i | Q192: 0.2336277921 | R192: -1.679524361 | S192: 6000 | T192: 1+68790.826017125i | U192: 68790.82602 | V192: 1.57078179 | W192: 1+681.097287298267i | X192: 681.0980214 | Y192: 1.569328109 | Z192: 1+6.86100364221344i | AA192: 6.933496303 | AB192: 1.426064183 | AC192: 1.22341001884695-8.48017795422762i | AD192: 8.567972351 | AE192: -1.427517864 | AF192: -2.00052182551815-0.0691464032003479i | AG192: 6.028051222 | AH192: -178.0204062 | AI192: 1.979593751 | AL192: 18.65756113 | AM192: -81.7907488 | AO192: 49.49249964 | AP192: -96.22965745 | AV192: 0 | AW192: 0 | AX192: 0 | AY192: 0
B193: 10902.5 | C193: 3.1918353909465 | D193: 1+13.7004855623051i | E193: 13.73693214 | F193: 1.49793542 | G193: 1+0.0342512139057627i | H193: 1.000586401 | I193: 0.03423782944 | J193: 1-0.0806874959909868i | K193: 1.003249955 | L193: -0.08051307227 | M193: 0.994717133055556+0.136910617331139i | N193: 1.004094962 | O193: 0.1367783434 | P193: -0.025545427729527-0.230886022563832i | Q193: 0.232294908 | R193: -1.680989006 | S193: 6000 | T193: 1+69187.4520896407i | U193: 69187.4521 | V193: 1.570781873 | W193: 1+685.024278115254i | X193: 685.025008 | Y193: 1.569336526 | Z193: 1+6.90056201192177i | AA193: 6.972643407 | AB193: 1.426882438 | AC193: 1.20971119241321-8.4335494039635i | AD193: 8.519868351 | AE193: -1.428327786 | AF193: -1.9780912678161-0.0638667788648914i | AG193: 5.929451483 | AH193: -178.1507294 | AI193: 1.84927065 | AL193: 18.60865768 | AM193: -81.83715389 | AO193: 49.44280334 | AP193: -96.31357546 | AV193: 0 | AW193: 0 | AX193: 0 | AY193: 0
B194: 10965 | C194: 3.1918353909465 | D194: 1+13.7790253786448i | E194: 13.81526476 | F194: 1.498349268 | G194: 1+0.0344475634466121i | H194: 1.000593141 | I194: 0.03443394758 | J194: 1-0.0811500475616759i | K194: 1.003287262 | L194: -0.08097261482 | M194: 0.99465639+0.137695475261265i | N194: 1.00414211 | O194: 0.1375609121 | P194: -0.0257356255924251-0.22953887597414i | Q194: 0.2309770941 | R194: -1.682448847 | S194: 6000 | T194: 1+69584.0781621564i | U194: 69584.07817 | V194: 1.570781956 | W194: 1+688.951268932242i | X194: 688.9519947 | Y194: 1.569344846 | Z194: 1+6.94012038163011i | AA194: 7.011795128 | AB194: 1.427691556 | AC194: 1.19623959302871-8.38741967387328i | AD194: 8.472295908 | AE194: -1.429128665 | AF194: -1.95602485854928-0.0587279991662298i | AG194: 5.831400581 | AH194: -178.2802591 | AI194: 1.7197409 | AL194: 18.56002232 | AM194: -81.8830409 | AO194: 49.39338781 | AP194: -96.3972182 | AV194: 0 | AW194: 0 | AX194: 0 | AY194: 0
B195: 11028.75 | C195: 3.1918353909465 | D195: 1+13.8591359913114i | E195: 13.89516644 | F195: 1.498766586 | G195: 1+0.0346478399782784i | H195: 1.000600056 | I195: 0.03463398536 | J195: 1-0.0816218501637787i | K195: 1.003325534 | L195: -0.08144131291 | M195: 0.994594074375+0.138496030349993i | N195: 1.004190482 | O195: 0.1383591051 | P195: -0.0259262444430688-0.228180015178837i | Q195: 0.2296481863 | R195: -1.683933019 | S195: 6000 | T195: 1+69988.6367561225i | U195: 69988.63676 | V195: 1.570782039 | W195: 1+692.956799565569i | X195: 692.9575211 | Y195: 1.569353236 | Z195: 1+6.98046991873261i | AA195: 7.051734559 | AB195: 1.4285076 | AC195: 1.18272750462816-8.34087317616606i | AD195: 8.424310636 | AE195: -1.429936402 | AF195: -1.93388425033686-0.0536272631245646i | AG195: 5.731947848 | AH195: -178.4115758 | AI195: 1.588424241 | AL195: 18.51068745 | AM195: -81.92932081 | AO195: 49.34326994 | AP195: -96.48225495 | AV195: 0 | AW195: 0 | AX195: 0 | AY195: 0
B196: 11092.5 | C196: 3.1918353909465 | D196: 1+13.9392466039779i | E196: 13.97507051 | F196: 1.499179132 | G196: 1+0.0348481165099448i | H196: 1.000607011 | I196: 0.03483402036 | J196: 1-0.0820936527658815i | K196: 1.003364026 | L196: -0.08190997514 | M196: 0.9945313975+0.139296585438722i | N196: 1.004239135 | O196: 0.1391572706 | P196: -0.026113523489259-0.22683627606296i | Q196: 0.2283344307 | R196: -1.685412357 | S196: 6000 | T196: 1+70393.1953500885i | U196: 70393.19536 | V196: 1.570782121 | W196: 1+696.962330198896i | X196: 696.9630476 | Y196: 1.56936153 | Z196: 1+7.02081945583512i | AA196: 7.091678633 | AB196: 1.429314451 | AC196: 1.16944153668433-8.29482948857682i | AD196: 8.376860376 | AE196: -1.430735042 | AF196: -1.91210647080351-0.0486645385654699i | AG196: 5.633053615 | AH196: -178.5420943 | AI196: 1.457905678 | AL196: 18.46162553 | AM196: -81.97507951 | AO196: 49.29343762 | AP196: -96.56701481 | AV196: 0 | AW196: 0 | AX196: 0 | AY196: 0
B197: 11156.25 | C197: 3.1918353909465 | D197: 1+14.0193572166445i | E197: 14.05497694 | F197: 1.499586987 | G197: 1+0.0350483930416111i | H197: 1.000614006 | I197: 0.03503405258 | J197: 1-0.0825654553679842i | K197: 1.003402738 | L197: -0.08237860132 | M197: 0.994468359375+0.14009714052745i | N197: 1.00428807 | O197: 0.1399554085 | P197: -0.0262975377301508-0.225507404853074i | Q197: 0.2270355702 | R197: -1.686886944 | S197: 6000 | T197: 1+70797.7539440545i | U197: 70797.75395 | V197: 1.570782202 | W197: 1+700.967860832223i | X197: 700.9685741 | Y197: 1.569369729 | Z197: 1+7.06116899293762i | AA197: 7.131627272 | AB197: 1.430112264 | AC197: 1.15637670585901-8.24928069724122i | AD197: 8.329936321 | AE197: -1.431524737 | AF197: -1.89068374199202-0.0438357395885061i | AG197: 5.534711717 | AH197: -178.6718281 | AI197: 1.328171879 | AL197: 18.41283363 | AM197: -82.0203257 | AO197: 49.24388763 | AP197: -96.65150242 | AV197: 0 | AW197: 0 | AX197: 0 | AY197: 0
B198: 11220 | C198: 3.1918353909465 | D198: 1+14.099467829311i | E198: 14.13488568 | F198: 1.499990231 | G198: 1+0.0352486695732775i | H198: 1.000621042 | I198: 0.03523408199 | J198: 1-0.083037257970087i | K198: 1.003441671 | L198: -0.08284719123 | M198: 0.99440496+0.140897695616178i | N198: 1.004337287 | O198: 0.1407535185 | P198: -0.0264783600620402-0.224193153394771i | Q198: 0.2257513534 | R198: -1.688356859 | S198: 6000 | T198: 1+71202.3125380205i | U198: 71202.31255 | V198: 1.570782282 | W198: 1+704.97339146555i | X198: 704.9741007 | Y198: 1.569377834 | Z198: 1+7.10151853004012i | AA198: 7.1715804 | AB198: 1.430901188 | AC198: 1.14352816439905-8.20421904906294i | AD198: 8.283529856 | AE198: -1.432305635 | AF198: -1.86960849022891-0.0391369191634195i | AG198: 5.436916092 | AH198: -178.8007902 | AI198: 1.199209809 | AL198: 18.36430884 | AM198: -82.06506789 | AO198: 49.1946168 | AP198: -96.73572231 | AV198: 0 | AW198: 0 | AX198: 0 | AY198: 0
B199: 11285.5 | C199: 3.1918353909465 | D199: 1+14.181777556835i | E199: 14.21699035 | F199: 1.500399822 | G199: 1+0.0354544438920876i | H199: 1.000628311 | I199: 0.03543959947 | J199: 1-0.083522012016169i | K199: 1.003481901 | L199: -0.08332860641 | M199: 0.994339443988889+0.14172022672695i | N199: 1.004388148 | O199: 0.1415735083 | P199: -0.0266608960704289-0.222857796647111i | Q199: 0.2244468777 | R199: -1.689862338 | S199: 6000 | T199: 1+71617.976662017i | U199: 71617.97667 | V199: 1.570782364 | W199: 1+709.088877841752i | X199: 709.089583 | Y199: 1.569386067 | Z199: 1+7.14297570149444i | AA199: 7.212634877 | AB199: 1.431702664 | AC199: 1.13054723821402-8.15841981680814i | AD199: 8.236379724 | AE199: -1.433098961 | AF199: -1.84830886691672-0.0344404836790036i | AG199: 5.336998582 | AH199: -178.932502 | AI199: 1.067498004 | AL199: 18.31472722 | AM199: -82.11052208 | AO199: 49.14428091 | AP199: -96.82197991 | AV199: 0 | AW199: 0 | AX199: 0 | AY199: 0
B200: 11351 | C200: 3.1918353909465 | D200: 1+14.2640872843591i | E200: 14.29909739 | F200: 1.50080471 | G200: 1+0.0356602182108978i | H200: 1.000635624 | I200: 0.03564511395 | J200: 1-0.0840067660622511i | K200: 1.003522365 | L200: -0.08380998288 | M200: 0.994273546622222+0.142542757837722i | N200: 1.004439308 | O200: 0.1423934684 | P200: -0.0268402120220077-0.221537359765112i | Q200: 0.2231573408 | R200: -1.691363048 | S200: 6000 | T200: 1+72033.6407860135i | U200: 72033.64079 | V200: 1.570782444 | W200: 1+713.204364217955i | X200: 713.2050653 | Y200: 1.569394205 | Z200: 1+7.18443287294878i | AA200: 7.253693935 | AB200: 1.432495068 | AC200: 1.11778468453329-8.11311875066352i | AD200: 8.189758144 | AE200: -1.433883307 | AF200: -1.82736048541065-0.0298732403698485i | AG200: 5.237645084 | AH200: -179.0634261 | AI200: 0.9365739033 | AL200: 18.26542153 | AM200: -82.15546183 | AO200: 49.0942331 | AP200: -96.90796426 | AV200: 0 | AW200: 0 | AX200: 0 | AY200: 0
B201: 11416.5 | C201: 3.1918353909465 | D201: 1+14.3463970118831i | E201: 14.38120674 | F201: 1.501204975 | G201: 1+0.0358659925297079i | H201: 1.000642978 | I201: 0.03585062542 | J201: 1-0.0844915201083331i | K201: 1.003563061 | L201: -0.08429132043 | M201: 0.9942072679+0.143365288948493i | N201: 1.004490765 | O201: 0.1432133986 | P201: -0.0270163805026749-0.220231591123135i | Q201: 0.2218824881 | R201: -1.692859069 | S201: 6000 | T201: 1+72449.3049100099i | U201: 72449.30492 | V201: 1.570782524 | W201: 1+717.319850594157i | X201: 717.3205476 | Y201: 1.569402249 | Z201: 1+7.22589004440311i | AA201: 7.294757497 | AB201: 1.433278551 | AC201: 1.10523566411591-8.06830794593664i | AD201: 8.143656365 | AE201: -1.434658826 | AF201: -1.80675576385194-0.0254313313941021i | AG201: 5.138849338 | AH201: -179.1935757 | AI201: 0.8064242921 | AL201: 18.21638879 | AM201: -82.19989576 | AO201: 49.04447009 | AP201: -96.99367995 | AV201: 0 | AW201: 0 | AX201: 0 | AY201: 0
... 435 more rows

Sheet IL Stability Calculations (hidden)
A2: Vout | B2: =Vout -> 20 | D2: Divider Network & IL Poles/Zeros | G2: Modulator | M2: Power Stage Poles/Zeros | R2: Complex Pole Pair | T2: Total System
A3: Vin | B3: =Vin -> 16 | G3: Acs | H3: =Acs -> 40 | I3: A/V | J3: gm | K3: =gm -> 0.0006 | M3: z_ESR | O3: =Fesr -> 318309.8862 | P3: Hz | Q3: p3 | R3: =Fsw/2 -> 300000 | S3: Hz | T3: Adc | U3: =Am*Afb*AEA -> 19151.01235 | V3: V/V
A4: Iload | B4: ='Variable Management'!B253 -> 5 | D4: IL zero, z1 | E4: =1/(2*Pi*RcIL*Cc1IL) -> 99.59633485 | F4: Hz | G4: Am | H4: =Am -> 63.83670782 | I4: V/V | M4: p_dom | O4: =Fp_dominant -> 795.7747155 | P4: Hz | Q4: pterm1 | R4: =Q*PS_Pole2 -> 159264.4926 | T4: Crossover | U4: =BM8/1000 -> 16.3125 | V4: kHz
A5: Rload | B5: =Rout -> 4 | D5: IL pole, p1 | E5: =1/(2*Pi*(RoEA_IL+RcIL)*Cc1IL) -> 0.1690264243 | F5: Hz | G5: Q | H5: =Q -> 0.530881642 | M5: z_RHP | O5: =IF(VIN_nom>Vout, 10000000,Frhp) -> 135120.0687 | P5: Hz | Q5: pterm2 | R5: =PS_Pole2^2+0.01 -> 9e+10 | T5: Phase Margin | U5: =BM9 -> -11.49594195 | V5: °
A6: Co1 | B6: =Cout-B7 -> 8.8e-05 | D6: AIL | E6: =gm_IL_DAC*RoEA_IL -> 10000 | F6: V/V | G6: mc | H6: =mc -> 1.378 | T6: radconv | U6: =180/Pi -> 57.29577951 | BB6: =20*LOG10(IMPRODUCT(COMPLEX($B$15,0),IMABS(AS13))) -> 39.99668195 | BC6: =(180/PI())*IMARGUMENT(AS13) -> -1.583596633 | BL6: XOVER SEARCH
A7: Co2 | B7: =Co2_u -> 1.2e-05 | D7: IL pole, p2 | E7: =1/(2*Pi*RcIL*(Cc2IL+Cbw_IL)) -> 2053.462888 | F7: Hz | G7: k | H7: =k -> 1.099587292 | T7: Adc [dB] | U7: =20*LOG(Adc) -> 85.64383472 | V7: dB | BL7: System | BN7: Error Amp
A8: Co1_esr | B8: =CoutEsr -> 0.005 | BL8: xover | BM8: =SUM(BL12:BL613) -> 16312.5 | BN8: xover | BO8: =SUM(BN12:BN613) -> 7161.95
A9: CO2_esr | B9: =CoutEsr -> 0.005 | BL9: phase margin | BM9: =SUM(BM13:BM613) -> -11.49594195 | BN9: phase margin | BO9: =SUM(BO13:BO613) -> -89.71062893
A10: L_dcr | B10: =Rdcr -> 0.0057 | D10: Freq (Hz) | E10: Power Stage | V10: Error Amplifier | AI10: ILimit Amplifier | AW10: System Response | BB10: IL ERROR AMP Response | BE10: PLANT Response
A11: Duty | B11: =IF(B3>=Vout,Vout/B3,(Vout-Vin)/Vout) -> 0.2 | M11: G_d_il | W11: p1 | Z11: z1 | AC11: p2 | AF11: Total | AJ11: p1 | AM11: z1 | AP11: p2 | AS11: Total
B12: =IF(Vin<Vout,"Boost","Buck") -> Boost | E12: ZL | F12: ZCo1 | G12: ZCo2 | H12: Zout | I12: Zout_sns | J12: Zout_all | K12: He | M12: G_d_il | N12: G_d_iout | O12: G_d_isns | P12: G_d_mid | Q12: G_d_vo | R12: G_vc_isns | S12: G_vc_Il | T12: G_vc_isns | U12: G_vc_vo | V12: ADC_EA | W12: Complex | X12: Gain(V/V) | Y12: Phase(rad) | Z12: Complex | AA12: Gain(V/V) | AB12: Phase(rad) | AC12: Complex | AD12: Gain(V/V) | AE12: Phase(rad) | AF12: Complex | AG12: Gain(V/V) | AH12: Phase(rad) | AI12: ADC_IL | AJ12: Complex | AK12: Gain(V/V) | AL12: Phase(rad) | AM12: Complex | AN12: Gain(V/V) | AO12: Phase(rad) | AP12: Complex | AQ12: Gain(V/V) | AR12: Phase(rad) | AS12: Complex | AT12: Gain(V/V) | AU12: Phase(rad) | AV12: Complex | AW12: Gain(dB) | AX12: :Loop Phase Margin (°) | AY12: Phase (°) | BB12: Gain(dB) | BC12: Phase(Deg) | BE12: Gain(dB) | BF12: Phase(Deg)
